Workbook

Sheet datos
B2: Salarios (euros) | Z2: Retenciones (euros) | AX2: Número de asalariados | BV2: Tipo medio (%) | CT2: Salario medio (euros)
B3: 2001 | C3: 2002 | D3: 2003 | E3: 2004 | F3: 2005 | G3: 2006 | H3: 2007 | I3: 2008 | J3: 2009 | K3: 2010 | L3: 2011 | M3: 2012 | N3: 2013 | O3: 2014 | P3: 2015 | Q3: 2016 | R3: 2017 | S3: 2018 | T3: 2019 | U3: 2020 | V3: 2021 | W3: 2022 | X3: 2023 | Y3: 2024 | Z3: 2001 | AA3: 2002 | AB3: 2003 | AC3: 2004 | AD3: 2005 | AE3: 2006 | AF3: 2007 | AG3: 2008 | AH3: 2009 | AI3: 2010 | AJ3: 2011 | AK3: 2012 | AL3: 2013 | AM3: 2014 | AN3: 2015 | AO3: 2016 | AP3: 2017 | AQ3: 2018 | AR3: 2019 | AS3: 2020 | AT3: 2021 | AU3: 2022 | AV3: 2023 | AW3: 2024 | AX3: 2001 | AY3: 2002 | AZ3: 2003 | BA3: 2004 | BB3: 2005 | BC3: 2006 | BD3: 2007 | BE3: 2008 | BF3: 2009 | BG3: 2010 | BH3: 2011 | BI3: 2012 | BJ3: 2013 | BK3: 2014 | BL3: 2015 | BM3: 2016 | BN3: 2017 | BO3: 2018 | BP3: 2019 | BQ3: 2020 | BR3: 2021 | BS3: 2022 | BT3: 2023 | BU3: 2024 | BV3: 2001 | BW3: 2002 | BX3: 2003 | BY3: 2004 | BZ3: 2005 | CA3: 2006 | CB3: 2007 | CC3: 2008 | CD3: 2009 | CE3: 2010 | CF3: 2011 | CG3: 2012 | CH3: 2013 | CI3: 2014 | CJ3: 2015 | CK3: 2016 | CL3: 2017 | CM3: 2018 | CN3: 2019 | CO3: 2020 | CP3: 2021 | CQ3: 2022 | CR3: 2023 | CS3: 2024 | CT3: 2001 | CU3: 2002 | CV3: 2003 | CW3: 2004 | CX3: 2005 | CY3: 2006 | CZ3: 2007 | DA3: 2008 | DB3: 2009 | DC3: 2010 | DD3: 2011 | DE3: 2012 | DF3: 2013 | DG3: 2014 | DH3: 2015 | DI3: 2016 | DJ3: 2017 | DK3: 2018 | DL3: 2019 | DM3: 2020 | DN3: 2021 | DO3: 2022 | DP3: 2023 | DQ3: 2024
A4: 1 | B4: 29,541,615 | C4: 27,645,802 | D4: 29,437,929 | E4: 27,855,280 | F4: 31,801,465 | G4: 31,584,347 | H4: 25,499,488 | I4: 27,306,225 | J4: 28,879,391 | K4: 29,482,969 | L4: 31,556,209 | M4: 33,494,223 | N4: 35,810,444 | O4: 34,880,349 | P4: 34,109,357 | Q4: 34,349,658 | R4: 32,519,373 | S4: 32,351,524 | T4: 30,486,508 | U4: 27,175,838 | V4: 27,455,306 | W4: 23,901,072 | X4: 23,248,687 | Y4: 26,735,307 | Z4: 642,480 | AA4: 601,273 | AB4: 634,176 | AC4: 601,999 | AD4: 699,774 | AE4: 759,494 | AF4: 602,569 | AG4: 595,875 | AH4: 594,751 | AI4: 643,529 | AJ4: 720,427 | AK4: 746,601 | AL4: 811,664 | AM4: 785,423 | AN4: 752,606 | AO4: 782,752 | AP4: 726,629 | AQ4: 756,499 | AR4: 720,638 | AS4: 639,218 | AT4: 647,531 | AU4: 591,815 | AV4: 512,845 | AW4: 932,004 | AX4: 308,133 | AY4: 290,444 | AZ4: 316,399 | BA4: 294,835 | BB4: 338,653 | BC4: 335,923 | BD4: 271,425 | BE4: 284,950 | BF4: 297,199 | BG4: 304,610 | BH4: 330,689 | BI4: 349,928 | BJ4: 384,262 | BK4: 369,837 | BL4: 360,424 | BM4: 359,341 | BN4: 336,325 | BO4: 328,778 | BP4: 310,946 | BQ4: 270,572 | BR4: 276,001 | BS4: 244,376 | BT4: 240,383 | BU4: 289,700 | BV4: =+Z4/B4*100 -> 2.2 | BW4: 2.2 | BX4: 2.2 | BY4: 2.2 | BZ4: 2.2 | CA4: 2.4 | CB4: 2.4 | CC4: 2.2 | CD4: 2.1 | CE4: 2.2 | CF4: 2.3 | CG4: 2.2 | CH4: 2.3 | CI4: 2.3 | CJ4: 2.2 | CK4: 2.3 | CL4: 2.2 | CM4: 2.3 | CN4: 2.4 | CO4: 2.4 | CP4: 2.4 | CQ4: 2.5 | CR4: 2.2 | CS4: 3.5 | CT4: =+B4/AX4 -> 96 | CU4: 95 | CV4: 93 | CW4: 94 | CX4: 94 | CY4: 94 | CZ4: 94 | DA4: 96 | DB4: 97 | DC4: 97 | DD4: 95 | DE4: 96 | DF4: 93 | DG4: 94 | DH4: 95 | DI4: 96 | DJ4: =+R4/BN4 -> 97 | DK4: 98 | DL4: 98 | DM4: 100 | DN4: 99 | DO4: 98 | DP4: 97 | DQ4: 92
A5: 2 | B5: 72,965,628 | C5: 81,467,945 | D5: 87,340,372 | E5: 68,217,591 | F5: 71,854,670 | G5: 72,813,778 | H5: 59,420,277 | I5: 62,227,592 | J5: 67,221,958 | K5: 69,002,789 | L5: 72,454,140 | M5: 75,196,973 | N5: 79,055,324 | O5: 77,735,278 | P5: 79,922,567 | Q5: 79,871,600 | R5: 73,770,139 | S5: 69,184,428 | T5: 62,233,101 | U5: 57,450,589 | V5: 59,541,442 | W5: 54,526,146 | X5: 53,355,624 | Y5: 51,900,977 | Z5: 1,434,010 | AA5: 1,373,142 | AB5: 1,403,697 | AC5: 1,312,051 | AD5: 1,436,705 | AE5: 1,535,100 | AF5: 1,196,917 | AG5: 1,321,472 | AH5: 1,305,560 | AI5: 1,383,638 | AJ5: 1,546,097 | AK5: 1,587,634 | AL5: 1,687,384 | AM5: 1,722,275 | AN5: 1,745,460 | AO5: 1,796,164 | AP5: 1,713,666 | AQ5: 1,526,297 | AR5: 1,413,438 | AS5: 1,276,688 | AT5: 1,309,961 | AU5: 1,218,576 | AV5: 1,113,179 | AW5: 1,197,250 | AX5: 244,429 | AY5: 282,368 | AZ5: 299,952 | BA5: 231,079 | BB5: 242,283 | BC5: 246,075 | BD5: 201,520 | BE5: 210,585 | BF5: 227,213 | BG5: 233,060 | BH5: 244,875 | BI5: 254,077 | BJ5: 267,525 | BK5: 263,879 | BL5: 269,745 | BM5: 270,013 | BN5: 248,893 | BO5: 233,521 | BP5: 210,956 | BQ5: 194,006 | BR5: 200,752 | BS5: 186,871 | BT5: 183,528 | BU5: 178,570 | BV5: 2.0 | BW5: 1.7 | BX5: 1.6 | BY5: 1.9 | BZ5: 2.0 | CA5: 2.1 | CB5: 2.0 | CC5: 2.1 | CD5: 1.9 | CE5: 2.0 | CF5: 2.1 | CG5: 2.1 | CH5: 2.1 | CI5: 2.2 | CJ5: 2.2 | CK5: 2.2 | CL5: 2.3 | CM5: 2.2 | CN5: 2.3 | CO5: 2.2 | CP5: 2.2 | CQ5: 2.2 | CR5: 2.1 | CS5: 2.3 | CT5: 299 | CU5: 289 | CV5: 291 | CW5: 295 | CX5: 297 | CY5: 296 | CZ5: 295 | DA5: 295 | DB5: 296 | DC5: 296 | DD5: 296 | DE5: 296 | DF5: 296 | DG5: 295 | DH5: 296 | DI5: 296 | DJ5: 296 | DK5: 296 | DL5: 295 | DM5: 296 | DN5: 297 | DO5: 292 | DP5: 291 | DQ5: 291
A6: 3 | B6: 118,397,894 | C6: 117,964,368 | D6: 113,769,342 | E6: 102,460,947 | F6: 109,068,935 | G6: 108,110,010 | H6: 88,723,845 | I6: 89,901,678 | J6: 99,150,785 | K6: 101,388,513 | L6: 101,562,614 | M6: 107,606,276 | N6: 113,472,240 | O6: 114,498,709 | P6: 117,285,088 | Q6: 121,125,119 | R6: 112,655,236 | S6: 104,810,693 | T6: 89,840,645 | U6: 85,005,071 | V6: 81,857,050 | W6: 77,292,104 | X6: 76,340,906 | Y6: 74,629,789 | Z6: 2,271,731 | AA6: 2,152,298 | AB6: 2,076,472 | AC6: 2,151,334 | AD6: 2,137,996 | AE6: 2,208,515 | AF6: 1,801,080 | AG6: 1,820,409 | AH6: 1,940,641 | AI6: 2,027,785 | AJ6: 2,117,012 | AK6: 2,260,343 | AL6: 2,394,120 | AM6: 2,421,334 | AN6: 2,543,811 | AO6: 2,721,100 | AP6: 2,563,065 | AQ6: 2,264,368 | AR6: 1,958,937 | AS6: 1,842,793 | AT6: 1,856,951 | AU6: 1,632,911 | AV6: 1,459,047 | AW6: 1,389,750 | AX6: 236,520 | AY6: 236,189 | AZ6: 227,675 | BA6: 205,049 | BB6: 218,790 | BC6: 216,922 | BD6: 178,091 | BE6: 180,400 | BF6: 198,954 | BG6: 203,549 | BH6: 204,015 | BI6: 216,329 | BJ6: 227,742 | BK6: 230,155 | BL6: 235,644 | BM6: 242,355 | BN6: 226,109 | BO6: 210,252 | BP6: 180,277 | BQ6: 170,422 | BR6: 164,307 | BS6: 155,482 | BT6: 153,284 | BU6: 149,617 | BV6: 1.9 | BW6: 1.8 | BX6: 1.8 | BY6: 2.1 | BZ6: 2.0 | CA6: 2.0 | CB6: 2.0 | CC6: 2.0 | CD6: 2.0 | CE6: 2.0 | CF6: 2.1 | CG6: 2.1 | CH6: 2.1 | CI6: 2.1 | CJ6: 2.2 | CK6: 2.2 | CL6: 2.3 | CM6: 2.2 | CN6: 2.2 | CO6: 2.2 | CP6: 2.3 | CQ6: 2.1 | CR6: 1.9 | CS6: 1.9 | CT6: 501 | CU6: 499 | CV6: 500 | CW6: 500 | CX6: 499 | CY6: 498 | CZ6: 498 | DA6: 498 | DB6: 498 | DC6: 498 | DD6: 498 | DE6: 497 | DF6: 498 | DG6: 497 | DH6: 498 | DI6: 500 | DJ6: 498 | DK6: 499 | DL6: 498 | DM6: 499 | DN6: 498 | DO6: 497 | DP6: 498 | DQ6: 499
A7: 4 | B7: 149,288,420 | C7: 145,505,890 | D7: 153,889,058 | E7: 144,327,889 | F7: 154,811,651 | G7: 154,349,596 | H7: 130,103,812 | I7: 129,261,037 | J7: 140,721,048 | K7: 145,595,142 | L7: 140,039,674 | M7: 145,618,656 | N7: 154,381,674 | O7: 152,553,848 | P7: 159,810,507 | Q7: 169,240,096 | R7: 145,159,857 | S7: 134,124,703 | T7: 120,720,579 | U7: 114,760,617 | V7: 109,915,158 | W7: 104,446,922 | X7: 100,310,842 | Y7: 95,953,782 | Z7: 2,761,998 | AA7: 2,716,128 | AB7: 2,684,737 | AC7: 2,622,350 | AD7: 2,875,553 | AE7: 2,998,680 | AF7: 2,472,627 | AG7: 2,400,364 | AH7: 2,619,664 | AI7: 2,726,532 | AJ7: 2,815,342 | AK7: 2,897,958 | AL7: 3,114,219 | AM7: 3,091,215 | AN7: 3,466,632 | AO7: 3,929,482 | AP7: 3,068,105 | AQ7: 2,668,097 | AR7: 2,547,735 | AS7: 2,435,286 | AT7: 2,354,394 | AU7: 2,046,635 | AV7: 1,818,150 | AW7: 1,721,052 | AX7: 214,001 | AY7: 208,714 | AZ7: 221,233 | BA7: 207,106 | BB7: 221,556 | BC7: 220,535 | BD7: 185,531 | BE7: 184,288 | BF7: 200,068 | BG7: 206,959 | BH7: 199,341 | BI7: 207,509 | BJ7: 219,984 | BK7: 217,609 | BL7: 228,211 | BM7: 242,164 | BN7: 208,225 | BO7: 192,375 | BP7: 172,495 | BQ7: 164,014 | BR7: 157,221 | BS7: 149,360 | BT7: 143,610 | BU7: 137,292 | BV7: 1.9 | BW7: 1.9 | BX7: 1.7 | BY7: 1.8 | BZ7: 1.9 | CA7: 1.9 | CB7: 1.9 | CC7: 1.9 | CD7: 1.9 | CE7: 1.9 | CF7: 2.0 | CG7: 2.0 | CH7: 2.0 | CI7: 2.0 | CJ7: 2.2 | CK7: 2.3 | CL7: 2.1 | CM7: 2.0 | CN7: 2.1 | CO7: 2.1 | CP7: 2.1 | CQ7: 2.0 | CR7: 1.8 | CS7: 1.8 | CT7: 698 | CU7: 697 | CV7: 696 | CW7: 697 | CX7: 699 | CY7: 700 | CZ7: 701 | DA7: 701 | DB7: 703 | DC7: 703 | DD7: 703 | DE7: 702 | DF7: 702 | DG7: 701 | DH7: 700 | DI7: 699 | DJ7: 697 | DK7: 697 | DL7: 700 | DM7: 700 | DN7: 699 | DO7: 699 | DP7: 698 | DQ7: 699
A8: 5 | B8: 187,829,221 | C8: 179,214,060 | D8: 177,103,986 | E8: 164,526,172 | F8: 179,556,090 | G8: 174,609,190 | H8: 143,789,890 | I8: 140,636,251 | J8: 159,501,515 | K8: 173,129,315 | L8: 162,166,128 | M8: 164,414,833 | N8: 182,748,564 | O8: 181,391,950 | P8: 191,900,771 | Q8: 192,026,332 | R8: 171,624,785 | S8: 166,964,010 | T8: 147,386,562 | U8: 147,990,418 | V8: 131,776,555 | W8: 125,482,340 | X8: 121,194,093 | Y8: 115,423,204 | Z8: 3,396,991 | AA8: 3,318,194 | AB8: 3,240,456 | AC8: 3,127,548 | AD8: 3,424,597 | AE8: 3,551,132 | AF8: 2,946,851 | AG8: 2,825,198 | AH8: 3,143,617 | AI8: 3,348,385 | AJ8: 3,402,180 | AK8: 3,390,590 | AL8: 3,699,152 | AM8: 3,643,909 | AN8: 3,997,962 | AO8: 4,317,653 | AP8: 3,631,265 | AQ8: 3,296,454 | AR8: 3,073,687 | AS8: 3,059,387 | AT8: 2,910,903 | AU8: 2,510,489 | AV8: 2,283,765 | AW8: 2,090,732 | AX8: 208,735 | AY8: 199,220 | AZ8: 196,705 | BA8: 182,838 | BB8: 199,391 | BC8: 194,035 | BD8: 159,865 | BE8: 156,527 | BF8: 177,922 | BG8: 193,215 | BH8: 180,983 | BI8: 183,304 | BJ8: 204,015 | BK8: 202,091 | BL8: 214,043 | BM8: 214,446 | BN8: 191,359 | BO8: 186,405 | BP8: 164,155 | BQ8: 164,394 | BR8: 146,657 | BS8: 139,655 | BT8: 134,841 | BU8: 128,625 | BV8: 1.8 | BW8: 1.9 | BX8: 1.8 | BY8: 1.9 | BZ8: 1.9 | CA8: 2.0 | CB8: 2.0 | CC8: 2.0 | CD8: 2.0 | CE8: 1.9 | CF8: 2.1 | CG8: 2.1 | CH8: 2.0 | CI8: 2.0 | CJ8: 2.1 | CK8: 2.2 | CL8: 2.1 | CM8: 2.0 | CN8: 2.1 | CO8: 2.1 | CP8: 2.2 | CQ8: 2.0 | CR8: 1.9 | CS8: 1.8 | CT8: 900 | CU8: 900 | CV8: 900 | CW8: 900 | CX8: 901 | CY8: 900 | CZ8: 899 | DA8: 898 | DB8: 896 | DC8: 896 | DD8: 896 | DE8: 897 | DF8: 896 | DG8: 898 | DH8: 897 | DI8: 895 | DJ8: 897 | DK8: 896 | DL8: 898 | DM8: 900 | DN8: 899 | DO8: 899 | DP8: 899 | DQ8: 897
A9: 6 | B9: 229,181,912 | C9: 219,375,962 | D9: 208,233,626 | E9: 202,138,631 | F9: 212,093,484 | G9: 210,049,957 | H9: 173,731,488 | I9: 170,625,058 | J9: 189,671,581 | K9: 193,150,410 | L9: 184,515,259 | M9: 190,841,965 | N9: 203,038,481 | O9: 200,472,478 | P9: 202,808,005 | Q9: 206,551,986 | R9: 181,703,838 | S9: 181,296,821 | T9: 173,806,153 | U9: 171,458,608 | V9: 156,039,724 | W9: 147,176,519 | X9: 136,052,312 | Y9: 136,841,834 | Z9: 3,995,329 | AA9: 3,982,347 | AB9: 3,898,385 | AC9: 3,855,370 | AD9: 4,185,376 | AE9: 4,317,643 | AF9: 3,558,524 | AG9: 3,374,644 | AH9: 3,676,535 | AI9: 3,811,384 | AJ9: 3,885,572 | AK9: 3,930,780 | AL9: 4,132,307 | AM9: 4,014,449 | AN9: 4,074,099 | AO9: 4,354,115 | AP9: 3,678,172 | AQ9: 3,479,432 | AR9: 3,486,591 | AS9: 3,522,050 | AT9: 3,245,470 | AU9: 2,778,768 | AV9: 2,499,006 | AW9: 2,424,643 | AX9: 208,769 | AY9: 199,717 | AZ9: 189,430 | BA9: 183,829 | BB9: 192,759 | BC9: 191,057 | BD9: 158,159 | BE9: 155,345 | BF9: 172,578 | BG9: 175,903 | BH9: 168,099 | BI9: 173,915 | BJ9: 185,092 | BK9: 182,606 | BL9: 184,812 | BM9: 188,223 | BN9: 165,605 | BO9: 165,252 | BP9: 158,403 | BQ9: 156,012 | BR9: 142,014 | BS9: 134,279 | BT9: 124,162 | BU9: 124,801 | BV9: 1.7 | BW9: 1.8 | BX9: 1.9 | BY9: 1.9 | BZ9: 2.0 | CA9: 2.1 | CB9: 2.0 | CC9: 2.0 | CD9: 1.9 | CE9: 2.0 | CF9: 2.1 | CG9: 2.1 | CH9: 2.0 | CI9: 2.0 | CJ9: 2.0 | CK9: 2.1 | CL9: 2.0 | CM9: 1.9 | CN9: 2.0 | CO9: 2.1 | CP9: 2.1 | CQ9: 1.9 | CR9: 1.8 | CS9: 1.8 | CT9: 1,098 | CU9: 1,098 | CV9: 1,099 | CW9: 1,100 | CX9: 1,100 | CY9: 1,099 | CZ9: 1,098 | DA9: 1,098 | DB9: 1,099 | DC9: 1,098 | DD9: 1,098 | DE9: 1,097 | DF9: 1,097 | DG9: 1,098 | DH9: 1,097 | DI9: 1,097 | DJ9: 1,097 | DK9: 1,097 | DL9: 1,097 | DM9: 1,099 | DN9: 1,099 | DO9: 1,096 | DP9: 1,096 | DQ9: 1,096
A10: 7 | B10: 234,058,818 | C10: 232,656,826 | D10: 240,102,978 | E10: 229,178,378 | F10: 238,809,133 | G10: 230,755,232 | H10: 211,656,714 | I10: 199,611,549 | J10: 218,778,968 | K10: 212,183,113 | L10: 208,541,436 | M10: 215,823,991 | N10: 224,830,556 | O10: 222,371,325 | P10: 224,678,929 | Q10: 230,231,860 | R10: 203,149,983 | S10: 197,297,940 | T10: 182,687,199 | U10: 189,529,217 | V10: 171,312,587 | W10: 169,294,566 | X10: 161,573,732 | Y10: 153,360,708 | Z10: 4,353,304 | AA10: 4,411,206 | AB10: 4,419,389 | AC10: 4,364,266 | AD10: 4,792,579 | AE10: 4,870,595 | AF10: 4,207,077 | AG10: 4,025,782 | AH10: 4,418,772 | AI10: 4,438,913 | AJ10: 4,505,001 | AK10: 4,646,996 | AL10: 4,754,284 | AM10: 4,549,553 | AN10: 4,648,711 | AO10: 4,962,771 | AP10: 4,159,689 | AQ10: 3,909,326 | AR10: 3,783,415 | AS10: 3,979,930 | AT10: 3,651,617 | AU10: 3,170,356 | AV10: 2,871,513 | AW10: 2,621,754 | AX10: 180,407 | AY10: 179,349 | AZ10: 185,644 | BA10: 176,687 | BB10: 183,935 | BC10: 177,762 | BD10: 163,100 | BE10: 153,650 | BF10: 168,438 | BG10: 163,437 | BH10: 160,497 | BI10: 166,093 | BJ10: 173,066 | BK10: 171,276 | BL10: 173,156 | BM10: 177,524 | BN10: 156,510 | BO10: 151,966 | BP10: 140,806 | BQ10: 145,871 | BR10: 132,031 | BS10: 130,587 | BT10: 124,488 | BU10: 118,077 | BV10: 1.9 | BW10: 1.9 | BX10: 1.8 | BY10: 1.9 | BZ10: 2.0 | CA10: 2.1 | CB10: 2.0 | CC10: 2.0 | CD10: 2.0 | CE10: 2.1 | CF10: 2.2 | CG10: 2.2 | CH10: 2.1 | CI10: 2.0 | CJ10: 2.1 | CK10: 2.2 | CL10: 2.0 | CM10: 2.0 | CN10: 2.1 | CO10: 2.1 | CP10: 2.1 | CQ10: 1.9 | CR10: 1.8 | CS10: 1.7 | CT10: 1,297 | CU10: 1,297 | CV10: 1,293 | CW10: 1,297 | CX10: 1,298 | CY10: 1,298 | CZ10: 1,298 | DA10: 1,299 | DB10: 1,299 | DC10: 1,298 | DD10: 1,299 | DE10: 1,299 | DF10: 1,299 | DG10: 1,298 | DH10: 1,298 | DI10: 1,297 | DJ10: 1,298 | DK10: 1,298 | DL10: 1,297 | DM10: 1,299 | DN10: 1,298 | DO10: 1,296 | DP10: 1,298 | DQ10: 1,299
A11: 8 | B11: 257,178,699 | C11: 254,117,830 | D11: 255,265,043 | E11: 242,989,235 | F11: 258,872,826 | G11: 256,678,012 | H11: 233,005,200 | I11: 230,918,939 | J11: 251,109,911 | K11: 241,419,769 | L11: 249,726,544 | M11: 251,726,206 | N11: 256,947,283 | O11: 260,959,409 | P11: 259,813,472 | Q11: 259,723,748 | R11: 235,783,994 | S11: 221,701,335 | T11: 207,255,799 | U11: 224,062,355 | V11: 194,087,167 | W11: 182,935,919 | X11: 175,022,906 | Y11: 168,396,742 | Z11: 4,822,355 | AA11: 4,923,182 | AB11: 4,892,962 | AC11: 4,807,332 | AD11: 5,253,888 | AE11: 5,411,868 | AF11: 4,751,527 | AG11: 4,581,213 | AH11: 5,014,856 | AI11: 5,065,334 | AJ11: 5,189,493 | AK11: 5,272,021 | AL11: 5,391,359 | AM11: 5,197,526 | AN11: 5,382,368 | AO11: 5,310,931 | AP11: 4,687,595 | AQ11: 4,347,404 | AR11: 4,195,948 | AS11: 4,622,085 | AT11: 4,171,887 | AU11: 3,478,842 | AV11: 3,253,382 | AW11: 3,044,282 | AX11: 171,522 | AY11: 169,485 | AZ11: 170,292 | BA11: 162,187 | BB11: 172,761 | BC11: 171,351 | BD11: 155,609 | BE11: 154,141 | BF11: 167,504 | BG11: 161,086 | BH11: 166,452 | BI11: 167,867 | BJ11: 171,427 | BK11: 174,140 | BL11: 173,249 | BM11: 173,245 | BN11: 157,282 | BO11: 147,826 | BP11: 138,081 | BQ11: 149,294 | BR11: 129,395 | BS11: 122,041 | BT11: 116,781 | BU11: 112,351 | BV11: 1.9 | BW11: 1.9 | BX11: 1.9 | BY11: 2.0 | BZ11: 2.0 | CA11: 2.1 | CB11: 2.0 | CC11: 2.0 | CD11: 2.0 | CE11: 2.1 | CF11: 2.1 | CG11: 2.1 | CH11: 2.1 | CI11: 2.0 | CJ11: 2.1 | CK11: 2.0 | CL11: 2.0 | CM11: 2.0 | CN11: 2.0 | CO11: 2.1 | CP11: 2.1 | CQ11: 1.9 | CR11: 1.9 | CS11: 1.8 | CT11: 1,499 | CU11: 1,499 | CV11: 1,499 | CW11: 1,498 | CX11: 1,498 | CY11: 1,498 | CZ11: 1,497 | DA11: 1,498 | DB11: 1,499 | DC11: 1,499 | DD11: 1,500 | DE11: 1,500 | DF11: 1,499 | DG11: 1,499 | DH11: 1,500 | DI11: 1,499 | DJ11: 1,499 | DK11: 1,500 | DL11: 1,501 | DM11: 1,501 | DN11: 1,500 | DO11: 1,499 | DP11: 1,499 | DQ11: 1,499
A12: 9 | B12: 268,798,682 | C12: 266,907,500 | D12: 263,676,148 | E12: 262,969,673 | F12: 274,264,746 | G12: 265,209,306 | H12: 242,597,490 | I12: 236,070,331 | J12: 261,355,405 | K12: 251,690,290 | L12: 262,015,218 | M12: 267,162,880 | N12: 271,550,830 | O12: 278,410,141 | P12: 271,020,278 | Q12: 275,778,919 | R12: 259,269,500 | S12: 245,491,065 | T12: 231,759,206 | U12: 252,210,699 | V12: 228,627,888 | W12: 200,693,516 | X12: 189,628,021 | Y12: 185,064,016 | Z12: 5,177,418 | AA12: 5,348,423 | AB12: 5,237,673 | AC12: 5,304,022 | AD12: 5,710,416 | AE12: 5,813,060 | AF12: 5,122,531 | AG12: 4,882,565 | AH12: 5,418,996 | AI12: 5,366,293 | AJ12: 5,625,822 | AK12: 5,728,253 | AL12: 5,741,764 | AM12: 5,559,026 | AN12: 5,432,152 | AO12: 5,512,423 | AP12: 5,106,779 | AQ12: 4,741,395 | AR12: 4,536,951 | AS12: 5,050,006 | AT12: 4,613,608 | AU12: 3,840,244 | AV12: 3,445,130 | AW12: 3,330,556 | AX12: 158,235 | AY12: 157,144 | AZ12: 155,232 | BA12: 154,795 | BB12: 161,347 | BC12: 156,085 | BD12: 142,846 | BE12: 138,998 | BF12: 153,915 | BG12: 148,197 | BH12: 154,389 | BI12: 157,418 | BJ12: 159,981 | BK12: 163,995 | BL12: 159,677 | BM12: 162,498 | BN12: 152,666 | BO12: 144,570 | BP12: 136,466 | BQ12: 148,476 | BR12: 134,502 | BS12: 118,030 | BT12: 111,701 | BU12: 108,912 | BV12: 1.9 | BW12: 2.0 | BX12: 2.0 | BY12: 2.0 | BZ12: 2.1 | CA12: 2.2 | CB12: 2.1 | CC12: 2.1 | CD12: 2.1 | CE12: 2.1 | CF12: 2.1 | CG12: 2.1 | CH12: 2.1 | CI12: 2.0 | CJ12: 2.0 | CK12: 2.0 | CL12: 2.0 | CM12: 1.9 | CN12: 2.0 | CO12: 2.0 | CP12: 2.0 | CQ12: 1.9 | CR12: 1.8 | CS12: 1.8 | CT12: 1,699 | CU12: 1,698 | CV12: 1,699 | CW12: 1,699 | CX12: 1,700 | CY12: 1,699 | CZ12: 1,698 | DA12: 1,698 | DB12: 1,698 | DC12: 1,698 | DD12: 1,697 | DE12: 1,697 | DF12: 1,697 | DG12: 1,698 | DH12: 1,697 | DI12: 1,697 | DJ12: 1,698 | DK12: 1,698 | DL12: 1,698 | DM12: 1,699 | DN12: 1,700 | DO12: 1,700 | DP12: 1,698 | DQ12: 1,699
A13: 10 | B13: 289,772,864 | C13: 290,391,016 | D13: 287,677,399 | E13: 279,365,949 | F13: 303,521,210 | G13: 294,836,006 | H13: 259,940,426 | I13: 251,600,527 | J13: 274,470,413 | K13: 269,946,311 | L13: 267,752,919 | M13: 278,239,289 | N13: 286,332,920 | O13: 297,958,510 | P13: 287,727,847 | Q13: 281,741,037 | R13: 267,975,407 | S13: 256,131,750 | T13: 240,971,095 | U13: 262,507,781 | V13: 237,062,190 | W13: 220,468,522 | X13: 209,074,634 | Y13: 202,742,008 | Z13: 5,766,031 | AA13: 5,959,987 | AB13: 5,832,608 | AC13: 5,777,002 | AD13: 6,404,232 | AE13: 6,471,839 | AF13: 5,646,373 | AG13: 5,416,303 | AH13: 5,886,165 | AI13: 5,897,240 | AJ13: 5,966,434 | AK13: 6,222,273 | AL13: 6,253,700 | AM13: 6,162,673 | AN13: 5,833,312 | AO13: 5,808,115 | AP13: 5,467,522 | AQ13: 5,119,173 | AR13: 4,888,529 | AS13: 5,452,141 | AT13: 5,039,189 | AU13: 4,190,893 | AV13: 3,780,666 | AW13: 3,633,682 | AX13: 152,688 | AY13: 152,989 | AZ13: 151,586 | BA13: 147,182 | BB13: 159,972 | BC13: 155,303 | BD13: 136,840 | BE13: 132,544 | BF13: 144,634 | BG13: 142,214 | BH13: 141,086 | BI13: 146,677 | BJ13: 150,961 | BK13: 157,007 | BL13: 151,617 | BM13: 148,527 | BN13: 141,215 | BO13: 134,969 | BP13: 126,977 | BQ13: 138,285 | BR13: 124,902 | BS13: 116,177 | BT13: 110,124 | BU13: 106,737 | BV13: 2.0 | BW13: 2.1 | BX13: 2.0 | BY13: 2.1 | BZ13: 2.1 | CA13: 2.2 | CB13: 2.2 | CC13: 2.2 | CD13: 2.1 | CE13: 2.2 | CF13: 2.2 | CG13: 2.2 | CH13: 2.2 | CI13: 2.1 | CJ13: 2.0 | CK13: 2.1 | CL13: 2.0 | CM13: 2.0 | CN13: 2.0 | CO13: 2.1 | CP13: 2.1 | CQ13: 1.9 | CR13: 1.8 | CS13: 1.8 | CT13: 1,898 | CU13: 1,898 | CV13: 1,898 | CW13: 1,898 | CX13: 1,897 | CY13: 1,898 | CZ13: 1,900 | DA13: 1,898 | DB13: 1,898 | DC13: 1,898 | DD13: 1,898 | DE13: 1,897 | DF13: 1,897 | DG13: 1,898 | DH13: 1,898 | DI13: 1,897 | DJ13: 1,898 | DK13: 1,898 | DL13: 1,898 | DM13: 1,898 | DN13: 1,898 | DO13: 1,898 | DP13: 1,899 | DQ13: 1,899
A14: 11 | B14: 315,425,375 | C14: 314,428,518 | D14: 315,689,871 | E14: 302,997,140 | F14: 321,022,689 | G14: 307,136,637 | H14: 278,262,742 | I14: 276,245,250 | J14: 298,610,240 | K14: 285,770,133 | L14: 285,102,118 | M14: 288,864,417 | N14: 292,096,865 | O14: 302,750,173 | P14: 293,934,200 | Q14: 294,469,918 | R14: 286,080,049 | S14: 272,481,201 | T14: 254,257,038 | U14: 279,150,079 | V14: 260,922,635 | W14: 232,519,060 | X14: 218,620,618 | Y14: 219,727,963 | Z14: 6,307,944 | AA14: 6,511,363 | AB14: 6,433,500 | AC14: 6,298,738 | AD14: 6,946,376 | AE14: 7,034,646 | AF14: 6,208,208 | AG14: 6,040,802 | AH14: 6,431,219 | AI14: 6,340,937 | AJ14: 6,373,333 | AK14: 6,649,221 | AL14: 6,596,922 | AM14: 6,445,783 | AN14: 6,025,807 | AO14: 6,101,143 | AP14: 5,946,052 | AQ14: 5,506,743 | AR14: 5,277,096 | AS14: 5,812,682 | AT14: 5,428,597 | AU14: 4,563,201 | AV14: 4,087,572 | AW14: 3,955,086 | AX14: 150,343 | AY14: 149,775 | AZ14: 150,206 | BA14: 144,203 | BB14: 152,892 | BC14: 146,289 | BD14: 132,540 | BE14: 131,599 | BF14: 142,201 | BG14: 136,156 | BH14: 135,835 | BI14: 137,649 | BJ14: 139,207 | BK14: 144,266 | BL14: 140,107 | BM14: 140,332 | BN14: 136,311 | BO14: 129,823 | BP14: 121,147 | BQ14: 133,046 | BR14: 124,581 | BS14: 110,827 | BT14: 104,209 | BU14: 104,772 | BV14: 2.0 | BW14: 2.1 | BX14: 2.0 | BY14: 2.1 | BZ14: 2.2 | CA14: 2.3 | CB14: 2.2 | CC14: 2.2 | CD14: 2.2 | CE14: 2.2 | CF14: 2.2 | CG14: 2.3 | CH14: 2.3 | CI14: 2.1 | CJ14: 2.1 | CK14: =+AO14/Q14*100 -> 2.1 | CL14: 2.1 | CM14: 2.0 | CN14: 2.1 | CO14: 2.1 | CP14: 2.1 | CQ14: 2.0 | CR14: 1.9 | CS14: 1.8 | CT14: 2,098 | CU14: 2,099 | CV14: 2,102 | CW14: 2,101 | CX14: 2,100 | CY14: 2,100 | CZ14: 2,099 | DA14: 2,099 | DB14: 2,100 | DC14: 2,099 | DD14: 2,099 | DE14: 2,099 | DF14: 2,098 | DG14: 2,099 | DH14: 2,098 | DI14: 2,098 | DJ14: 2,099 | DK14: 2,099 | DL14: 2,099 | DM14: 2,098 | DN14: 2,094 | DO14: 2,098 | DP14: 2,098 | DQ14: 2,097
A15: 12 | B15: 328,641,008 | C15: 328,046,409 | D15: 324,778,286 | E15: 324,910,933 | F15: 348,609,551 | G15: 336,593,025 | H15: 307,318,113 | I15: 301,412,158 | J15: 329,857,344 | K15: 328,439,397 | L15: 328,136,536 | M15: 311,826,146 | N15: 320,788,627 | O15: 336,777,223 | P15: 321,244,502 | Q15: 324,271,864 | R15: 307,827,146 | S15: 290,303,786 | T15: 269,647,577 | U15: 294,244,388 | V15: 275,992,429 | W15: 248,292,341 | X15: 228,660,783 | Y15: 227,083,013 | Z15: 6,662,461 | AA15: 6,940,400 | AB15: 6,834,350 | AC15: 6,915,936 | AD15: 7,772,919 | AE15: 7,907,282 | AF15: 7,143,559 | AG15: 6,775,562 | AH15: 7,196,912 | AI15: 7,316,887 | AJ15: 7,341,341 | AK15: 7,161,009 | AL15: 7,164,702 | AM15: 7,055,908 | AN15: 6,548,541 | AO15: 6,669,394 | AP15: 6,347,226 | AQ15: 5,920,391 | AR15: 5,590,445 | AS15: 6,223,133 | AT15: 5,902,946 | AU15: 4,891,409 | AV15: 4,241,490 | AW15: 4,170,845 | AX15: 142,989 | AY15: 142,655 | AZ15: 141,224 | BA15: 141,405 | BB15: 151,730 | BC15: 146,434 | BD15: 133,634 | BE15: 131,049 | BF15: 143,436 | BG15: 142,873 | BH15: 142,706 | BI15: 135,645 | BJ15: 139,553 | BK15: 146,481 | BL15: 139,689 | BM15: 140,946 | BN15: 133,825 | BO15: 126,255 | BP15: 117,265 | BQ15: 128,014 | BR15: 120,065 | BS15: 107,977 | BT15: 99,471 | BU15: 98,781 | BV15: =+Z15/B15*100 -> 2.0 | BW15: 2.1 | BX15: 2.1 | BY15: 2.1 | BZ15: 2.2 | CA15: 2.3 | CB15: 2.3 | CC15: 2.2 | CD15: 2.2 | CE15: 2.2 | CF15: 2.2 | CG15: 2.3 | CH15: 2.2 | CI15: 2.1 | CJ15: 2.0 | CK15: 2.1 | CL15: 2.1 | CM15: 2.0 | CN15: 2.1 | CO15: 2.1 | CP15: 2.1 | CQ15: 2.0 | CR15: 1.9 | CS15: 1.8 | CT15: 2,298 | CU15: 2,300 | CV15: 2,300 | CW15: 2,298 | CX15: 2,298 | CY15: 2,299 | CZ15: 2,300 | DA15: 2,300 | DB15: 2,300 | DC15: 2,299 | DD15: 2,299 | DE15: 2,299 | DF15: 2,299 | DG15: 2,299 | DH15: 2,300 | DI15: 2,301 | DJ15: 2,300 | DK15: 2,299 | DL15: 2,299 | DM15: 2,299 | DN15: 2,299 | DO15: 2,299 | DP15: 2,299 | DQ15: 2,299
A16: 13 | B16: 340,228,866 | C16: 342,964,354 | D16: 353,592,991 | E16: 333,767,132 | F16: 359,062,570 | G16: 345,847,290 | H16: 315,624,650 | I16: 310,350,556 | J16: 331,951,948 | K16: 323,837,545 | L16: 323,900,567 | M16: 319,417,414 | N16: 326,349,337 | O16: 348,566,226 | P16: 334,245,895 | Q16: 332,940,123 | R16: 343,637,105 | S16: 324,970,965 | T16: 303,394,993 | U16: 319,555,575 | V16: 301,218,080 | W16: 267,028,714 | X16: 251,687,536 | Y16: 241,151,010 | Z16: 7,058,363 | AA16: 7,388,476 | AB16: 7,255,183 | AC16: 7,172,691 | AD16: 8,002,232 | AE16: 8,065,647 | AF16: 7,316,470 | AG16: 7,034,997 | AH16: 7,642,988 | AI16: 7,445,952 | AJ16: 7,468,463 | AK16: 7,580,088 | AL16: 7,603,616 | AM16: 7,486,384 | AN16: 6,910,565 | AO16: 6,931,710 | AP16: 7,145,851 | AQ16: 6,614,855 | AR16: 6,160,854 | AS16: 6,849,856 | AT16: 6,597,925 | AU16: 5,378,542 | AV16: 4,711,401 | AW16: 4,507,265 | AX16: 136,171 | AY16: 137,252 | AZ16: 141,687 | BA16: 133,583 | BB16: 143,738 | BC16: 138,435 | BD16: 126,327 | BE16: 124,228 | BF16: 132,870 | BG16: 129,612 | BH16: 129,676 | BI16: 127,866 | BJ16: 130,643 | BK16: 139,609 | BL16: 133,830 | BM16: 133,295 | BN16: 137,548 | BO16: 130,025 | BP16: 121,413 | BQ16: 127,864 | BR16: 120,533 | BS16: 106,894 | BT16: 100,714 | BU16: 96,511 | BV16: 2.1 | BW16: 2.2 | BX16: 2.1 | BY16: 2.1 | BZ16: 2.2 | CA16: 2.3 | CB16: 2.3 | CC16: 2.3 | CD16: 2.3 | CE16: 2.3 | CF16: 2.3 | CG16: 2.4 | CH16: 2.3 | CI16: 2.1 | CJ16: 2.1 | CK16: 2.1 | CL16: 2.1 | CM16: 2.0 | CN16: 2.0 | CO16: 2.1 | CP16: 2.2 | CQ16: 2.0 | CR16: 1.9 | CS16: 1.9 | CT16: 2,499 | CU16: 2,499 | CV16: 2,496 | CW16: 2,499 | CX16: 2,498 | CY16: 2,498 | CZ16: 2,498 | DA16: 2,498 | DB16: 2,498 | DC16: 2,499 | DD16: 2,498 | DE16: 2,498 | DF16: 2,498 | DG16: 2,497 | DH16: 2,498 | DI16: 2,498 | DJ16: 2,498 | DK16: 2,499 | DL16: 2,499 | DM16: 2,499 | DN16: 2,499 | DO16: 2,498 | DP16: 2,499 | DQ16: 2,499 | DR16: 2,500
A17: 14 | B17: 352,383,786 | C17: 357,741,113 | D17: 356,112,502 | E17: 355,221,937 | F17: 387,711,847 | G17: 363,344,674 | H17: 337,605,569 | I17: 332,285,853 | J17: 351,006,905 | K17: 343,469,620 | L17: 340,263,065 | M17: 335,509,727 | N17: 335,021,321 | O17: 351,693,161 | P17: 336,664,594 | Q17: 340,433,090 | R17: 333,876,276 | S17: 329,281,114 | T17: 305,552,990 | U17: 348,228,673 | V17: 326,493,199 | W17: 281,604,397 | X17: 261,943,647 | Y17: 257,651,439 | Z17: 7,343,328 | AA17: 7,754,126 | AB17: 7,608,446 | AC17: 7,810,052 | AD17: 8,502,820 | AE17: 8,632,039 | AF17: 7,677,718 | AG17: 7,555,697 | AH17: 8,035,369 | AI17: 7,844,843 | AJ17: 7,940,159 | AK17: 8,091,673 | AL17: 7,894,870 | AM17: 7,685,273 | AN17: 7,101,755 | AO17: 7,236,295 | AP17: 7,073,978 | AQ17: 6,795,810 | AR17: 6,379,308 | AS17: 7,335,642 | AT17: 7,064,993 | AU17: 5,520,779 | AV17: 4,920,245 | AW17: 4,785,884 | AX17: 130,558 | AY17: 132,502 | AZ17: 131,946 | BA17: 131,624 | BB17: 143,697 | BC17: 134,668 | BD17: 125,172 | BE17: 123,178 | BF17: 130,033 | BG17: 127,220 | BH17: 126,058 | BI17: 124,294 | BJ17: 124,135 | BK17: 130,297 | BL17: 124,720 | BM17: 126,129 | BN17: 123,714 | BO17: 122,012 | BP17: 113,224 | BQ17: 128,966 | BR17: 121,032 | BS17: 104,329 | BT17: 97,049 | BU17: 95,455 | BV17: 2.1 | BW17: 2.2 | BX17: 2.1 | BY17: 2.2 | BZ17: 2.2 | CA17: 2.4 | CB17: 2.3 | CC17: 2.3 | CD17: 2.3 | CE17: 2.3 | CF17: 2.3 | CG17: 2.4 | CH17: 2.4 | CI17: 2.2 | CJ17: 2.1 | CK17: 2.1 | CL17: 2.1 | CM17: 2.1 | CN17: 2.1 | CO17: 2.1 | CP17: 2.2 | CQ17: 2.0 | CR17: 1.9 | CS17: 1.9 | CT17: 2,699 | CU17: 2,700 | CV17: 2,699 | CW17: 2,699 | CX17: 2,698 | CY17: 2,698 | CZ17: 2,697 | DA17: 2,698 | DB17: 2,699 | DC17: 2,700 | DD17: 2,699 | DE17: 2,699 | DF17: 2,699 | DG17: 2,699 | DH17: 2,699 | DI17: 2,699 | DJ17: 2,699 | DK17: 2,699 | DL17: 2,699 | DM17: 2,700 | DN17: 2,698 | DO17: 2,699 | DP17: 2,699 | DQ17: 2,699
A18: 15 | B18: 365,021,054 | C18: 381,691,191 | D18: 371,625,057 | E18: 438,794,985 | F18: 473,894,697 | G18: 490,969,588 | H18: 438,094,642 | I18: 421,733,560 | J18: 409,286,876 | K18: 357,838,174 | L18: 354,801,728 | M18: 345,293,367 | N18: 349,861,278 | O18: 363,213,796 | P18: 356,780,209 | Q18: 350,198,662 | R18: 356,190,127 | S18: 335,106,385 | T18: 315,953,174 | U18: 369,741,704 | V18: 323,599,121 | W18: 289,275,222 | X18: 276,834,037 | Y18: 268,713,031 | Z18: 7,668,720 | AA18: 8,085,843 | AB18: 7,954,323 | AC18: 8,147,440 | AD18: 8,939,413 | AE18: 9,228,497 | AF18: 8,217,452 | AG18: 7,939,521 | AH18: 8,358,571 | AI18: 8,318,362 | AJ18: 8,370,657 | AK18: 8,431,290 | AL18: 8,297,335 | AM18: 7,984,169 | AN18: 7,485,089 | AO18: 7,428,178 | AP18: 7,514,925 | AQ18: 7,032,614 | AR18: 6,677,934 | AS18: 8,003,596 | AT18: 7,175,028 | AU18: 5,802,132 | AV18: 5,214,386 | AW18: 5,001,758 | AX18: 125,885 | AY18: 131,680 | AZ18: 128,211 | BA18: 151,445 | BB18: 163,591 | BC18: 169,495 | BD18: 151,222 | BE18: 145,569 | BF18: 141,257 | BG18: 123,432 | BH18: 122,373 | BI18: 119,099 | BJ18: 120,675 | BK18: 125,285 | BL18: 123,085 | BM18: 120,800 | BN18: 122,818 | BO18: 115,571 | BP18: 108,993 | BQ18: 127,544 | BR18: 111,601 | BS18: 99,798 | BT18: 95,486 | BU18: 92,673 | BV18: 2.1 | BW18: 2.1 | BX18: 2.1 | BY18: 1.9 | BZ18: 1.9 | CA18: 1.9 | CB18: 1.9 | CC18: 1.9 | CD18: 2.0 | CE18: 2.3 | CF18: 2.4 | CG18: 2.4 | CH18: 2.4 | CI18: 2.2 | CJ18: 2.1 | CK18: 2.1 | CL18: 2.1 | CM18: 2.1 | CN18: 2.1 | CO18: 2.2 | CP18: 2.2 | CQ18: 2.0 | CR18: 1.9 | CS18: 1.9 | CT18: 2,900 | CU18: 2,899 | CV18: 2,899 | CW18: 2,897 | CX18: 2,897 | CY18: 2,897 | CZ18: 2,897 | DA18: 2,897 | DB18: 2,897 | DC18: 2,899 | DD18: 2,899 | DE18: 2,899 | DF18: 2,899 | DG18: 2,899 | DH18: 2,899 | DI18: 2,899 | DJ18: 2,900 | DK18: 2,900 | DL18: 2,899 | DM18: 2,899 | DN18: 2,900 | DO18: 2,899 | DP18: 2,899 | DQ18: 2,900
A19: 16 | B19: 393,617,416 | C19: 399,386,214 | D19: 403,896,202 | E19: 384,232,343 | F19: 415,813,696 | G19: 402,216,803 | H19: 368,811,002 | I19: 370,660,819 | J19: 391,314,664 | K19: 383,121,143 | L19: 378,097,110 | M19: 372,825,332 | N19: 377,686,213 | O19: 394,338,481 | P19: 381,215,565 | Q19: 380,464,705 | R19: 381,609,387 | S19: 363,486,116 | T19: 351,926,312 | U19: 398,470,160 | V19: 335,271,836 | W19: 306,839,214 | X19: 296,744,651 | Y19: 294,230,859 | Z19: 8,223,858 | AA19: 8,744,617 | AB19: 8,720,105 | AC19: 8,666,844 | AD19: 9,630,291 | AE19: 9,844,010 | AF19: 8,954,829 | AG19: 8,793,237 | AH19: 9,119,107 | AI19: 9,095,652 | AJ19: 9,013,759 | AK19: 9,238,079 | AL19: 9,126,076 | AM19: 8,812,269 | AN19: 8,050,323 | AO19: 8,109,881 | AP19: 8,195,914 | AQ19: 7,669,709 | AR19: 7,452,791 | AS19: 9,214,163 | AT19: 7,637,813 | AU19: 6,391,400 | AV19: 5,747,442 | AW19: 5,616,557 | AX19: 127,106 | AY19: 128,896 | AZ19: 130,281 | BA19: 124,008 | BB19: 134,213 | BC19: 129,828 | BD19: 119,049 | BE19: 119,637 | BF19: 126,345 | BG19: 123,683 | BH19: 122,060 | BI19: 120,412 | BJ19: 121,974 | BK19: 127,353 | BL19: 123,104 | BM19: 122,847 | BN19: 123,192 | BO19: 117,363 | BP19: 113,492 | BQ19: 128,620 | BR19: 108,243 | BS19: 99,066 | BT19: 95,833 | BU19: 94,987 | BV19: 2.1 | BW19: 2.2 | BX19: 2.2 | BY19: 2.3 | BZ19: 2.3 | CA19: 2.4 | CB19: 2.4 | CC19: 2.4 | CD19: 2.3 | CE19: 2.4 | CF19: 2.4 | CG19: 2.5 | CH19: 2.4 | CI19: 2.2 | CJ19: 2.1 | CK19: 2.1 | CL19: 2.1 | CM19: 2.1 | CN19: 2.1 | CO19: 2.3 | CP19: 2.3 | CQ19: 2.1 | CR19: 1.9 | CS19: 1.9 | CT19: 3,097 | CU19: 3,099 | CV19: 3,100 | CW19: 3,098 | CX19: 3,098 | CY19: 3,098 | CZ19: 3,098 | DA19: 3,098 | DB19: 3,097 | DC19: 3,098 | DD19: 3,098 | DE19: 3,096 | DF19: 3,096 | DG19: 3,096 | DH19: 3,097 | DI19: =+Q19/BM19 -> 3,097 | DJ19: 3,098 | DK19: 3,097 | DL19: 3,101 | DM19: 3,098 | DN19: 3,097 | DO19: 3,097 | DP19: 3,096 | DQ19: 3,098
A20: 17 | B20: 398,294,201 | C20: 403,083,020 | D20: 399,832,877 | E20: 404,107,436 | F20: 425,394,146 | G20: 413,625,146 | H20: 382,668,167 | I20: 376,346,868 | J20: 402,487,752 | K20: 398,544,109 | L20: 398,552,605 | M20: 382,412,793 | N20: 381,872,839 | O20: 401,343,678 | P20: 385,659,854 | Q20: 387,015,884 | R20: 386,876,033 | S20: 377,939,120 | T20: 362,630,418 | U20: 422,339,630 | V20: 362,322,696 | W20: 315,118,317 | X20: 293,360,987 | Y20: 294,564,210 | Z20: 8,427,298 | AA20: 8,911,307 | AB20: 8,812,116 | AC20: 8,950,157 | AD20: 9,943,734 | AE20: 10,198,088 | AF20: 9,271,096 | AG20: 9,029,939 | AH20: 9,566,079 | AI20: 9,518,719 | AJ20: 9,581,986 | AK20: 9,751,622 | AL20: 9,451,565 | AM20: 9,142,371 | AN20: 8,303,339 | AO20: 8,271,805 | AP20: 8,385,490 | AQ20: 7,986,609 | AR20: 7,713,048 | AS20: 10,281,611 | AT20: 8,087,782 | AU20: 6,418,545 | AV20: 5,711,753 | AW20: 5,661,907 | AX20: 120,714 | AY20: 122,162 | AZ20: 121,175 | BA20: 122,456 | BB20: 128,933 | BC20: 125,362 | BD20: 115,973 | BE20: 114,073 | BF20: 122,013 | BG20: 120,811 | BH20: 120,764 | BI20: 115,909 | BJ20: 115,731 | BK20: 121,626 | BL20: 116,892 | BM20: 117,320 | BN20: 117,293 | BO20: 114,582 | BP20: 109,906 | BQ20: 127,973 | BR20: 109,738 | BS20: 95,532 | BT20: 88,917 | BU20: 89,283 | BV20: 2.1 | BW20: 2.2 | BX20: 2.2 | BY20: 2.2 | BZ20: 2.3 | CA20: 2.5 | CB20: 2.4 | CC20: 2.4 | CD20: 2.4 | CE20: 2.4 | CF20: 2.4 | CG20: 2.6 | CH20: 2.5 | CI20: 2.3 | CJ20: 2.2 | CK20: 2.1 | CL20: 2.2 | CM20: 2.1 | CN20: 2.1 | CO20: 2.4 | CP20: 2.2 | CQ20: 2.0 | CR20: 1.9 | CS20: 1.9 | CT20: =+B20/AX20 -> 3,299 | CU20: 3,300 | CV20: 3,300 | CW20: 3,300 | CX20: 3,299 | CY20: 3,299 | CZ20: 3,300 | DA20: 3,299 | DB20: 3,299 | DC20: 3,299 | DD20: 3,300 | DE20: 3,299 | DF20: 3,300 | DG20: 3,300 | DH20: 3,299 | DI20: 3,299 | DJ20: 3,298 | DK20: 3,298 | DL20: 3,299 | DM20: 3,300 | DN20: 3,302 | DO20: 3,299 | DP20: 3,299 | DQ20: 3,299
A21: 18 | B21: 404,019,667 | C21: 415,175,194 | D21: 408,227,636 | E21: 406,607,266 | F21: 447,169,986 | G21: 420,685,820 | H21: 389,573,609 | I21: 401,263,705 | J21: 415,243,620 | K21: 408,614,579 | L21: 410,894,201 | M21: 389,857,158 | N21: 391,965,783 | O21: 405,614,112 | P21: 400,680,007 | Q21: 401,628,707 | R21: 402,478,014 | S21: 406,386,902 | T21: 369,815,315 | U21: 436,116,113 | V21: 377,573,016 | W21: 343,524,392 | X21: 317,724,702 | Y21: 306,109,550 | Z21: 8,657,813 | AA21: 9,212,336 | AB21: 9,042,703 | AC21: 9,192,592 | AD21: 10,486,359 | AE21: 10,562,632 | AF21: 9,671,876 | AG21: 9,713,188 | AH21: 9,970,980 | AI21: 9,983,835 | AJ21: 10,001,391 | AK21: 9,923,122 | AL21: 9,702,038 | AM21: 9,250,174 | AN21: 8,545,933 | AO21: 8,660,902 | AP21: 8,781,285 | AQ21: 8,451,249 | AR21: 8,009,497 | AS21: 11,276,783 | AT21: 8,561,177 | AU21: 6,972,936 | AV21: 6,059,016 | AW21: 5,944,279 | AX21: 115,453 | AY21: 118,627 | AZ21: 116,663 | BA21: 116,190 | BB21: 127,715 | BC21: 120,188 | BD21: 111,335 | BE21: 114,690 | BF21: 118,649 | BG21: 116,755 | BH21: 117,399 | BI21: 111,394 | BJ21: 112,018 | BK21: 115,920 | BL21: 114,519 | BM21: 114,787 | BN21: 115,014 | BO21: 116,196 | BP21: 105,690 | BQ21: 124,647 | BR21: 107,909 | BS21: 98,165 | BT21: 90,830 | BU21: 87,469 | BV21: 2.1 | BW21: 2.2 | BX21: 2.2 | BY21: 2.3 | BZ21: 2.3 | CA21: 2.5 | CB21: 2.5 | CC21: 2.4 | CD21: 2.4 | CE21: 2.4 | CF21: 2.4 | CG21: 2.5 | CH21: 2.5 | CI21: 2.3 | CJ21: 2.1 | CK21: 2.2 | CL21: 2.2 | CM21: 2.1 | CN21: 2.2 | CO21: 2.6 | CP21: 2.3 | CQ21: 2.0 | CR21: 1.9 | CS21: 1.9 | CT21: 3,499 | CU21: 3,500 | CV21: 3,499 | CW21: 3,500 | CX21: 3,501 | CY21: 3,500 | CZ21: 3,499 | DA21: 3,499 | DB21: 3,500 | DC21: 3,500 | DD21: 3,500 | DE21: 3,500 | DF21: 3,499 | DG21: 3,499 | DH21: 3,499 | DI21: 3,499 | DJ21: 3,499 | DK21: 3,497 | DL21: 3,499 | DM21: 3,499 | DN21: 3,499 | DO21: 3,499 | DP21: 3,498 | DQ21: 3,500
A22: 19 | B22: 440,118,414 | C22: 445,499,754 | D22: 441,717,331 | E22: 434,980,481 | F22: 466,429,855 | G22: 458,329,208 | H22: 415,269,754 | I22: 419,008,050 | J22: 439,566,104 | K22: 429,565,039 | L22: 429,230,932 | M22: 415,125,583 | N22: 418,848,294 | O22: 433,942,961 | P22: 432,250,999 | Q22: 424,625,321 | R22: 426,053,751 | S22: 413,271,375 | T22: 393,903,079 | U22: 452,977,365 | V22: 386,851,525 | W22: 359,865,890 | X22: 344,236,517 | Y22: 322,520,889 | Z22: 9,425,912 | AA22: 10,012,577 | AB22: 9,849,786 | AC22: 9,923,080 | AD22: 11,038,367 | AE22: 11,464,590 | AF22: 10,401,927 | AG22: 10,310,406 | AH22: 10,681,067 | AI22: 10,614,267 | AJ22: 10,611,542 | AK22: 10,736,422 | AL22: 10,449,981 | AM22: 9,990,474 | AN22: 9,269,921 | AO22: 9,292,453 | AP22: 9,422,377 | AQ22: 8,926,662 | AR22: 8,575,518 | AS22: 12,415,457 | AT22: 8,914,265 | AU22: 7,415,169 | AV22: 6,651,272 | AW22: 6,381,491 | AX22: 119,047 | AY22: 120,510 | AZ22: 119,459 | BA22: 117,650 | BB22: 126,156 | BC22: 123,959 | BD22: 112,308 | BE22: 113,328 | BF22: 118,862 | BG22: 116,149 | BH22: 116,085 | BI22: 112,277 | BJ22: 113,281 | BK22: 117,343 | BL22: 116,868 | BM22: 114,834 | BN22: 115,228 | BO22: 111,761 | BP22: 106,525 | BQ22: 122,473 | BR22: 104,601 | BS22: 97,345 | BT22: 92,999 | BU22: 87,219 | BV22: 2.1 | BW22: 2.2 | BX22: 2.2 | BY22: 2.3 | BZ22: 2.4 | CA22: 2.5 | CB22: 2.5 | CC22: 2.5 | CD22: 2.4 | CE22: 2.5 | CF22: 2.5 | CG22: 2.6 | CH22: 2.5 | CI22: 2.3 | CJ22: 2.1 | CK22: 2.2 | CL22: 2.2 | CM22: 2.2 | CN22: 2.2 | CO22: 2.7 | CP22: 2.3 | CQ22: 2.1 | CR22: 1.9 | CS22: 2.0 | CT22: 3,697 | CU22: 3,697 | CV22: 3,698 | CW22: 3,697 | CX22: 3,697 | CY22: 3,697 | CZ22: 3,698 | DA22: 3,697 | DB22: 3,698 | DC22: 3,698 | DD22: 3,698 | DE22: 3,697 | DF22: 3,697 | DG22: 3,698 | DH22: 3,699 | DI22: 3,698 | DJ22: 3,697 | DK22: 3,698 | DL22: 3,698 | DM22: 3,699 | DN22: 3,698 | DO22: 3,697 | DP22: 3,702 | DQ22: 3,698
A23: 20 | B23: 442,515,942 | C23: 451,837,104 | D23: 445,934,578 | E23: 443,430,293 | F23: 474,551,413 | G23: 456,806,500 | H23: 433,643,374 | I23: 425,312,946 | J23: 441,481,309 | K23: 436,272,901 | L23: 435,861,731 | M23: 419,285,846 | N23: 421,531,538 | O23: 437,232,227 | P23: 446,072,174 | Q23: 433,729,322 | R23: 432,480,296 | S23: 422,823,177 | T23: 402,899,485 | U23: 471,201,079 | V23: 397,666,128 | W23: 362,433,561 | X23: 352,024,033 | Y23: 347,136,550 | Z23: 9,456,572 | AA23: 10,118,735 | AB23: 9,942,672 | AC23: 10,067,145 | AD23: 11,255,486 | AE23: 11,641,819 | AF23: 10,862,906 | AG23: 10,647,087 | AH23: 10,852,890 | AI23: 10,841,496 | AJ23: 10,940,010 | AK23: 10,961,262 | AL23: 10,712,706 | AM23: 10,221,800 | AN23: 9,659,894 | AO23: 9,451,634 | AP23: 9,611,456 | AQ23: 9,080,790 | AR23: 8,782,667 | AS23: 13,666,460 | AT23: 9,228,818 | AU23: 7,500,018 | AV23: 6,830,177 | AW23: 6,664,146 | AX23: 113,459 | AY23: 115,861 | AZ23: 114,348 | BA23: 113,694 | BB23: 121,689 | BC23: 117,111 | BD23: 111,147 | BE23: 109,068 | BF23: 113,221 | BG23: 111,883 | BH23: 111,765 | BI23: 107,527 | BJ23: 108,095 | BK23: 112,124 | BL23: 114,414 | BM23: 111,256 | BN23: 110,906 | BO23: 108,436 | BP23: 103,315 | BQ23: 120,832 | BR23: 101,961 | BS23: 92,953 | BT23: 90,267 | BU23: 88,948 | BV23: 2.1 | BW23: 2.2 | BX23: 2.2 | BY23: 2.3 | BZ23: 2.4 | CA23: 2.5 | CB23: 2.5 | CC23: 2.5 | CD23: 2.5 | CE23: 2.5 | CF23: 2.5 | CG23: 2.6 | CH23: 2.5 | CI23: 2.3 | CJ23: 2.2 | CK23: 2.2 | CL23: 2.2 | CM23: 2.1 | CN23: 2.2 | CO23: 2.9 | CP23: 2.3 | CQ23: 2.1 | CR23: 1.9 | CS23: 1.9 | CT23: 3,900 | CU23: 3,900 | CV23: 3,900 | CW23: 3,900 | CX23: 3,900 | CY23: 3,901 | CZ23: 3,902 | DA23: 3,900 | DB23: 3,899 | DC23: 3,899 | DD23: 3,900 | DE23: 3,899 | DF23: 3,900 | DG23: 3,900 | DH23: 3,899 | DI23: 3,898 | DJ23: 3,900 | DK23: 3,899 | DL23: 3,900 | DM23: 3,900 | DN23: 3,900 | DO23: 3,899 | DP23: 3,900 | DQ23: 3,903
A24: 21 | B24: 457,637,223 | C24: 466,837,197 | D24: 464,322,964 | E24: 452,497,176 | F24: 491,440,166 | G24: 479,422,109 | H24: 448,748,105 | I24: 446,505,938 | J24: 459,295,416 | K24: 453,518,490 | L24: 451,944,425 | M24: 433,572,467 | N24: 434,021,635 | O24: 448,062,785 | P24: 445,003,780 | Q24: 445,632,758 | R24: 453,033,603 | S24: 439,281,189 | T24: 417,893,260 | U24: 482,249,729 | V24: 415,961,472 | W24: 375,682,553 | X24: 361,392,711 | Y24: 358,858,782 | Z24: 9,831,942 | AA24: 10,536,688 | AB24: 10,438,828 | AC24: 10,491,838 | AD24: 11,771,837 | AE24: 12,259,818 | AF24: 11,417,342 | AG24: 11,380,498 | AH24: 11,575,848 | AI24: 11,496,206 | AJ24: 11,619,597 | AK24: 11,600,279 | AL24: 11,272,503 | AM24: 10,635,420 | AN24: 9,804,649 | AO24: 9,845,910 | AP24: 10,090,082 | AQ24: 9,630,352 | AR24: 9,166,812 | AS24: 14,072,161 | AT24: 9,696,413 | AU24: 7,838,020 | AV24: 7,106,812 | AW24: 7,128,702 | AX24: 111,621 | AY24: 113,878 | AZ24: 113,262 | BA24: 110,379 | BB24: 119,883 | BC24: 116,955 | BD24: 109,474 | BE24: 108,922 | BF24: 112,069 | BG24: 110,674 | BH24: 110,281 | BI24: 105,798 | BJ24: 105,891 | BK24: 109,331 | BL24: 108,589 | BM24: 108,733 | BN24: 110,528 | BO24: 107,166 | BP24: 101,965 | BQ24: 117,663 | BR24: 101,492 | BS24: 91,646 | BT24: 88,176 | BU24: 87,560 | BV24: 2.1 | BW24: 2.3 | BX24: 2.2 | BY24: 2.3 | BZ24: 2.4 | CA24: 2.6 | CB24: 2.5 | CC24: 2.5 | CD24: 2.5 | CE24: 2.5 | CF24: 2.6 | CG24: 2.7 | CH24: 2.6 | CI24: 2.4 | CJ24: 2.2 | CK24: 2.2 | CL24: 2.2 | CM24: 2.2 | CN24: 2.2 | CO24: 2.9 | CP24: 2.3 | CQ24: 2.1 | CR24: 2.0 | CS24: 2.0 | CT24: 4,100 | CU24: 4,099 | CV24: 4,100 | CW24: 4,099 | CX24: 4,099 | CY24: 4,099 | CZ24: 4,099 | DA24: 4,099 | DB24: 4,098 | DC24: 4,098 | DD24: 4,098 | DE24: 4,098 | DF24: 4,099 | DG24: 4,098 | DH24: 4,098 | DI24: 4,098 | DJ24: 4,099 | DK24: 4,099 | DL24: 4,098 | DM24: 4,099 | DN24: 4,098 | DO24: 4,099 | DP24: 4,099 | DQ24: 4,098
A25: 22 | B25: 494,476,915 | C25: 500,317,428 | D25: 494,068,837 | E25: 485,858,962 | F25: 513,311,601 | G25: 497,501,117 | H25: 468,689,672 | I25: 479,972,814 | J25: 486,969,421 | K25: 471,928,655 | L25: 474,310,073 | M25: 449,174,812 | N25: 451,811,334 | O25: 463,339,390 | P25: 460,488,639 | Q25: 465,570,820 | R25: 466,737,001 | S25: 458,747,702 | T25: 439,204,922 | U25: 501,796,202 | V25: 433,047,970 | W25: 390,297,826 | X25: 371,884,985 | Y25: 370,746,133 | Z25: 10,562,493 | AA25: 11,253,574 | AB25: 10,993,707 | AC25: 11,229,190 | AD25: 12,540,654 | AE25: 12,846,679 | AF25: 11,906,594 | AG25: 12,037,747 | AH25: 11,991,261 | AI25: 11,933,304 | AJ25: 12,191,578 | AK25: 11,973,249 | AL25: 11,658,609 | AM25: 11,043,279 | AN25: 10,181,700 | AO25: 10,421,071 | AP25: 10,527,190 | AQ25: 10,074,727 | AR25: 9,705,966 | AS25: 14,995,615 | AT25: 10,095,584 | AU25: 8,169,569 | AV25: 7,359,389 | AW25: 7,278,843 | AX25: 115,021 | AY25: 116,375 | AZ25: 114,925 | BA25: 113,000 | BB25: 119,404 | BC25: 115,730 | BD25: 109,030 | BE25: 111,707 | BF25: 113,255 | BG25: 109,775 | BH25: 110,354 | BI25: 104,504 | BJ25: 105,096 | BK25: 107,787 | BL25: 107,123 | BM25: 108,302 | BN25: 108,585 | BO25: 106,722 | BP25: 102,177 | BQ25: 116,720 | BR25: 100,734 | BS25: 90,797 | BT25: 86,523 | BU25: 86,230 | BV25: 2.1 | BW25: 2.2 | BX25: 2.2 | BY25: 2.3 | BZ25: 2.4 | CA25: 2.6 | CB25: 2.5 | CC25: 2.5 | CD25: 2.5 | CE25: 2.5 | CF25: 2.6 | CG25: 2.7 | CH25: 2.6 | CI25: 2.4 | CJ25: 2.2 | CK25: 2.2 | CL25: 2.3 | CM25: 2.2 | CN25: 2.2 | CO25: 3.0 | CP25: 2.3 | CQ25: 2.1 | CR25: 2.0 | CS25: 2.0 | CT25: 4,299 | CU25: 4,299 | CV25: 4,299 | CW25: 4,300 | CX25: 4,299 | CY25: 4,299 | CZ25: 4,299 | DA25: 4,297 | DB25: 4,300 | DC25: 4,299 | DD25: 4,298 | DE25: 4,298 | DF25: 4,299 | DG25: 4,299 | DH25: 4,299 | DI25: 4,299 | DJ25: 4,298 | DK25: 4,299 | DL25: 4,298 | DM25: 4,299 | DN25: 4,299 | DO25: 4,299 | DP25: 4,298 | DQ25: 4,300
A26: 23 | B26: 525,291,859 | C26: 528,276,773 | D26: 507,991,721 | E26: 503,314,898 | F26: 535,212,447 | G26: 514,473,607 | H26: 488,005,005 | I26: 484,775,441 | J26: 488,365,185 | K26: 502,576,509 | L26: 497,088,221 | M26: 475,447,424 | N26: 470,567,724 | O26: 494,809,221 | P26: 498,263,118 | Q26: 516,782,387 | R26: 489,849,119 | S26: 476,623,014 | T26: 448,200,806 | U26: 525,068,781 | V26: 451,947,486 | W26: 406,359,161 | X26: 389,656,206 | Y26: 379,725,877 | Z26: 11,318,460 | AA26: 11,925,385 | AB26: 11,427,591 | AC26: 11,599,674 | AD26: 12,983,920 | AE26: 13,323,440 | AF26: 12,548,367 | AG26: 12,472,926 | AH26: 12,440,590 | AI26: 12,647,988 | AJ26: 12,649,652 | AK26: 12,735,754 | AL26: 12,199,516 | AM26: 11,720,098 | AN26: 10,986,623 | AO26: 11,474,041 | AP26: 11,047,661 | AQ26: 10,596,021 | AR26: 10,031,553 | AS26: 15,901,177 | AT26: 10,714,844 | AU26: 8,743,070 | AV26: 7,879,371 | AW26: 7,721,309 | AX26: 116,716 | AY26: 117,381 | AZ26: 112,897 | BA26: 111,850 | BB26: 118,931 | BC26: 114,327 | BD26: 108,446 | BE26: 107,742 | BF26: 108,546 | BG26: 111,730 | BH26: 110,472 | BI26: 105,670 | BJ26: 104,574 | BK26: 109,945 | BL26: 110,700 | BM26: 114,735 | BN26: 108,871 | BO26: 105,923 | BP26: 99,594 | BQ26: 116,697 | BR26: 100,452 | BS26: 90,310 | BT26: 86,591 | BU26: 84,386 | BV26: 2.2 | BW26: 2.3 | BX26: 2.2 | BY26: 2.3 | BZ26: 2.4 | CA26: 2.6 | CB26: 2.6 | CC26: 2.6 | CD26: 2.5 | CE26: 2.5 | CF26: 2.5 | CG26: 2.7 | CH26: 2.6 | CI26: 2.4 | CJ26: 2.2 | CK26: 2.2 | CL26: 2.3 | CM26: 2.2 | CN26: 2.2 | CO26: 3.0 | CP26: 2.4 | CQ26: 2.2 | CR26: 2.0 | CS26: 2.0 | CT26: 4,501 | CU26: 4,501 | CV26: 4,500 | CW26: 4,500 | CX26: 4,500 | CY26: 4,500 | CZ26: 4,500 | DA26: 4,499 | DB26: 4,499 | DC26: 4,498 | DD26: 4,500 | DE26: 4,499 | DF26: 4,500 | DG26: 4,501 | DH26: 4,501 | DI26: 4,504 | DJ26: 4,499 | DK26: 4,500 | DL26: 4,500 | DM26: 4,499 | DN26: 4,499 | DO26: 4,500 | DP26: 4,500 | DQ26: 4,500
A27: 24 | B27: 526,661,012 | C27: 540,385,671 | D27: 541,592,712 | E27: 516,617,850 | F27: 547,371,119 | G27: 533,111,244 | H27: 499,364,258 | I27: 497,583,936 | J27: 495,709,517 | K27: 496,048,471 | L27: 484,108,986 | M27: 466,236,309 | N27: 460,589,541 | O27: 482,791,515 | P27: 488,857,746 | Q27: 507,806,121 | R27: 493,515,709 | S27: 480,205,213 | T27: 460,337,309 | U27: 526,496,867 | V27: 456,992,879 | W27: 416,000,606 | X27: 395,359,938 | Y27: 386,727,663 | Z27: 11,265,050 | AA27: 12,100,923 | AB27: 11,919,188 | AC27: 11,932,154 | AD27: 13,224,969 | AE27: 13,656,105 | AF27: 12,837,409 | AG27: 12,880,520 | AH27: 12,570,055 | AI27: 12,650,604 | AJ27: 12,683,473 | AK27: 12,923,998 | AL27: 12,277,580 | AM27: 11,719,849 | AN27: 10,896,453 | AO27: 11,461,310 | AP27: 11,320,455 | AQ27: 10,785,291 | AR27: 10,331,717 | AS27: 16,013,968 | AT27: 10,841,264 | AU27: 9,007,902 | AV27: 8,002,886 | AW27: 7,941,126 | AX27: 112,075 | AY27: 115,020 | AZ27: 115,232 | BA27: 109,918 | BB27: 116,462 | BC27: 113,426 | BD27: 106,244 | BE27: 105,868 | BF27: 105,483 | BG27: 105,564 | BH27: 103,017 | BI27: 99,208 | BJ27: 98,015 | BK27: 102,742 | BL27: 104,024 | BM27: 108,062 | BN27: 105,015 | BO27: 102,190 | BP27: 97,960 | BQ27: 112,033 | BR27: 97,248 | BS27: 88,536 | BT27: 84,126 | BU27: 82,290 | BV27: 2.1 | BW27: 2.2 | BX27: 2.2 | BY27: 2.3 | BZ27: 2.4 | CA27: 2.6 | CB27: 2.6 | CC27: 2.6 | CD27: 2.5 | CE27: 2.6 | CF27: 2.6 | CG27: 2.8 | CH27: 2.7 | CI27: 2.4 | CJ27: 2.2 | CK27: 2.3 | CL27: 2.3 | CM27: 2.2 | CN27: 2.2 | CO27: 3.0 | CP27: 2.4 | CQ27: 2.2 | CR27: 2.0 | CS27: 2.1 | CT27: 4,699 | CU27: 4,698 | CV27: 4,700 | CW27: 4,700 | CX27: 4,700 | CY27: 4,700 | CZ27: 4,700 | DA27: 4,700 | DB27: 4,699 | DC27: 4,699 | DD27: 4,699 | DE27: 4,700 | DF27: 4,699 | DG27: 4,699 | DH27: 4,699 | DI27: 4,699 | DJ27: 4,699 | DK27: 4,699 | DL27: 4,699 | DM27: 4,699 | DN27: 4,699 | DO27: 4,699 | DP27: 4,700 | DQ27: 4,700
A28: 25 | B28: 556,102,648 | C28: 566,299,520 | D28: 553,854,229 | E28: 554,434,072 | F28: 576,407,874 | G28: 550,232,417 | H28: 539,368,663 | I28: 535,687,993 | J28: 520,471,143 | K28: 511,559,128 | L28: 512,313,581 | M28: 489,494,398 | N28: 483,501,222 | O28: 514,697,029 | P28: 521,303,077 | Q28: 522,335,521 | R28: 547,543,549 | S28: 506,679,762 | T28: 478,853,128 | U28: 552,874,586 | V28: 475,474,558 | W28: 433,020,598 | X28: 409,519,207 | Y28: 399,527,268 | Z28: 11,914,142 | AA28: 12,795,678 | AB28: 12,293,623 | AC28: 12,618,452 | AD28: 13,923,294 | AE28: 14,219,405 | AF28: 13,725,674 | AG28: 13,757,157 | AH28: 13,119,600 | AI28: 13,167,888 | AJ28: 13,315,481 | AK28: 13,624,921 | AL28: 12,854,301 | AM28: 12,451,681 | AN28: 11,623,347 | AO28: 11,799,267 | AP28: 12,374,533 | AQ28: 11,329,305 | AR28: 10,764,743 | AS28: 16,737,859 | AT28: 11,380,063 | AU28: 9,386,969 | AV28: 8,552,667 | AW28: 8,355,260 | AX28: 113,504 | AY28: 115,596 | AZ28: 113,055 | BA28: 113,163 | BB28: 117,650 | BC28: 112,315 | BD28: 110,105 | BE28: 109,340 | BF28: 106,245 | BG28: 104,438 | BH28: 104,593 | BI28: 99,942 | BJ28: 98,725 | BK28: 105,093 | BL28: 106,439 | BM28: 106,662 | BN28: 111,730 | BO28: 103,446 | BP28: 97,778 | BQ28: 112,848 | BR28: 97,064 | BS28: 88,406 | BT28: 83,604 | BU28: 81,563 | BV28: 2.1 | BW28: 2.3 | BX28: 2.2 | BY28: 2.3 | BZ28: 2.4 | CA28: 2.6 | CB28: 2.5 | CC28: 2.6 | CD28: 2.5 | CE28: 2.6 | CF28: 2.6 | CG28: 2.8 | CH28: 2.7 | CI28: 2.4 | CJ28: 2.2 | CK28: 2.3 | CL28: 2.3 | CM28: 2.2 | CN28: 2.2 | CO28: 3.0 | CP28: 2.4 | CQ28: 2.2 | CR28: 2.1 | CS28: 2.1 | CT28: 4,899 | CU28: 4,899 | CV28: 4,899 | CW28: 4,899 | CX28: 4,899 | CY28: 4,899 | CZ28: 4,899 | DA28: 4,899 | DB28: 4,899 | DC28: 4,898 | DD28: 4,898 | DE28: 4,898 | DF28: 4,897 | DG28: 4,898 | DH28: 4,898 | DI28: 4,897 | DJ28: 4,901 | DK28: 4,898 | DL28: 4,897 | DM28: 4,899 | DN28: 4,899 | DO28: 4,898 | DP28: 4,898 | DQ28: 4,898
A29: 26 | B29: 577,715,659 | C29: 579,987,273 | D29: 577,273,565 | E29: 565,500,826 | F29: 605,917,477 | G29: 575,923,100 | H29: 550,565,081 | I29: 543,559,152 | J29: 542,587,878 | K29: 527,442,580 | L29: 525,374,433 | M29: 498,478,084 | N29: 494,532,580 | O29: 518,233,102 | P29: 522,486,441 | Q29: 529,051,126 | R29: 541,542,796 | S29: 539,291,237 | T29: 490,632,480 | U29: 559,765,206 | V29: 488,590,861 | W29: 441,151,668 | X29: 423,290,831 | Y29: 410,450,035 | Z29: 12,550,059 | AA29: 13,241,373 | AB29: 12,897,305 | AC29: 13,019,254 | AD29: 14,652,419 | AE29: 14,968,584 | AF29: 14,276,727 | AG29: 14,044,245 | AH29: 13,659,652 | AI29: 13,483,618 | AJ29: 13,865,418 | AK29: 13,955,660 | AL29: 13,297,615 | AM29: 12,734,652 | AN29: 11,844,777 | AO29: 12,168,452 | AP29: 12,505,582 | AQ29: 12,111,629 | AR29: 11,317,190 | AS29: 17,107,447 | AT29: 11,921,121 | AU29: 9,868,306 | AV29: 8,800,120 | AW29: 8,756,289 | AX29: 113,288 | AY29: 113,737 | AZ29: 113,218 | BA29: 110,898 | BB29: 118,823 | BC29: 112,945 | BD29: 107,975 | BE29: 106,603 | BF29: 106,411 | BG29: 103,429 | BH29: 103,033 | BI29: 97,773 | BJ29: 96,992 | BK29: 101,632 | BL29: 102,472 | BM29: 103,760 | BN29: 106,209 | BO29: 105,726 | BP29: 96,224 | BQ29: 109,787 | BR29: 95,835 | BS29: 86,515 | BT29: 83,037 | BU29: 80,497 | BV29: 2.2 | BW29: 2.3 | BX29: 2.2 | BY29: 2.3 | BZ29: 2.4 | CA29: 2.6 | CB29: 2.6 | CC29: 2.6 | CD29: 2.5 | CE29: 2.6 | CF29: 2.6 | CG29: 2.8 | CH29: 2.7 | CI29: 2.5 | CJ29: 2.3 | CK29: 2.3 | CL29: 2.3 | CM29: 2.2 | CN29: 2.3 | CO29: 3.1 | CP29: 2.4 | CQ29: 2.2 | CR29: 2.1 | CS29: 2.1 | CT29: 5,100 | CU29: 5,099 | CV29: 5,099 | CW29: 5,099 | CX29: 5,099 | CY29: 5,099 | CZ29: 5,099 | DA29: 5,099 | DB29: 5,099 | DC29: 5,100 | DD29: 5,099 | DE29: 5,098 | DF29: 5,099 | DG29: 5,099 | DH29: 5,099 | DI29: 5,099 | DJ29: 5,099 | DK29: 5,101 | DL29: 5,099 | DM29: 5,099 | DN29: 5,098 | DO29: 5,099 | DP29: 5,098 | DQ29: 5,099 | DR29: 5,100
A30: 27 | B30: 602,026,490 | C30: 605,286,553 | D30: 591,650,216 | E30: 589,090,309 | F30: 629,380,823 | G30: 596,910,811 | H30: 565,077,901 | I30: 569,208,017 | J30: 558,936,015 | K30: 543,710,239 | L30: 546,120,668 | M30: 508,975,075 | N30: 502,266,225 | O30: 521,850,639 | P30: 525,702,397 | Q30: 535,187,471 | R30: 552,886,668 | S30: 539,492,716 | T30: 506,192,287 | U30: 574,087,730 | V30: 500,468,311 | W30: 454,917,786 | X30: 425,908,451 | Y30: 415,673,356 | Z30: 13,080,055 | AA30: 14,026,748 | AB30: 13,325,721 | AC30: 13,493,829 | AD30: 15,172,967 | AE30: 15,582,583 | AF30: 14,640,318 | AG30: 14,669,514 | AH30: 14,246,178 | AI30: 14,063,201 | AJ30: 14,330,354 | AK30: 14,235,224 | AL30: 13,612,941 | AM30: 12,976,672 | AN30: 11,947,110 | AO30: 12,298,077 | AP30: 12,745,972 | AQ30: 12,292,643 | AR30: 11,658,024 | AS30: 17,477,990 | AT30: 12,235,006 | AU30: 10,092,102 | AV30: 8,971,899 | AW30: 8,773,177 | AX30: 113,611 | AY30: 114,211 | AZ30: 111,628 | BA30: 111,165 | BB30: 118,743 | BC30: 112,621 | BD30: 106,619 | BE30: 107,412 | BF30: 105,473 | BG30: 102,604 | BH30: 103,051 | BI30: 96,046 | BJ30: 94,783 | BK30: 98,475 | BL30: 99,207 | BM30: 100,994 | BN30: 104,334 | BO30: 101,799 | BP30: 95,524 | BQ30: 108,334 | BR30: 94,441 | BS30: 85,856 | BT30: 80,374 | BU30: 78,450 | BV30: 2.2 | BW30: 2.3 | BX30: 2.3 | BY30: 2.3 | BZ30: 2.4 | CA30: 2.6 | CB30: 2.6 | CC30: 2.6 | CD30: 2.5 | CE30: 2.6 | CF30: 2.6 | CG30: 2.8 | CH30: 2.7 | CI30: 2.5 | CJ30: 2.3 | CK30: 2.3 | CL30: 2.3 | CM30: 2.3 | CN30: 2.3 | CO30: 3.0 | CP30: 2.4 | CQ30: 2.2 | CR30: 2.1 | CS30: 2.1 | CT30: 5,299 | CU30: 5,300 | CV30: 5,300 | CW30: 5,299 | CX30: 5,300 | CY30: 5,300 | CZ30: 5,300 | DA30: 5,299 | DB30: 5,299 | DC30: 5,299 | DD30: 5,300 | DE30: 5,299 | DF30: 5,299 | DG30: 5,299 | DH30: 5,299 | DI30: 5,299 | DJ30: 5,299 | DK30: 5,300 | DL30: 5,299 | DM30: 5,299 | DN30: 5,299 | DO30: 5,299 | DP30: 5,299 | DQ30: 5,299
A31: 28 | B31: 637,842,941 | C31: 649,653,108 | D31: 638,063,197 | E31: 619,553,455 | F31: 651,470,927 | G31: 628,060,822 | H31: 602,649,871 | I31: 585,369,522 | J31: 576,794,969 | K31: 556,534,916 | L31: 558,959,404 | M31: 527,250,087 | N31: 523,939,365 | O31: 546,283,608 | P31: 549,705,630 | Q31: 555,357,957 | R31: 572,582,312 | S31: 554,882,755 | T31: 520,572,729 | U31: 594,399,687 | V31: 519,316,854 | W31: 468,935,861 | X31: 437,336,409 | Y31: 428,513,992 | Z31: 14,100,917 | AA31: 14,937,806 | AB31: 14,292,056 | AC31: 14,288,342 | AD31: 15,950,213 | AE31: 16,335,612 | AF31: 15,469,945 | AG31: 15,425,005 | AH31: 14,867,141 | AI31: 14,582,243 | AJ31: 14,869,924 | AK31: 14,723,588 | AL31: 14,121,637 | AM31: 13,510,229 | AN31: 12,439,304 | AO31: 12,799,590 | AP31: 13,312,076 | AQ31: 12,586,975 | AR31: 12,155,803 | AS31: 17,938,649 | AT31: 12,798,957 | AU31: 10,567,940 | AV31: 9,384,401 | AW31: 9,295,647 | AX31: 116,017 | AY31: 118,178 | AZ31: 116,058 | BA31: 112,680 | BB31: 118,504 | BC31: 114,234 | BD31: 109,600 | BE31: 106,456 | BF31: 104,902 | BG31: 101,213 | BH31: 101,659 | BI31: 95,894 | BJ31: 95,289 | BK31: 99,349 | BL31: 99,978 | BM31: 100,998 | BN31: 104,128 | BO31: 100,911 | BP31: 94,673 | BQ31: 108,094 | BR31: 94,427 | BS31: 85,277 | BT31: 79,532 | BU31: 77,928 | BV31: 2.2 | BW31: 2.3 | BX31: 2.2 | BY31: 2.3 | BZ31: 2.4 | CA31: 2.6 | CB31: 2.6 | CC31: 2.6 | CD31: 2.6 | CE31: 2.6 | CF31: 2.7 | CG31: 2.8 | CH31: 2.7 | CI31: 2.5 | CJ31: 2.3 | CK31: 2.3 | CL31: 2.3 | CM31: 2.3 | CN31: 2.3 | CO31: 3.0 | CP31: 2.5 | CQ31: 2.3 | CR31: 2.1 | CS31: 2.2 | CT31: 5,498 | CU31: 5,497 | CV31: 5,498 | CW31: 5,498 | CX31: 5,497 | CY31: 5,498 | CZ31: 5,499 | DA31: 5,499 | DB31: 5,498 | DC31: 5,499 | DD31: 5,498 | DE31: 5,498 | DF31: 5,498 | DG31: 5,499 | DH31: 5,498 | DI31: 5,499 | DJ31: 5,499 | DK31: 5,499 | DL31: 5,499 | DM31: 5,499 | DN31: 5,500 | DO31: 5,499 | DP31: 5,499 | DQ31: 5,499
A32: 29 | B32: 644,774,140 | C32: 654,348,896 | D32: 661,737,704 | E32: 640,413,126 | F32: 671,496,315 | G32: 656,030,952 | H32: 622,393,235 | I32: 607,850,252 | J32: 585,984,970 | K32: 570,688,303 | L32: 568,109,777 | M32: 544,101,059 | N32: 536,445,565 | O32: 557,777,422 | P32: 564,081,248 | Q32: 574,842,155 | R32: 600,211,827 | S32: 575,446,540 | T32: 530,441,752 | U32: 612,135,357 | V32: 527,492,914 | W32: 478,386,292 | X32: 452,534,278 | Y32: 435,476,539 | Z32: 14,418,916 | AA32: 15,165,368 | AB32: 14,670,020 | AC32: 14,798,193 | AD32: 16,501,717 | AE32: 16,906,682 | AF32: 15,993,465 | AG32: 15,817,241 | AH32: 14,951,728 | AI32: 14,952,184 | AJ32: 15,126,820 | AK32: 15,087,776 | AL32: 14,176,347 | AM32: 13,632,153 | AN32: 12,712,921 | AO32: 13,290,809 | AP32: 13,866,493 | AQ32: 13,057,368 | AR32: 12,286,337 | AS32: 18,275,846 | AT32: 12,932,707 | AU32: 10,780,909 | AV32: 9,566,476 | AW32: 9,303,695 | AX32: 113,098 | AY32: 114,782 | AZ32: 116,078 | BA32: 112,341 | BB32: 117,803 | BC32: 115,094 | BD32: 109,197 | BE32: 106,649 | BF32: 102,816 | BG32: 100,127 | BH32: 99,678 | BI32: 95,475 | BJ32: 94,140 | BK32: 97,870 | BL32: 98,974 | BM32: 100,867 | BN32: 105,307 | BO32: 100,957 | BP32: 93,071 | BQ32: 107,407 | BR32: 92,553 | BS32: 83,932 | BT32: 79,399 | BU32: 76,407 | BV32: =+Z32/B32*100 -> 2.2 | BW32: 2.3 | BX32: 2.2 | BY32: 2.3 | BZ32: 2.5 | CA32: 2.6 | CB32: 2.6 | CC32: 2.6 | CD32: 2.6 | CE32: 2.6 | CF32: 2.7 | CG32: 2.8 | CH32: 2.6 | CI32: 2.4 | CJ32: 2.3 | CK32: 2.3 | CL32: 2.3 | CM32: 2.3 | CN32: 2.3 | CO32: 3.0 | CP32: 2.5 | CQ32: 2.3 | CR32: 2.1 | CS32: 2.1 | CT32: 5,701 | CU32: 5,701 | CV32: 5,701 | CW32: 5,701 | CX32: 5,700 | CY32: 5,700 | CZ32: 5,700 | DA32: 5,700 | DB32: 5,699 | DC32: 5,700 | DD32: 5,699 | DE32: 5,699 | DF32: 5,698 | DG32: 5,699 | DH32: 5,699 | DI32: 5,699 | DJ32: 5,700 | DK32: 5,700 | DL32: 5,699 | DM32: 5,699 | DN32: 5,699 | DO32: 5,700 | DP32: 5,699 | DQ32: 5,699
A33: 30 | B33: 664,248,165 | C33: 665,728,198 | D33: 663,377,365 | E33: 658,410,611 | F33: 687,991,325 | G33: 663,358,482 | H33: 651,149,613 | I33: 627,780,655 | J33: 599,864,627 | K33: 580,546,539 | L33: 577,468,691 | M33: 557,887,577 | N33: 558,845,816 | O33: 583,518,745 | P33: 581,151,353 | Q33: 587,490,750 | R33: 617,205,988 | S33: 582,010,814 | T33: 548,958,932 | U33: 627,423,265 | V33: 540,662,387 | W33: 487,745,008 | X33: 459,658,396 | Y33: 457,977,021 | Z33: 14,857,199 | AA33: 15,727,086 | AB33: 14,990,946 | AC33: 15,438,276 | AD33: 16,839,013 | AE33: 17,441,347 | AF33: 16,749,253 | AG33: 16,343,813 | AH33: 15,235,797 | AI33: 15,092,522 | AJ33: 15,382,669 | AK33: 15,632,724 | AL33: 14,856,394 | AM33: 14,226,961 | AN33: 13,129,370 | AO33: 13,511,762 | AP33: 14,264,399 | AQ33: 13,265,525 | AR33: 12,731,447 | AS33: 18,645,841 | AT33: 13,469,812 | AU33: 10,941,834 | AV33: 9,923,551 | AW33: 9,975,639 | AX33: 112,576 | AY33: 112,828 | AZ33: 112,433 | BA33: 111,602 | BB33: 116,602 | BC33: 112,427 | BD33: 110,355 | BE33: 106,409 | BF33: 101,678 | BG33: 98,411 | BH33: 97,878 | BI33: 94,545 | BJ33: 94,715 | BK33: 98,866 | BL33: 98,510 | BM33: 99,580 | BN33: 104,615 | BO33: 98,648 | BP33: 93,051 | BQ33: 106,350 | BR33: 91,650 | BS33: 82,681 | BT33: 77,915 | BU33: 77,615 | BV33: 2.2 | BW33: 2.4 | BX33: 2.3 | BY33: 2.3 | BZ33: 2.4 | CA33: 2.6 | CB33: 2.6 | CC33: 2.6 | CD33: 2.5 | CE33: 2.6 | CF33: 2.7 | CG33: 2.8 | CH33: 2.7 | CI33: 2.4 | CJ33: 2.3 | CK33: 2.3 | CL33: 2.3 | CM33: 2.3 | CN33: 2.3 | CO33: 3.0 | CP33: 2.5 | CQ33: 2.2 | CR33: 2.2 | CS33: 2.2 | CT33: 5,900 | CU33: 5,900 | CV33: 5,900 | CW33: 5,900 | CX33: 5,900 | CY33: 5,900 | CZ33: 5,900 | DA33: 5,900 | DB33: 5,900 | DC33: 5,899 | DD33: 5,900 | DE33: 5,901 | DF33: 5,900 | DG33: 5,902 | DH33: 5,899 | DI33: 5,900 | DJ33: 5,900 | DK33: 5,900 | DL33: 5,900 | DM33: 5,900 | DN33: 5,899 | DO33: 5,899 | DP33: 5,899 | DQ33: 5,901
A34: 31 | B34: 789,023,304 | C34: 781,657,160 | D34: 706,707,851 | E34: 701,404,967 | F34: 746,855,560 | G34: 707,258,815 | H34: 684,516,518 | I34: 678,695,589 | J34: 645,782,129 | K34: 620,754,490 | L34: 620,729,146 | M34: 597,412,700 | N34: 603,256,125 | O34: 661,294,988 | P34: 661,704,787 | Q34: 674,632,550 | R34: 665,510,539 | S34: 639,401,917 | T34: 597,694,672 | U34: 667,744,646 | V34: 581,683,209 | W34: 522,114,939 | X34: 500,397,333 | Y34: 481,967,669 | Z34: 16,004,291 | AA34: 17,202,143 | AB34: 16,143,654 | AC34: 16,350,616 | AD34: 18,444,999 | AE34: 18,837,028 | AF34: 17,908,723 | AG34: 17,873,884 | AH34: 16,758,637 | AI34: 16,438,212 | AJ34: 16,902,899 | AK34: 16,993,811 | AL34: 16,310,005 | AM34: 15,724,142 | AN34: 14,519,680 | AO34: 15,227,381 | AP34: 15,589,839 | AQ34: 14,775,262 | AR34: 13,834,250 | AS34: 19,717,185 | AT34: 14,511,409 | AU34: 12,147,648 | AV34: 11,155,234 | AW34: 10,862,607 | AX34: 129,422 | AY34: 128,015 | AZ34: 115,881 | BA34: 115,033 | BB34: 122,476 | BC34: 115,996 | BD34: 112,279 | BE34: 111,323 | BF34: 105,937 | BG34: 101,838 | BH34: 101,841 | BI34: 98,028 | BJ34: 99,016 | BK34: 108,618 | BL34: 108,643 | BM34: 110,736 | BN34: 109,203 | BO34: 104,914 | BP34: 98,065 | BQ34: 109,545 | BR34: 95,437 | BS34: 85,658 | BT34: 82,105 | BU34: 79,075 | BV34: 2.0 | BW34: 2.2 | BX34: 2.3 | BY34: 2.3 | BZ34: 2.5 | CA34: 2.7 | CB34: 2.6 | CC34: 2.6 | CD34: 2.6 | CE34: 2.6 | CF34: 2.7 | CG34: 2.8 | CH34: 2.7 | CI34: 2.4 | CJ34: 2.2 | CK34: 2.3 | CL34: 2.3 | CM34: 2.3 | CN34: 2.3 | CO34: 3.0 | CP34: 2.5 | CQ34: 2.3 | CR34: 2.2 | CS34: 2.3 | CT34: 6,097 | CU34: 6,106 | CV34: 6,099 | CW34: 6,097 | CX34: 6,098 | CY34: 6,097 | CZ34: 6,097 | DA34: 6,097 | DB34: 6,096 | DC34: 6,096 | DD34: 6,095 | DE34: 6,094 | DF34: 6,093 | DG34: 6,088 | DH34: 6,091 | DI34: 6,092 | DJ34: 6,094 | DK34: 6,095 | DL34: 6,095 | DM34: 6,096 | DN34: 6,095 | DO34: 6,095 | DP34: 6,095 | DQ34: 6,095
A35: 32 | B35: 733,476,814 | C35: 740,360,702 | D35: 786,774,982 | E35: 703,731,891 | F35: 745,806,098 | G35: 731,982,290 | H35: 689,744,668 | I35: 687,832,550 | J35: 653,588,763 | K35: 632,775,833 | L35: 615,274,237 | M35: 585,758,834 | N35: 574,625,173 | O35: 591,805,515 | P35: 606,731,447 | Q35: 619,976,880 | R35: 642,925,556 | S35: 630,175,906 | T35: 665,709,237 | U35: 663,175,242 | V35: 581,285,240 | W35: 517,535,930 | X35: 493,919,276 | Y35: 478,607,374 | Z35: 15,996,652 | AA35: 17,455,777 | AB35: 16,666,051 | AC35: 16,679,076 | AD35: 18,526,279 | AE35: 19,354,297 | AF35: 17,992,710 | AG35: 17,891,149 | AH35: 16,627,365 | AI35: 16,479,075 | AJ35: 16,530,411 | AK35: 16,574,955 | AL35: 15,721,084 | AM35: 14,993,269 | AN35: 13,941,349 | AO35: 14,573,734 | AP35: 15,055,323 | AQ35: 14,436,156 | AR35: 14,595,842 | AS35: 19,433,044 | AT35: 14,482,848 | AU35: 11,897,754 | AV35: 10,783,980 | AW35: 10,590,428 | AX35: 116,424 | AY35: 117,531 | AZ35: 124,842 | BA35: 111,703 | BB35: 118,388 | BC35: 116,190 | BD35: 109,482 | BE35: 109,187 | BF35: 103,752 | BG35: 100,442 | BH35: 97,656 | BI35: 92,980 | BJ35: 91,212 | BK35: 93,942 | BL35: 96,313 | BM35: 98,420 | BN35: 102,060 | BO35: 100,025 | BP35: 105,667 | BQ35: 105,268 | BR35: 92,266 | BS35: 82,149 | BT35: 78,403 | BU35: 75,969 | BV35: 2.2 | BW35: 2.4 | BX35: 2.1 | BY35: 2.4 | BZ35: 2.5 | CA35: 2.6 | CB35: 2.6 | CC35: 2.6 | CD35: 2.5 | CE35: 2.6 | CF35: 2.7 | CG35: 2.8 | CH35: 2.7 | CI35: 2.5 | CJ35: 2.3 | CK35: 2.4 | CL35: 2.3 | CM35: 2.3 | CN35: 2.2 | CO35: 2.9 | CP35: 2.5 | CQ35: 2.3 | CR35: 2.2 | CS35: 2.2 | CT35: 6,300 | CU35: 6,299 | CV35: 6,302 | CW35: 6,300 | CX35: 6,300 | CY35: 6,300 | CZ35: 6,300 | DA35: 6,300 | DB35: 6,300 | DC35: 6,300 | DD35: 6,300 | DE35: 6,300 | DF35: 6,300 | DG35: 6,300 | DH35: 6,300 | DI35: 6,299 | DJ35: 6,299 | DK35: 6,300 | DL35: 6,300 | DM35: 6,300 | DN35: 6,300 | DO35: 6,300 | DP35: 6,300 | DQ35: =+Y35/BU35 -> 6,300
A36: 33 | B36: 766,146,154 | C36: 765,139,926 | D36: 744,944,122 | E36: 739,041,883 | F36: 763,915,704 | G36: 753,916,804 | H36: 724,923,346 | I36: 694,699,429 | J36: 682,949,192 | K36: 643,280,329 | L36: 631,621,957 | M36: 609,119,222 | N36: 594,640,767 | O36: 616,891,970 | P36: 635,403,974 | Q36: 647,316,148 | R36: 668,747,377 | S36: 662,281,208 | T36: 669,481,752 | U36: 682,359,347 | V36: 598,885,000 | W36: 533,800,629 | X36: 504,350,488 | Y36: 490,441,822 | Z36: 16,688,012 | AA36: 18,112,216 | AB36: 16,904,347 | AC36: 17,413,336 | AD36: 19,220,561 | AE36: 19,711,971 | AF36: 18,849,347 | AG36: 18,120,609 | AH36: 17,197,723 | AI36: 16,732,912 | AJ36: 16,927,295 | AK36: 17,226,806 | AL36: 16,271,500 | AM36: 15,686,243 | AN36: 14,521,756 | AO36: 15,036,385 | AP36: 15,471,351 | AQ36: 14,971,884 | AR36: 15,128,066 | AS36: 19,726,011 | AT36: 14,863,751 | AU36: 12,201,816 | AV36: 10,967,305 | AW36: 10,885,486 | AX36: 117,875 | AY36: 117,705 | AZ36: 114,608 | BA36: 113,702 | BB36: 117,527 | BC36: 115,992 | BD36: 111,534 | BE36: 106,884 | BF36: 105,063 | BG36: 98,971 | BH36: 97,182 | BI36: 93,723 | BJ36: 91,493 | BK36: 94,918 | BL36: 97,762 | BM36: 99,600 | BN36: 102,888 | BO36: 101,906 | BP36: 102,998 | BQ36: 104,983 | BR36: 92,136 | BS36: 82,127 | BT36: 77,593 | BU36: 75,466 | BV36: 2.2 | BW36: 2.4 | BX36: 2.3 | BY36: 2.4 | BZ36: 2.5 | CA36: 2.6 | CB36: 2.6 | CC36: 2.6 | CD36: 2.5 | CE36: 2.6 | CF36: 2.7 | CG36: 2.8 | CH36: 2.7 | CI36: 2.5 | CJ36: 2.3 | CK36: 2.3 | CL36: 2.3 | CM36: 2.3 | CN36: 2.3 | CO36: 2.9 | CP36: 2.5 | CQ36: 2.3 | CR36: 2.2 | CS36: 2.2 | CT36: 6,500 | CU36: 6,500 | CV36: 6,500 | CW36: 6,500 | CX36: 6,500 | CY36: 6,500 | CZ36: 6,500 | DA36: 6,500 | DB36: 6,500 | DC36: 6,500 | DD36: 6,499 | DE36: 6,499 | DF36: 6,499 | DG36: 6,499 | DH36: 6,499 | DI36: 6,499 | DJ36: 6,500 | DK36: 6,499 | DL36: 6,500 | DM36: 6,500 | DN36: 6,500 | DO36: 6,500 | DP36: 6,500 | DQ36: 6,499
A37: 34 | B37: 785,987,491 | C37: 795,533,587 | D37: 789,802,396 | E37: 817,393,842 | F37: 778,071,425 | G37: 770,878,132 | H37: 746,976,290 | I37: 725,431,923 | J37: 679,852,234 | K37: 662,063,694 | L37: 659,230,181 | M37: 632,067,995 | N37: 623,381,334 | O37: 639,929,626 | P37: 653,315,563 | Q37: 666,260,801 | R37: 680,484,021 | S37: 669,771,499 | T37: 668,987,367 | U37: 747,382,933 | V37: 691,070,705 | W37: 560,549,014 | X37: 525,621,830 | Y37: 510,474,014 | Z37: 17,691,963 | AA37: 18,962,620 | AB37: 17,619,090 | AC37: 18,171,394 | AD37: 19,856,576 | AE37: 20,471,232 | AF37: 19,381,958 | AG37: 18,834,657 | AH37: 17,254,699 | AI37: 17,422,379 | AJ37: 17,716,810 | AK37: 17,832,650 | AL37: 16,959,853 | AM37: 16,107,109 | AN37: 14,948,548 | AO37: 15,585,345 | AP37: 16,000,672 | AQ37: 15,284,403 | AR37: 14,940,938 | AS37: 21,045,175 | AT37: 16,166,703 | AU37: 12,857,151 | AV37: 11,534,137 | AW37: 11,548,524 | AX37: 117,316 | AY37: 118,760 | AZ37: 117,854 | BA37: 122,043 | BB37: 116,147 | BC37: 115,073 | BD37: 111,506 | BE37: 108,274 | BF37: 101,479 | BG37: 98,845 | BH37: 98,407 | BI37: 94,352 | BJ37: 93,039 | BK37: 95,510 | BL37: 97,513 | BM37: 99,452 | BN37: 101,576 | BO37: 99,974 | BP37: 99,864 | BQ37: 111,599 | BR37: 103,163 | BS37: 83,671 | BT37: 78,474 | BU37: 76,214 | BV37: 2.3 | BW37: 2.4 | BX37: 2.2 | BY37: 2.2 | BZ37: 2.6 | CA37: 2.7 | CB37: 2.6 | CC37: 2.6 | CD37: 2.5 | CE37: 2.6 | CF37: 2.7 | CG37: 2.8 | CH37: 2.7 | CI37: 2.5 | CJ37: 2.3 | CK37: 2.3 | CL37: 2.4 | CM37: 2.3 | CN37: 2.2 | CO37: 2.8 | CP37: 2.3 | CQ37: 2.3 | CR37: 2.2 | CS37: 2.3 | CT37: =+B37/AX37 -> 6,700 | CU37: 6,699 | CV37: 6,702 | CW37: 6,698 | CX37: 6,699 | CY37: 6,699 | CZ37: 6,699 | DA37: 6,700 | DB37: 6,699 | DC37: 6,698 | DD37: 6,699 | DE37: 6,699 | DF37: 6,700 | DG37: 6,700 | DH37: 6,700 | DI37: 6,699 | DJ37: 6,699 | DK37: 6,699 | DL37: 6,699 | DM37: 6,697 | DN37: 6,699 | DO37: 6,699 | DP37: 6,698 | DQ37: 6,698
A38: 35 | B38: 767,823,624 | C38: 794,514,318 | D38: 772,444,937 | E38: 783,394,012 | F38: 803,609,733 | G38: 776,200,311 | H38: 768,957,948 | I38: 746,140,112 | J38: 695,503,686 | K38: 673,204,410 | L38: 655,821,125 | M38: 634,420,803 | N38: 623,077,458 | O38: 642,242,554 | P38: 667,477,002 | Q38: 684,593,838 | R38: 695,805,765 | S38: 689,055,456 | T38: 681,875,335 | U38: 731,731,409 | V38: 681,282,538 | W38: 622,132,157 | X38: 532,515,887 | Y38: 514,687,501 | Z38: 18,147,486 | AA38: 19,357,176 | AB38: 18,175,998 | AC38: 18,602,236 | AD38: 20,758,090 | AE38: 21,243,013 | AF38: 20,177,955 | AG38: 19,454,628 | AH38: 17,641,651 | AI38: 17,598,282 | AJ38: 17,731,615 | AK38: 18,267,774 | AL38: 17,169,734 | AM38: 16,485,455 | AN38: 15,195,428 | AO38: 16,032,783 | AP38: 16,520,619 | AQ38: 15,708,410 | AR38: 15,356,603 | AS38: 21,051,259 | AT38: 16,399,453 | AU38: 13,783,690 | AV38: 11,839,876 | AW38: 11,557,907 | AX38: 111,282 | AY38: 115,150 | AZ38: 111,954 | BA38: 113,521 | BB38: 116,465 | BC38: 112,498 | BD38: 111,453 | BE38: 108,133 | BF38: 100,799 | BG38: 97,569 | BH38: 95,048 | BI38: 91,946 | BJ38: 90,304 | BK38: 93,080 | BL38: 96,747 | BM38: 99,224 | BN38: 100,851 | BO38: 99,862 | BP38: 98,827 | BQ38: 106,056 | BR38: 98,738 | BS38: 90,100 | BT38: 77,175 | BU38: 74,589 | BV38: 2.4 | BW38: 2.4 | BX38: 2.4 | BY38: 2.4 | BZ38: 2.6 | CA38: 2.7 | CB38: 2.6 | CC38: 2.6 | CD38: 2.5 | CE38: 2.6 | CF38: 2.7 | CG38: 2.9 | CH38: 2.8 | CI38: 2.6 | CJ38: 2.3 | CK38: 2.3 | CL38: 2.4 | CM38: 2.3 | CN38: 2.3 | CO38: 2.9 | CP38: 2.4 | CQ38: 2.2 | CR38: 2.2 | CS38: 2.2 | CT38: 6,900 | CU38: 6,900 | CV38: 6,900 | CW38: 6,901 | CX38: 6,900 | CY38: 6,900 | CZ38: 6,899 | DA38: 6,900 | DB38: 6,900 | DC38: 6,900 | DD38: 6,900 | DE38: 6,900 | DF38: 6,900 | DG38: 6,900 | DH38: 6,899 | DI38: 6,899 | DJ38: 6,899 | DK38: 6,900 | DL38: 6,900 | DM38: 6,899 | DN38: 6,900 | DO38: 6,905 | DP38: 6,900 | DQ38: 6,900
A39: 36 | B39: 793,355,427 | C39: 813,501,828 | D39: 806,052,172 | E39: 807,936,228 | F39: 908,403,109 | G39: 811,742,337 | H39: 782,460,991 | I39: 774,126,405 | J39: 725,161,366 | K39: 702,686,171 | L39: 685,577,385 | M39: 670,783,222 | N39: 655,469,076 | O39: 671,988,239 | P39: 692,424,297 | Q39: 705,870,053 | R39: 726,532,620 | S39: 712,509,551 | T39: 705,603,434 | U39: 742,092,119 | V39: 694,939,363 | W39: 663,869,069 | X39: 556,249,148 | Y39: 526,368,055 | Z39: 18,904,097 | AA39: 20,253,363 | AB39: 18,915,311 | AC39: 19,461,126 | AD39: 22,153,407 | AE39: 22,544,729 | AF39: 21,114,997 | AG39: 20,265,890 | AH39: 18,360,184 | AI39: 18,267,474 | AJ39: 18,329,350 | AK39: 19,133,823 | AL39: 18,002,348 | AM39: 17,279,935 | AN39: 15,917,319 | AO39: 16,561,691 | AP39: 17,272,918 | AQ39: 16,583,081 | AR39: 15,953,487 | AS39: 21,408,812 | AT39: 16,858,375 | AU39: 14,489,448 | AV39: 12,396,744 | AW39: 11,867,910 | AX39: 111,725 | AY39: 114,584 | AZ39: 113,526 | BA39: 113,799 | BB39: 127,831 | BC39: 114,287 | BD39: 110,220 | BE39: 109,053 | BF39: 102,154 | BG39: 98,997 | BH39: 96,587 | BI39: 94,499 | BJ39: 92,336 | BK39: 94,666 | BL39: 97,543 | BM39: 99,441 | BN39: 102,350 | BO39: 100,370 | BP39: 99,409 | BQ39: 104,534 | BR39: 97,898 | BS39: 93,561 | BT39: 78,359 | BU39: 74,147 | BV39: 2.4 | BW39: 2.5 | BX39: 2.3 | BY39: 2.4 | BZ39: 2.4 | CA39: 2.8 | CB39: 2.7 | CC39: 2.6 | CD39: 2.5 | CE39: 2.6 | CF39: 2.7 | CG39: 2.9 | CH39: 2.7 | CI39: 2.6 | CJ39: 2.3 | CK39: 2.3 | CL39: 2.4 | CM39: 2.3 | CN39: 2.3 | CO39: 2.9 | CP39: 2.4 | CQ39: 2.2 | CR39: 2.2 | CS39: 2.3 | CT39: 7,101 | CU39: 7,100 | CV39: 7,100 | CW39: 7,100 | CX39: 7,106 | CY39: 7,103 | CZ39: 7,099 | DA39: 7,099 | DB39: 7,099 | DC39: 7,098 | DD39: 7,098 | DE39: 7,098 | DF39: 7,099 | DG39: 7,099 | DH39: 7,099 | DI39: 7,098 | DJ39: 7,099 | DK39: 7,099 | DL39: 7,098 | DM39: 7,099 | DN39: 7,099 | DO39: 7,096 | DP39: 7,099 | DQ39: 7,099
A40: 37 | B40: 925,619,849 | C40: 929,397,988 | D40: 932,009,357 | E40: 904,885,904 | F40: 945,616,734 | G40: 883,785,060 | H40: 868,296,187 | I40: 849,833,610 | J40: 780,289,797 | K40: 755,832,740 | L40: 748,007,028 | M40: 724,382,069 | N40: 712,693,810 | O40: 726,868,817 | P40: 748,779,438 | Q40: 764,790,098 | R40: 788,709,130 | S40: 774,025,914 | T40: 764,969,463 | U40: 783,078,406 | V40: 732,600,237 | W40: 686,157,303 | X40: 592,756,130 | Y40: 562,454,508 | Z40: 21,567,534 | AA40: 22,893,075 | AB40: 21,370,864 | AC40: 21,714,335 | AD40: 23,684,120 | AE40: 24,262,419 | AF40: 23,107,708 | AG40: 21,756,992 | AH40: 19,531,315 | AI40: 19,357,650 | AJ40: 19,541,094 | AK40: 20,036,395 | AL40: 19,057,959 | AM40: 18,098,195 | AN40: 16,964,713 | AO40: 17,386,196 | AP40: 18,348,252 | AQ40: 17,715,213 | AR40: 17,087,557 | AS40: 22,585,560 | AT40: 17,787,638 | AU40: 15,135,726 | AV40: 13,129,749 | AW40: 12,750,876 | AX40: 126,968 | AY40: 127,489 | AZ40: 127,837 | BA40: 124,090 | BB40: 129,659 | BC40: 121,181 | BD40: 119,057 | BE40: 116,530 | BF40: 106,986 | BG40: 103,617 | BH40: 102,550 | BI40: 99,317 | BJ40: 97,712 | BK40: 99,653 | BL40: 102,652 | BM40: 104,856 | BN40: 108,122 | BO40: 106,096 | BP40: 104,845 | BQ40: 107,321 | BR40: 100,397 | BS40: 94,046 | BT40: 81,239 | BU40: 77,083 | BV40: 2.3 | BW40: 2.5 | BX40: 2.3 | BY40: 2.4 | BZ40: 2.5 | CA40: 2.7 | CB40: 2.7 | CC40: 2.6 | CD40: 2.5 | CE40: 2.6 | CF40: 2.6 | CG40: 2.8 | CH40: 2.7 | CI40: 2.5 | CJ40: 2.3 | CK40: 2.3 | CL40: 2.3 | CM40: 2.3 | CN40: 2.2 | CO40: 2.9 | CP40: 2.4 | CQ40: 2.2 | CR40: 2.2 | CS40: 2.3 | CT40: 7,290 | CU40: 7,290 | CV40: 7,291 | CW40: 7,292 | CX40: 7,293 | CY40: 7,293 | CZ40: 7,293 | DA40: 7,293 | DB40: 7,293 | DC40: 7,294 | DD40: 7,294 | DE40: 7,294 | DF40: 7,294 | DG40: 7,294 | DH40: 7,294 | DI40: 7,294 | DJ40: 7,295 | DK40: 7,296 | DL40: 7,296 | DM40: 7,297 | DN40: 7,297 | DO40: 7,296 | DP40: 7,296 | DQ40: 7,297
A41: 38 | B41: 874,334,265 | C41: 865,608,755 | D41: 859,865,600 | E41: 862,073,491 | F41: 908,267,278 | G41: 962,665,797 | H41: 831,564,135 | I41: 816,659,449 | J41: 764,498,765 | K41: 739,773,231 | L41: 733,799,593 | M41: 698,325,060 | N41: 689,738,688 | O41: 711,553,598 | P41: 742,802,279 | Q41: 755,359,102 | R41: 773,968,181 | S41: 752,536,470 | T41: 743,586,582 | U41: 765,964,192 | V41: 743,139,445 | W41: 675,436,444 | X41: 717,051,163 | Y41: 565,594,955 | Z41: 21,058,389 | AA41: 22,392,834 | AB41: 20,810,894 | AC41: 21,395,521 | AD41: 23,691,180 | AE41: 25,120,272 | AF41: 23,179,313 | AG41: 21,572,904 | AH41: 19,426,303 | AI41: 19,452,724 | AJ41: 19,757,911 | AK41: 20,100,028 | AL41: 19,179,630 | AM41: 18,165,342 | AN41: 16,977,599 | AO41: 17,781,803 | AP41: 18,342,327 | AQ41: 17,661,440 | AR41: 16,904,413 | AS41: 22,804,365 | AT41: 18,081,982 | AU41: 15,236,008 | AV41: 14,439,443 | AW41: 12,999,694 | AX41: 116,564 | AY41: 115,408 | AZ41: 114,629 | BA41: 114,946 | BB41: 121,109 | BC41: 128,355 | BD41: 110,869 | BE41: 108,886 | BF41: 101,941 | BG41: 98,623 | BH41: 97,842 | BI41: 93,112 | BJ41: 91,967 | BK41: 94,875 | BL41: 99,040 | BM41: 100,714 | BN41: 103,202 | BO41: 100,332 | BP41: 99,139 | BQ41: 102,137 | BR41: 99,077 | BS41: 90,060 | BT41: 95,515 | BU41: 75,406 | BV41: 2.4 | BW41: 2.6 | BX41: 2.4 | BY41: 2.5 | BZ41: 2.6 | CA41: 2.6 | CB41: 2.8 | CC41: 2.6 | CD41: 2.5 | CE41: 2.6 | CF41: 2.7 | CG41: 2.9 | CH41: 2.8 | CI41: 2.6 | CJ41: 2.3 | CK41: 2.4 | CL41: 2.4 | CM41: 2.3 | CN41: 2.3 | CO41: 3.0 | CP41: 2.4 | CQ41: 2.3 | CR41: 2.0 | CS41: 2.3 | CT41: 7,501 | CU41: 7,500 | CV41: 7,501 | CW41: 7,500 | CX41: 7,500 | CY41: 7,500 | CZ41: 7,500 | DA41: 7,500 | DB41: 7,499 | DC41: 7,501 | DD41: 7,500 | DE41: 7,500 | DF41: 7,500 | DG41: 7,500 | DH41: 7,500 | DI41: 7,500 | DJ41: 7,500 | DK41: 7,500 | DL41: 7,500 | DM41: 7,499 | DN41: 7,501 | DO41: 7,500 | DP41: 7,507 | DQ41: 7,501
A42: 39 | B42: 854,064,396 | C42: 870,544,920 | D42: 883,520,766 | E42: 879,818,094 | F42: 918,770,655 | G42: 898,815,856 | H42: 850,503,614 | I42: 823,942,526 | J42: 761,183,088 | K42: 733,190,751 | L42: 751,901,891 | M42: 723,466,469 | N42: 718,627,351 | O42: 746,770,309 | P42: 772,197,578 | Q42: 783,627,627 | R42: 804,969,719 | S42: 802,539,650 | T42: 763,566,981 | U42: 788,149,448 | V42: 746,361,087 | W42: 696,253,808 | X42: 668,259,275 | Y42: 584,039,615 | Z42: 22,194,687 | AA42: 23,907,118 | AB42: 21,996,926 | AC42: 22,594,792 | AD42: 24,812,482 | AE42: 25,607,123 | AF42: 23,606,103 | AG42: 21,906,928 | AH42: 19,414,314 | AI42: 19,545,196 | AJ42: 20,013,076 | AK42: 20,461,441 | AL42: 19,414,854 | AM42: 18,675,151 | AN42: 17,197,960 | AO42: 18,010,966 | AP42: 18,838,298 | AQ42: 18,194,411 | AR42: 17,258,066 | AS42: 23,102,458 | AT42: 18,334,893 | AU42: 15,280,490 | AV42: 13,985,711 | AW42: 13,345,702 | AX42: 110,923 | AY42: 113,058 | AZ42: 114,758 | BA42: 114,267 | BB42: 119,322 | BC42: 116,732 | BD42: 110,458 | BE42: 107,013 | BF42: 98,862 | BG42: 95,230 | BH42: 97,660 | BI42: 93,966 | BJ42: 93,326 | BK42: 96,980 | BL42: 100,278 | BM42: 101,768 | BN42: 104,542 | BO42: 104,225 | BP42: 99,156 | BQ42: 102,360 | BR42: 96,933 | BS42: 90,428 | BT42: 86,787 | BU42: 75,847 | BV42: 2.6 | BW42: 2.7 | BX42: 2.5 | BY42: 2.6 | BZ42: 2.7 | CA42: 2.8 | CB42: 2.8 | CC42: 2.7 | CD42: 2.6 | CE42: 2.7 | CF42: 2.7 | CG42: 2.8 | CH42: 2.7 | CI42: 2.5 | CJ42: 2.2 | CK42: 2.3 | CL42: 2.3 | CM42: 2.3 | CN42: =+AR42/T42*100 -> 2.3 | CO42: 2.9 | CP42: 2.5 | CQ42: 2.2 | CR42: 2.1 | CS42: 2.3 | CT42: 7,700 | CU42: 7,700 | CV42: 7,699 | CW42: 7,700 | CX42: 7,700 | CY42: 7,700 | CZ42: 7,700 | DA42: 7,699 | DB42: 7,699 | DC42: 7,699 | DD42: 7,699 | DE42: 7,699 | DF42: 7,700 | DG42: 7,700 | DH42: 7,701 | DI42: 7,700 | DJ42: 7,700 | DK42: 7,700 | DL42: 7,701 | DM42: 7,700 | DN42: 7,700 | DO42: 7,700 | DP42: 7,700 | DQ42: 7,700 | DR42: 7,700
A43: 40 | B43: 922,196,875 | C43: 910,867,328 | D43: 912,008,127 | E43: 895,800,086 | F43: 935,834,935 | G43: 915,817,308 | H43: 979,497,851 | I43: 844,964,324 | J43: 776,082,601 | K43: 758,935,811 | L43: 750,683,842 | M43: 727,036,018 | N43: 718,654,571 | O43: 752,622,397 | P43: 779,915,425 | Q43: 808,226,549 | R43: 820,120,468 | S43: 815,656,331 | T43: 805,719,671 | U43: 809,916,034 | V43: 783,163,469 | W43: 720,553,952 | X43: 697,106,355 | Y43: 738,651,934 | Z43: 25,216,726 | AA43: 26,282,637 | AB43: 23,433,956 | AC43: 24,007,086 | AD43: 26,203,210 | AE43: 26,956,877 | AF43: 25,517,536 | AG43: 22,870,148 | AH43: 20,120,898 | AI43: 20,259,012 | AJ43: 20,610,383 | AK43: 21,046,294 | AL43: 19,995,570 | AM43: 19,358,420 | AN43: 17,908,911 | AO43: 18,760,075 | AP43: 19,182,422 | AQ43: 18,667,815 | AR43: 17,954,982 | AS43: 23,568,730 | AT43: 19,298,824 | AU43: 16,075,352 | AV43: 14,708,135 | AW43: 14,926,070 | AX43: 116,740 | AY43: 115,299 | AZ43: 115,445 | BA43: 113,400 | BB43: 118,469 | BC43: 115,880 | BD43: 123,880 | BE43: 106,968 | BF43: 98,254 | BG43: 96,087 | BH43: 95,038 | BI43: 92,049 | BJ43: 90,986 | BK43: 95,292 | BL43: 98,741 | BM43: 102,335 | BN43: 103,836 | BO43: 103,270 | BP43: 101,995 | BQ43: 102,529 | BR43: 99,138 | BS43: 91,224 | BT43: 88,267 | BU43: 93,433 | BV43: 2.7 | BW43: 2.9 | BX43: 2.6 | BY43: 2.7 | BZ43: 2.8 | CA43: 2.9 | CB43: 2.6 | CC43: 2.7 | CD43: 2.6 | CE43: 2.7 | CF43: 2.7 | CG43: 2.9 | CH43: 2.8 | CI43: 2.6 | CJ43: 2.3 | CK43: 2.3 | CL43: =+AP43/R43*100 -> 2.3 | CM43: 2.3 | CN43: 2.2 | CO43: 2.9 | CP43: 2.5 | CQ43: 2.2 | CR43: 2.1 | CS43: 2.0 | CT43: 7,900 | CU43: 7,900 | CV43: 7,900 | CW43: 7,899 | CX43: 7,899 | CY43: 7,903 | CZ43: 7,907 | DA43: 7,899 | DB43: 7,899 | DC43: 7,898 | DD43: 7,899 | DE43: 7,898 | DF43: 7,899 | DG43: 7,898 | DH43: 7,899 | DI43: 7,898 | DJ43: 7,898 | DK43: 7,898 | DL43: 7,900 | DM43: 7,899 | DN43: 7,900 | DO43: 7,899 | DP43: 7,898 | DQ43: 7,906
A44: 41 | B44: 976,000,675 | C44: 948,768,921 | D44: 905,318,315 | E44: 908,297,772 | F44: 942,449,286 | G44: 941,120,229 | H44: 914,629,558 | I44: 861,236,616 | J44: 790,839,179 | K44: 759,995,032 | L44: 763,202,046 | M44: 740,246,962 | N44: 718,414,999 | O44: 745,492,876 | P44: 788,446,884 | Q44: 809,179,758 | R44: 824,933,100 | S44: 835,474,603 | T44: 813,269,472 | U44: 827,817,911 | V44: 796,830,311 | W44: 730,124,424 | X44: 700,371,708 | Y44: 692,279,643 | Z44: 28,468,578 | AA44: 29,411,607 | AB44: 24,451,095 | AC44: 25,076,085 | AD44: 27,261,706 | AE44: 28,490,866 | AF44: 26,226,129 | AG44: 23,681,832 | AH44: 20,985,361 | AI44: 20,762,583 | AJ44: 21,194,875 | AK44: 21,833,364 | AL44: 20,640,915 | AM44: 19,629,703 | AN44: 18,162,182 | AO44: 19,087,238 | AP44: 19,891,444 | AQ44: 19,430,157 | AR44: 18,294,049 | AS44: 24,757,009 | AT44: 20,181,748 | AU44: 16,650,446 | AV44: 14,952,783 | AW44: 14,922,813 | AX44: 120,467 | AY44: 117,143 | AZ44: 111,784 | BA44: 112,136 | BB44: 116,360 | BC44: 116,201 | BD44: 112,935 | BE44: 106,341 | BF44: 97,659 | BG44: 93,845 | BH44: 94,238 | BI44: 91,403 | BJ44: 88,714 | BK44: 92,057 | BL44: 97,356 | BM44: 99,926 | BN44: 101,865 | BO44: 103,163 | BP44: 100,423 | BQ44: 102,221 | BR44: 98,396 | BS44: 90,147 | BT44: 86,477 | BU44: 85,474 | BV44: 2.9 | BW44: 3.1 | BX44: 2.7 | BY44: 2.8 | BZ44: 2.9 | CA44: 3.0 | CB44: 2.9 | CC44: 2.7 | CD44: 2.7 | CE44: 2.7 | CF44: 2.8 | CG44: 2.9 | CH44: 2.9 | CI44: 2.6 | CJ44: 2.3 | CK44: 2.4 | CL44: 2.4 | CM44: 2.3 | CN44: 2.2 | CO44: 3.0 | CP44: 2.5 | CQ44: 2.3 | CR44: 2.1 | CS44: 2.2 | CT44: 8,102 | CU44: 8,099 | CV44: 8,099 | CW44: 8,100 | CX44: 8,099 | CY44: 8,099 | CZ44: 8,099 | DA44: 8,099 | DB44: 8,098 | DC44: 8,098 | DD44: 8,099 | DE44: 8,099 | DF44: 8,098 | DG44: 8,098 | DH44: 8,099 | DI44: 8,098 | DJ44: 8,098 | DK44: 8,099 | DL44: 8,098 | DM44: 8,098 | DN44: 8,098 | DO44: 8,099 | DP44: 8,099 | DQ44: 8,099
A45: 42 | B45: 1,006,877,111 | C45: 966,161,503 | D45: 944,201,922 | E45: 928,511,460 | F45: 964,867,356 | G45: 934,648,781 | H45: 925,051,745 | I45: 883,030,637 | J45: 785,458,449 | K45: 754,563,192 | L45: 752,494,846 | M45: 726,437,828 | N45: 723,406,680 | O45: 747,441,673 | P45: 786,190,575 | Q45: 811,799,025 | R45: 836,402,130 | S45: 833,757,621 | T45: 818,654,818 | U45: 846,513,525 | V45: 818,661,216 | W45: 756,543,311 | X45: 709,121,440 | Y45: 703,834,619 | Z45: 31,060,297 | AA45: 31,855,984 | AB45: 26,431,861 | AC45: 26,358,698 | AD45: 29,132,743 | AE45: 29,427,403 | AF45: 26,604,439 | AG45: 24,326,564 | AH45: 21,081,862 | AI45: 21,229,613 | AJ45: 21,587,049 | AK45: 21,976,117 | AL45: 21,039,839 | AM45: 19,896,138 | AN45: 18,459,730 | AO45: 19,166,997 | AP45: 20,258,833 | AQ45: 19,499,520 | AR45: 18,339,077 | AS45: 25,117,021 | AT45: 20,360,168 | AU45: 16,862,720 | AV45: 15,211,146 | AW45: 15,010,892 | AX45: 121,303 | AY45: 116,410 | AZ45: 113,755 | BA45: 111,865 | BB45: 116,261 | BC45: 112,615 | BD45: 111,454 | BE45: 106,381 | BF45: 94,639 | BG45: 90,925 | BH45: 90,668 | BI45: 87,535 | BJ45: 87,163 | BK45: 90,052 | BL45: 94,729 | BM45: 97,814 | BN45: 100,771 | BO45: 100,460 | BP45: 98,636 | BQ45: 101,993 | BR45: 98,627 | BS45: 91,156 | BT45: 85,439 | BU45: 84,812 | BV45: 3.1 | BW45: 3.3 | BX45: 2.8 | BY45: 2.8 | BZ45: 3.0 | CA45: 3.1 | CB45: 2.9 | CC45: 2.8 | CD45: 2.7 | CE45: 2.8 | CF45: 2.9 | CG45: 3.0 | CH45: 2.9 | CI45: 2.7 | CJ45: 2.3 | CK45: 2.4 | CL45: 2.4 | CM45: 2.3 | CN45: 2.2 | CO45: 3.0 | CP45: 2.5 | CQ45: 2.2 | CR45: 2.1 | CS45: 2.1 | CT45: 8,301 | CU45: 8,300 | CV45: 8,300 | CW45: 8,300 | CX45: 8,299 | CY45: 8,300 | CZ45: 8,300 | DA45: 8,301 | DB45: 8,300 | DC45: 8,299 | DD45: 8,299 | DE45: 8,299 | DF45: 8,299 | DG45: 8,300 | DH45: 8,299 | DI45: 8,299 | DJ45: 8,300 | DK45: 8,299 | DL45: 8,300 | DM45: 8,300 | DN45: 8,301 | DO45: 8,299 | DP45: 8,300 | DQ45: 8,299
A46: 43 | B46: 1,154,850,847 | C46: 1,050,481,880 | D46: 1,019,422,252 | E46: 993,044,754 | F46: 1,016,488,923 | G46: 1,011,759,112 | H46: 1,001,613,983 | I46: 1,039,344,242 | J46: 853,083,898 | K46: 794,761,489 | L46: 801,413,732 | M46: 770,874,075 | N46: 766,412,039 | O46: 795,147,766 | P46: 836,400,611 | Q46: 857,164,160 | R46: 901,086,533 | S46: 884,948,576 | T46: 859,243,265 | U46: 872,396,241 | V46: 848,839,029 | W46: 781,680,750 | X46: 760,689,145 | Y46: 729,991,294 | Z46: 37,573,851 | AA46: 36,038,491 | AB46: 29,397,014 | AC46: 29,377,025 | AD46: 31,355,011 | AE46: 32,526,969 | AF46: 28,859,516 | AG46: 26,238,366 | AH46: 22,734,729 | AI46: 22,481,098 | AJ46: 22,734,756 | AK46: 23,197,931 | AL46: 22,297,080 | AM46: 21,080,684 | AN46: 19,789,662 | AO46: 20,586,167 | AP46: 21,477,453 | AQ46: 20,675,744 | AR46: 19,612,177 | AS46: 26,161,211 | AT46: 21,500,761 | AU46: 17,942,052 | AV46: 16,153,042 | AW46: 15,676,974 | AX46: 135,893 | AY46: 123,623 | AZ46: 119,964 | BA46: 116,866 | BB46: 119,639 | BC46: 119,076 | BD46: 117,875 | BE46: 122,450 | BF46: 100,411 | BG46: 93,547 | BH46: 94,337 | BI46: 90,740 | BJ46: 90,215 | BK46: 93,593 | BL46: 98,442 | BM46: 100,895 | BN46: 106,062 | BO46: 104,150 | BP46: 101,130 | BQ46: 102,663 | BR46: 99,893 | BS46: 91,988 | BT46: 89,511 | BU46: 85,898 | BV46: 3.3 | BW46: 3.4 | BX46: 2.9 | BY46: 3.0 | BZ46: 3.1 | CA46: 3.2 | CB46: 2.9 | CC46: 2.5 | CD46: 2.7 | CE46: 2.8 | CF46: 2.8 | CG46: 3.0 | CH46: 2.9 | CI46: 2.7 | CJ46: 2.4 | CK46: 2.4 | CL46: 2.4 | CM46: 2.3 | CN46: 2.3 | CO46: 3.0 | CP46: 2.5 | CQ46: 2.3 | CR46: 2.1 | CS46: 2.1 | CT46: 8,498 | CU46: 8,497 | CV46: 8,498 | CW46: 8,497 | CX46: 8,496 | CY46: 8,497 | CZ46: 8,497 | DA46: 8,488 | DB46: 8,496 | DC46: 8,496 | DD46: 8,495 | DE46: 8,495 | DF46: 8,495 | DG46: 8,496 | DH46: 8,496 | DI46: 8,496 | DJ46: 8,496 | DK46: 8,497 | DL46: 8,496 | DM46: 8,498 | DN46: 8,497 | DO46: 8,498 | DP46: 8,498 | DQ46: 8,498
A47: 44 | B47: 1,148,831,831 | C47: 1,128,533,299 | D47: 1,049,276,232 | E47: 1,029,174,082 | F47: 1,022,802,765 | G47: 1,013,390,314 | H47: 987,570,867 | I47: 928,260,968 | J47: 919,826,429 | K47: 797,900,936 | L47: 769,918,194 | M47: 745,435,491 | N47: 743,926,912 | O47: 771,995,890 | P47: 814,931,469 | Q47: 842,512,912 | R47: 862,207,301 | S47: 867,895,810 | T47: 857,545,747 | U47: 862,604,385 | V47: 842,116,583 | W47: 788,516,902 | X47: 747,574,495 | Y47: 745,195,507 | Z47: 39,477,653 | AA47: 40,349,288 | AB47: 30,886,108 | AC47: 30,700,054 | AD47: 31,961,006 | AE47: 33,443,425 | AF47: 29,209,461 | AG47: 25,677,578 | AH47: 22,835,531 | AI47: 22,618,620 | AJ47: 22,555,509 | AK47: 23,033,317 | AL47: 22,095,861 | AM47: 20,878,468 | AN47: 19,538,631 | AO47: 20,396,935 | AP47: 21,153,592 | AQ47: 20,583,227 | AR47: 19,776,199 | AS47: 26,408,146 | AT47: 21,398,106 | AU47: 17,722,701 | AV47: 16,112,891 | AW47: 16,183,754 | AX47: 132,067 | AY47: 129,725 | AZ47: 120,619 | BA47: 118,313 | BB47: 117,569 | BC47: 116,489 | BD47: 113,524 | BE47: 106,694 | BF47: 105,687 | BG47: 91,714 | BH47: 88,495 | BI47: 85,691 | BJ47: 85,510 | BK47: 88,742 | BL47: 93,667 | BM47: 96,846 | BN47: 99,105 | BO47: 99,764 | BP47: 98,569 | BQ47: 99,152 | BR47: 96,798 | BS47: 90,626 | BT47: 85,918 | BU47: 85,640 | BV47: 3.4 | BW47: 3.6 | BX47: 2.9 | BY47: 3.0 | BZ47: 3.1 | CA47: 3.3 | CB47: 3.0 | CC47: 2.8 | CD47: 2.5 | CE47: 2.8 | CF47: 2.9 | CG47: 3.1 | CH47: 3.0 | CI47: 2.7 | CJ47: 2.4 | CK47: 2.4 | CL47: 2.5 | CM47: 2.4 | CN47: 2.3 | CO47: 3.1 | CP47: 2.5 | CQ47: 2.2 | CR47: 2.2 | CS47: 2.2 | CT47: 8,699 | CU47: 8,699 | CV47: 8,699 | CW47: 8,699 | CX47: 8,700 | CY47: 8,699 | CZ47: 8,699 | DA47: 8,700 | DB47: 8,703 | DC47: 8,700 | DD47: 8,700 | DE47: 8,699 | DF47: 8,700 | DG47: 8,699 | DH47: 8,700 | DI47: 8,700 | DJ47: 8,700 | DK47: 8,699 | DL47: 8,700 | DM47: 8,700 | DN47: 8,700 | DO47: 8,701 | DP47: 8,701 | DQ47: 8,701
A48: 45 | B48: 1,154,821,589 | C48: 1,133,460,132 | D48: 1,082,170,738 | E48: 1,014,931,664 | F48: 1,058,932,481 | G48: 1,048,587,585 | H48: 1,015,825,680 | I48: 959,910,169 | J48: 850,742,169 | K48: 904,649,373 | L48: 891,159,020 | M48: 845,123,194 | N48: 754,218,752 | O48: 793,090,318 | P48: 844,906,534 | Q48: 865,319,105 | R48: 884,060,203 | S48: 902,418,878 | T48: 875,220,378 | U48: 884,312,013 | V48: 859,338,467 | W48: 796,676,593 | X48: 757,133,238 | Y48: 747,741,397 | Z48: 42,165,551 | AA48: 42,799,778 | AB48: 32,998,728 | AC48: 31,959,186 | AD48: 34,380,533 | AE48: 35,477,909 | AF48: 29,986,798 | AG48: 26,442,790 | AH48: 22,878,531 | AI48: 23,659,721 | AJ48: 24,126,749 | AK48: 24,430,493 | AL48: 22,203,537 | AM48: 21,672,722 | AN48: 20,198,076 | AO48: 21,079,845 | AP48: 21,612,668 | AQ48: 21,258,041 | AR48: 20,157,957 | AS48: 26,894,032 | AT48: 22,198,345 | AU48: 18,281,573 | AV48: 16,442,486 | AW48: 16,472,466 | AX48: 129,752 | AY48: 127,348 | AZ48: 121,606 | BA48: 114,037 | BB48: 118,979 | BC48: 117,822 | BD48: 114,145 | BE48: 107,850 | BF48: 95,593 | BG48: 101,682 | BH48: 100,040 | BI48: 94,871 | BJ48: 84,737 | BK48: 89,109 | BL48: 94,931 | BM48: 97,226 | BN48: 99,336 | BO48: 101,406 | BP48: 98,345 | BQ48: 99,369 | BR48: 96,559 | BS48: 89,511 | BT48: 85,082 | BU48: 84,018 | BV48: 3.7 | BW48: 3.8 | BX48: 3.0 | BY48: 3.1 | BZ48: 3.2 | CA48: 3.4 | CB48: 3.0 | CC48: 2.8 | CD48: 2.7 | CE48: 2.6 | CF48: =+AJ48/L48*100 -> 2.7 | CG48: 2.9 | CH48: 2.9 | CI48: 2.7 | CJ48: 2.4 | CK48: 2.4 | CL48: 2.4 | CM48: 2.4 | CN48: 2.3 | CO48: 3.0 | CP48: 2.6 | CQ48: 2.3 | CR48: 2.2 | CS48: 2.2 | CT48: 8,900 | CU48: 8,900 | CV48: 8,899 | CW48: 8,900 | CX48: 8,900 | CY48: 8,900 | CZ48: 8,899 | DA48: 8,900 | DB48: 8,900 | DC48: 8,897 | DD48: 8,908 | DE48: 8,908 | DF48: 8,901 | DG48: 8,900 | DH48: 8,900 | DI48: 8,900 | DJ48: 8,900 | DK48: 8,899 | DL48: 8,899 | DM48: 8,899 | DN48: 8,900 | DO48: 8,900 | DP48: 8,899 | DQ48: 8,900
A49: 46 | B49: 1,296,648,103 | C49: 1,266,465,416 | D49: 1,181,353,711 | E49: 1,145,979,745 | F49: 1,134,035,429 | G49: 1,122,123,334 | H49: 1,087,892,464 | I49: 1,037,063,768 | J49: 898,678,498 | K49: 865,892,091 | L49: 865,040,217 | M49: 837,529,286 | N49: 902,888,216 | O49: 946,448,402 | P49: 1,011,460,586 | Q49: 1,043,655,447 | R49: 955,094,294 | S49: 957,052,127 | T49: 921,442,797 | U49: 943,280,807 | V49: 900,690,551 | W49: 848,157,448 | X49: 809,128,473 | Y49: 793,857,838 | Z49: 49,990,348 | AA49: 50,548,439 | AB49: 38,426,568 | AC49: 38,029,669 | AD49: 39,188,780 | AE49: 40,425,100 | AF49: 33,267,743 | AG49: 28,786,505 | AH49: 24,789,315 | AI49: 24,929,458 | AJ49: 25,605,033 | AK49: 26,414,959 | AL49: 25,201,574 | AM49: 24,446,935 | AN49: 22,885,271 | AO49: 23,491,204 | AP49: 23,625,916 | AQ49: 22,829,097 | AR49: 21,479,421 | AS49: 28,860,816 | AT49: 23,682,507 | AU49: 20,002,646 | AV49: 17,728,078 | AW49: 17,408,032 | AX49: 142,559 | AY49: 139,241 | AZ49: 129,891 | BA49: 125,989 | BB49: 124,675 | BC49: 123,366 | BD49: 119,603 | BE49: 114,030 | BF49: 98,804 | BG49: 95,203 | BH49: 95,117 | BI49: 92,087 | BJ49: 99,341 | BK49: 104,124 | BL49: 111,213 | BM49: 114,646 | BN49: 104,998 | BO49: 105,208 | BP49: 101,289 | BQ49: 103,689 | BR49: 99,004 | BS49: 93,232 | BT49: 88,944 | BU49: 87,255 | BV49: =+Z49/B49*100 -> 3.9 | BW49: 4.0 | BX49: 3.3 | BY49: 3.3 | BZ49: 3.5 | CA49: 3.6 | CB49: 3.1 | CC49: 2.8 | CD49: 2.8 | CE49: 2.9 | CF49: 3.0 | CG49: 3.2 | CH49: 2.8 | CI49: 2.6 | CJ49: 2.3 | CK49: 2.3 | CL49: 2.5 | CM49: 2.4 | CN49: 2.3 | CO49: 3.1 | CP49: 2.6 | CQ49: 2.4 | CR49: 2.2 | CS49: 2.2 | CT49: 9,096 | CU49: 9,095 | CV49: 9,095 | CW49: 9,096 | CX49: 9,096 | CY49: 9,096 | CZ49: 9,096 | DA49: 9,095 | DB49: 9,096 | DC49: 9,095 | DD49: 9,094 | DE49: 9,095 | DF49: 9,089 | DG49: 9,090 | DH49: 9,095 | DI49: 9,103 | DJ49: 9,096 | DK49: 9,097 | DL49: 9,097 | DM49: 9,097 | DN49: 9,098 | DO49: 9,097 | DP49: 9,097 | DQ49: 9,098
A50: 47 | B50: 1,289,215,521 | C50: 1,250,471,494 | D50: 1,175,216,616 | E50: 1,124,264,944 | F50: 1,135,048,808 | G50: 1,180,959,423 | H50: 1,077,405,228 | I50: 1,003,152,062 | J50: 899,301,181 | K50: 841,466,841 | L50: 821,457,009 | M50: 788,913,362 | N50: 774,773,914 | O50: 811,129,851 | P50: 858,060,621 | Q50: 900,575,779 | R50: 913,294,020 | S50: 923,148,189 | T50: 914,131,412 | U50: 932,931,560 | V50: 907,023,435 | W50: 843,768,795 | X50: 792,533,944 | Y50: 776,748,758 | Z50: 51,791,143 | AA50: 52,257,956 | AB50: 39,100,532 | AC50: 38,003,007 | AD50: 39,493,079 | AE50: 42,393,221 | AF50: 33,027,896 | AG50: 28,505,103 | AH50: 24,265,957 | AI50: 24,420,356 | AJ50: 24,925,955 | AK50: 25,434,085 | AL50: 23,646,005 | AM50: 23,293,677 | AN50: 21,152,219 | AO50: 22,308,631 | AP50: 23,202,600 | AQ50: 22,568,761 | AR50: 21,371,141 | AS50: 28,802,266 | AT50: 23,959,584 | AU50: 19,871,874 | AV50: 17,559,849 | AW50: 17,359,665 | AX50: 138,601 | AY50: 134,420 | AZ50: 126,345 | BA50: 120,876 | BB50: 122,040 | BC50: 126,978 | BD50: 115,846 | BE50: 107,861 | BF50: 96,683 | BG50: 90,481 | BH50: 88,324 | BI50: 84,830 | BJ50: 83,318 | BK50: 87,216 | BL50: 92,264 | BM50: 96,848 | BN50: 98,211 | BO50: 99,266 | BP50: 98,294 | BQ50: 100,312 | BR50: 97,532 | BS50: 90,727 | BT50: 85,214 | BU50: 83,528 | BV50: 4.0 | BW50: 4.2 | BX50: 3.3 | BY50: 3.4 | BZ50: 3.5 | CA50: 3.6 | CB50: 3.1 | CC50: 2.8 | CD50: 2.7 | CE50: 2.9 | CF50: 3.0 | CG50: 3.2 | CH50: 3.1 | CI50: 2.9 | CJ50: 2.5 | CK50: 2.5 | CL50: 2.5 | CM50: 2.4 | CN50: 2.3 | CO50: 3.1 | CP50: 2.6 | CQ50: 2.4 | CR50: 2.2 | CS50: 2.2 | CT50: 9,302 | CU50: 9,303 | CV50: 9,302 | CW50: 9,301 | CX50: 9,301 | CY50: 9,301 | CZ50: 9,300 | DA50: 9,300 | DB50: 9,302 | DC50: 9,300 | DD50: 9,300 | DE50: 9,300 | DF50: 9,299 | DG50: 9,300 | DH50: 9,300 | DI50: 9,299 | DJ50: 9,299 | DK50: 9,300 | DL50: 9,300 | DM50: 9,300 | DN50: 9,300 | DO50: 9,300 | DP50: 9,301 | DQ50: 9,299
A51: 48 | B51: 1,337,651,953 | C51: 1,281,069,979 | D51: 1,212,170,325 | E51: 1,141,937,368 | F51: 1,128,575,183 | G51: 1,167,764,991 | H51: 1,123,266,616 | I51: 1,031,904,155 | J51: 893,332,946 | K51: 860,508,176 | L51: 826,029,484 | M51: 788,248,746 | N51: 767,999,771 | O51: 808,151,795 | P51: 860,507,638 | Q51: 907,765,376 | R51: 917,499,968 | S51: 943,363,412 | T51: 958,376,414 | U51: 943,364,823 | V51: 914,540,511 | W51: 861,359,043 | X51: 830,490,184 | Y51: 788,168,325 | Z51: 56,348,713 | AA51: 55,907,565 | AB51: 41,976,533 | AC51: 40,375,597 | AD51: 41,008,193 | AE51: 43,886,572 | AF51: 34,677,772 | AG51: 29,266,383 | AH51: 24,950,450 | AI51: 25,174,861 | AJ51: 25,235,396 | AK51: 25,959,169 | AL51: 24,131,571 | AM51: 23,493,565 | AN51: 21,347,411 | AO51: 22,830,549 | AP51: 23,533,283 | AQ51: 23,269,555 | AR51: 21,917,593 | AS51: 29,201,438 | AT51: 24,523,009 | AU51: 20,287,629 | AV51: 18,262,612 | AW51: 17,703,180 | AX51: 140,781 | AY51: 134,846 | AZ51: 127,605 | BA51: 120,205 | BB51: 118,797 | BC51: 122,919 | BD51: 118,231 | BE51: 108,623 | BF51: 94,039 | BG51: 90,580 | BH51: 86,949 | BI51: 82,975 | BJ51: 80,849 | BK51: 85,074 | BL51: 90,589 | BM51: 95,557 | BN51: 96,582 | BO51: 99,300 | BP51: 100,899 | BQ51: 99,309 | BR51: 96,272 | BS51: 90,673 | BT51: 87,436 | BU51: 82,966 | BV51: 4.2 | BW51: 4.4 | BX51: 3.5 | BY51: 3.5 | BZ51: 3.6 | CA51: 3.8 | CB51: 3.1 | CC51: 2.8 | CD51: 2.8 | CE51: 2.9 | CF51: 3.1 | CG51: 3.3 | CH51: 3.1 | CI51: 2.9 | CJ51: 2.5 | CK51: 2.5 | CL51: 2.6 | CM51: 2.5 | CN51: 2.3 | CO51: 3.1 | CP51: 2.7 | CQ51: 2.4 | CR51: 2.2 | CS51: 2.2 | CT51: 9,502 | CU51: 9,500 | CV51: 9,499 | CW51: 9,500 | CX51: 9,500 | CY51: 9,500 | CZ51: 9,501 | DA51: 9,500 | DB51: 9,500 | DC51: 9,500 | DD51: 9,500 | DE51: 9,500 | DF51: 9,499 | DG51: 9,499 | DH51: 9,499 | DI51: 9,500 | DJ51: 9,500 | DK51: 9,500 | DL51: 9,498 | DM51: 9,499 | DN51: 9,500 | DO51: 9,500 | DP51: 9,498 | DQ51: 9,500
A52: 49 | B52: 1,405,624,355 | C52: 1,386,833,012 | D52: 1,340,730,053 | E52: 1,240,316,410 | F52: 1,195,986,045 | G52: 1,200,284,884 | H52: 1,268,753,098 | I52: 1,108,757,834 | J52: 968,549,950 | K52: 903,985,752 | L52: 906,609,796 | M52: 869,212,102 | N52: 855,622,951 | O52: 896,888,834 | P52: 959,947,903 | Q52: 986,913,176 | R52: 1,004,999,055 | S52: 1,000,575,895 | T52: 994,353,948 | U52: 988,989,393 | V52: 955,777,361 | W52: 900,090,641 | X52: 865,747,491 | Y52: 826,628,396 | Z52: 61,138,896 | AA52: 62,392,606 | AB52: 48,604,097 | AC52: 46,082,638 | AD52: 46,232,799 | AE52: 47,678,084 | AF52: 37,814,003 | AG52: 30,647,516 | AH52: 26,317,023 | AI52: 26,523,528 | AJ52: 27,028,435 | AK52: 27,404,354 | AL52: 25,957,055 | AM52: 25,197,766 | AN52: 23,332,043 | AO52: 24,236,907 | AP52: 25,199,491 | AQ52: 24,353,434 | AR52: 23,113,256 | AS52: 30,660,366 | AT52: 25,549,781 | AU52: 21,100,856 | AV52: 19,083,403 | AW52: 18,336,606 | AX52: 144,918 | AY52: 142,978 | AZ52: 138,214 | BA52: 127,879 | BB52: 123,319 | BC52: 123,761 | BD52: 130,819 | BE52: 114,350 | BF52: 99,887 | BG52: 93,236 | BH52: 93,518 | BI52: 89,670 | BJ52: 88,266 | BK52: 92,518 | BL52: 99,007 | BM52: 101,809 | BN52: 103,667 | BO52: 103,204 | BP52: 102,553 | BQ52: 101,982 | BR52: 98,564 | BS52: 92,822 | BT52: 89,279 | BU52: 85,243 | BV52: 4.3 | BW52: 4.5 | BX52: 3.6 | BY52: 3.7 | BZ52: 3.9 | CA52: 4.0 | CB52: 3.0 | CC52: 2.8 | CD52: 2.7 | CE52: 2.9 | CF52: 3.0 | CG52: 3.2 | CH52: 3.0 | CI52: 2.8 | CJ52: 2.4 | CK52: 2.5 | CL52: 2.5 | CM52: 2.4 | CN52: 2.3 | CO52: 3.1 | CP52: 2.7 | CQ52: 2.3 | CR52: 2.2 | CS52: 2.2 | CT52: 9,699 | CU52: 9,700 | CV52: 9,700 | CW52: 9,699 | CX52: 9,698 | CY52: 9,698 | CZ52: 9,699 | DA52: 9,696 | DB52: 9,696 | DC52: 9,696 | DD52: 9,694 | DE52: 9,693 | DF52: 9,694 | DG52: 9,694 | DH52: 9,696 | DI52: 9,694 | DJ52: 9,694 | DK52: 9,695 | DL52: 9,696 | DM52: 9,698 | DN52: 9,697 | DO52: 9,697 | DP52: 9,697 | DQ52: 9,697
A53: 50 | B53: 1,463,638,250 | C53: 1,393,738,048 | D53: 1,351,131,707 | E53: 1,308,973,798 | F53: 1,258,587,714 | G53: 1,222,176,959 | H53: 1,227,863,925 | I53: 1,131,287,742 | J53: 978,402,353 | K53: 921,068,766 | L53: 885,892,747 | M53: 842,670,855 | N53: 816,111,373 | O53: 855,236,220 | P53: 901,634,116 | Q53: 962,984,528 | R53: 1,122,426,206 | S53: 985,506,123 | T53: 980,000,643 | U53: 1,005,489,586 | V53: 952,652,214 | W53: 889,260,756 | X53: 855,279,558 | Y53: 846,954,669 | Z53: 66,664,025 | AA53: 65,621,800 | AB53: 51,149,753 | AC53: 49,314,881 | AD53: 48,999,671 | AE53: 49,563,682 | AF53: 39,188,191 | AG53: 31,495,857 | AH53: 26,628,782 | AI53: 26,992,482 | AJ53: 27,502,795 | AK53: 28,137,720 | AL53: 25,943,942 | AM53: 25,269,388 | AN53: 23,091,583 | AO53: 24,255,455 | AP53: 26,532,153 | AQ53: 24,556,955 | AR53: 23,418,730 | AS53: 31,671,010 | AT53: 25,863,622 | AU53: 21,478,161 | AV53: 19,256,550 | AW53: 18,860,518 | AX53: 147,837 | AY53: 140,793 | AZ53: 136,485 | BA53: 132,219 | BB53: 127,112 | BC53: 123,444 | BD53: 124,028 | BE53: 114,281 | BF53: 98,838 | BG53: 93,035 | BH53: 89,489 | BI53: 85,123 | BJ53: 82,441 | BK53: 86,397 | BL53: 91,081 | BM53: 97,297 | BN53: 113,376 | BO53: 99,548 | BP53: 98,997 | BQ53: 101,552 | BR53: 96,226 | BS53: 89,830 | BT53: 86,394 | BU53: 85,543 | BV53: 4.6 | BW53: 4.7 | BX53: 3.8 | BY53: 3.8 | BZ53: 3.9 | CA53: 4.1 | CB53: 3.2 | CC53: 2.8 | CD53: 2.7 | CE53: 2.9 | CF53: 3.1 | CG53: 3.3 | CH53: 3.2 | CI53: 3.0 | CJ53: 2.6 | CK53: 2.5 | CL53: 2.4 | CM53: 2.5 | CN53: 2.4 | CO53: 3.1 | CP53: 2.7 | CQ53: 2.4 | CR53: 2.3 | CS53: 2.2 | CT53: 9,900 | CU53: 9,899 | CV53: 9,899 | CW53: 9,900 | CX53: 9,901 | CY53: 9,901 | CZ53: 9,900 | DA53: 9,899 | DB53: 9,899 | DC53: 9,900 | DD53: 9,899 | DE53: 9,899 | DF53: 9,899 | DG53: 9,899 | DH53: 9,899 | DI53: 9,897 | DJ53: 9,900 | DK53: 9,900 | DL53: 9,899 | DM53: 9,901 | DN53: 9,900 | DO53: 9,899 | DP53: 9,900 | DQ53: 9,901
A54: 51 | B54: 1,557,034,871 | C54: 1,471,929,906 | D54: 1,400,495,624 | E54: 1,359,878,251 | F54: 1,314,609,276 | G54: 1,285,758,418 | H54: 1,268,254,366 | I54: 1,185,794,880 | J54: 1,009,252,006 | K54: 935,179,532 | L54: 907,244,241 | M54: 855,393,599 | N54: 838,454,530 | O54: 869,826,528 | P54: 919,975,922 | Q54: 963,346,101 | R54: 1,008,776,190 | S54: 1,005,980,846 | T54: 989,744,678 | U54: 1,012,609,543 | V54: 990,087,965 | W54: 908,003,701 | X54: 875,891,747 | Y54: 848,696,428 | Z54: 73,980,893 | AA54: 71,808,752 | AB54: 54,129,887 | AC54: 52,996,687 | AD54: 53,054,747 | AE54: 52,875,338 | AF54: 41,928,593 | AG54: 33,461,734 | AH54: 27,818,171 | AI54: 28,356,922 | AJ54: 28,555,506 | AK54: 29,058,254 | AL54: 26,968,350 | AM54: 26,397,935 | AN54: 23,607,727 | AO54: 25,091,834 | AP54: 26,533,908 | AQ54: 25,760,516 | AR54: 23,929,349 | AS54: 32,522,366 | AT54: 26,800,526 | AU54: 22,364,720 | AV54: 20,194,061 | AW54: 19,695,375 | AX54: 154,156 | AY54: 145,721 | AZ54: 138,667 | BA54: 134,643 | BB54: 130,172 | BC54: 127,317 | BD54: 125,585 | BE54: 117,413 | BF54: 99,930 | BG54: 92,606 | BH54: 89,833 | BI54: 84,707 | BJ54: 83,031 | BK54: 86,132 | BL54: 91,101 | BM54: 95,395 | BN54: 99,893 | BO54: 99,609 | BP54: 98,006 | BQ54: 100,277 | BR54: 98,058 | BS54: 89,909 | BT54: 86,735 | BU54: 84,043 | BV54: 4.8 | BW54: 4.9 | BX54: 3.9 | BY54: 3.9 | BZ54: 4.0 | CA54: 4.1 | CB54: 3.3 | CC54: 2.8 | CD54: 2.8 | CE54: 3.0 | CF54: 3.1 | CG54: 3.4 | CH54: 3.2 | CI54: 3.0 | CJ54: 2.6 | CK54: 2.6 | CL54: 2.6 | CM54: 2.6 | CN54: 2.4 | CO54: 3.2 | CP54: 2.7 | CQ54: 2.5 | CR54: 2.3 | CS54: 2.3 | CT54: =+B54/AX54 -> 10,100 | CU54: 10,101 | CV54: 10,100 | CW54: 10,100 | CX54: 10,099 | CY54: 10,099 | CZ54: 10,099 | DA54: 10,099 | DB54: 10,100 | DC54: 10,098 | DD54: 10,099 | DE54: 10,098 | DF54: 10,098 | DG54: 10,099 | DH54: 10,098 | DI54: 10,098 | DJ54: 10,099 | DK54: 10,099 | DL54: 10,099 | DM54: 10,098 | DN54: 10,097 | DO54: 10,099 | DP54: 10,098 | DQ54: 10,098
A55: 52 | B55: 1,619,380,393 | C55: 1,523,229,053 | D55: 1,414,917,153 | E55: 1,361,355,393 | F55: 1,326,308,152 | G55: 1,297,580,078 | H55: 1,259,265,377 | I55: 1,191,544,676 | J55: 1,045,371,974 | K55: 982,071,183 | L55: 965,316,158 | M55: 900,344,525 | N55: 872,198,960 | O55: 912,688,021 | P55: 977,963,922 | Q55: 1,006,223,205 | R55: 1,050,863,307 | S55: 1,218,462,259 | T55: 1,005,776,385 | U55: 1,034,885,812 | V55: 996,694,541 | W55: 928,157,958 | X55: 890,746,323 | Y55: 871,989,736 | Z55: 79,562,658 | AA55: 77,233,505 | AB55: 57,529,626 | AC55: 55,958,104 | AD55: 56,131,239 | AE55: 56,371,998 | AF55: 44,281,407 | AG55: 34,110,185 | AH55: 28,552,932 | AI55: 28,591,158 | AJ55: 29,510,861 | AK55: 29,878,924 | AL55: 27,552,815 | AM55: 26,901,227 | AN55: 24,492,531 | AO55: 25,484,013 | AP55: 26,818,240 | AQ55: 27,574,410 | AR55: 23,987,291 | AS55: 33,175,750 | AT55: 27,574,920 | AU55: 22,970,283 | AV55: 20,379,516 | AW55: 19,946,363 | AX55: 157,229 | AY55: 147,891 | AZ55: 137,380 | BA55: 132,179 | BB55: 128,770 | BC55: 125,984 | BD55: 122,266 | BE55: 115,695 | BF55: 101,509 | BG55: 95,365 | BH55: 93,743 | BI55: 87,440 | BJ55: 84,699 | BK55: 88,634 | BL55: 94,962 | BM55: 97,711 | BN55: 102,050 | BO55: 118,303 | BP55: 97,657 | BQ55: 100,479 | BR55: 96,771 | BS55: 90,119 | BT55: 86,486 | BU55: 84,670 | BV55: 4.9 | BW55: 5.1 | BX55: 4.1 | BY55: 4.1 | BZ55: 4.2 | CA55: 4.3 | CB55: 3.5 | CC55: 2.9 | CD55: 2.7 | CE55: 2.9 | CF55: 3.1 | CG55: 3.3 | CH55: 3.2 | CI55: 2.9 | CJ55: 2.5 | CK55: 2.5 | CL55: 2.6 | CM55: 2.3 | CN55: 2.4 | CO55: 3.2 | CP55: 2.8 | CQ55: 2.5 | CR55: 2.3 | CS55: 2.3 | CT55: 10,300 | CU55: 10,300 | CV55: 10,299 | CW55: 10,299 | CX55: 10,300 | CY55: 10,300 | CZ55: 10,299 | DA55: 10,299 | DB55: 10,298 | DC55: 10,298 | DD55: 10,297 | DE55: 10,297 | DF55: 10,298 | DG55: 10,297 | DH55: 10,298 | DI55: 10,298 | DJ55: 10,298 | DK55: 10,300 | DL55: 10,299 | DM55: 10,300 | DN55: 10,300 | DO55: 10,299 | DP55: 10,299 | DQ55: 10,299 | DR55: 10,300
A56: 53 | B56: 1,685,489,866 | C56: 1,611,208,207 | D56: 1,467,327,992 | E56: 1,447,904,459 | F56: 1,405,648,891 | G56: 1,372,462,845 | H56: 1,304,473,320 | I56: 1,286,303,629 | J56: 1,077,964,677 | K56: 1,033,485,084 | L56: 1,001,832,423 | M56: 931,041,524 | N56: 881,784,308 | O56: 912,711,136 | P56: 974,003,330 | Q56: 1,037,846,811 | R56: 1,077,473,123 | S56: 1,108,499,387 | T56: 1,027,145,930 | U56: 1,072,155,874 | V56: 1,016,296,248 | W56: 1,001,996,001 | X56: 903,766,080 | Y56: 891,562,624 | Z56: 86,366,307 | AA56: 84,822,901 | AB56: 62,680,736 | AC56: 62,448,741 | AD56: 62,493,569 | AE56: 62,427,294 | AF56: 48,149,801 | AG56: 36,754,985 | AH56: 29,526,809 | AI56: 30,223,979 | AJ56: 30,777,798 | AK56: 31,378,178 | AL56: 28,560,986 | AM56: 27,819,760 | AN56: 25,614,799 | AO56: 26,775,218 | AP56: 28,172,184 | AQ56: 28,022,790 | AR56: 25,105,972 | AS56: 34,420,547 | AT56: 28,214,961 | AU56: 23,996,555 | AV56: 21,272,701 | AW56: 20,612,608 | AX56: 160,511 | AY56: 153,442 | AZ56: 139,731 | BA56: 137,887 | BB56: 133,866 | BC56: 130,707 | BD56: 124,234 | BE56: 122,502 | BF56: 102,671 | BG56: 98,431 | BH56: 95,416 | BI56: 88,668 | BJ56: 83,979 | BK56: 86,929 | BL56: 92,765 | BM56: 98,853 | BN56: 102,627 | BO56: 105,579 | BP56: 97,824 | BQ56: 102,115 | BR56: 96,799 | BS56: 95,431 | BT56: 86,069 | BU56: 84,907 | BV56: 5.1 | BW56: 5.3 | BX56: 4.3 | BY56: 4.3 | BZ56: 4.4 | CA56: 4.5 | CB56: 3.7 | CC56: 2.9 | CD56: 2.7 | CE56: 2.9 | CF56: 3.1 | CG56: 3.4 | CH56: 3.2 | CI56: 3.0 | CJ56: 2.6 | CK56: 2.6 | CL56: 2.6 | CM56: 2.5 | CN56: 2.4 | CO56: 3.2 | CP56: 2.8 | CQ56: 2.4 | CR56: 2.4 | CS56: 2.3 | CT56: 10,501 | CU56: 10,500 | CV56: 10,501 | CW56: 10,501 | CX56: 10,500 | CY56: 10,500 | CZ56: 10,500 | DA56: 10,500 | DB56: 10,499 | DC56: 10,500 | DD56: 10,500 | DE56: 10,500 | DF56: 10,500 | DG56: 10,500 | DH56: 10,500 | DI56: 10,499 | DJ56: 10,499 | DK56: 10,499 | DL56: 10,500 | DM56: 10,499 | DN56: 10,499 | DO56: 10,500 | DP56: 10,500 | DQ56: 10,500
A57: 54 | B57: 1,746,667,383 | C57: 1,693,867,587 | D57: 1,517,390,690 | E57: 1,459,142,215 | F57: 1,418,979,968 | G57: 1,396,986,498 | H57: 1,327,897,881 | I57: 1,212,536,684 | J57: 1,082,773,905 | K57: 1,014,607,217 | L57: 988,045,399 | M57: 940,880,658 | N57: 887,202,011 | O57: 915,633,451 | P57: 976,680,434 | Q57: 1,023,835,877 | R57: 1,082,820,184 | S57: 1,089,861,361 | T57: 1,031,428,834 | U57: 1,073,421,211 | V57: 1,018,293,708 | W57: 970,561,223 | X57: 918,761,137 | Y57: 886,282,039 | Z57: 93,622,838 | AA57: 92,911,936 | AB57: 66,397,095 | AC57: 64,159,804 | AD57: 63,948,668 | AE57: 64,473,784 | AF57: 50,962,403 | AG57: 36,575,784 | AH57: 30,001,298 | AI57: 30,589,060 | AJ57: 30,989,616 | AK57: 31,824,760 | AL57: 28,845,160 | AM57: 28,067,511 | AN57: 25,826,770 | AO57: 26,989,881 | AP57: 28,181,456 | AQ57: 27,811,630 | AR57: 25,530,912 | AS57: 34,954,238 | AT57: 28,511,665 | AU57: 24,152,662 | AV57: 21,613,329 | AW57: 20,993,865 | AX57: 163,233 | AY57: 158,304 | AZ57: 141,800 | BA57: 136,370 | BB57: 132,612 | BC57: 130,555 | BD57: 124,097 | BE57: 113,319 | BF57: 101,177 | BG57: 94,827 | BH57: 92,335 | BI57: 87,929 | BJ57: 82,925 | BK57: 85,573 | BL57: 91,281 | BM57: 95,689 | BN57: 101,207 | BO57: 101,858 | BP57: 96,399 | BQ57: 100,319 | BR57: 95,172 | BS57: 90,709 | BT57: 85,868 | BU57: 82,836 | BV57: 5.4 | BW57: 5.5 | BX57: 4.4 | BY57: 4.4 | BZ57: 4.5 | CA57: 4.6 | CB57: 3.8 | CC57: 3.0 | CD57: 2.8 | CE57: 3.0 | CF57: 3.1 | CG57: 3.4 | CH57: 3.3 | CI57: 3.1 | CJ57: 2.6 | CK57: 2.6 | CL57: 2.6 | CM57: 2.6 | CN57: 2.5 | CO57: 3.3 | CP57: 2.8 | CQ57: 2.5 | CR57: 2.4 | CS57: 2.4 | CT57: 10,700 | CU57: 10,700 | CV57: 10,701 | CW57: 10,700 | CX57: 10,700 | CY57: 10,700 | CZ57: 10,700 | DA57: 10,700 | DB57: 10,702 | DC57: 10,700 | DD57: 10,701 | DE57: 10,700 | DF57: 10,699 | DG57: 10,700 | DH57: 10,700 | DI57: 10,700 | DJ57: 10,699 | DK57: 10,700 | DL57: 10,700 | DM57: 10,700 | DN57: 10,700 | DO57: 10,700 | DP57: 10,700 | DQ57: 10,699
A58: 55 | B58: 1,974,221,913 | C58: 1,897,095,064 | D58: 1,735,649,430 | E58: 1,675,456,877 | F58: 1,582,596,832 | G58: 1,548,537,211 | H58: 1,499,318,375 | I58: 1,324,559,447 | J58: 1,194,436,617 | K58: 1,127,896,286 | L58: 1,080,916,516 | M58: 1,032,319,013 | N58: 987,522,012 | O58: 1,042,774,290 | P58: 1,105,552,515 | Q58: 1,120,912,753 | R58: 1,165,187,167 | S58: 1,184,080,444 | T58: 1,122,651,191 | U58: 1,139,452,894 | V58: 1,068,097,146 | W58: 1,027,005,520 | X58: 958,880,594 | Y58: 937,851,959 | Z58: 110,310,140 | AA58: 108,168,301 | AB58: 78,052,324 | AC58: 75,753,664 | AD58: 73,505,679 | AE58: 73,307,658 | AF58: 60,403,408 | AG58: 41,058,233 | AH58: 32,706,867 | AI58: 33,316,469 | AJ58: 33,459,222 | AK58: 34,321,553 | AL58: 31,481,177 | AM58: 30,558,476 | AN58: 27,775,604 | AO58: 29,244,283 | AP58: 30,301,919 | AQ58: 29,497,385 | AR58: 27,313,211 | AS58: 37,125,702 | AT58: 30,307,336 | AU58: 25,502,446 | AV58: 22,727,700 | AW58: 22,024,333 | AX58: 181,214 | AY58: 174,137 | AZ58: 159,306 | BA58: 153,793 | BB58: 145,268 | BC58: 142,137 | BD58: 137,614 | BE58: 121,584 | BF58: 109,639 | BG58: 103,542 | BH58: 99,235 | BI58: 94,778 | BJ58: 90,663 | BK58: 95,731 | BL58: 101,476 | BM58: 102,895 | BN58: 106,956 | BO58: 108,681 | BP58: 103,049 | BQ58: 104,566 | BR58: 98,024 | BS58: 94,250 | BT58: 88,000 | BU58: 86,067 | BV58: 5.6 | BW58: 5.7 | BX58: 4.5 | BY58: 4.5 | BZ58: 4.6 | CA58: 4.7 | CB58: 4.0 | CC58: 3.1 | CD58: 2.7 | CE58: 3.0 | CF58: 3.1 | CG58: 3.3 | CH58: 3.2 | CI58: 2.9 | CJ58: 2.5 | CK58: 2.6 | CL58: 2.6 | CM58: 2.5 | CN58: 2.4 | CO58: 3.3 | CP58: 2.8 | CQ58: 2.5 | CR58: 2.4 | CS58: 2.3 | CT58: 10,894 | CU58: 10,894 | CV58: 10,895 | CW58: 10,894 | CX58: 10,894 | CY58: 10,895 | CZ58: 10,895 | DA58: 10,894 | DB58: 10,894 | DC58: 10,893 | DD58: 10,892 | DE58: 10,892 | DF58: 10,892 | DG58: 10,893 | DH58: 10,895 | DI58: 10,894 | DJ58: 10,894 | DK58: 10,895 | DL58: 10,894 | DM58: 10,897 | DN58: 10,896 | DO58: 10,897 | DP58: 10,896 | DQ58: 10,897
A59: 56 | B59: 1,870,461,406 | C59: 1,862,742,990 | D59: 1,695,153,866 | E59: 1,636,223,700 | F59: 1,540,059,838 | G59: 1,507,291,528 | H59: 1,471,786,783 | I59: 1,282,181,671 | J59: 1,150,048,070 | K59: 1,057,415,178 | L59: 1,051,738,704 | M59: 997,340,598 | N59: 960,862,177 | O59: 986,150,406 | P59: 1,037,509,430 | Q59: 1,117,292,033 | R59: 1,141,062,126 | S59: 1,185,421,758 | T59: 1,103,721,491 | U59: 1,146,147,847 | V59: 1,085,578,109 | W59: 1,029,562,871 | X59: 956,828,507 | Y59: 930,138,246 | Z59: 107,553,343 | AA59: 110,902,037 | AB59: 78,551,455 | AC59: 76,776,344 | AD59: 73,205,960 | AE59: 73,041,170 | AF59: 61,747,199 | AG59: 40,425,933 | AH59: 31,953,589 | AI59: 33,436,778 | AJ59: 33,641,632 | AK59: 34,246,101 | AL59: 31,516,156 | AM59: 30,490,635 | AN59: 27,452,565 | AO59: 29,079,415 | AP59: 30,749,451 | AQ59: 30,101,405 | AR59: 27,402,833 | AS59: 37,844,414 | AT59: 31,372,990 | AU59: 25,876,069 | AV59: 22,961,303 | AW59: 22,757,498 | AX59: 168,508 | AY59: 167,786 | AZ59: 152,708 | BA59: 147,412 | BB59: 138,733 | BC59: 135,787 | BD59: 132,594 | BE59: 115,514 | BF59: 103,616 | BG59: 95,273 | BH59: 94,762 | BI59: 89,864 | BJ59: 86,571 | BK59: 88,843 | BL59: 93,473 | BM59: 100,671 | BN59: 102,801 | BO59: 106,808 | BP59: 99,444 | BQ59: 103,264 | BR59: 97,809 | BS59: 92,758 | BT59: 86,206 | BU59: 83,803 | BV59: 5.8 | BW59: 6.0 | BX59: 4.6 | BY59: 4.7 | BZ59: 4.8 | CA59: 4.8 | CB59: 4.2 | CC59: 3.2 | CD59: 2.8 | CE59: 3.2 | CF59: 3.2 | CG59: 3.4 | CH59: 3.3 | CI59: 3.1 | CJ59: 2.6 | CK59: 2.6 | CL59: 2.7 | CM59: 2.5 | CN59: 2.5 | CO59: 3.3 | CP59: 2.9 | CQ59: 2.5 | CR59: 2.4 | CS59: 2.4 | CT59: 11,100 | CU59: 11,102 | CV59: 11,101 | CW59: 11,100 | CX59: 11,101 | CY59: 11,100 | CZ59: 11,100 | DA59: 11,100 | DB59: 11,099 | DC59: 11,099 | DD59: 11,099 | DE59: 11,098 | DF59: 11,099 | DG59: 11,100 | DH59: 11,100 | DI59: 11,098 | DJ59: 11,100 | DK59: 11,099 | DL59: 11,099 | DM59: 11,099 | DN59: 11,099 | DO59: 11,099 | DP59: 11,099 | DQ59: 11,099
A60: 57 | B60: 1,894,338,284 | C60: 1,932,636,295 | D60: 1,794,172,377 | E60: 1,681,577,816 | F60: 1,600,655,079 | G60: 1,582,795,594 | H60: 1,520,539,564 | I60: 1,369,402,072 | J60: 1,173,456,450 | K60: 1,096,842,059 | L60: 1,061,040,785 | M60: 990,752,542 | N60: 955,576,630 | O60: 1,000,429,896 | P60: 1,075,498,127 | Q60: 1,124,661,026 | R60: 1,195,484,944 | S60: 1,191,430,025 | T60: 1,113,886,563 | U60: 1,174,619,421 | V60: 1,085,852,159 | W60: 1,048,789,674 | X60: 1,057,440,291 | Y60: 945,693,581 | Z60: 113,963,760 | AA60: 120,387,858 | AB60: 88,395,837 | AC60: 83,322,698 | AD60: 81,003,143 | AE60: 80,961,292 | AF60: 66,772,535 | AG60: 43,709,192 | AH60: 34,100,486 | AI60: 34,442,600 | AJ60: 35,523,890 | AK60: 35,696,455 | AL60: 33,020,399 | AM60: 31,892,813 | AN60: 28,400,469 | AO60: 29,852,966 | AP60: 31,562,963 | AQ60: 30,889,913 | AR60: 28,192,421 | AS60: 38,865,769 | AT60: 31,212,460 | AU60: 26,919,121 | AV60: 24,566,965 | AW60: 23,097,042 | AX60: 167,647 | AY60: 171,029 | AZ60: 158,774 | BA60: 148,810 | BB60: 141,657 | BC60: 140,079 | BD60: 134,572 | BE60: 121,197 | BF60: 103,856 | BG60: 97,077 | BH60: 93,915 | BI60: 87,699 | BJ60: 84,587 | BK60: 88,563 | BL60: 95,205 | BM60: 99,554 | BN60: 105,803 | BO60: 105,445 | BP60: 98,581 | BQ60: 103,950 | BR60: 96,099 | BS60: 92,817 | BT60: 93,564 | BU60: 83,695 | BV60: 6.0 | BW60: 6.2 | BX60: 4.9 | BY60: 5.0 | BZ60: 5.1 | CA60: 5.1 | CB60: 4.4 | CC60: 3.2 | CD60: 2.9 | CE60: 3.1 | CF60: 3.3 | CG60: 3.6 | CH60: 3.5 | CI60: 3.2 | CJ60: 2.6 | CK60: 2.7 | CL60: 2.6 | CM60: 2.6 | CN60: 2.5 | CO60: 3.3 | CP60: 2.9 | CQ60: 2.6 | CR60: 2.3 | CS60: 2.4 | CT60: 11,300 | CU60: 11,300 | CV60: 11,300 | CW60: 11,300 | CX60: 11,300 | CY60: 11,299 | CZ60: 11,299 | DA60: 11,299 | DB60: 11,299 | DC60: 11,299 | DD60: 11,298 | DE60: 11,297 | DF60: 11,297 | DG60: 11,296 | DH60: 11,297 | DI60: 11,297 | DJ60: 11,299 | DK60: 11,299 | DL60: 11,299 | DM60: 11,300 | DN60: 11,299 | DO60: 11,300 | DP60: 11,302 | DQ60: 11,299
A61: 58 | B61: 1,878,670,727 | C61: 1,994,714,944 | D61: 1,892,945,082 | E61: 1,791,408,766 | F61: 1,684,712,221 | G61: 1,613,315,516 | H61: 1,558,347,477 | I61: 1,398,918,350 | J61: 1,192,136,488 | K61: 1,168,608,834 | L61: 1,103,517,835 | M61: 1,019,984,790 | N61: 979,882,544 | O61: 1,017,496,634 | P61: 1,098,743,479 | Q61: 1,145,016,823 | R61: 1,221,618,115 | S61: 1,281,496,867 | T61: 1,150,993,667 | U61: 1,204,922,038 | V61: 1,125,573,109 | W61: 1,082,644,532 | X61: 1,034,165,722 | Y61: 979,122,670 | Z61: 116,738,621 | AA61: 128,311,234 | AB61: 96,221,428 | AC61: 91,213,501 | AD61: 87,077,260 | AE61: 84,646,047 | AF61: 71,858,478 | AG61: 45,644,459 | AH61: 35,617,816 | AI61: 37,345,431 | AJ61: 37,199,635 | AK61: 37,902,325 | AL61: 34,963,138 | AM61: 33,565,226 | AN61: 29,129,199 | AO61: 30,291,420 | AP61: 32,248,109 | AQ61: 31,864,297 | AR61: 28,590,122 | AS61: 39,843,659 | AT61: 32,210,100 | AU61: 27,475,883 | AV61: 24,800,101 | AW61: 24,014,993 | AX61: 163,355 | AY61: 173,448 | AZ61: 164,599 | BA61: 155,759 | BB61: 146,492 | BC61: 140,286 | BD61: 135,508 | BE61: 121,650 | BF61: 103,670 | BG61: 101,629 | BH61: 95,969 | BI61: 88,698 | BJ61: 85,220 | BK61: 88,487 | BL61: 95,543 | BM61: 99,577 | BN61: 106,239 | BO61: 111,433 | BP61: 100,086 | BQ61: 104,786 | BR61: 97,890 | BS61: 94,145 | BT61: 89,937 | BU61: 85,144 | BV61: 6.2 | BW61: 6.4 | BX61: 5.1 | BY61: 5.1 | BZ61: 5.2 | CA61: 5.2 | CB61: 4.6 | CC61: 3.3 | CD61: 3.0 | CE61: 3.2 | CF61: 3.4 | CG61: 3.7 | CH61: 3.6 | CI61: 3.3 | CJ61: 2.7 | CK61: 2.6 | CL61: 2.6 | CM61: 2.5 | CN61: 2.5 | CO61: 3.3 | CP61: 2.9 | CQ61: 2.5 | CR61: 2.4 | CS61: 2.5 | CT61: 11,501 | CU61: 11,500 | CV61: 11,500 | CW61: 11,501 | CX61: 11,500 | CY61: 11,500 | CZ61: 11,500 | DA61: 11,500 | DB61: 11,499 | DC61: 11,499 | DD61: 11,499 | DE61: 11,500 | DF61: 11,498 | DG61: 11,499 | DH61: 11,500 | DI61: 11,499 | DJ61: 11,499 | DK61: 11,500 | DL61: 11,500 | DM61: 11,499 | DN61: 11,498 | DO61: 11,500 | DP61: 11,499 | DQ61: 11,500
A62: 59 | B62: 1,928,130,302 | C62: 1,985,779,823 | D62: 1,944,213,162 | E62: 1,884,551,601 | F62: 1,746,163,022 | G62: 1,677,349,207 | H62: 1,634,309,883 | I62: 1,436,364,021 | J62: 1,234,603,649 | K62: 1,208,375,456 | L62: 1,154,176,906 | M62: 1,058,709,421 | N62: 994,841,955 | O62: 1,015,360,989 | P62: 1,097,617,578 | Q62: 1,158,521,652 | R62: 1,218,607,580 | S62: 1,268,845,341 | T62: 1,157,119,295 | U62: 1,215,555,525 | V62: 1,142,801,776 | W62: 1,102,731,410 | X62: 1,044,639,394 | Y62: 985,208,092 | Z62: 124,468,139 | AA62: 132,424,704 | AB62: 103,554,481 | AC62: 100,312,673 | AD62: 94,339,809 | AE62: 91,628,340 | AF62: 78,107,248 | AG62: 48,703,007 | AH62: 38,127,523 | AI62: 40,742,892 | AJ62: 40,480,729 | AK62: 40,604,905 | AL62: 37,213,598 | AM62: 35,959,160 | AN62: 30,235,536 | AO62: 31,510,895 | AP62: 33,299,300 | AQ62: 33,011,906 | AR62: 29,389,466 | AS62: 41,291,602 | AT62: 33,050,062 | AU62: 28,450,027 | AV62: 25,735,227 | AW62: 24,513,691 | AX62: 164,795 | AY62: 169,726 | AZ62: 166,160 | BA62: 161,059 | BB62: 149,239 | BC62: 143,361 | BD62: 139,685 | BE62: 122,771 | BF62: 105,517 | BG62: 103,281 | BH62: 98,639 | BI62: 90,477 | BJ62: 85,022 | BK62: 86,772 | BL62: 93,805 | BM62: 99,007 | BN62: 104,146 | BO62: 108,438 | BP62: 98,899 | BQ62: 103,899 | BR62: 97,683 | BS62: 94,252 | BT62: 89,286 | BU62: 84,202 | BV62: 6.5 | BW62: 6.7 | BX62: 5.3 | BY62: 5.3 | BZ62: 5.4 | CA62: 5.5 | CB62: 4.8 | CC62: 3.4 | CD62: 3.1 | CE62: 3.4 | CF62: 3.5 | CG62: 3.8 | CH62: 3.7 | CI62: 3.5 | CJ62: 2.8 | CK62: 2.7 | CL62: 2.7 | CM62: 2.6 | CN62: 2.5 | CO62: 3.4 | CP62: 2.9 | CQ62: 2.6 | CR62: 2.5 | CS62: 2.5 | CT62: 11,700 | CU62: 11,700 | CV62: 11,701 | CW62: 11,701 | CX62: 11,700 | CY62: 11,700 | CZ62: 11,700 | DA62: 11,700 | DB62: 11,701 | DC62: 11,700 | DD62: 11,701 | DE62: 11,701 | DF62: 11,701 | DG62: 11,701 | DH62: 11,701 | DI62: 11,701 | DJ62: 11,701 | DK62: 11,701 | DL62: 11,700 | DM62: 11,699 | DN62: 11,699 | DO62: 11,700 | DP62: 11,700 | DQ62: 11,701
A63: 60 | B63: 1,907,759,016 | C63: 1,960,882,532 | D63: 2,058,805,464 | E63: 1,968,675,541 | F63: 1,805,837,502 | G63: 1,733,969,543 | H63: 1,703,361,948 | I63: 1,471,258,873 | J63: 1,241,386,539 | K63: 1,224,808,736 | L63: 1,178,992,848 | M63: 1,114,139,202 | N63: 1,034,019,161 | O63: 1,042,711,363 | P63: 1,119,895,113 | Q63: 1,171,444,957 | R63: 1,242,388,210 | S63: 1,292,201,875 | T63: 1,178,897,633 | U63: 1,232,746,916 | V63: 1,136,821,883 | W63: 1,123,310,142 | X63: 1,072,460,374 | Y63: 1,099,620,969 | Z63: 128,008,715 | AA63: 134,496,981 | AB63: 116,094,031 | AC63: 110,447,211 | AD63: 101,831,310 | AE63: 98,450,534 | AF63: 85,736,465 | AG63: 50,906,237 | AH63: 39,873,700 | AI63: 42,374,112 | AJ63: 42,249,946 | AK63: 43,469,888 | AL63: 39,623,831 | AM63: 37,963,358 | AN63: 31,173,918 | AO63: 32,118,004 | AP63: 34,301,771 | AQ63: 33,808,177 | AR63: 30,145,626 | AS63: 42,136,884 | AT63: 33,194,258 | AU63: 28,879,340 | AV63: 26,110,249 | AW63: 25,750,593 | AX63: 160,320 | AY63: 164,769 | AZ63: 173,038 | BA63: 165,418 | BB63: 151,737 | BC63: 145,699 | BD63: 143,128 | BE63: 123,631 | BF63: 104,311 | BG63: 102,931 | BH63: 99,075 | BI63: 93,620 | BJ63: 86,886 | BK63: 87,620 | BL63: 94,107 | BM63: 98,442 | BN63: 104,398 | BO63: 108,586 | BP63: 99,067 | BQ63: 103,595 | BR63: 95,531 | BS63: 94,389 | BT63: 90,123 | BU63: 92,404 | BV63: 6.7 | BW63: 6.9 | BX63: 5.6 | BY63: 5.6 | BZ63: 5.6 | CA63: 5.7 | CB63: 5.0 | CC63: 3.5 | CD63: 3.2 | CE63: 3.5 | CF63: 3.6 | CG63: 3.9 | CH63: 3.8 | CI63: 3.6 | CJ63: 2.8 | CK63: 2.7 | CL63: 2.8 | CM63: 2.6 | CN63: 2.6 | CO63: 3.4 | CP63: 2.9 | CQ63: 2.6 | CR63: 2.4 | CS63: 2.3 | CT63: 11,900 | CU63: 11,901 | CV63: 11,898 | CW63: 11,901 | CX63: 11,901 | CY63: 11,901 | CZ63: 11,901 | DA63: 11,900 | DB63: 11,901 | DC63: 11,899 | DD63: 11,900 | DE63: 11,901 | DF63: 11,901 | DG63: 11,900 | DH63: 11,900 | DI63: 11,900 | DJ63: 11,900 | DK63: 11,900 | DL63: 11,900 | DM63: 11,900 | DN63: 11,900 | DO63: 11,901 | DP63: 11,900 | DQ63: 11,900
A64: 61 | B64: 1,904,138,036 | C64: 2,039,069,067 | D64: 2,076,173,185 | E64: 2,130,067,247 | F64: 2,016,292,805 | G64: 1,910,615,679 | H64: 1,858,064,984 | I64: 1,676,656,134 | J64: 1,436,679,126 | K64: 1,374,628,409 | L64: 1,345,411,637 | M64: 1,312,342,507 | N64: 1,307,649,876 | O64: 1,349,804,768 | P64: 1,416,492,948 | Q64: 1,451,727,512 | R64: 1,500,948,714 | S64: 1,521,898,560 | T64: 1,398,833,645 | U64: 1,388,625,882 | V64: 1,298,390,018 | W64: 1,273,378,539 | X64: 1,245,227,192 | Y64: 1,200,510,840 | Z64: 132,860,159 | AA64: 144,687,898 | AB64: 119,577,566 | AC64: 123,150,659 | AD64: 117,532,105 | AE64: 112,318,261 | AF64: 96,789,873 | AG64: 61,635,955 | AH64: 49,229,429 | AI64: 51,871,004 | AJ64: 51,672,441 | AK64: 52,835,018 | AL64: 50,258,746 | AM64: 49,419,202 | AN64: 38,264,135 | AO64: 38,768,438 | AP64: 41,037,379 | AQ64: 39,440,706 | AR64: 35,101,489 | AS64: 47,301,826 | AT64: 37,894,473 | AU64: 33,212,780 | AV64: 30,773,176 | AW64: 29,488,771 | AX64: 157,383 | AY64: 168,550 | AZ64: 171,626 | BA64: 176,056 | BB64: 166,686 | BC64: 157,972 | BD64: 153,650 | BE64: 138,660 | BF64: 118,846 | BG64: 113,717 | BH64: 111,320 | BI64: 108,589 | BJ64: 108,202 | BK64: 111,684 | BL64: 117,188 | BM64: 120,137 | BN64: 124,213 | BO64: 125,928 | BP64: 115,728 | BQ64: 114,845 | BR64: 107,399 | BS64: 105,331 | BT64: 103,000 | BU64: 99,303 | BV64: 7.0 | BW64: 7.1 | BX64: 5.8 | BY64: 5.8 | BZ64: 5.8 | CA64: 5.9 | CB64: 5.2 | CC64: 3.7 | CD64: 3.4 | CE64: 3.8 | CF64: 3.8 | CG64: 4.0 | CH64: 3.8 | CI64: 3.7 | CJ64: 2.7 | CK64: 2.7 | CL64: 2.7 | CM64: 2.6 | CN64: 2.5 | CO64: 3.4 | CP64: 2.9 | CQ64: 2.6 | CR64: 2.5 | CS64: 2.5 | CT64: 12,099 | CU64: 12,098 | CV64: 12,097 | CW64: 12,099 | CX64: 12,096 | CY64: 12,095 | CZ64: 12,093 | DA64: 12,092 | DB64: 12,089 | DC64: 12,088 | DD64: 12,086 | DE64: 12,085 | DF64: 12,085 | DG64: 12,086 | DH64: 12,087 | DI64: 12,084 | DJ64: 12,084 | DK64: 12,085 | DL64: 12,087 | DM64: 12,091 | DN64: 12,089 | DO64: 12,089 | DP64: 12,090 | DQ64: 12,089
A65: 62 | B65: 1,909,823,203 | C65: 1,994,763,261 | D65: 2,037,172,552 | E65: 2,048,332,638 | F65: 1,987,591,283 | G65: 1,845,644,343 | H65: 1,795,122,803 | I65: 1,584,263,722 | J65: 1,363,656,662 | K65: 1,265,220,383 | L65: 1,199,163,098 | M65: 1,121,617,410 | N65: 1,099,969,940 | O65: 1,148,225,846 | P65: 1,259,598,245 | Q65: 1,319,205,886 | R65: 1,323,688,229 | S65: 1,357,916,653 | T65: 1,273,082,665 | U65: 1,260,242,676 | V65: 1,191,185,973 | W65: 1,184,857,289 | X65: 1,124,545,613 | Y65: 1,097,545,335 | Z65: 137,357,206 | AA65: 146,733,696 | AB65: 121,835,568 | AC65: 123,641,675 | AD65: 121,112,740 | AE65: 112,201,888 | AF65: 98,291,596 | AG65: 59,586,464 | AH65: 47,988,789 | AI65: 49,944,212 | AJ65: 49,238,647 | AK65: 49,471,697 | AL65: 46,532,264 | AM65: 45,846,615 | AN65: 35,637,865 | AO65: 37,374,560 | AP65: 38,690,644 | AQ65: 37,154,355 | AR65: 32,592,415 | AS65: 45,548,060 | AT65: 35,276,220 | AU65: 31,553,233 | AV65: 28,343,595 | AW65: 27,525,497 | AX65: 155,274 | AY65: 162,192 | AZ65: 165,632 | BA65: 166,538 | BB65: 161,592 | BC65: 150,051 | BD65: 145,942 | BE65: 128,803 | BF65: 110,865 | BG65: 102,863 | BH65: 97,492 | BI65: 91,180 | BJ65: 89,428 | BK65: 93,353 | BL65: 102,426 | BM65: 107,247 | BN65: 107,610 | BO65: 110,404 | BP65: 103,500 | BQ65: 102,465 | BR65: 96,855 | BS65: 96,337 | BT65: 91,428 | BU65: 89,232 | BV65: 7.2 | BW65: 7.4 | BX65: 6.0 | BY65: 6.0 | BZ65: 6.1 | CA65: 6.1 | CB65: 5.5 | CC65: 3.8 | CD65: 3.5 | CE65: 3.9 | CF65: 4.1 | CG65: 4.4 | CH65: 4.2 | CI65: 4.0 | CJ65: 2.8 | CK65: 2.8 | CL65: 2.9 | CM65: 2.7 | CN65: 2.6 | CO65: 3.6 | CP65: 3.0 | CQ65: 2.7 | CR65: 2.5 | CS65: 2.5 | CT65: 12,300 | CU65: 12,299 | CV65: 12,299 | CW65: 12,299 | CX65: 12,300 | CY65: 12,300 | CZ65: 12,300 | DA65: 12,300 | DB65: 12,300 | DC65: 12,300 | DD65: 12,300 | DE65: 12,301 | DF65: 12,300 | DG65: 12,300 | DH65: 12,298 | DI65: 12,301 | DJ65: 12,301 | DK65: 12,300 | DL65: 12,300 | DM65: 12,299 | DN65: 12,299 | DO65: =+W65/BS65 -> 12,299 | DP65: 12,300 | DQ65: 12,300
A66: 63 | B66: 1,870,556,438 | C66: 1,941,262,335 | D66: 2,009,408,064 | E66: 2,065,025,868 | F66: 2,098,498,709 | G66: 1,967,365,818 | H66: 1,867,568,435 | I66: 1,659,477,106 | J66: 1,396,755,016 | K66: 1,319,130,989 | L66: 1,205,983,837 | M66: 1,145,633,399 | N66: 1,101,852,458 | O66: 1,110,876,971 | P66: 1,218,417,976 | Q66: 1,345,117,409 | R66: 1,390,948,308 | S66: 1,393,644,580 | T66: 1,409,305,347 | U66: 1,254,153,938 | V66: 1,192,791,495 | W66: 1,190,364,422 | X66: 1,135,423,654 | Y66: 1,123,010,925 | Z66: 139,717,840 | AA66: 147,031,473 | AB66: 124,618,936 | AC66: 128,970,819 | AD66: 133,225,779 | AE66: 125,022,985 | AF66: 106,006,695 | AG66: 65,406,411 | AH66: 51,577,291 | AI66: 55,438,080 | AJ66: 53,022,363 | AK66: 54,562,948 | AL66: 51,339,565 | AM66: 48,975,968 | AN66: 38,384,901 | AO66: 39,954,206 | AP66: 41,722,040 | AQ66: 39,238,213 | AR66: 34,461,891 | AS66: 46,633,658 | AT66: 36,506,341 | AU66: 32,315,199 | AV66: 28,908,054 | AW66: 28,162,559 | AX66: 149,648 | AY66: 155,300 | AZ66: 160,751 | BA66: 165,199 | BB66: 167,892 | BC66: 157,396 | BD66: 149,410 | BE66: 132,757 | BF66: 111,740 | BG66: 105,536 | BH66: 96,484 | BI66: 91,653 | BJ66: 88,150 | BK66: 88,874 | BL66: 97,488 | BM66: 107,634 | BN66: 111,267 | BO66: 111,493 | BP66: 112,718 | BQ66: 100,337 | BR66: 95,425 | BS66: 95,227 | BT66: 90,835 | BU66: 89,843 | BV66: 7.5 | BW66: 7.6 | BX66: 6.2 | BY66: 6.2 | BZ66: 6.3 | CA66: 6.4 | CB66: 5.7 | CC66: 3.9 | CD66: 3.7 | CE66: 4.2 | CF66: 4.4 | CG66: 4.8 | CH66: 4.7 | CI66: 4.4 | CJ66: 3.2 | CK66: 3.0 | CL66: 3.0 | CM66: 2.8 | CN66: 2.4 | CO66: 3.7 | CP66: 3.1 | CQ66: 2.7 | CR66: 2.5 | CS66: 2.5 | CT66: 12,500 | CU66: 12,500 | CV66: 12,500 | CW66: 12,500 | CX66: 12,499 | CY66: 12,499 | CZ66: 12,500 | DA66: 12,500 | DB66: 12,500 | DC66: 12,499 | DD66: 12,499 | DE66: 12,500 | DF66: 12,500 | DG66: 12,499 | DH66: 12,498 | DI66: 12,497 | DJ66: =+R66/BN66 -> 12,501 | DK66: 12,500 | DL66: 12,503 | DM66: 12,499 | DN66: 12,500 | DO66: 12,500 | DP66: 12,500 | DQ66: 12,500
A67: 64 | B67: 1,969,852,813 | C67: 2,039,682,821 | D67: 2,159,885,551 | E67: 2,205,440,313 | F67: 2,248,167,047 | G67: 2,109,917,751 | H67: 2,004,590,007 | I67: 1,682,517,543 | J67: 1,479,897,341 | K67: 1,426,554,505 | L67: 1,319,224,570 | M67: 1,212,475,764 | N67: 1,159,262,368 | O67: 1,183,712,814 | P67: 1,258,471,606 | Q67: 1,310,588,219 | R67: 1,476,753,775 | S67: 1,486,798,157 | T67: 2,247,164,292 | U67: 1,317,251,249 | V67: 1,255,260,045 | W67: 1,236,672,770 | X67: 1,181,684,784 | Y67: 1,152,971,029 | Z67: 152,831,996 | AA67: 159,210,363 | AB67: 138,577,668 | AC67: 141,410,377 | AD67: 146,924,888 | AE67: 138,040,727 | AF67: 116,507,250 | AG67: 69,753,842 | AH67: 57,845,059 | AI67: 63,736,219 | AJ67: 60,863,344 | AK67: 59,128,419 | AL67: 55,690,972 | AM67: 54,852,508 | AN67: 41,928,056 | AO67: 43,207,063 | AP67: 46,926,050 | AQ67: 42,709,509 | AR67: 42,273,963 | AS67: 48,892,209 | AT67: 38,241,565 | AU67: 34,060,121 | AV67: 30,401,038 | AW67: 29,052,590 | AX67: 155,150 | AY67: 160,662 | AZ67: 170,128 | BA67: 173,710 | BB67: 177,077 | BC67: 166,176 | BD67: 157,874 | BE67: 132,509 | BF67: 116,561 | BG67: 112,352 | BH67: 103,902 | BI67: 95,497 | BJ67: 91,309 | BK67: 93,230 | BL67: 99,116 | BM67: 103,220 | BN67: 116,321 | BO67: 117,088 | BP67: 177,362 | BQ67: 103,745 | BR67: 98,856 | BS67: 97,389 | BT67: 93,069 | BU67: 90,795 | BV67: 7.8 | BW67: 7.8 | BX67: 6.4 | BY67: 6.4 | BZ67: 6.5 | CA67: 6.5 | CB67: 5.8 | CC67: 4.1 | CD67: 3.9 | CE67: 4.5 | CF67: 4.6 | CG67: 4.9 | CH67: 4.8 | CI67: 4.6 | CJ67: 3.3 | CK67: 3.3 | CL67: 3.2 | CM67: 2.9 | CN67: 1.9 | CO67: 3.7 | CP67: 3.0 | CQ67: 2.8 | CR67: 2.6 | CS67: 2.5 | CT67: 12,696 | CU67: 12,695 | CV67: 12,696 | CW67: 12,696 | CX67: 12,696 | CY67: 12,697 | CZ67: 12,697 | DA67: 12,697 | DB67: 12,696 | DC67: 12,697 | DD67: 12,697 | DE67: 12,696 | DF67: 12,696 | DG67: 12,697 | DH67: 12,697 | DI67: 12,697 | DJ67: 12,696 | DK67: 12,698 | DL67: 12,670 | DM67: 12,697 | DN67: 12,698 | DO67: 12,698 | DP67: 12,697 | DQ67: 12,699
A68: 65 | B68: 1,897,139,430 | C68: 1,974,997,679 | D68: 2,065,981,386 | E68: 2,089,517,171 | F68: 2,120,008,818 | G68: 2,072,412,045 | H68: 2,009,953,191 | I68: 1,694,589,709 | J68: 1,479,698,040 | K68: 1,369,750,374 | L68: 1,318,528,821 | M68: 1,217,341,152 | N68: 1,132,687,384 | O68: 1,162,155,927 | P68: 1,227,507,654 | Q68: 1,323,519,104 | R68: 1,389,426,814 | S68: 1,554,443,403 | T68: 1,627,998,423 | U68: 1,327,308,574 | V68: 1,282,602,458 | W68: 1,247,548,837 | X68: 1,205,826,984 | Y68: 1,163,859,415 | Z68: 150,923,705 | AA68: 159,804,995 | AB68: 137,450,448 | AC68: 139,569,931 | AD68: 141,911,689 | AE68: 138,765,995 | AF68: 123,402,047 | AG68: 72,533,428 | AH68: 59,936,557 | AI68: 65,066,566 | AJ68: 63,943,618 | AK68: 63,687,770 | AL68: 58,097,106 | AM68: 56,711,350 | AN68: 43,730,441 | AO68: 45,818,805 | AP68: 47,711,174 | AQ68: 45,359,129 | AR68: 37,722,130 | AS68: 49,177,930 | AT68: 38,873,799 | AU68: 34,192,671 | AV68: 31,017,527 | AW68: 29,330,259 | AX68: 147,044 | AY68: 153,084 | AZ68: 160,153 | BA68: 161,963 | BB68: 164,346 | BC68: 160,656 | BD68: 155,813 | BE68: 131,361 | BF68: 114,700 | BG68: 106,183 | BH68: 102,206 | BI68: 94,366 | BJ68: 87,805 | BK68: 90,096 | BL68: 95,155 | BM68: 102,606 | BN68: 107,715 | BO68: 120,506 | BP68: 126,212 | BQ68: 102,895 | BR68: 99,433 | BS68: 96,715 | BT68: 93,473 | BU68: 90,225 | BV68: 8.0 | BW68: 8.1 | BX68: 6.7 | BY68: 6.7 | BZ68: 6.7 | CA68: 6.7 | CB68: 6.1 | CC68: 4.3 | CD68: 4.1 | CE68: 4.8 | CF68: 4.8 | CG68: 5.2 | CH68: 5.1 | CI68: 4.9 | CJ68: 3.6 | CK68: 3.5 | CL68: 3.4 | CM68: 2.9 | CN68: 2.3 | CO68: 3.7 | CP68: 3.0 | CQ68: 2.7 | CR68: 2.6 | CS68: 2.5 | CT68: 12,902 | CU68: 12,901 | CV68: 12,900 | CW68: 12,901 | CX68: 12,900 | CY68: 12,900 | CZ68: 12,900 | DA68: 12,900 | DB68: 12,901 | DC68: 12,900 | DD68: 12,901 | DE68: 12,900 | DF68: 12,900 | DG68: 12,899 | DH68: 12,900 | DI68: 12,899 | DJ68: 12,899 | DK68: 12,899 | DL68: 12,899 | DM68: 12,900 | DN68: 12,899 | DO68: 12,899 | DP68: 12,900 | DQ68: 12,900 | DR68: 12,900
A69: 66 | B69: 1,782,493,640 | C69: 1,965,029,807 | D69: 2,018,155,632 | E69: 2,116,466,562 | F69: 2,192,878,105 | G69: 2,134,621,171 | H69: 2,081,849,260 | I69: 1,737,009,806 | J69: 1,482,873,866 | K69: 1,383,070,048 | L69: 1,329,931,691 | M69: 1,265,394,756 | N69: 1,178,238,171 | O69: 1,184,887,570 | P69: 1,275,813,618 | Q69: 1,328,303,605 | R69: 1,417,655,429 | S69: 1,495,744,701 | T69: 1,660,317,982 | U69: 1,387,217,178 | V69: 1,334,767,335 | W69: 1,275,452,693 | X69: 1,200,494,671 | Y69: 1,187,139,683 | Z69: 146,663,125 | AA69: 164,084,540 | AB69: 139,296,788 | AC69: 146,495,028 | AD69: 152,857,416 | AE69: 149,512,307 | AF69: 131,530,579 | AG69: 78,608,916 | AH69: 64,613,490 | AI69: 70,825,789 | AJ69: 69,296,452 | AK69: 70,265,356 | AL69: 64,548,688 | AM69: 62,229,112 | AN69: 48,866,947 | AO69: 49,088,973 | AP69: 52,213,717 | AQ69: 47,496,896 | AR69: 39,907,414 | AS69: 51,996,459 | AT69: 40,269,152 | AU69: 35,648,218 | AV69: 31,767,095 | AW69: 30,704,202 | AX69: 136,093 | AY69: 150,005 | AZ69: 154,066 | BA69: 161,560 | BB69: 167,399 | BC69: 162,944 | BD69: 158,909 | BE69: 132,603 | BF69: 113,207 | BG69: 105,585 | BH69: 101,532 | BI69: 96,606 | BJ69: 89,944 | BK69: 90,450 | BL69: 97,387 | BM69: 101,404 | BN69: 108,219 | BO69: 114,181 | BP69: 126,747 | BQ69: 105,895 | BR69: 101,891 | BS69: 97,367 | BT69: 91,646 | BU69: 90,625 | BV69: 8.2 | BW69: 8.4 | BX69: 6.9 | BY69: 6.9 | BZ69: 7.0 | CA69: 7.0 | CB69: 6.3 | CC69: 4.5 | CD69: 4.4 | CE69: 5.1 | CF69: 5.2 | CG69: 5.6 | CH69: 5.5 | CI69: 5.3 | CJ69: 3.8 | CK69: 3.7 | CL69: 3.7 | CM69: 3.2 | CN69: 2.4 | CO69: 3.7 | CP69: 3.0 | CQ69: 2.8 | CR69: 2.6 | CS69: 2.6 | CT69: 13,098 | CU69: 13,100 | CV69: 13,099 | CW69: 13,100 | CX69: 13,100 | CY69: 13,100 | CZ69: 13,101 | DA69: 13,099 | DB69: 13,099 | DC69: 13,099 | DD69: 13,099 | DE69: 13,099 | DF69: 13,100 | DG69: 13,100 | DH69: 13,100 | DI69: 13,099 | DJ69: 13,100 | DK69: 13,100 | DL69: 13,099 | DM69: 13,100 | DN69: 13,100 | DO69: 13,099 | DP69: 13,099 | DQ69: 13,099
A70: 67 | B70: 1,741,344,316 | C70: 1,961,785,985 | D70: 2,048,767,820 | E70: 2,151,930,574 | F70: 2,197,252,088 | G70: 2,242,901,685 | H70: 2,181,324,769 | I70: 1,831,269,162 | J70: 1,584,294,655 | K70: 1,521,162,643 | L70: 1,451,386,907 | M70: 1,347,238,200 | N70: 1,274,419,844 | O70: 1,302,449,081 | P70: 1,383,270,873 | Q70: 1,454,781,950 | R70: 1,515,890,667 | S70: 1,574,566,079 | T70: 1,791,380,343 | U70: 2,055,524,693 | V70: 2,141,380,992 | W70: 1,348,022,736 | X70: 1,271,442,158 | Y70: 1,240,232,221 | Z70: 146,404,093 | AA70: 167,487,667 | AB70: 145,381,814 | AC70: 152,665,320 | AD70: 156,769,994 | AE70: 161,527,864 | AF70: 141,988,162 | AG70: 86,326,230 | AH70: 71,824,519 | AI70: 81,305,493 | AJ70: 78,663,817 | AK70: 76,533,669 | AL70: 71,338,306 | AM70: 70,157,688 | AN70: 55,020,847 | AO70: 57,146,034 | AP70: 59,607,607 | AQ70: 52,895,769 | AR70: 42,632,934 | AS70: 59,458,194 | AT70: 48,884,310 | AU70: 38,158,592 | AV70: 33,777,578 | AW70: 32,044,118 | AX70: 130,935 | AY70: 147,501 | AZ70: 154,046 | BA70: 161,823 | BB70: 165,224 | BC70: 168,665 | BD70: 164,042 | BE70: 137,708 | BF70: 119,140 | BG70: 114,401 | BH70: 109,160 | BI70: 101,328 | BJ70: 95,861 | BK70: 97,961 | BL70: 104,020 | BM70: 109,401 | BN70: 113,990 | BO70: 118,409 | BP70: 134,739 | BQ70: 154,569 | BR70: 160,778 | BS70: 101,369 | BT70: 95,619 | BU70: 93,272 | BV70: 8.4 | BW70: 8.5 | BX70: 7.1 | BY70: 7.1 | BZ70: 7.1 | CA70: 7.2 | CB70: 6.5 | CC70: 4.7 | CD70: 4.5 | CE70: 5.3 | CF70: 5.4 | CG70: 5.7 | CH70: 5.6 | CI70: 5.4 | CJ70: 4.0 | CK70: 3.9 | CL70: 3.9 | CM70: 3.4 | CN70: 2.4 | CO70: 2.9 | CP70: 2.3 | CQ70: 2.8 | CR70: 2.7 | CS70: 2.6 | CT70: 13,299 | CU70: 13,300 | CV70: 13,300 | CW70: 13,298 | CX70: 13,299 | CY70: 13,298 | CZ70: 13,297 | DA70: 13,298 | DB70: 13,298 | DC70: 13,297 | DD70: 13,296 | DE70: =+M70/BI70 -> 13,296 | DF70: 13,294 | DG70: 13,296 | DH70: 13,298 | DI70: 13,298 | DJ70: 13,298 | DK70: 13,298 | DL70: 13,295 | DM70: 13,298 | DN70: 13,319 | DO70: 13,298 | DP70: 13,297 | DQ70: 13,297
A71: 68 | B71: 1,695,146,908 | C71: 1,870,242,779 | D71: 2,061,413,149 | E71: 2,148,081,388 | F71: 2,197,710,316 | G71: 2,281,929,176 | H71: 2,194,239,914 | I71: 1,886,424,863 | J71: 1,599,437,741 | K71: 1,509,097,302 | L71: 1,416,836,048 | M71: 1,335,815,935 | N71: 1,236,597,216 | O71: 1,238,812,842 | P71: 1,356,764,428 | Q71: 1,422,429,271 | R71: 1,484,882,195 | S71: 1,538,482,639 | T71: 1,730,961,466 | U71: 1,545,149,567 | V71: 1,685,206,417 | W71: 1,372,423,202 | X71: 1,261,655,309 | Y71: 1,237,032,573 | Z71: 147,465,072 | AA71: 163,851,831 | AB71: 151,099,727 | AC71: 156,458,482 | AD71: 160,794,052 | AE71: 168,743,307 | AF71: 149,705,434 | AG71: 91,357,153 | AH71: 75,691,783 | AI71: 86,019,152 | AJ71: 81,630,024 | AK71: 82,293,888 | AL71: 75,099,422 | AM71: 72,699,221 | AN71: 58,390,099 | AO71: 59,577,665 | AP71: 62,187,194 | AQ71: 54,097,064 | AR71: 42,903,705 | AS71: 56,106,215 | AT71: 45,283,699 | AU71: 38,909,565 | AV71: 33,880,940 | AW71: 32,908,834 | AX71: 125,568 | AY71: 138,543 | AZ71: 152,714 | BA71: 159,113 | BB71: 162,789 | BC71: 169,026 | BD71: 162,530 | BE71: 139,750 | BF71: 118,483 | BG71: 111,782 | BH71: 104,951 | BI71: 98,950 | BJ71: 91,600 | BK71: 91,762 | BL71: 100,507 | BM71: 105,374 | BN71: 109,995 | BO71: 113,962 | BP71: 128,234 | BQ71: 114,461 | BR71: 124,845 | BS71: 101,658 | BT71: 93,454 | BU71: 91,635 | BV71: 8.7 | BW71: 8.8 | BX71: 7.3 | BY71: 7.3 | BZ71: 7.3 | CA71: 7.4 | CB71: 6.8 | CC71: 4.8 | CD71: 4.7 | CE71: 5.7 | CF71: 5.8 | CG71: 6.2 | CH71: 6.1 | CI71: 5.9 | CJ71: 4.3 | CK71: 4.2 | CL71: 4.2 | CM71: 3.5 | CN71: 2.5 | CO71: 3.6 | CP71: 2.7 | CQ71: 2.8 | CR71: 2.7 | CS71: 2.7 | CT71: =+B71/AX71 -> 13,500 | CU71: 13,499 | CV71: 13,499 | CW71: 13,500 | CX71: 13,500 | CY71: 13,500 | CZ71: 13,501 | DA71: 13,499 | DB71: 13,499 | DC71: 13,500 | DD71: 13,500 | DE71: 13,500 | DF71: 13,500 | DG71: 13,500 | DH71: 13,499 | DI71: 13,499 | DJ71: 13,500 | DK71: 13,500 | DL71: 13,498 | DM71: 13,499 | DN71: 13,498 | DO71: 13,500 | DP71: 13,500 | DQ71: 13,500
A72: 69 | B72: 1,662,812,603 | C72: 1,789,480,296 | D72: 2,019,640,924 | E72: 2,043,401,952 | F72: 2,211,913,484 | G72: 2,311,958,007 | H72: 2,232,532,872 | I72: 1,899,203,695 | J72: 1,642,450,290 | K72: 1,526,896,355 | L72: 1,427,462,703 | M72: 1,347,156,008 | N72: 1,244,935,505 | O72: 1,269,161,634 | P72: 1,335,118,856 | Q72: 1,435,214,503 | R72: 1,520,789,218 | S72: 1,549,642,414 | T72: 1,649,128,665 | U72: 1,523,929,893 | V72: 1,610,983,783 | W72: 1,426,252,049 | X72: 1,293,774,066 | Y72: 1,241,536,374 | Z72: 147,835,406 | AA72: 160,648,754 | AB72: 154,949,301 | AC72: 154,834,835 | AD72: 168,297,987 | AE72: 176,858,171 | AF72: 155,658,499 | AG72: 96,744,736 | AH72: 82,335,387 | AI72: 92,354,596 | AJ72: 88,043,962 | AK72: 87,634,522 | AL72: 79,925,861 | AM72: 79,248,548 | AN72: 61,042,955 | AO72: 64,085,194 | AP72: 67,125,025 | AQ72: 57,210,250 | AR72: 43,580,807 | AS72: 57,147,541 | AT72: 45,795,725 | AU72: 40,625,679 | AV72: 34,782,925 | AW72: 33,208,764 | AX72: 121,378 | AY72: 130,627 | AZ72: 147,419 | BA72: 149,151 | BB72: 161,444 | BC72: 168,749 | BD72: 162,954 | BE72: 138,618 | BF72: 119,878 | BG72: 111,449 | BH72: 104,192 | BI72: 98,336 | BJ72: 90,870 | BK72: 92,643 | BL72: 97,463 | BM72: 104,764 | BN72: 111,001 | BO72: 113,113 | BP72: 120,372 | BQ72: 111,236 | BR72: 117,581 | BS72: 104,100 | BT72: 94,440 | BU72: 90,632 | BV72: 8.9 | BW72: 9.0 | BX72: 7.7 | BY72: 7.6 | BZ72: 7.6 | CA72: 7.6 | CB72: 7.0 | CC72: 5.1 | CD72: 5.0 | CE72: 6.0 | CF72: 6.2 | CG72: 6.5 | CH72: 6.4 | CI72: 6.2 | CJ72: 4.6 | CK72: 4.5 | CL72: 4.4 | CM72: 3.7 | CN72: 2.6 | CO72: 3.8 | CP72: 2.8 | CQ72: 2.8 | CR72: 2.7 | CS72: 2.7 | CT72: 13,699 | CU72: 13,699 | CV72: 13,700 | CW72: 13,700 | CX72: 13,701 | CY72: 13,701 | CZ72: 13,700 | DA72: 13,701 | DB72: 13,701 | DC72: 13,700 | DD72: 13,700 | DE72: 13,700 | DF72: 13,700 | DG72: 13,699 | DH72: 13,699 | DI72: 13,700 | DJ72: 13,701 | DK72: 13,700 | DL72: 13,700 | DM72: 13,700 | DN72: 13,701 | DO72: 13,701 | DP72: 13,699 | DQ72: 13,699
A73: 70 | B73: 1,665,717,633 | C73: 1,774,950,024 | D73: 1,989,062,777 | E73: 2,138,938,362 | F73: 2,194,705,889 | G73: 2,286,644,692 | H73: 2,275,293,683 | I73: 1,973,394,770 | J73: 1,668,807,123 | K73: 1,600,923,901 | L73: 1,486,501,707 | M73: 1,415,242,378 | N73: 1,314,591,002 | O73: 1,323,266,867 | P73: 1,384,524,095 | Q73: 1,440,772,926 | R73: 1,564,698,135 | S73: 1,636,150,204 | T73: 1,727,063,529 | U73: 1,555,517,177 | V73: 1,696,548,172 | W73: 2,155,955,118 | X73: 1,324,759,754 | Y73: 1,296,141,177 | Z73: 152,087,281 | AA73: 163,389,844 | AB73: 157,335,476 | AC73: 167,654,826 | AD73: 172,615,720 | AE73: 179,580,632 | AF73: 162,322,122 | AG73: 104,591,832 | AH73: 86,596,866 | AI73: 101,029,222 | AJ73: 95,308,774 | AK73: 94,803,696 | AL73: 86,972,134 | AM73: 85,415,503 | AN73: 66,588,801 | AO73: 68,545,144 | AP73: 73,524,915 | AQ73: 63,128,864 | AR73: 46,103,136 | AS73: 59,189,815 | AT73: 48,046,959 | AU73: 48,625,922 | AV73: 35,997,313 | AW73: 34,920,735 | AX73: 119,842 | AY73: 127,709 | AZ73: 143,106 | BA73: 153,903 | BB73: 157,896 | BC73: 164,510 | BD73: 163,694 | BE73: 141,984 | BF73: 120,061 | BG73: 115,169 | BH73: 106,940 | BI73: 101,816 | BJ73: 94,570 | BK73: 95,189 | BL73: 99,607 | BM73: 103,655 | BN73: 112,573 | BO73: 117,697 | BP73: 124,244 | BQ73: 111,909 | BR73: 122,049 | BS73: 154,908 | BT73: 95,309 | BU73: 93,250 | BV73: 9.1 | BW73: 9.2 | BX73: 7.9 | BY73: 7.8 | BZ73: 7.9 | CA73: 7.9 | CB73: 7.1 | CC73: 5.3 | CD73: 5.2 | CE73: 6.3 | CF73: 6.4 | CG73: 6.7 | CH73: 6.6 | CI73: 6.5 | CJ73: 4.8 | CK73: 4.8 | CL73: 4.7 | CM73: 3.9 | CN73: 2.7 | CO73: 3.8 | CP73: 2.8 | CQ73: 2.3 | CR73: 2.7 | CS73: 2.7 | CT73: 13,899 | CU73: 13,898 | CV73: 13,899 | CW73: 13,898 | CX73: 13,900 | CY73: 13,900 | CZ73: 13,900 | DA73: 13,899 | DB73: 13,900 | DC73: 13,901 | DD73: 13,900 | DE73: 13,900 | DF73: 13,901 | DG73: 13,901 | DH73: 13,900 | DI73: 13,900 | DJ73: 13,899 | DK73: 13,901 | DL73: 13,901 | DM73: 13,900 | DN73: 13,901 | DO73: 13,918 | DP73: 13,900 | DQ73: 13,900
A74: 71 | B74: 1,641,329,161 | C74: 1,754,611,585 | D74: 1,964,339,028 | E74: 2,108,642,256 | F74: 2,190,521,628 | G74: 2,325,831,324 | H74: 2,294,626,789 | I74: 2,047,750,786 | J74: 1,780,760,358 | K74: 1,682,280,862 | L74: 1,582,978,696 | M74: 1,482,173,881 | N74: 1,400,254,274 | O74: 1,389,696,031 | P74: 1,477,091,927 | Q74: 1,557,690,091 | R74: 1,642,095,669 | S74: 1,691,249,644 | T74: 1,777,494,725 | U74: 1,608,211,058 | V74: 1,811,510,643 | W74: 2,176,433,060 | X74: 1,375,433,976 | Y74: 1,324,765,535 | Z74: 153,777,671 | AA74: 164,520,272 | AB74: 158,639,618 | AC74: 169,757,598 | AD74: 175,727,342 | AE74: 186,843,853 | AF74: 168,905,258 | AG74: 111,985,473 | AH74: 96,376,042 | AI74: 111,402,307 | AJ74: 105,903,258 | AK74: 104,691,153 | AL74: 98,238,093 | AM74: 94,402,727 | AN74: 75,631,655 | AO74: 77,424,239 | AP74: 80,948,701 | AQ74: 69,440,856 | AR74: 49,680,203 | AS74: 62,392,260 | AT74: 51,435,982 | AU74: 51,823,530 | AV74: 38,471,768 | AW74: 37,044,397 | AX74: 116,411 | AY74: 124,445 | AZ74: 139,337 | BA74: 149,571 | BB74: 155,376 | BC74: 164,974 | BD74: 162,760 | BE74: 145,247 | BF74: 126,311 | BG74: 119,330 | BH74: 112,297 | BI74: 105,141 | BJ74: 99,325 | BK74: 98,584 | BL74: 104,775 | BM74: 110,500 | BN74: 116,483 | BO74: 119,969 | BP74: 126,081 | BQ74: 114,075 | BR74: 128,507 | BS74: 154,522 | BT74: 97,567 | BU74: 93,967 | BV74: 9.4 | BW74: 9.4 | BX74: 8.1 | BY74: 8.1 | BZ74: 8.0 | CA74: =+AE74/G74*100 -> 8.0 | CB74: 7.4 | CC74: 5.5 | CD74: 5.4 | CE74: 6.6 | CF74: 6.7 | CG74: 7.1 | CH74: 7.0 | CI74: 6.8 | CJ74: 5.1 | CK74: 5.0 | CL74: 4.9 | CM74: 4.1 | CN74: 2.8 | CO74: 3.9 | CP74: 2.8 | CQ74: 2.4 | CR74: 2.8 | CS74: 2.8 | CT74: 14,099 | CU74: 14,099 | CV74: 14,098 | CW74: 14,098 | CX74: 14,098 | CY74: 14,098 | CZ74: 14,098 | DA74: 14,098 | DB74: 14,098 | DC74: 14,098 | DD74: 14,096 | DE74: 14,097 | DF74: 14,098 | DG74: 14,097 | DH74: 14,098 | DI74: 14,097 | DJ74: 14,097 | DK74: 14,097 | DL74: 14,098 | DM74: 14,098 | DN74: 14,097 | DO74: 14,085 | DP74: 14,097 | DQ74: 14,098
A75: 72 | B75: 1,598,306,065 | C75: 1,733,082,981 | D75: 1,875,636,783 | E75: 2,087,449,594 | F75: 2,172,271,521 | G75: 2,344,699,320 | H75: 2,332,118,698 | I75: 2,026,473,662 | J75: 1,752,248,144 | K75: 1,669,786,249 | L75: 1,555,192,711 | M75: 1,471,144,879 | N75: 1,344,462,561 | O75: 1,349,108,988 | P75: 1,426,666,558 | Q75: 1,494,927,505 | R75: 1,573,544,288 | S75: 1,648,474,778 | T75: 1,724,070,948 | U75: 1,589,112,631 | V75: 1,716,907,234 | W75: 1,898,751,579 | X75: 1,353,780,232 | Y75: 1,335,886,096 | Z75: 153,284,257 | AA75: 166,978,915 | AB75: 154,849,871 | AC75: 170,894,112 | AD75: 177,297,610 | AE75: 191,345,170 | AF75: 178,126,317 | AG75: 113,160,822 | AH75: 96,892,760 | AI75: 113,997,948 | AJ75: 107,597,766 | AK75: 108,664,674 | AL75: 98,504,598 | AM75: 96,477,215 | AN75: 76,971,213 | AO75: 78,278,996 | AP75: 82,044,983 | AQ75: 71,196,740 | AR75: 51,599,828 | AS75: 64,272,738 | AT75: 53,044,576 | AU75: 51,605,777 | AV75: 37,878,316 | AW75: 36,864,493 | AX75: 111,769 | AY75: 121,204 | AZ75: 131,164 | BA75: 145,980 | BB75: 151,903 | BC75: 163,961 | BD75: 163,081 | BE75: 141,712 | BF75: 122,530 | BG75: 116,770 | BH75: 108,752 | BI75: 102,877 | BJ75: 94,022 | BK75: 94,344 | BL75: 99,767 | BM75: 104,544 | BN75: 110,036 | BO75: 115,280 | BP75: 120,566 | BQ75: 111,132 | BR75: 120,071 | BS75: 132,776 | BT75: 94,670 | BU75: 93,423 | BV75: =+Z75/B75*100 -> 9.6 | BW75: 9.6 | BX75: 8.3 | BY75: 8.2 | BZ75: 8.2 | CA75: 8.2 | CB75: 7.6 | CC75: 5.6 | CD75: 5.5 | CE75: 6.8 | CF75: 6.9 | CG75: 7.4 | CH75: 7.3 | CI75: 7.2 | CJ75: 5.4 | CK75: 5.2 | CL75: 5.2 | CM75: 4.3 | CN75: 3.0 | CO75: 4.0 | CP75: 3.1 | CQ75: 2.7 | CR75: 2.8 | CS75: 2.8 | CT75: 14,300 | CU75: 14,299 | CV75: 14,300 | CW75: 14,300 | CX75: 14,300 | CY75: 14,300 | CZ75: 14,300 | DA75: 14,300 | DB75: 14,301 | DC75: 14,300 | DD75: 14,300 | DE75: 14,300 | DF75: 14,299 | DG75: 14,300 | DH75: 14,300 | DI75: 14,300 | DJ75: 14,300 | DK75: 14,300 | DL75: 14,300 | DM75: 14,299 | DN75: 14,299 | DO75: 14,300 | DP75: 14,300 | DQ75: 14,299
A76: 73 | B76: 1,695,289,942 | C76: 1,822,595,916 | D76: 1,934,477,305 | E76: 2,164,740,642 | F76: 2,378,816,709 | G76: 2,491,472,126 | H76: 2,509,342,141 | I76: 2,213,055,688 | J76: 1,912,705,003 | K76: 1,772,142,993 | L76: 1,739,993,245 | M76: 1,672,745,590 | N76: 1,541,581,175 | O76: 1,511,618,995 | P76: 1,583,742,906 | Q76: 1,648,107,621 | R76: 1,760,551,741 | S76: 1,847,821,856 | T76: 1,909,594,575 | U76: 1,684,942,606 | V76: 1,809,936,182 | W76: 2,016,960,039 | X76: 1,499,054,235 | Y76: 1,448,909,184 | Z76: 166,924,137 | AA76: 179,592,850 | AB76: 163,219,963 | AC76: 180,905,366 | AD76: 198,732,343 | AE76: 207,051,280 | AF76: 194,968,460 | AG76: 130,434,353 | AH76: 111,201,257 | AI76: 126,387,795 | AJ76: 125,080,907 | AK76: 125,390,262 | AL76: 114,425,914 | AM76: 109,381,237 | AN76: 88,318,429 | AO76: 89,743,527 | AP76: 95,381,316 | AQ76: 83,393,535 | AR76: 59,305,795 | AS76: 69,935,070 | AT76: 59,278,500 | AU76: 59,039,197 | AV76: 42,423,727 | AW76: 40,158,176 | AX76: 116,959 | AY76: 125,742 | AZ76: 133,464 | BA76: 149,349 | BB76: 164,097 | BC76: 171,879 | BD76: 173,121 | BE76: 152,677 | BF76: 131,966 | BG76: 122,281 | BH76: 120,058 | BI76: 115,416 | BJ76: 106,370 | BK76: 104,307 | BL76: 109,280 | BM76: 113,733 | BN76: 121,485 | BO76: 127,499 | BP76: 131,757 | BQ76: 116,243 | BR76: 124,873 | BS76: 139,144 | BT76: 103,422 | BU76: 99,960 | BV76: 9.8 | BW76: 9.9 | BX76: 8.4 | BY76: 8.4 | BZ76: 8.4 | CA76: 8.3 | CB76: 7.8 | CC76: 5.9 | CD76: 5.8 | CE76: 7.1 | CF76: 7.2 | CG76: 7.5 | CH76: 7.4 | CI76: 7.2 | CJ76: 5.6 | CK76: 5.4 | CL76: 5.4 | CM76: 4.5 | CN76: 3.1 | CO76: 4.2 | CP76: 3.3 | CQ76: 2.9 | CR76: 2.8 | CS76: 2.8 | CT76: 14,495 | CU76: 14,495 | CV76: 14,494 | CW76: 14,495 | CX76: 14,496 | CY76: 14,496 | CZ76: 14,495 | DA76: 14,495 | DB76: 14,494 | DC76: 14,492 | DD76: 14,493 | DE76: 14,493 | DF76: 14,493 | DG76: 14,492 | DH76: 14,493 | DI76: 14,491 | DJ76: 14,492 | DK76: 14,493 | DL76: 14,493 | DM76: 14,495 | DN76: 14,494 | DO76: 14,495 | DP76: 14,495 | DQ76: 14,495
A77: 74 | B77: 1,534,198,323 | C77: 1,665,713,341 | D77: 1,832,664,135 | E77: 1,954,466,201 | F77: 2,239,960,884 | G77: 2,284,049,209 | H77: 2,356,995,556 | I77: 2,137,236,382 | J77: 1,832,803,293 | K77: 1,711,285,481 | L77: 1,618,432,710 | M77: 1,613,322,448 | N77: 1,452,424,205 | O77: 1,445,913,977 | P77: 1,541,790,406 | Q77: 1,580,685,508 | R77: 1,666,918,067 | S77: 1,736,361,152 | T77: 1,824,258,351 | U77: 1,640,628,330 | V77: 1,760,415,686 | W77: 1,974,952,378 | X77: 1,496,017,300 | Y77: 1,391,718,543 | Z77: 153,885,083 | AA77: 167,270,216 | AB77: 160,267,080 | AC77: 169,027,410 | AD77: 193,345,346 | AE77: 194,496,962 | AF77: 186,133,750 | AG77: 128,929,499 | AH77: 109,573,010 | AI77: 127,744,570 | AJ77: 121,826,274 | AK77: 126,281,335 | AL77: 112,613,507 | AM77: 109,285,055 | AN77: 91,412,449 | AO77: 91,025,691 | AP77: 95,717,855 | AQ77: 82,874,297 | AR77: 60,906,237 | AS77: 71,538,902 | AT77: 60,832,359 | AU77: 61,885,284 | AV77: 42,683,018 | AW77: 39,424,577 | AX77: 104,369 | AY77: 113,313 | AZ77: 124,664 | BA77: 132,967 | BB77: 152,385 | BC77: 155,380 | BD77: 160,338 | BE77: 145,393 | BF77: 124,676 | BG77: 116,408 | BH77: 110,101 | BI77: 109,748 | BJ77: 98,807 | BK77: 98,361 | BL77: 104,899 | BM77: 107,541 | BN77: 113,400 | BO77: 118,127 | BP77: 124,105 | BQ77: 111,604 | BR77: 119,753 | BS77: 134,348 | BT77: 101,766 | BU77: 94,677 | BV77: 10.0 | BW77: 10.0 | BX77: 8.7 | BY77: 8.6 | BZ77: 8.6 | CA77: 8.5 | CB77: 7.9 | CC77: 6.0 | CD77: 6.0 | CE77: 7.5 | CF77: 7.5 | CG77: 7.8 | CH77: 7.8 | CI77: 7.6 | CJ77: 5.9 | CK77: 5.8 | CL77: 5.7 | CM77: 4.8 | CN77: 3.3 | CO77: 4.4 | CP77: 3.5 | CQ77: 3.1 | CR77: 2.9 | CS77: 2.8 | CT77: 14,700 | CU77: 14,700 | CV77: 14,701 | CW77: 14,699 | CX77: 14,699 | CY77: 14,700 | CZ77: 14,700 | DA77: 14,700 | DB77: 14,701 | DC77: 14,701 | DD77: 14,700 | DE77: 14,700 | DF77: 14,700 | DG77: 14,700 | DH77: 14,698 | DI77: 14,698 | DJ77: 14,699 | DK77: 14,699 | DL77: 14,699 | DM77: 14,700 | DN77: 14,700 | DO77: 14,700 | DP77: 14,701 | DQ77: 14,700
A78: 75 | B78: 1,484,371,507 | C78: 1,638,069,830 | D78: 1,784,954,449 | E78: 1,919,254,573 | F78: 2,164,143,917 | G78: 2,274,173,422 | H78: 2,431,921,247 | I78: 2,168,776,935 | J78: 1,885,714,105 | K78: 1,804,916,337 | L78: 1,662,806,591 | M78: 1,641,557,416 | N78: 1,452,542,726 | O78: 1,456,673,418 | P78: 1,525,340,028 | Q78: 1,587,754,946 | R78: 1,668,210,399 | S78: 1,735,477,763 | T78: 1,868,900,439 | U78: 1,624,257,534 | V78: 1,734,039,640 | W78: 1,975,103,719 | X78: 1,666,262,926 | Y78: 1,416,781,656 | Z78: 151,209,555 | AA78: 167,897,635 | AB78: 160,059,259 | AC78: 170,490,813 | AD78: 191,631,578 | AE78: 199,133,630 | AF78: 194,821,823 | AG78: 133,047,724 | AH78: 114,306,604 | AI78: 137,681,124 | AJ78: 128,126,510 | AK78: 131,576,723 | AL78: 115,617,896 | AM78: 113,022,068 | AN78: 94,697,829 | AO78: 96,412,943 | AP78: 100,091,576 | AQ78: 87,952,000 | AR78: 66,353,810 | AS78: 74,946,312 | AT78: 64,424,661 | AU78: 66,464,329 | AV78: 45,945,175 | AW78: 41,298,566 | AX78: 99,622 | AY78: 109,941 | AZ78: 119,801 | BA78: 128,810 | BB78: 145,247 | BC78: 152,635 | BD78: 163,225 | BE78: 145,553 | BF78: 126,558 | BG78: 121,139 | BH78: 111,600 | BI78: 110,167 | BJ78: 97,482 | BK78: 97,759 | BL78: 102,370 | BM78: 106,555 | BN78: 111,952 | BO78: 116,469 | BP78: 125,418 | BQ78: 109,010 | BR78: 116,383 | BS78: 132,556 | BT78: 111,809 | BU78: 95,084 | BV78: 10.2 | BW78: 10.2 | BX78: 9.0 | BY78: 8.9 | BZ78: 8.9 | CA78: 8.8 | CB78: 8.0 | CC78: 6.1 | CD78: 6.1 | CE78: 7.6 | CF78: 7.7 | CG78: 8.0 | CH78: 8.0 | CI78: 7.8 | CJ78: 6.2 | CK78: 6.1 | CL78: 6.0 | CM78: 5.1 | CN78: 3.6 | CO78: 4.6 | CP78: 3.7 | CQ78: 3.4 | CR78: 2.8 | CS78: 2.9 | CT78: 14,900 | CU78: 14,900 | CV78: 14,899 | CW78: 14,900 | CX78: 14,900 | CY78: 14,899 | CZ78: 14,899 | DA78: 14,900 | DB78: 14,900 | DC78: 14,900 | DD78: 14,900 | DE78: 14,901 | DF78: 14,901 | DG78: 14,901 | DH78: 14,900 | DI78: 14,901 | DJ78: 14,901 | DK78: 14,901 | DL78: 14,901 | DM78: 14,900 | DN78: 14,899 | DO78: 14,900 | DP78: 14,903 | DQ78: 14,900
A79: 76 | B79: 1,522,695,955 | C79: 1,647,439,234 | D79: 1,835,457,729 | E79: 1,932,169,881 | F79: 2,212,931,144 | G79: 2,412,771,919 | H79: 2,497,130,479 | I79: 2,241,337,511 | J79: 1,957,163,480 | K79: 1,885,250,397 | L79: 1,755,480,556 | M79: 1,714,512,828 | N79: 1,594,811,280 | O79: 1,554,905,767 | P79: 1,618,632,085 | Q79: 1,707,094,592 | R79: 1,806,149,907 | S79: 1,875,414,717 | T79: 1,958,491,693 | U79: 1,675,245,698 | V79: 1,816,094,277 | W79: 2,020,750,326 | X79: 3,366,748,370 | Y79: 1,532,100,078 | Z79: 158,331,971 | AA79: 172,304,156 | AB79: 168,528,088 | AC79: 176,072,866 | AD79: 200,724,786 | AE79: 217,381,200 | AF79: 203,997,007 | AG79: 141,371,989 | AH79: 121,766,824 | AI79: 146,186,026 | AJ79: 137,447,759 | AK79: 139,466,132 | AL79: 129,088,218 | AM79: 122,861,601 | AN79: 104,676,884 | AO79: 107,819,930 | AP79: 113,820,509 | AQ79: 99,345,589 | AR79: 74,755,870 | AS79: 80,869,503 | AT79: 72,278,015 | AU79: 74,155,132 | AV79: 66,110,372 | AW79: 45,174,973 | AX79: 100,852 | AY79: 109,115 | AZ79: 121,558 | BA79: 127,977 | BB79: 146,579 | BC79: 159,818 | BD79: 165,408 | BE79: 148,463 | BF79: 129,649 | BG79: 124,890 | BH79: 116,293 | BI79: 113,582 | BJ79: 105,648 | BK79: 103,002 | BL79: 107,229 | BM79: 113,094 | BN79: 119,648 | BO79: 124,225 | BP79: 129,730 | BQ79: 110,970 | BR79: 120,298 | BS79: 133,850 | BT79: 222,951 | BU79: 101,478 | BV79: 10.4 | BW79: 10.5 | BX79: 9.2 | BY79: 9.1 | BZ79: 9.1 | CA79: 9.0 | CB79: 8.2 | CC79: 6.3 | CD79: 6.2 | CE79: 7.8 | CF79: 7.8 | CG79: 8.1 | CH79: 8.1 | CI79: 7.9 | CJ79: 6.5 | CK79: 6.3 | CL79: 6.3 | CM79: 5.3 | CN79: 3.8 | CO79: 4.8 | CP79: 4.0 | CQ79: 3.7 | CR79: 2.0 | CS79: 2.9 | CT79: 15,098 | CU79: 15,098 | CV79: 15,099 | CW79: 15,098 | CX79: 15,097 | CY79: 15,097 | CZ79: 15,097 | DA79: 15,097 | DB79: 15,096 | DC79: 15,095 | DD79: 15,095 | DE79: 15,095 | DF79: 15,096 | DG79: 15,096 | DH79: 15,095 | DI79: 15,094 | DJ79: 15,096 | DK79: 15,097 | DL79: 15,097 | DM79: 15,096 | DN79: 15,097 | DO79: 15,097 | DP79: 15,101 | DQ79: 15,098
A80: 77 | B80: 1,434,653,898 | C80: 1,582,756,740 | D80: 1,730,513,109 | E80: 1,875,326,480 | F80: 2,042,662,104 | G80: 2,339,415,357 | H80: 2,357,177,320 | I80: 2,214,760,427 | J80: 1,928,996,666 | K80: 1,827,009,325 | L80: 1,767,676,725 | M80: 1,653,348,774 | N80: 1,485,359,329 | O80: 1,486,680,432 | P80: 1,561,121,312 | Q80: 1,654,793,603 | R80: 1,744,954,534 | S80: 1,801,916,884 | T80: 1,913,135,815 | U80: 1,632,021,384 | V80: 1,799,996,642 | W80: 1,983,724,928 | X80: 2,149,791,370 | Y80: 1,516,047,751 | Z80: 151,686,976 | AA80: 168,153,118 | AB80: 161,067,537 | AC80: 173,434,398 | AD80: 187,319,622 | AE80: 214,015,019 | AF80: 197,750,246 | AG80: 141,010,239 | AH80: 122,398,377 | AI80: 145,456,574 | AJ80: 141,955,961 | AK80: 141,577,774 | AL80: 126,335,677 | AM80: 123,255,498 | AN80: 106,097,531 | AO80: 109,102,331 | AP80: 113,657,473 | AQ80: 100,215,828 | AR80: 77,341,684 | AS80: 82,484,619 | AT80: 74,837,006 | AU80: 77,156,570 | AV80: 56,847,113 | AW80: 44,485,793 | AX80: 93,769 | AY80: 103,449 | AZ80: 113,111 | BA80: 122,577 | BB80: 133,513 | BC80: 152,909 | BD80: 154,070 | BE80: 144,752 | BF80: 126,075 | BG80: 119,413 | BH80: 115,533 | BI80: 108,060 | BJ80: 97,077 | BK80: 97,164 | BL80: 102,039 | BM80: 108,168 | BN80: 114,052 | BO80: 117,775 | BP80: 125,030 | BQ80: 106,665 | BR80: 117,644 | BS80: 129,649 | BT80: 140,514 | BU80: 99,086 | BV80: 10.6 | BW80: 10.6 | BX80: 9.3 | BY80: 9.2 | BZ80: 9.2 | CA80: 9.1 | CB80: 8.4 | CC80: 6.4 | CD80: 6.3 | CE80: 8.0 | CF80: 8.0 | CG80: 8.6 | CH80: 8.5 | CI80: 8.3 | CJ80: 6.8 | CK80: 6.6 | CL80: 6.5 | CM80: 5.6 | CN80: 4.0 | CO80: 5.1 | CP80: 4.2 | CQ80: 3.9 | CR80: 2.6 | CS80: 2.9 | CT80: 15,300 | CU80: 15,300 | CV80: 15,299 | CW80: 15,299 | CX80: 15,299 | CY80: 15,299 | CZ80: 15,299 | DA80: 15,300 | DB80: 15,300 | DC80: 15,300 | DD80: 15,300 | DE80: 15,300 | DF80: 15,301 | DG80: 15,301 | DH80: 15,299 | DI80: 15,298 | DJ80: 15,300 | DK80: 15,300 | DL80: 15,301 | DM80: 15,300 | DN80: 15,300 | DO80: 15,301 | DP80: 15,299 | DQ80: 15,300
A81: 78 | B81: 1,424,885,543 | C81: 1,560,349,543 | D81: 1,702,682,341 | E81: 1,852,106,860 | F81: 2,006,289,756 | G81: 2,327,499,566 | H81: 2,374,266,221 | I81: 2,245,058,213 | J81: 1,908,041,639 | K81: 1,814,251,132 | L81: 1,744,240,212 | M81: 1,726,590,645 | N81: 1,501,524,297 | O81: 1,521,216,699 | P81: 1,582,073,176 | Q81: 1,655,952,826 | R81: 1,811,061,527 | S81: 1,836,414,479 | T81: 1,933,509,459 | U81: 1,655,423,031 | V81: 1,802,618,520 | W81: 2,014,226,931 | X81: 2,141,162,437 | Y81: 1,608,044,497 | Z81: 153,321,103 | AA81: 168,605,507 | AB81: 161,086,788 | AC81: 173,001,942 | AD81: 186,659,539 | AE81: 215,246,949 | AF81: 205,276,676 | AG81: 146,517,854 | AH81: 123,855,400 | AI81: 148,648,653 | AJ81: 143,799,030 | AK81: 151,286,958 | AL81: 131,483,385 | AM81: 130,982,311 | AN81: 111,748,610 | AO81: 114,280,661 | AP81: 124,495,388 | AQ81: 107,254,758 | AR81: 84,217,370 | AS81: 87,705,412 | AT81: 81,327,243 | AU81: 84,301,778 | AV81: 60,539,231 | AW81: 46,640,058 | AX81: 91,928 | AY81: 100,672 | AZ81: 109,855 | BA81: 119,497 | BB81: 129,443 | BC81: 150,172 | BD81: 153,192 | BE81: 144,853 | BF81: 123,108 | BG81: 117,054 | BH81: 112,542 | BI81: 111,404 | BJ81: 96,882 | BK81: 98,152 | BL81: 102,073 | BM81: 106,849 | BN81: 116,844 | BO81: 118,485 | BP81: 124,748 | BQ81: 106,805 | BR81: 116,306 | BS81: 129,962 | BT81: 138,148 | BU81: 103,747 | BV81: 10.8 | BW81: 10.8 | BX81: 9.5 | BY81: 9.3 | BZ81: 9.3 | CA81: 9.2 | CB81: 8.6 | CC81: 6.5 | CD81: 6.5 | CE81: 8.2 | CF81: 8.2 | CG81: 8.8 | CH81: 8.8 | CI81: 8.6 | CJ81: 7.1 | CK81: 6.9 | CL81: 6.9 | CM81: 5.8 | CN81: 4.4 | CO81: 5.3 | CP81: 4.5 | CQ81: 4.2 | CR81: 2.8 | CS81: 2.9 | CT81: 15,500 | CU81: 15,499 | CV81: 15,499 | CW81: 15,499 | CX81: 15,499 | CY81: 15,499 | CZ81: 15,499 | DA81: 15,499 | DB81: 15,499 | DC81: 15,499 | DD81: 15,499 | DE81: 15,498 | DF81: 15,498 | DG81: 15,499 | DH81: 15,499 | DI81: 15,498 | DJ81: 15,500 | DK81: 15,499 | DL81: 15,499 | DM81: 15,499 | DN81: 15,499 | DO81: 15,499 | DP81: 15,499 | DQ81: 15,500 | DR81: 15,500
A82: 79 | B82: 1,396,374,466 | C82: 1,533,678,103 | D82: 1,695,605,483 | E82: 1,846,636,688 | F82: 1,986,505,804 | G82: 2,320,356,009 | H82: 2,423,662,942 | I82: 2,298,954,075 | J82: 1,985,951,316 | K82: 1,858,218,057 | L82: 1,773,877,985 | M82: 1,783,365,171 | N82: 1,557,906,564 | O82: 1,556,817,611 | P82: 1,652,834,356 | Q82: 1,686,586,726 | R82: 1,825,913,769 | S82: 1,937,020,118 | T82: 2,002,640,917 | U82: 1,695,758,345 | V82: 1,857,224,428 | W82: 2,069,162,239 | X82: 2,209,775,714 | Y82: 1,853,514,803 | Z82: 152,460,605 | AA82: 168,236,476 | AB82: 163,169,022 | AC82: 175,748,718 | AD82: 187,758,093 | AE82: 217,357,027 | AF82: 212,216,101 | AG82: 157,893,231 | AH82: 134,315,568 | AI82: 158,373,063 | AJ82: 152,275,473 | AK82: 158,095,610 | AL82: 138,455,998 | AM82: 135,123,145 | AN82: 118,068,675 | AO82: 118,435,941 | AP82: 127,529,855 | AQ82: 116,746,447 | AR82: 92,270,592 | AS82: 93,406,148 | AT82: 87,611,930 | AU82: 92,210,726 | AV82: 66,908,982 | AW82: 52,227,292 | AX82: 88,950 | AY82: 97,696 | AZ82: 108,014 | BA82: 117,632 | BB82: 126,542 | BC82: 147,814 | BD82: 154,399 | BE82: 146,443 | BF82: 126,527 | BG82: 118,381 | BH82: 113,008 | BI82: 113,615 | BJ82: 99,252 | BK82: 99,175 | BL82: 105,290 | BM82: 107,449 | BN82: 116,325 | BO82: 123,392 | BP82: 127,581 | BQ82: 108,025 | BR82: 118,313 | BS82: 131,813 | BT82: 140,770 | BU82: 118,051 | BV82: 10.9 | BW82: 11.0 | BX82: 9.6 | BY82: 9.5 | BZ82: 9.5 | CA82: 9.4 | CB82: 8.8 | CC82: 6.9 | CD82: 6.8 | CE82: 8.5 | CF82: 8.6 | CG82: 8.9 | CH82: 8.9 | CI82: 8.7 | CJ82: 7.1 | CK82: 7.0 | CL82: 7.0 | CM82: 6.0 | CN82: 4.6 | CO82: 5.5 | CP82: 4.7 | CQ82: 4.5 | CR82: 3.0 | CS82: 2.8 | CT82: 15,698 | CU82: 15,698 | CV82: 15,698 | CW82: 15,698 | CX82: 15,698 | CY82: 15,698 | CZ82: 15,697 | DA82: 15,699 | DB82: 15,696 | DC82: 15,697 | DD82: 15,697 | DE82: 15,697 | DF82: 15,696 | DG82: 15,698 | DH82: 15,698 | DI82: 15,697 | DJ82: 15,697 | DK82: 15,698 | DL82: 15,697 | DM82: 15,698 | DN82: 15,698 | DO82: 15,698 | DP82: 15,698 | DQ82: 15,701
A83: 80 | B83: 1,380,378,347 | C83: 1,517,767,601 | D83: 1,643,420,442 | E83: 1,772,118,842 | F83: 1,936,712,808 | G83: 2,153,494,314 | H83: 2,388,099,207 | I83: 2,280,817,186 | J83: 1,936,054,657 | K83: 1,901,988,471 | L83: 1,850,775,956 | M83: 1,756,725,097 | N83: 1,573,859,376 | O83: 1,574,180,174 | P83: 1,601,402,928 | Q83: 1,683,997,768 | R83: 1,792,524,391 | S83: 1,847,643,146 | T83: 2,000,645,640 | U83: 1,653,934,318 | V83: 1,801,180,847 | W83: 2,064,424,374 | X83: 2,171,909,800 | Y83: 3,813,314,150 | Z83: 153,128,792 | AA83: 169,203,365 | AB83: 161,183,427 | AC83: 172,251,498 | AD83: 185,781,969 | AE83: 204,662,163 | AF83: 212,618,461 | AG83: 160,812,195 | AH83: 134,950,485 | AI83: 167,031,126 | AJ83: 163,934,587 | AK83: 159,916,139 | AL83: 143,348,984 | AM83: 140,611,048 | AN83: 118,725,524 | AO83: 120,284,924 | AP83: 128,808,337 | AQ83: 115,232,568 | AR83: 97,699,331 | AS83: 95,967,521 | AT83: 90,749,715 | AU83: 98,480,919 | AV83: 70,389,235 | AW83: 74,330,419 | AX83: 86,819 | AY83: 95,455 | AZ83: 103,365 | BA83: 111,458 | BB83: 121,806 | BC83: 135,440 | BD83: 150,192 | BE83: 143,443 | BF83: 121,763 | BG83: 119,606 | BH83: 116,387 | BI83: 110,475 | BJ83: 98,973 | BK83: 98,997 | BL83: 100,707 | BM83: 105,910 | BN83: 112,733 | BO83: 116,199 | BP83: 125,812 | BQ83: 104,017 | BR83: 113,278 | BS83: 129,838 | BT83: 136,595 | BU83: 239,973 | BV83: 11.1 | BW83: 11.1 | BX83: 9.8 | BY83: 9.7 | BZ83: 9.6 | CA83: 9.5 | CB83: 8.9 | CC83: 7.1 | CD83: 7.0 | CE83: 8.8 | CF83: 8.9 | CG83: 9.1 | CH83: 9.1 | CI83: 8.9 | CJ83: 7.4 | CK83: 7.1 | CL83: 7.2 | CM83: 6.2 | CN83: 4.9 | CO83: 5.8 | CP83: 5.0 | CQ83: 4.8 | CR83: 3.2 | CS83: 1.9 | CT83: 15,899 | CU83: 15,900 | CV83: 15,899 | CW83: 15,899 | CX83: 15,900 | CY83: 15,900 | CZ83: 15,900 | DA83: 15,901 | DB83: 15,900 | DC83: 15,902 | DD83: 15,902 | DE83: 15,902 | DF83: 15,902 | DG83: 15,901 | DH83: 15,902 | DI83: 15,900 | DJ83: 15,901 | DK83: 15,901 | DL83: 15,902 | DM83: 15,901 | DN83: 15,901 | DO83: 15,900 | DP83: 15,900 | DQ83: 15,891
A84: 81 | B84: 1,346,893,048 | C84: 1,458,974,438 | D84: 1,615,116,838 | E84: 1,745,701,859 | F84: 1,929,309,044 | G84: 2,108,443,081 | H84: 2,428,488,106 | I84: 2,265,026,082 | J84: 2,012,700,074 | K84: 1,913,124,771 | L84: 1,846,705,897 | M84: 1,736,971,815 | N84: 1,696,986,450 | O84: 1,681,322,217 | P84: 1,729,305,473 | Q84: 1,770,453,740 | R84: 1,847,932,349 | S84: 1,919,688,426 | T84: 1,996,832,990 | U84: 1,685,291,575 | V84: 1,827,278,934 | W84: 2,082,350,221 | X84: 2,188,539,063 | Y84: 2,317,798,816 | Z84: 151,465,432 | AA84: 164,433,499 | AB84: 162,885,474 | AC84: 175,079,729 | AD84: 191,512,605 | AE84: 205,904,447 | AF84: 220,074,750 | AG84: 161,925,632 | AH84: 142,861,317 | AI84: 170,091,528 | AJ84: 165,364,210 | AK84: 159,808,108 | AL84: 155,098,503 | AM84: 151,054,783 | AN84: 130,197,004 | AO84: 129,865,692 | AP84: 135,262,577 | AQ84: 123,915,661 | AR84: 103,928,937 | AS84: 101,379,371 | AT84: 97,015,446 | AU84: 105,152,678 | AV84: 76,447,396 | AW84: 62,643,671 | AX84: 83,662 | AY84: 90,621 | AZ84: 100,325 | BA84: 108,438 | BB84: 119,839 | BC84: 130,969 | BD84: 150,854 | BE84: 140,690 | BF84: 125,017 | BG84: 118,829 | BH84: 114,709 | BI84: 107,895 | BJ84: 105,416 | BK84: 104,455 | BL84: 107,427 | BM84: 109,988 | BN84: 114,783 | BO84: 119,244 | BP84: 124,043 | BQ84: 104,685 | BR84: 113,507 | BS84: 129,351 | BT84: 135,952 | BU84: 143,971 | BV84: 11.2 | BW84: 11.3 | BX84: 10.1 | BY84: 10.0 | BZ84: 9.9 | CA84: 9.8 | CB84: 9.1 | CC84: 7.1 | CD84: 7.1 | CE84: 8.9 | CF84: 9.0 | CG84: 9.2 | CH84: 9.1 | CI84: 9.0 | CJ84: 7.5 | CK84: 7.3 | CL84: 7.3 | CM84: 6.5 | CN84: 5.2 | CO84: 6.0 | CP84: 5.3 | CQ84: =+AU84/W84*100 -> 5.0 | CR84: 3.5 | CS84: 2.7 | CT84: 16,099 | CU84: 16,100 | CV84: 16,099 | CW84: 16,099 | CX84: 16,099 | CY84: 16,099 | CZ84: 16,098 | DA84: 16,099 | DB84: 16,099 | DC84: 16,100 | DD84: 16,099 | DE84: 16,099 | DF84: 16,098 | DG84: 16,096 | DH84: 16,097 | DI84: 16,097 | DJ84: 16,099 | DK84: 16,099 | DL84: 16,098 | DM84: 16,099 | DN84: 16,098 | DO84: 16,098 | DP84: 16,098 | DQ84: 16,099
A85: 82 | B85: 1,348,045,229 | C85: 1,476,916,309 | D85: 1,623,019,433 | E85: 1,726,526,906 | F85: 1,943,745,029 | G85: 2,090,347,706 | H85: 2,322,601,889 | I85: 2,280,904,848 | J85: 2,036,386,446 | K85: 1,987,573,459 | L85: 1,850,524,652 | M85: 1,769,878,513 | N85: 1,606,519,874 | O85: 1,650,843,642 | P85: 1,678,343,930 | Q85: 1,746,231,899 | R85: 1,891,807,456 | S85: 1,962,961,429 | T85: 1,983,516,257 | U85: 1,685,585,119 | V85: 1,821,902,958 | W85: 2,057,840,901 | X85: 2,160,125,199 | Y85: 2,276,493,073 | Z85: 153,694,278 | AA85: 168,975,570 | AB85: 166,702,148 | AC85: 176,636,003 | AD85: 197,631,602 | AE85: 210,242,926 | AF85: 212,645,923 | AG85: 166,510,188 | AH85: 147,045,327 | AI85: 179,162,836 | AJ85: 167,754,331 | AK85: 164,518,729 | AL85: 149,139,745 | AM85: 150,529,541 | AN85: 129,536,220 | AO85: 131,342,397 | AP85: 141,754,503 | AQ85: 129,707,187 | AR85: 107,141,145 | AS85: 105,275,241 | AT85: 101,846,365 | AU85: 109,876,857 | AV85: 80,887,941 | AW85: 67,312,870 | AX85: 82,713 | AY85: 90,621 | AZ85: 99,584 | BA85: 105,932 | BB85: 119,263 | BC85: 128,263 | BD85: 142,518 | BE85: 139,943 | BF85: 124,934 | BG85: 121,939 | BH85: 113,534 | BI85: 108,587 | BJ85: 98,565 | BK85: 101,296 | BL85: 102,975 | BM85: 107,146 | BN85: 116,068 | BO85: 120,427 | BP85: 121,681 | BQ85: 103,409 | BR85: 111,780 | BS85: 126,253 | BT85: 132,541 | BU85: 139,668 | BV85: 11.4 | BW85: 11.4 | BX85: 10.3 | BY85: 10.2 | BZ85: 10.2 | CA85: 10.1 | CB85: 9.2 | CC85: 7.3 | CD85: 7.2 | CE85: 9.0 | CF85: 9.1 | CG85: 9.3 | CH85: 9.3 | CI85: 9.1 | CJ85: 7.7 | CK85: 7.5 | CL85: 7.5 | CM85: 6.6 | CN85: 5.4 | CO85: 6.2 | CP85: 5.6 | CQ85: 5.3 | CR85: 3.7 | CS85: 3.0 | CT85: 16,298 | CU85: 16,298 | CV85: 16,298 | CW85: 16,298 | CX85: 16,298 | CY85: 16,297 | CZ85: 16,297 | DA85: 16,299 | DB85: 16,300 | DC85: 16,300 | DD85: 16,299 | DE85: 16,299 | DF85: 16,299 | DG85: 16,297 | DH85: 16,299 | DI85: 16,298 | DJ85: 16,299 | DK85: 16,300 | DL85: 16,301 | DM85: 16,300 | DN85: 16,299 | DO85: 16,299 | DP85: 16,298 | DQ85: 16,299
A86: 83 | B86: 1,303,694,611 | C86: 1,427,260,064 | D86: 1,604,188,420 | E86: 1,720,388,483 | F86: 1,905,285,732 | G86: 2,036,691,131 | H86: 2,275,278,105 | I86: 2,263,322,329 | J86: 2,065,157,271 | K86: 1,990,086,027 | L86: 1,883,341,943 | M86: 1,790,853,372 | N86: 1,627,424,298 | O86: 1,613,675,523 | P86: 1,669,579,579 | Q86: 1,767,494,241 | R86: 1,937,460,351 | S86: 2,039,677,785 | T86: 2,060,725,363 | U86: 1,749,829,030 | V86: 1,949,168,733 | W86: 2,233,861,243 | X86: 2,221,398,281 | Y86: 2,290,808,333 | Z86: 150,823,654 | AA86: 165,583,640 | AB86: 166,729,115 | AC86: 178,093,048 | AD86: 196,554,509 | AE86: 208,127,632 | AF86: 213,147,444 | AG86: 167,427,490 | AH86: 151,971,658 | AI86: 181,385,266 | AJ86: 173,047,626 | AK86: 171,492,241 | AL86: 155,605,353 | AM86: 151,455,287 | AN86: 132,329,094 | AO86: 137,048,094 | AP86: 148,486,163 | AQ86: 139,218,551 | AR86: 119,084,570 | AS86: 114,502,742 | AT86: 113,373,471 | AU86: 124,938,152 | AV86: 88,957,953 | AW86: 73,381,473 | AX86: 79,010 | AY86: 86,499 | AZ86: 97,226 | BA86: 104,268 | BB86: 115,474 | BC86: 123,437 | BD86: 137,897 | BE86: 137,169 | BF86: 125,171 | BG86: 120,617 | BH86: 114,142 | BI86: 108,540 | BJ86: 98,630 | BK86: 97,802 | BL86: 101,194 | BM86: 107,130 | BN86: 117,431 | BO86: 123,630 | BP86: 124,898 | BQ86: 106,055 | BR86: 118,133 | BS86: 135,376 | BT86: 134,631 | BU86: 138,835 | BV86: 11.6 | BW86: 11.6 | BX86: 10.4 | BY86: 10.4 | BZ86: 10.3 | CA86: 10.2 | CB86: 9.4 | CC86: 7.4 | CD86: 7.4 | CE86: 9.1 | CF86: 9.2 | CG86: 9.6 | CH86: 9.6 | CI86: 9.4 | CJ86: 7.9 | CK86: 7.8 | CL86: 7.7 | CM86: 6.8 | CN86: 5.8 | CO86: 6.5 | CP86: 5.8 | CQ86: 5.6 | CR86: 4.0 | CS86: 3.2 | CT86: 16,500 | CU86: 16,500 | CV86: 16,500 | CW86: 16,500 | CX86: 16,500 | CY86: 16,500 | CZ86: 16,500 | DA86: 16,500 | DB86: 16,499 | DC86: 16,499 | DD86: 16,500 | DE86: 16,499 | DF86: 16,500 | DG86: 16,499 | DH86: 16,499 | DI86: 16,499 | DJ86: 16,499 | DK86: 16,498 | DL86: 16,499 | DM86: 16,499 | DN86: 16,500 | DO86: 16,501 | DP86: 16,500 | DQ86: 16,500
A87: 84 | B87: 1,274,336,534 | C87: 1,399,888,471 | D87: 1,550,062,595 | E87: 1,637,292,928 | F87: 1,802,458,871 | G87: 2,078,883,285 | H87: 2,131,225,122 | I87: 2,238,170,313 | J87: 1,981,937,451 | K87: 1,941,137,944 | L87: 1,837,887,534 | M87: 1,754,460,449 | N87: 1,597,277,395 | O87: 1,597,637,438 | P87: 1,650,386,761 | Q87: 1,746,264,110 | R87: 1,855,536,540 | S87: 1,956,721,387 | T87: 2,076,276,592 | U87: 1,660,870,954 | V87: 1,849,334,762 | W87: 2,096,952,304 | X87: 2,197,448,366 | Y87: 2,315,580,202 | Z87: 149,253,923 | AA87: 164,470,741 | AB87: 162,649,013 | AC87: 171,026,131 | AD87: 187,057,544 | AE87: 215,037,168 | AF87: 202,591,784 | AG87: 168,101,760 | AH87: 147,544,887 | AI87: 178,996,439 | AJ87: 170,237,392 | AK87: 172,509,666 | AL87: 156,482,959 | AM87: 154,190,033 | AN87: 133,390,066 | AO87: 138,204,555 | AP87: 145,449,216 | AQ87: 137,611,951 | AR87: 123,828,890 | AS87: 113,211,269 | AT87: 113,386,386 | AU87: 124,316,738 | AV87: 92,515,728 | AW87: 78,505,401 | AX87: 76,307 | AY87: 83,828 | AZ87: 92,821 | BA87: 98,041 | BB87: 107,934 | BC87: 124,487 | BD87: 127,623 | BE87: 134,027 | BF87: 118,679 | BG87: 116,242 | BH87: 110,056 | BI87: 105,055 | BJ87: 95,644 | BK87: 95,669 | BL87: 98,830 | BM87: 104,569 | BN87: 111,116 | BO87: 117,173 | BP87: 124,339 | BQ87: 99,458 | BR87: 110,741 | BS87: 125,571 | BT87: 131,593 | BU87: 138,662 | BV87: 11.7 | BW87: 11.7 | BX87: 10.5 | BY87: 10.4 | BZ87: 10.4 | CA87: 10.3 | CB87: 9.5 | CC87: 7.5 | CD87: 7.4 | CE87: 9.2 | CF87: 9.3 | CG87: 9.8 | CH87: 9.8 | CI87: 9.7 | CJ87: 8.1 | CK87: 7.9 | CL87: 7.8 | CM87: 7.0 | CN87: 6.0 | CO87: 6.8 | CP87: 6.1 | CQ87: 5.9 | CR87: 4.2 | CS87: 3.4 | CT87: 16,700 | CU87: 16,700 | CV87: 16,699 | CW87: 16,700 | CX87: 16,700 | CY87: 16,700 | CZ87: 16,699 | DA87: 16,699 | DB87: 16,700 | DC87: 16,699 | DD87: 16,700 | DE87: 16,700 | DF87: 16,700 | DG87: 16,700 | DH87: 16,699 | DI87: 16,700 | DJ87: 16,699 | DK87: 16,699 | DL87: 16,699 | DM87: 16,699 | DN87: 16,700 | DO87: 16,699 | DP87: 16,699 | DQ87: 16,699
A88: 85 | B88: 1,399,279,278 | C88: 1,472,514,949 | D88: 1,634,001,524 | E88: 1,706,802,245 | F88: 1,855,653,901 | G88: 2,150,164,177 | H88: 2,192,622,274 | I88: 2,357,197,784 | J88: 2,078,050,217 | K88: 2,001,680,381 | L88: 1,983,461,811 | M88: 1,918,869,000 | N88: 1,700,245,445 | O88: 1,734,153,168 | P88: 1,745,025,403 | Q88: 1,799,087,683 | R88: 1,968,335,062 | S88: 2,085,703,928 | T88: 2,159,037,081 | U88: 1,715,943,882 | V88: 1,927,288,176 | W88: 2,186,582,926 | X88: 2,257,242,967 | Y88: 2,362,316,576 | Z88: 165,369,936 | AA88: 175,096,495 | AB88: 173,549,584 | AC88: 180,348,516 | AD88: 195,498,661 | AE88: 224,827,478 | AF88: 215,130,007 | AG88: 181,635,748 | AH88: 158,807,745 | AI88: 187,351,255 | AJ88: 186,869,465 | AK88: 190,989,042 | AL88: 168,607,689 | AM88: 169,359,234 | AN88: 143,995,884 | AO88: 145,107,900 | AP88: 158,138,230 | AQ88: 152,614,633 | AR88: 135,631,003 | AS88: 120,901,034 | AT88: 123,207,961 | AU88: 136,074,297 | AV88: 101,939,867 | AW88: 86,648,672 | AX88: 82,812 | AY88: 87,152 | AZ88: 96,705 | BA88: 101,016 | BB88: 109,826 | BC88: 127,254 | BD88: 129,766 | BE88: 139,510 | BF88: 122,986 | BG88: 118,469 | BH88: 117,394 | BI88: 113,569 | BJ88: 100,631 | BK88: 102,640 | BL88: 103,275 | BM88: 106,478 | BN88: 116,495 | BO88: 123,432 | BP88: 127,782 | BQ88: 101,552 | BR88: 114,066 | BS88: 129,406 | BT88: 133,581 | BU88: 139,805 | BV88: 11.8 | BW88: 11.9 | BX88: 10.6 | BY88: 10.6 | BZ88: 10.5 | CA88: 10.5 | CB88: 9.8 | CC88: 7.7 | CD88: 7.6 | CE88: 9.4 | CF88: 9.4 | CG88: 10.0 | CH88: 9.9 | CI88: 9.8 | CJ88: 8.3 | CK88: 8.1 | CL88: 8.0 | CM88: 7.3 | CN88: 6.3 | CO88: 7.0 | CP88: 6.4 | CQ88: 6.2 | CR88: 4.5 | CS88: 3.7 | CT88: 16,897 | CU88: 16,896 | CV88: 16,897 | CW88: 16,896 | CX88: 16,896 | CY88: 16,897 | CZ88: 16,897 | DA88: 16,896 | DB88: 16,897 | DC88: 16,896 | DD88: 16,896 | DE88: 16,896 | DF88: 16,896 | DG88: 16,895 | DH88: 16,897 | DI88: 16,896 | DJ88: 16,896 | DK88: 16,898 | DL88: 16,896 | DM88: 16,897 | DN88: 16,896 | DO88: 16,897 | DP88: 16,898 | DQ88: 16,897
A89: 86 | B89: 1,279,097,842 | C89: 1,370,730,808 | D89: 1,523,704,929 | E89: 1,633,344,536 | F89: 1,786,429,529 | G89: 2,014,150,450 | H89: 2,119,053,335 | I89: 2,252,698,568 | J89: 1,988,176,923 | K89: 1,914,289,343 | L89: 1,871,476,561 | M89: 1,868,059,572 | N89: 1,678,149,874 | O89: 1,682,362,574 | P89: 1,730,000,580 | Q89: 1,780,790,661 | R89: 1,925,398,268 | S89: 2,030,988,937 | T89: 2,063,129,318 | U89: 1,791,909,625 | V89: 1,882,724,107 | W89: 2,079,465,527 | X89: 2,185,701,203 | Y89: 2,375,447,384 | Z89: 153,529,474 | AA89: 164,220,560 | AB89: 163,276,820 | AC89: 173,918,207 | AD89: 189,221,535 | AE89: 211,574,019 | AF89: 210,922,387 | AG89: 179,225,279 | AH89: 156,603,582 | AI89: 184,131,099 | AJ89: 180,912,841 | AK89: 188,272,418 | AL89: 168,902,205 | AM89: 167,202,759 | AN89: 145,750,132 | AO89: 146,552,723 | AP89: 157,880,082 | AQ89: 153,560,422 | AR89: 136,200,234 | AS89: 129,128,017 | AT89: 125,540,005 | AU89: 135,532,817 | AV89: 103,678,897 | AW89: 92,289,174 | AX89: 74,805 | AY89: 80,160 | AZ89: 89,104 | BA89: 95,519 | BB89: 104,472 | BC89: 117,791 | BD89: 123,928 | BE89: 131,747 | BF89: 116,276 | BG89: 111,956 | BH89: 109,452 | BI89: 109,250 | BJ89: 98,149 | BK89: 98,387 | BL89: 101,178 | BM89: 104,147 | BN89: 112,606 | BO89: 118,780 | BP89: 120,660 | BQ89: 104,802 | BR89: 110,112 | BS89: 121,615 | BT89: 127,826 | BU89: 138,931 | BV89: 12.0 | BW89: 12.0 | BX89: 10.7 | BY89: 10.6 | BZ89: 10.6 | CA89: 10.5 | CB89: 10.0 | CC89: 8.0 | CD89: 7.9 | CE89: 9.6 | CF89: 9.7 | CG89: 10.1 | CH89: 10.1 | CI89: 9.9 | CJ89: 8.4 | CK89: 8.2 | CL89: 8.2 | CM89: 7.6 | CN89: 6.6 | CO89: 7.2 | CP89: 6.7 | CQ89: 6.5 | CR89: 4.7 | CS89: 3.9 | CT89: 17,099 | CU89: 17,100 | CV89: 17,100 | CW89: 17,100 | CX89: 17,100 | CY89: 17,099 | CZ89: 17,099 | DA89: 17,099 | DB89: 17,099 | DC89: 17,099 | DD89: 17,099 | DE89: 17,099 | DF89: 17,098 | DG89: 17,099 | DH89: 17,099 | DI89: 17,099 | DJ89: 17,099 | DK89: 17,099 | DL89: 17,099 | DM89: 17,098 | DN89: 17,098 | DO89: 17,099 | DP89: 17,099 | DQ89: 17,098
A90: 87 | B90: 1,258,613,042 | C90: 1,343,120,820 | D90: 1,488,849,201 | E90: 1,608,844,280 | F90: 1,740,190,994 | G90: 1,966,226,865 | H90: 2,089,824,441 | I90: 2,182,737,517 | J90: 1,977,377,513 | K90: 1,892,248,831 | L90: 1,864,999,522 | M90: 1,831,182,922 | N90: 1,632,334,545 | O90: 1,606,193,353 | P90: 1,740,958,551 | Q90: 1,836,990,135 | R90: 1,992,950,180 | S90: 2,098,403,813 | T90: 2,062,764,230 | U90: 1,734,507,409 | V90: 1,866,553,023 | W90: 2,080,210,948 | X90: 2,163,302,777 | Y90: 2,326,491,854 | Z90: 152,565,884 | AA90: 163,672,587 | AB90: 161,847,252 | AC90: 173,490,391 | AD90: 186,730,903 | AE90: 209,241,740 | AF90: 210,751,944 | AG90: 177,071,206 | AH90: 159,096,422 | AI90: 185,635,499 | AJ90: 184,309,174 | AK90: 185,700,678 | AL90: 165,741,986 | AM90: 160,672,934 | AN90: 150,233,337 | AO90: 155,134,203 | AP90: 167,648,271 | AQ90: 164,618,145 | AR90: 142,889,921 | AS90: 130,683,941 | AT90: 130,707,556 | AU90: 142,229,609 | AV90: 108,942,483 | AW90: 97,370,199 | AX90: 72,754 | AY90: 77,641 | AZ90: 86,064 | BA90: 92,991 | BB90: 100,592 | BC90: 113,659 | BD90: 120,804 | BE90: 126,168 | BF90: 114,303 | BG90: 109,384 | BH90: 107,813 | BI90: 105,856 | BJ90: 94,357 | BK90: 92,848 | BL90: 100,638 | BM90: 106,203 | BN90: 115,224 | BO90: 121,306 | BP90: 119,237 | BQ90: 100,265 | BR90: 107,894 | BS90: 120,251 | BT90: 125,046 | BU90: 134,478 | BV90: 12.1 | BW90: 12.2 | BX90: 10.9 | BY90: 10.8 | BZ90: 10.7 | CA90: 10.6 | CB90: 10.1 | CC90: 8.1 | CD90: 8.0 | CE90: 9.8 | CF90: 9.9 | CG90: 10.1 | CH90: 10.2 | CI90: =+AM90/O90*100 -> 10.0 | CJ90: 8.6 | CK90: 8.4 | CL90: 8.4 | CM90: 7.8 | CN90: 6.9 | CO90: 7.5 | CP90: 7.0 | CQ90: 6.8 | CR90: 5.0 | CS90: 4.2 | CT90: 17,300 | CU90: 17,299 | CV90: 17,299 | CW90: 17,301 | CX90: 17,299 | CY90: 17,299 | CZ90: 17,299 | DA90: 17,300 | DB90: 17,299 | DC90: 17,299 | DD90: 17,298 | DE90: 17,299 | DF90: 17,300 | DG90: 17,299 | DH90: 17,299 | DI90: 17,297 | DJ90: 17,296 | DK90: 17,298 | DL90: 17,300 | DM90: 17,299 | DN90: 17,300 | DO90: 17,299 | DP90: 17,300 | DQ90: 17,300
A91: 88 | B91: 1,290,575,361 | C91: 1,318,194,305 | D91: 1,466,018,351 | E91: 1,591,947,860 | F91: 1,709,033,974 | G91: 1,940,485,029 | H91: 2,097,905,866 | I91: 2,222,930,547 | J91: 2,021,919,338 | K91: 1,958,061,487 | L91: 1,887,342,758 | M91: 1,890,539,429 | N91: 1,698,972,091 | O91: 1,677,130,237 | P91: 1,710,310,042 | Q91: 1,778,252,323 | R91: 1,924,398,469 | S91: 2,055,431,884 | T91: 2,141,233,579 | U91: 1,711,331,838 | V91: 1,886,811,411 | W91: 2,114,113,328 | X91: 2,229,888,858 | Y91: 2,300,739,923 | Z91: 158,921,439 | AA91: 162,112,462 | AB91: 162,582,255 | AC91: 175,934,693 | AD91: 186,024,862 | AE91: 209,909,716 | AF91: 214,483,054 | AG91: 184,330,357 | AH91: 165,428,923 | AI91: 194,581,554 | AJ91: 188,973,735 | AK91: 194,096,849 | AL91: 173,941,362 | AM91: 170,044,205 | AN91: 149,724,080 | AO91: 152,224,776 | AP91: 164,184,068 | AQ91: 164,717,246 | AR91: 154,378,194 | AS91: 133,911,363 | AT91: 137,656,497 | AU91: 150,388,874 | AV91: 117,424,636 | AW91: 103,294,221 | AX91: 73,751 | AY91: 75,327 | AZ91: 83,778 | BA91: 90,972 | BB91: 97,667 | BC91: 110,891 | BD91: 119,884 | BE91: 127,031 | BF91: 115,535 | BG91: 111,893 | BH91: 107,853 | BI91: 108,036 | BJ91: 97,087 | BK91: 95,843 | BL91: 97,736 | BM91: 101,621 | BN91: 109,969 | BO91: 117,464 | BP91: 122,351 | BQ91: 97,795 | BR91: 107,824 | BS91: 120,816 | BT91: 127,429 | BU91: 131,477 | BV91: 12.3 | BW91: 12.3 | BX91: 11.1 | BY91: 11.1 | BZ91: 10.9 | CA91: 10.8 | CB91: 10.2 | CC91: 8.3 | CD91: 8.2 | CE91: 9.9 | CF91: 10.0 | CG91: 10.3 | CH91: 10.2 | CI91: 10.1 | CJ91: 8.8 | CK91: 8.6 | CL91: 8.5 | CM91: 8.0 | CN91: 7.2 | CO91: 7.8 | CP91: 7.3 | CQ91: 7.1 | CR91: 5.3 | CS91: 4.5 | CT91: 17,499 | CU91: 17,500 | CV91: 17,499 | CW91: 17,499 | CX91: 17,499 | CY91: 17,499 | CZ91: 17,499 | DA91: 17,499 | DB91: 17,500 | DC91: 17,499 | DD91: 17,499 | DE91: 17,499 | DF91: 17,499 | DG91: 17,499 | DH91: 17,499 | DI91: 17,499 | DJ91: 17,499 | DK91: 17,498 | DL91: 17,501 | DM91: 17,499 | DN91: 17,499 | DO91: 17,499 | DP91: 17,499 | DQ91: 17,499
A92: 89 | B92: 1,227,602,808 | C92: 1,303,633,223 | D92: 1,430,416,473 | E92: 1,602,179,745 | F92: 1,649,251,470 | G92: 1,876,355,800 | H92: 2,123,055,777 | I92: 2,110,266,859 | J92: 1,949,989,055 | K92: 1,918,226,019 | L92: 1,874,919,273 | M92: 1,836,049,818 | N92: 1,693,242,777 | O92: 1,718,812,622 | P92: 1,708,847,695 | Q92: 1,777,481,231 | R92: 1,936,069,782 | S92: 2,032,882,754 | T92: 2,131,922,749 | U92: 1,731,851,533 | V92: 1,899,891,346 | W92: 2,138,330,088 | X92: 2,240,347,582 | Y92: 2,291,938,490 | Z92: 152,334,274 | AA92: 162,035,620 | AB92: 162,270,633 | AC92: 180,840,865 | AD92: 184,151,811 | AE92: 207,885,837 | AF92: 220,249,433 | AG92: 177,335,959 | AH92: 161,850,179 | AI92: 193,221,776 | AJ92: 189,993,115 | AK92: 191,029,943 | AL92: 176,022,017 | AM92: 176,774,186 | AN92: 152,413,963 | AO92: 154,770,074 | AP92: 168,257,408 | AQ92: 168,238,623 | AR92: 160,036,831 | AS92: 139,853,029 | AT92: 143,687,338 | AU92: 157,794,290 | AV92: 124,608,615 | AW92: 109,355,956 | AX92: 69,359 | AY92: 73,653 | AZ92: 80,816 | BA92: 90,521 | BB92: 93,180 | BC92: 106,012 | BD92: 119,951 | BE92: 119,235 | BF92: 110,172 | BG92: 108,383 | BH92: 105,934 | BI92: 103,741 | BJ92: 95,676 | BK92: 97,118 | BL92: 96,547 | BM92: 100,427 | BN92: 109,389 | BO92: 114,853 | BP92: 120,451 | BQ92: 97,845 | BR92: 107,338 | BS92: 120,807 | BT92: 126,577 | BU92: 129,489 | BV92: 12.4 | BW92: 12.4 | BX92: 11.3 | BY92: 11.3 | BZ92: 11.2 | CA92: 11.1 | CB92: 10.4 | CC92: 8.4 | CD92: 8.3 | CE92: 10.1 | CF92: 10.1 | CG92: 10.4 | CH92: 10.4 | CI92: 10.3 | CJ92: 8.9 | CK92: 8.7 | CL92: 8.7 | CM92: 8.3 | CN92: 7.5 | CO92: 8.1 | CP92: 7.6 | CQ92: 7.4 | CR92: 5.6 | CS92: 4.8 | CT92: 17,699 | CU92: 17,700 | CV92: 17,700 | CW92: 17,700 | CX92: 17,700 | CY92: 17,699 | CZ92: 17,699 | DA92: 17,698 | DB92: 17,699 | DC92: 17,699 | DD92: 17,699 | DE92: 17,698 | DF92: 17,698 | DG92: 17,698 | DH92: 17,700 | DI92: 17,699 | DJ92: 17,699 | DK92: 17,700 | DL92: 17,700 | DM92: 17,700 | DN92: 17,700 | DO92: 17,700 | DP92: 17,699 | DQ92: 17,700
A93: 90 | B93: 1,197,358,234 | C93: 1,300,922,237 | D93: 1,435,037,888 | E93: 1,594,208,674 | F93: 1,704,426,163 | G93: 1,885,218,903 | H93: 2,078,936,644 | I93: 2,086,782,619 | J93: 1,925,260,602 | K93: 1,905,980,768 | L93: 1,878,504,185 | M93: 1,810,426,788 | N93: 1,648,132,553 | O93: 1,638,142,665 | P93: 1,707,556,337 | Q93: 1,792,658,004 | R93: 1,901,447,175 | S93: 2,030,829,895 | T93: 2,083,896,037 | U93: 1,760,916,916 | V93: 1,870,810,428 | W93: 2,162,407,778 | X93: 2,254,035,906 | Y93: 2,329,454,467 | Z93: 149,908,495 | AA93: 163,544,800 | AB93: 164,238,163 | AC93: 182,229,592 | AD93: 194,051,228 | AE93: 213,158,510 | AF93: 217,953,864 | AG93: 177,348,564 | AH93: 161,684,738 | AI93: 194,133,129 | AJ93: 191,932,526 | AK93: 190,117,716 | AL93: 173,801,555 | AM93: 170,063,652 | AN93: 154,613,681 | AO93: 158,373,697 | AP93: 167,294,944 | AQ93: 172,420,172 | AR93: 161,529,502 | AS93: 146,760,172 | AT93: 146,823,987 | AU93: 165,720,762 | AV93: 130,545,175 | AW93: 117,107,600 | AX93: 66,893 | AY93: 72,680 | AZ93: 80,174 | BA93: 89,061 | BB93: 95,220 | BC93: 105,320 | BD93: 116,143 | BE93: 116,574 | BF93: 107,552 | BG93: 106,473 | BH93: 104,944 | BI93: 101,139 | BJ93: 92,067 | BK93: 91,512 | BL93: 95,395 | BM93: 100,151 | BN93: 106,228 | BO93: 113,453 | BP93: 116,423 | BQ93: 98,372 | BR93: 104,512 | BS93: 120,803 | BT93: 125,938 | BU93: 130,143 | BV93: 12.5 | BW93: 12.6 | BX93: 11.4 | BY93: 11.4 | BZ93: 11.4 | CA93: 11.3 | CB93: 10.5 | CC93: 8.5 | CD93: 8.4 | CE93: 10.2 | CF93: 10.2 | CG93: 10.5 | CH93: 10.5 | CI93: 10.4 | CJ93: 9.1 | CK93: 8.8 | CL93: 8.8 | CM93: 8.5 | CN93: 7.8 | CO93: 8.3 | CP93: 7.8 | CQ93: 7.7 | CR93: 5.8 | CS93: 5.0 | CT93: 17,900 | CU93: 17,899 | CV93: 17,899 | CW93: 17,900 | CX93: 17,900 | CY93: 17,900 | CZ93: 17,900 | DA93: 17,901 | DB93: 17,901 | DC93: 17,901 | DD93: 17,900 | DE93: 17,900 | DF93: 17,901 | DG93: 17,901 | DH93: 17,900 | DI93: 17,900 | DJ93: 17,900 | DK93: 17,900 | DL93: 17,899 | DM93: 17,901 | DN93: 17,900 | DO93: 17,900 | DP93: 17,898 | DQ93: 17,899
A94: 91 | B94: 1,360,791,945 | C94: 1,444,110,689 | D94: 1,542,456,278 | E94: 1,689,394,930 | F94: 1,820,421,725 | G94: 2,020,184,949 | H94: 2,192,389,006 | I94: 2,282,635,540 | J94: 2,167,865,295 | K94: 2,091,165,561 | L94: 2,056,430,375 | M94: 2,011,484,744 | N94: 1,954,967,322 | O94: 1,916,314,748 | P94: 1,892,370,447 | Q94: 2,020,711,677 | R94: 2,167,652,446 | S94: 2,261,429,239 | T94: 2,349,411,634 | U94: 1,964,492,070 | V94: 2,119,307,986 | W94: 2,350,137,591 | X94: 2,444,636,750 | Y94: 2,577,700,675 | Z94: 172,777,127 | AA94: 183,858,314 | AB94: 179,161,735 | AC94: 195,155,060 | AD94: 209,366,420 | AE94: 230,815,707 | AF94: 232,950,748 | AG94: 199,009,355 | AH94: 186,398,125 | AI94: 215,544,700 | AJ94: 212,725,757 | AK94: 216,110,730 | AL94: 210,853,103 | AM94: 203,538,709 | AN94: 174,473,030 | AO94: 182,710,138 | AP94: 195,347,185 | AQ94: 197,865,247 | AR94: 189,275,581 | AS94: 167,897,194 | AT94: 172,407,017 | AU94: 186,381,524 | AV94: 148,639,410 | AW94: 137,631,085 | AX94: 75,219 | AY94: 79,824 | AZ94: 85,256 | BA94: 93,380 | BB94: 100,622 | BC94: 111,666 | BD94: 121,189 | BE94: 126,178 | BF94: 119,827 | BG94: 115,595 | BH94: 113,685 | BI94: 111,198 | BJ94: 108,083 | BK94: 105,938 | BL94: 104,608 | BM94: 111,706 | BN94: 119,828 | BO94: 125,003 | BP94: 129,864 | BQ94: 108,579 | BR94: 117,143 | BS94: 129,898 | BT94: 135,126 | BU94: 142,471 | BV94: 12.7 | BW94: 12.7 | BX94: 11.6 | BY94: 11.6 | BZ94: 11.5 | CA94: 11.4 | CB94: 10.6 | CC94: 8.7 | CD94: 8.6 | CE94: 10.3 | CF94: 10.3 | CG94: 10.7 | CH94: 10.8 | CI94: 10.6 | CJ94: 9.2 | CK94: 9.0 | CL94: 9.0 | CM94: 8.7 | CN94: 8.1 | CO94: 8.5 | CP94: 8.1 | CQ94: 7.9 | CR94: 6.1 | CS94: 5.3 | CT94: 18,091 | CU94: 18,091 | CV94: =+D94/AZ94 -> 18,092 | CW94: 18,092 | CX94: 18,092 | CY94: 18,091 | CZ94: 18,091 | DA94: 18,091 | DB94: 18,092 | DC94: 18,090 | DD94: 18,089 | DE94: 18,089 | DF94: 18,088 | DG94: 18,089 | DH94: 18,090 | DI94: 18,090 | DJ94: 18,090 | DK94: 18,091 | DL94: 18,091 | DM94: 18,093 | DN94: 18,092 | DO94: 18,092 | DP94: 18,092 | DQ94: 18,093 | DR94: 18,100
A95: 92 | B95: 1,173,973,799 | C95: 1,268,621,296 | D95: 1,398,294,719 | E95: 1,504,581,234 | F95: 1,649,173,985 | G95: 1,802,823,953 | H95: 1,947,141,575 | I95: 2,086,119,537 | J95: 1,936,524,524 | K95: 1,912,191,305 | L95: 1,844,662,853 | M95: 1,819,038,191 | N95: 1,692,852,963 | O95: 1,669,304,503 | P95: 1,719,271,608 | Q95: 1,784,702,846 | R95: 1,962,894,589 | S95: 2,082,324,862 | T95: 2,150,064,795 | U95: 1,801,030,158 | V95: 1,963,370,583 | W95: 2,160,546,768 | X95: 2,203,021,956 | Y95: 2,353,666,547 | Z95: 149,472,317 | AA95: 162,400,635 | AB95: 162,679,664 | AC95: 174,074,187 | AD95: 190,226,399 | AE95: 206,760,465 | AF95: 209,045,620 | AG95: 182,469,782 | AH95: 167,744,311 | AI95: 198,813,288 | AJ95: 192,298,505 | AK95: 198,914,149 | AL95: 185,270,186 | AM95: 180,589,502 | AN95: 160,476,959 | AO95: 162,742,173 | AP95: 178,643,050 | AQ95: 183,973,653 | AR95: 178,453,439 | AS95: 158,554,010 | AT95: 164,765,493 | AU95: 177,303,671 | AV95: 139,531,359 | AW95: 131,541,140 | AX95: 64,152 | AY95: 69,325 | AZ95: 76,407 | BA95: 82,223 | BB95: 90,125 | BC95: 98,520 | BD95: 106,405 | BE95: 114,001 | BF95: 105,824 | BG95: 104,500 | BH95: 100,807 | BI95: 99,406 | BJ95: 92,513 | BK95: 91,223 | BL95: 93,951 | BM95: 97,529 | BN95: 107,262 | BO95: 113,795 | BP95: 117,493 | BQ95: 98,419 | BR95: 107,289 | BS95: 118,063 | BT95: 120,387 | BU95: 128,620 | BV95: 12.7 | BW95: 12.8 | BX95: 11.6 | BY95: 11.6 | BZ95: 11.5 | CA95: 11.5 | CB95: 10.7 | CC95: 8.7 | CD95: 8.7 | CE95: 10.4 | CF95: 10.4 | CG95: 10.9 | CH95: 10.9 | CI95: 10.8 | CJ95: 9.3 | CK95: 9.1 | CL95: 9.1 | CM95: 8.8 | CN95: 8.3 | CO95: 8.8 | CP95: 8.4 | CQ95: 8.2 | CR95: 6.3 | CS95: 5.6 | CT95: =+B95/AX95 -> 18,300 | CU95: 18,300 | CV95: 18,301 | CW95: 18,299 | CX95: 18,299 | CY95: 18,299 | CZ95: 18,299 | DA95: 18,299 | DB95: 18,299 | DC95: 18,298 | DD95: 18,299 | DE95: 18,299 | DF95: 18,299 | DG95: 18,299 | DH95: 18,300 | DI95: 18,299 | DJ95: 18,300 | DK95: 18,299 | DL95: 18,300 | DM95: 18,300 | DN95: 18,300 | DO95: 18,300 | DP95: 18,300 | DQ95: 18,299
A96: 93 | B96: 1,167,953,159 | C96: 1,277,468,318 | D96: 1,375,025,382 | E96: 1,495,364,966 | F96: 1,645,800,966 | G96: 1,787,331,075 | H96: 1,938,375,896 | I96: 2,015,710,981 | J96: 1,862,497,537 | K96: 1,887,282,512 | L96: 1,828,983,763 | M96: 1,787,688,187 | N96: 1,665,911,698 | O96: 1,632,919,697 | P96: 1,655,783,154 | Q96: 1,732,321,298 | R96: 1,932,397,989 | S96: 2,053,296,412 | T96: 2,139,875,856 | U96: 1,786,030,927 | V96: 2,042,461,997 | W96: 2,217,322,268 | X96: 2,212,202,507 | Y96: 2,324,798,117 | Z96: 150,237,657 | AA96: 165,013,308 | AB96: 160,833,272 | AC96: 174,130,353 | AD96: 190,897,044 | AE96: 206,385,380 | AF96: 212,869,583 | AG96: 178,443,204 | AH96: 163,998,911 | AI96: 198,391,368 | AJ96: 192,960,151 | AK96: 198,061,077 | AL96: 185,235,593 | AM96: 179,440,491 | AN96: 156,845,380 | AO96: 160,532,227 | AP96: 178,306,239 | AQ96: 184,850,810 | AR96: 183,537,710 | AS96: 162,191,123 | AT96: 176,700,031 | AU96: 188,988,305 | AV96: 145,725,851 | AW96: 136,869,162 | AX96: 63,133 | AY96: 69,054 | AZ96: 74,327 | BA96: 80,831 | BB96: 88,966 | BC96: 96,615 | BD96: 104,779 | BE96: 108,960 | BF96: 100,678 | BG96: 102,025 | BH96: 98,870 | BI96: 96,636 | BJ96: 90,053 | BK96: 88,269 | BL96: 89,503 | BM96: 93,641 | BN96: 104,458 | BO96: 110,989 | BP96: 115,674 | BQ96: 96,542 | BR96: 110,404 | BS96: 119,860 | BT96: 119,585 | BU96: 125,670 | BV96: 12.9 | BW96: 12.9 | BX96: 11.7 | BY96: 11.6 | BZ96: 11.6 | CA96: 11.5 | CB96: 11.0 | CC96: 8.9 | CD96: 8.8 | CE96: 10.5 | CF96: 10.6 | CG96: 11.1 | CH96: 11.1 | CI96: 11.0 | CJ96: 9.5 | CK96: 9.3 | CL96: 9.2 | CM96: 9.0 | CN96: 8.6 | CO96: 9.1 | CP96: 8.7 | CQ96: 8.5 | CR96: 6.6 | CS96: 5.9 | CT96: 18,500 | CU96: 18,500 | CV96: 18,500 | CW96: 18,500 | CX96: 18,499 | CY96: 18,500 | CZ96: 18,500 | DA96: 18,500 | DB96: 18,500 | DC96: 18,498 | DD96: 18,499 | DE96: 18,499 | DF96: 18,499 | DG96: 18,499 | DH96: 18,500 | DI96: 18,500 | DJ96: 18,499 | DK96: 18,500 | DL96: 18,499 | DM96: 18,500 | DN96: 18,500 | DO96: 18,499 | DP96: 18,499 | DQ96: 18,499
A97: 94 | B97: 1,167,962,158 | C97: 1,261,401,705 | D97: 1,344,119,797 | E97: 1,493,882,152 | F97: 1,644,125,837 | G97: 1,790,678,789 | H97: 1,910,013,213 | I97: 1,991,471,186 | J97: 1,854,908,805 | K97: 1,859,888,037 | L97: 1,805,907,811 | M97: 1,763,200,877 | N97: 1,662,518,914 | O97: 1,666,377,317 | P97: 1,667,143,816 | Q97: 1,747,305,959 | R97: 1,900,391,750 | S97: 2,063,840,488 | T97: 2,135,881,524 | U97: 1,803,678,381 | V97: 2,020,420,375 | W97: 2,158,780,717 | X97: 2,203,870,055 | Y97: 2,348,107,846 | Z97: 151,231,595 | AA97: 164,081,173 | AB97: 158,460,119 | AC97: 175,846,770 | AD97: 192,086,579 | AE97: 208,271,414 | AF97: 212,227,827 | AG97: 180,324,598 | AH97: 165,902,342 | AI97: 197,769,226 | AJ97: 192,748,128 | AK97: 196,627,132 | AL97: 185,454,831 | AM97: 184,457,845 | AN97: 160,433,740 | AO97: 164,212,807 | AP97: 178,121,157 | AQ97: 188,686,578 | AR97: 187,397,133 | AS97: 167,456,981 | AT97: 180,259,449 | AU97: 188,795,021 | AV97: 151,317,356 | AW97: 144,644,148 | AX97: 62,460 | AY97: 67,457 | AZ97: 71,879 | BA97: 79,885 | BB97: 87,927 | BC97: 95,763 | BD97: 102,143 | BE97: 106,501 | BF97: 99,198 | BG97: 99,469 | BH97: 96,577 | BI97: 94,293 | BJ97: 88,911 | BK97: 89,115 | BL97: 89,157 | BM97: 93,445 | BN97: 101,632 | BO97: 110,367 | BP97: 114,223 | BQ97: 96,460 | BR97: 108,051 | BS97: 115,445 | BT97: 117,860 | BU97: 125,575 | BV97: 12.9 | BW97: 13.0 | BX97: 11.8 | BY97: 11.8 | BZ97: 11.7 | CA97: 11.6 | CB97: 11.1 | CC97: 9.1 | CD97: 8.9 | CE97: 10.6 | CF97: 10.7 | CG97: 11.2 | CH97: 11.2 | CI97: 11.1 | CJ97: 9.6 | CK97: 9.4 | CL97: 9.4 | CM97: 9.1 | CN97: 8.8 | CO97: 9.3 | CP97: 8.9 | CQ97: 8.7 | CR97: 6.9 | CS97: 6.2 | CT97: 18,699 | CU97: 18,699 | CV97: 18,700 | CW97: 18,700 | CX97: 18,699 | CY97: 18,699 | CZ97: 18,699 | DA97: 18,699 | DB97: 18,699 | DC97: 18,698 | DD97: 18,699 | DE97: 18,699 | DF97: 18,699 | DG97: 18,699 | DH97: 18,699 | DI97: 18,699 | DJ97: 18,699 | DK97: 18,700 | DL97: 18,699 | DM97: 18,699 | DN97: 18,699 | DO97: 18,700 | DP97: 18,699 | DQ97: 18,699
A98: 95 | B98: 1,176,540,448 | C98: 1,256,375,552 | D98: 1,315,300,660 | E98: 1,489,574,507 | F98: 1,632,510,993 | G98: 1,763,389,236 | H98: 1,913,803,000 | I98: 1,977,681,059 | J98: 1,823,445,280 | K98: 1,762,302,827 | L98: 1,795,069,058 | M98: 1,752,944,265 | N98: 1,638,649,486 | O98: 1,651,956,917 | P98: 1,703,043,069 | Q98: 1,759,484,614 | R98: 1,919,636,262 | S98: 2,095,735,538 | T98: 2,265,613,864 | U98: 1,843,273,650 | V98: 2,094,428,166 | W98: 2,339,565,006 | X98: 2,290,186,025 | Y98: 2,306,257,610 | Z98: 153,825,290 | AA98: 164,820,884 | AB98: 156,935,529 | AC98: 176,853,789 | AD98: 192,548,605 | AE98: 206,949,480 | AF98: 215,348,037 | AG98: 184,159,701 | AH98: 167,794,050 | AI98: 192,252,001 | AJ98: 196,845,748 | AK98: 197,576,981 | AL98: 184,643,172 | AM98: 184,059,146 | AN98: 166,200,771 | AO98: 168,483,099 | AP98: 183,438,297 | AQ98: 195,422,577 | AR98: 205,885,268 | AS98: 175,320,257 | AT98: 192,038,864 | AU98: 211,322,312 | AV98: 164,324,093 | AW98: 149,096,327 | AX98: 62,249 | AY98: 66,472 | AZ98: 69,593 | BA98: 78,814 | BB98: 86,377 | BC98: 93,301 | BD98: 101,258 | BE98: 104,639 | BF98: 96,477 | BG98: 93,244 | BH98: 94,971 | BI98: 92,748 | BJ98: 86,699 | BK98: 87,409 | BL98: 90,104 | BM98: 93,093 | BN98: 101,565 | BO98: 110,882 | BP98: 119,875 | BQ98: 97,524 | BR98: 110,813 | BS98: 123,784 | BT98: 121,167 | BU98: 122,021 | BV98: 13.1 | BW98: 13.1 | BX98: 11.9 | BY98: 11.9 | BZ98: 11.8 | CA98: 11.7 | CB98: 11.3 | CC98: 9.3 | CD98: 9.2 | CE98: 10.9 | CF98: 11.0 | CG98: 11.3 | CH98: 11.3 | CI98: 11.1 | CJ98: 9.8 | CK98: 9.6 | CL98: 9.6 | CM98: 9.3 | CN98: 9.1 | CO98: 9.5 | CP98: 9.2 | CQ98: 9.0 | CR98: 7.2 | CS98: 6.5 | CT98: 18,901 | CU98: 18,901 | CV98: 18,900 | CW98: 18,900 | CX98: 18,900 | CY98: 18,900 | CZ98: 18,900 | DA98: 18,900 | DB98: 18,900 | DC98: 18,900 | DD98: 18,901 | DE98: 18,900 | DF98: 18,900 | DG98: 18,899 | DH98: 18,901 | DI98: 18,900 | DJ98: 18,901 | DK98: 18,901 | DL98: 18,900 | DM98: 18,901 | DN98: 18,901 | DO98: 18,900 | DP98: 18,901 | DQ98: 18,900
A99: 96 | B99: 1,148,623,594 | C99: 1,220,815,149 | D99: 1,307,637,181 | E99: 1,450,477,199 | F99: 1,585,745,193 | G99: 1,746,385,646 | H99: 1,933,115,116 | I99: 1,986,599,768 | J99: 1,805,193,542 | K99: 1,791,456,159 | L99: 1,808,839,050 | M99: 1,731,769,721 | N99: 1,632,558,315 | O99: 1,636,501,215 | P99: 1,652,561,094 | Q99: 1,743,617,505 | R99: 1,874,166,101 | S99: 2,020,323,585 | T99: 2,113,461,726 | U99: 1,796,147,248 | V99: 2,055,929,113 | W99: 2,248,058,551 | X99: 2,298,506,998 | Y99: 2,289,649,683 | Z99: 151,318,512 | AA99: 161,171,038 | AB99: 157,297,835 | AC99: 174,049,458 | AD99: 188,980,038 | AE99: 206,854,784 | AF99: 218,924,888 | AG99: 187,738,362 | AH99: 169,827,456 | AI99: 198,045,408 | AJ99: 201,313,753 | AK99: 196,837,829 | AL99: 186,329,399 | AM99: 184,903,998 | AN99: 163,557,468 | AO99: 168,632,848 | AP99: 180,565,680 | AQ99: 190,036,653 | AR99: 193,999,808 | AS99: 172,689,916 | AT99: 190,747,651 | AU99: 205,405,231 | AV99: 169,789,679 | AW99: 153,420,525 | AX99: 60,139 | AY99: 63,918 | AZ99: 68,467 | BA99: 75,946 | BB99: 83,026 | BC99: 91,437 | BD99: 101,213 | BE99: 104,015 | BF99: 94,518 | BG99: 93,800 | BH99: 94,705 | BI99: 90,672 | BJ99: 85,483 | BK99: 85,690 | BL99: 86,532 | BM99: 91,296 | BN99: 98,129 | BO99: 105,782 | BP99: 110,666 | BQ99: 94,044 | BR99: 107,642 | BS99: 117,705 | BT99: 120,351 | BU99: 119,885 | BV99: 13.2 | BW99: 13.2 | BX99: 12.0 | BY99: 12.0 | BZ99: 11.9 | CA99: 11.8 | CB99: 11.3 | CC99: 9.5 | CD99: 9.4 | CE99: 11.1 | CF99: 11.1 | CG99: 11.4 | CH99: 11.4 | CI99: 11.3 | CJ99: 9.9 | CK99: 9.7 | CL99: 9.6 | CM99: 9.4 | CN99: 9.2 | CO99: 9.6 | CP99: 9.3 | CQ99: 9.1 | CR99: 7.4 | CS99: 6.7 | CT99: 19,099 | CU99: 19,100 | CV99: 19,099 | CW99: 19,099 | CX99: 19,099 | CY99: 19,099 | CZ99: 19,099 | DA99: 19,099 | DB99: 19,099 | DC99: 19,099 | DD99: 19,100 | DE99: 19,099 | DF99: 19,098 | DG99: 19,098 | DH99: 19,098 | DI99: 19,099 | DJ99: 19,099 | DK99: 19,099 | DL99: 19,098 | DM99: 19,099 | DN99: 19,100 | DO99: 19,099 | DP99: 19,098 | DQ99: 19,099
A100: 97 | B100: 1,173,862,737 | C100: 1,248,895,906 | D100: 1,303,969,037 | E100: 1,427,967,180 | F100: 1,615,199,114 | G100: 1,747,390,107 | H100: 1,907,988,809 | I100: 1,990,131,713 | J100: 1,838,641,744 | K100: 1,792,517,724 | L100: 1,799,883,271 | M100: 1,795,651,853 | N100: 1,681,347,294 | O100: 1,650,172,496 | P100: 1,677,115,023 | Q100: 1,761,907,245 | R100: 1,871,349,638 | S100: 2,067,131,567 | T100: 2,110,134,430 | U100: 1,828,104,372 | V100: 2,086,224,665 | W100: 2,252,719,374 | X100: 2,354,901,201 | Y100: 2,342,242,943 | Z100: 155,859,618 | AA100: 166,483,582 | AB100: 158,787,609 | AC100: 173,357,170 | AD100: 194,553,206 | AE100: 208,839,054 | AF100: 218,393,871 | AG100: 190,274,841 | AH100: 174,309,798 | AI100: 199,819,688 | AJ100: 201,352,158 | AK100: 206,010,254 | AL100: 193,679,080 | AM100: 187,965,270 | AN100: 168,456,279 | AO100: 172,583,248 | AP100: 183,295,401 | AQ100: 197,360,876 | AR100: 196,612,654 | AS100: 177,993,204 | AT100: 197,228,986 | AU100: 209,937,125 | AV100: 181,621,055 | AW100: 164,039,752 | AX100: 60,824 | AY100: 64,712 | AZ100: 67,568 | BA100: 73,993 | BB100: 83,691 | BC100: 90,543 | BD100: 98,867 | BE100: 103,126 | BF100: 95,279 | BG100: 92,887 | BH100: 93,268 | BI100: 93,047 | BJ100: 87,127 | BK100: 85,507 | BL100: 86,903 | BM100: 91,303 | BN100: 96,977 | BO100: 107,118 | BP100: 109,349 | BQ100: 94,732 | BR100: 108,108 | BS100: 116,736 | BT100: 122,029 | BU100: 121,379 | BV100: 13.3 | BW100: 13.3 | BX100: 12.2 | BY100: 12.1 | BZ100: 12.0 | CA100: 12.0 | CB100: 11.4 | CC100: 9.6 | CD100: 9.5 | CE100: 11.1 | CF100: 11.2 | CG100: 11.5 | CH100: 11.5 | CI100: 11.4 | CJ100: 10.0 | CK100: 9.8 | CL100: 9.8 | CM100: 9.5 | CN100: 9.3 | CO100: 9.7 | CP100: 9.5 | CQ100: 9.3 | CR100: 7.7 | CS100: 7.0 | CT100: 19,299 | CU100: 19,299 | CV100: 19,299 | CW100: 19,299 | CX100: 19,300 | CY100: 19,299 | CZ100: 19,299 | DA100: 19,298 | DB100: 19,297 | DC100: 19,298 | DD100: 19,298 | DE100: 19,298 | DF100: 19,298 | DG100: 19,299 | DH100: 19,299 | DI100: 19,297 | DJ100: 19,297 | DK100: 19,298 | DL100: 19,297 | DM100: 19,298 | DN100: 19,298 | DO100: 19,298 | DP100: 19,298 | DQ100: 19,297
A101: 98 | B101: 1,142,610,955 | C101: 1,231,087,591 | D101: 1,277,401,658 | E101: 1,358,791,210 | F101: 1,603,758,089 | G101: 1,707,747,475 | H101: 1,872,659,749 | I101: 1,932,993,708 | J101: 1,776,403,341 | K101: 1,755,673,536 | L101: 1,777,556,284 | M101: 1,760,676,967 | N101: 1,642,415,041 | O101: 1,617,284,027 | P101: 1,655,894,368 | Q101: 1,719,034,491 | R101: 1,817,420,688 | S101: 1,980,223,294 | T101: 2,114,547,099 | U101: 1,762,832,259 | V101: 2,010,192,637 | W101: 2,241,627,494 | X101: 2,321,146,601 | Y101: 2,290,759,276 | Z101: 152,877,538 | AA101: 165,225,081 | AB101: 157,815,933 | AC101: 166,942,968 | AD101: 195,880,778 | AE101: 206,854,913 | AF101: 215,901,288 | AG101: 187,214,853 | AH101: 170,561,188 | AI101: 197,507,093 | AJ101: 200,809,249 | AK101: 204,333,986 | AL101: 190,187,040 | AM101: 185,752,574 | AN101: 168,165,721 | AO101: 171,127,060 | AP101: 180,119,428 | AQ101: 191,877,330 | AR101: 200,425,973 | AS101: 174,465,973 | AT101: 192,700,651 | AU101: 212,323,059 | AV101: 186,925,825 | AW101: 166,393,384 | AX101: 58,594 | AY101: 63,133 | AZ101: 65,510 | BA101: 69,684 | BB101: 82,244 | BC101: 87,578 | BD101: 96,036 | BE101: 99,128 | BF101: 91,100 | BG101: 90,032 | BH101: 91,157 | BI101: 90,290 | BJ101: 84,223 | BK101: 82,936 | BL101: 84,916 | BM101: 88,153 | BN101: 93,201 | BO101: 101,554 | BP101: 108,441 | BQ101: 90,405 | BR101: 103,091 | BS101: 114,958 | BT101: 119,026 | BU101: 117,473 | BV101: 13.4 | BW101: 13.4 | BX101: 12.4 | BY101: 12.3 | BZ101: 12.2 | CA101: 12.1 | CB101: 11.5 | CC101: 9.7 | CD101: 9.6 | CE101: 11.2 | CF101: 11.3 | CG101: 11.6 | CH101: 11.6 | CI101: 11.5 | CJ101: 10.2 | CK101: 10.0 | CL101: 9.9 | CM101: 9.7 | CN101: 9.5 | CO101: 9.9 | CP101: 9.6 | CQ101: 9.5 | CR101: 8.1 | CS101: 7.3 | CT101: 19,500 | CU101: 19,500 | CV101: 19,499 | CW101: 19,499 | CX101: 19,500 | CY101: 19,500 | CZ101: 19,500 | DA101: 19,500 | DB101: 19,499 | DC101: 19,501 | DD101: 19,500 | DE101: 19,500 | DF101: 19,501 | DG101: 19,500 | DH101: 19,500 | DI101: 19,501 | DJ101: 19,500 | DK101: 19,499 | DL101: 19,500 | DM101: 19,499 | DN101: 19,499 | DO101: 19,500 | DP101: 19,501 | DQ101: 19,500
A102: 99 | B102: 1,134,156,649 | C102: 1,207,356,571 | D102: 1,263,506,349 | E102: 1,351,075,915 | F102: 1,522,754,624 | G102: 1,670,845,793 | H102: 1,899,025,538 | I102: 1,923,147,998 | J102: 1,747,850,768 | K102: 1,741,478,069 | L102: 1,788,166,597 | M102: 1,714,980,392 | N102: 1,605,117,979 | O102: 1,601,237,584 | P102: 1,629,537,183 | Q102: 1,673,147,865 | R102: 1,796,174,616 | S102: 1,997,027,971 | T102: 2,106,182,541 | U102: 1,742,500,864 | V102: 2,014,320,550 | W102: 2,254,921,096 | X102: 2,343,396,438 | Y102: 2,374,176,188 | Z102: 152,415,342 | AA102: 163,347,366 | AB102: 158,317,082 | AC102: 168,941,717 | AD102: 189,545,397 | AE102: 205,595,699 | AF102: 220,866,218 | AG102: 188,337,879 | AH102: 169,560,196 | AI102: 197,526,378 | AJ102: 203,958,395 | AK102: 200,593,330 | AL102: 187,733,085 | AM102: 185,221,393 | AN102: 167,623,410 | AO102: 168,484,453 | AP102: 180,425,246 | AQ102: 196,750,222 | AR102: 203,141,601 | AS102: 175,227,761 | AT102: 196,375,355 | AU102: 217,208,744 | AV102: 193,942,923 | AW102: 179,606,913 | AX102: 57,568 | AY102: 61,286 | AZ102: 64,138 | BA102: 68,582 | BB102: 77,299 | BC102: 84,815 | BD102: 96,397 | BE102: 97,626 | BF102: 88,726 | BG102: 88,401 | BH102: 90,775 | BI102: 87,062 | BJ102: 81,480 | BK102: 81,281 | BL102: 82,722 | BM102: 84,935 | BN102: 91,183 | BO102: 101,371 | BP102: 106,910 | BQ102: 88,453 | BR102: 102,253 | BS102: 114,461 | BT102: 118,961 | BU102: 120,515 | BV102: 13.4 | BW102: 13.5 | BX102: 12.5 | BY102: 12.5 | BZ102: 12.4 | CA102: 12.3 | CB102: 11.6 | CC102: 9.8 | CD102: 9.7 | CE102: 11.3 | CF102: 11.4 | CG102: 11.7 | CH102: 11.7 | CI102: 11.6 | CJ102: 10.3 | CK102: 10.1 | CL102: 10.0 | CM102: 9.9 | CN102: 9.6 | CO102: 10.1 | CP102: 9.7 | CQ102: 9.6 | CR102: 8.3 | CS102: 7.6 | CT102: 19,701 | CU102: 19,700 | CV102: 19,700 | CW102: 19,700 | CX102: 19,700 | CY102: 19,700 | CZ102: 19,700 | DA102: 19,699 | DB102: 19,699 | DC102: 19,700 | DD102: 19,699 | DE102: 19,698 | DF102: 19,700 | DG102: 19,700 | DH102: 19,699 | DI102: 19,699 | DJ102: 19,699 | DK102: 19,700 | DL102: 19,701 | DM102: 19,700 | DN102: 19,699 | DO102: 19,700 | DP102: 19,699 | DQ102: 19,700
A103: 100 | B103: 1,146,210,605 | C103: 1,254,320,333 | D103: 1,283,383,016 | E103: 1,362,608,330 | F103: 1,524,780,764 | G103: 1,670,584,529 | H103: 1,911,357,942 | I103: 1,947,569,961 | J103: 1,781,668,565 | K103: 1,751,661,594 | L103: 1,750,883,878 | M103: 1,691,926,089 | N103: 1,569,912,238 | O103: 1,606,091,997 | P103: 1,661,700,906 | Q103: 1,692,189,559 | R103: 1,795,961,436 | S103: 1,991,103,567 | T103: 2,100,192,168 | U103: 1,764,239,374 | V103: 2,012,310,884 | W103: 2,227,829,742 | X103: 2,387,911,129 | Y103: 2,432,930,979 | Z103: 155,236,776 | AA103: 170,078,919 | AB103: 162,119,221 | AC103: 171,114,239 | AD103: 191,117,441 | AE103: 208,321,638 | AF103: 224,507,824 | AG103: 191,552,783 | AH103: 174,702,790 | AI103: 199,935,406 | AJ103: 200,545,250 | AK103: 200,463,609 | AL103: 185,604,765 | AM103: 187,753,265 | AN103: 173,555,291 | AO103: 172,473,055 | AP103: 182,253,615 | AQ103: 198,028,346 | AR103: 205,442,130 | AS103: 179,108,553 | AT103: 198,619,479 | AU103: 217,690,390 | AV103: 205,723,835 | AW103: 191,020,690 | AX103: 57,605 | AY103: 63,039 | AZ103: 64,497 | BA103: 68,478 | BB103: 76,624 | BC103: 83,952 | BD103: 96,054 | BE103: 97,866 | BF103: 89,527 | BG103: 88,024 | BH103: 87,983 | BI103: 85,021 | BJ103: 78,890 | BK103: 80,707 | BL103: 83,501 | BM103: 85,033 | BN103: 90,249 | BO103: 100,057 | BP103: 105,537 | BQ103: 88,651 | BR103: 101,122 | BS103: 111,952 | BT103: 119,997 | BU103: 122,260 | BV103: 13.5 | BW103: 13.6 | BX103: 12.6 | BY103: 12.6 | BZ103: 12.5 | CA103: 12.5 | CB103: 11.7 | CC103: 9.8 | CD103: 9.8 | CE103: 11.4 | CF103: 11.5 | CG103: 11.8 | CH103: 11.8 | CI103: 11.7 | CJ103: 10.4 | CK103: 10.2 | CL103: 10.1 | CM103: 9.9 | CN103: 9.8 | CO103: 10.2 | CP103: 9.9 | CQ103: 9.8 | CR103: 8.6 | CS103: 7.9 | CT103: 19,898 | CU103: 19,898 | CV103: 19,898 | CW103: 19,898 | CX103: 19,900 | CY103: 19,899 | CZ103: 19,899 | DA103: 19,900 | DB103: 19,901 | DC103: 19,900 | DD103: 19,900 | DE103: 19,900 | DF103: 19,900 | DG103: 19,900 | DH103: 19,900 | DI103: 19,900 | DJ103: 19,900 | DK103: 19,900 | DL103: 19,900 | DM103: 19,901 | DN103: 19,900 | DO103: 19,900 | DP103: 19,900 | DQ103: 19,900
A104: 101 | B104: 1,217,777,689 | C104: 1,206,714,488 | D104: 1,264,934,819 | E104: 1,344,486,753 | F104: 1,503,207,383 | G104: 1,786,712,284 | H104: 1,851,571,374 | I104: 1,953,577,290 | J104: 1,765,265,202 | K104: 1,742,314,911 | L104: 1,766,837,362 | M104: 1,755,864,152 | N104: 1,675,896,205 | O104: 1,691,567,289 | P104: 1,705,582,353 | Q104: 1,735,607,979 | R104: 1,829,442,886 | S104: 1,997,067,752 | T104: 2,140,320,833 | U104: 1,827,769,348 | V104: 2,058,741,567 | W104: 2,288,155,000 | X104: 2,380,439,233 | Y104: 2,510,624,568 | Z104: 165,997,762 | AA104: 165,756,805 | AB104: 160,313,717 | AC104: 170,053,771 | AD104: 189,784,477 | AE104: 224,553,770 | AF104: 218,957,602 | AG104: 194,776,967 | AH104: 174,538,914 | AI104: 200,461,607 | AJ104: 203,691,318 | AK104: 212,081,388 | AL104: 202,550,916 | AM104: 202,820,526 | AN104: 180,493,099 | AO104: 179,496,427 | AP104: 188,823,944 | AQ104: 202,039,521 | AR104: 212,858,581 | AS104: 188,346,316 | AT104: 206,691,412 | AU104: 227,702,360 | AV104: 211,548,934 | AW104: 203,403,834 | AX104: 60,588 | AY104: 60,032 | AZ104: 62,935 | BA104: 66,893 | BB104: 74,790 | BC104: 88,900 | BD104: 92,132 | BE104: 97,209 | BF104: 87,841 | BG104: 86,696 | BH104: 87,918 | BI104: 87,369 | BJ104: 83,396 | BK104: 84,170 | BL104: 84,867 | BM104: 86,364 | BN104: 91,030 | BO104: 99,374 | BP104: 106,500 | BQ104: 90,953 | BR104: 102,447 | BS104: 113,849 | BT104: 118,449 | BU104: 124,919 | BV104: 13.6 | BW104: 13.7 | BX104: 12.7 | BY104: 12.6 | BZ104: 12.6 | CA104: 12.6 | CB104: 11.8 | CC104: 10.0 | CD104: 9.9 | CE104: 11.5 | CF104: 11.5 | CG104: 12.1 | CH104: 12.1 | CI104: 12.0 | CJ104: 10.6 | CK104: 10.3 | CL104: 10.3 | CM104: 10.1 | CN104: 9.9 | CO104: 10.3 | CP104: 10.0 | CQ104: 10.0 | CR104: 8.9 | CS104: 8.1 | CT104: 20,099 | CU104: 20,101 | CV104: 20,099 | CW104: 20,099 | CX104: 20,099 | CY104: 20,098 | CZ104: 20,097 | DA104: 20,097 | DB104: 20,096 | DC104: 20,097 | DD104: 20,096 | DE104: 20,097 | DF104: 20,096 | DG104: 20,097 | DH104: 20,097 | DI104: 20,096 | DJ104: 20,097 | DK104: 20,096 | DL104: 20,097 | DM104: 20,096 | DN104: 20,096 | DO104: 20,098 | DP104: 20,097 | DQ104: 20,098
A105: 102 | B105: 1,132,890,483 | C105: 1,196,846,175 | D105: 1,232,084,801 | E105: 1,301,498,369 | F105: 1,434,662,089 | G105: 1,690,832,693 | H105: 1,770,383,795 | I105: 1,892,071,435 | J105: 1,792,649,886 | K105: 1,712,905,091 | L105: 1,718,006,034 | M105: 1,663,836,090 | N105: 1,583,698,325 | O105: 1,600,187,017 | P105: 1,605,855,787 | Q105: 1,678,234,223 | R105: 1,783,468,964 | S105: 1,915,940,352 | T105: 2,026,590,096 | U105: 1,760,269,285 | V105: 2,007,402,289 | W105: 2,256,011,658 | X105: 2,420,723,940 | Y105: 2,582,675,479 | Z105: 155,731,467 | AA105: 165,406,403 | AB105: 156,991,590 | AC105: 165,438,437 | AD105: 181,518,360 | AE105: 213,682,016 | AF105: 210,857,772 | AG105: 190,283,856 | AH105: 179,132,205 | AI105: 197,716,076 | AJ105: 199,427,676 | AK105: 203,009,142 | AL105: 193,058,304 | AM105: 193,650,505 | AN105: 171,094,694 | AO105: 175,282,987 | AP105: 185,961,830 | AQ105: 195,663,937 | AR105: 204,209,148 | AS105: 183,751,642 | AT105: 204,014,501 | AU105: 226,753,188 | AV105: 222,992,340 | AW105: 216,404,536 | AX105: 55,808 | AY105: 58,960 | AZ105: 60,695 | BA105: 64,115 | BB105: 70,677 | BC105: 83,296 | BD105: 87,214 | BE105: 93,210 | BF105: 88,309 | BG105: 84,385 | BH105: 84,635 | BI105: 81,968 | BJ105: 78,020 | BK105: 78,830 | BL105: 79,109 | BM105: 82,676 | BN105: 87,860 | BO105: 94,387 | BP105: 99,836 | BQ105: 86,716 | BR105: 98,885 | BS105: 111,139 | BT105: 119,246 | BU105: 127,238 | BV105: 13.7 | BW105: 13.8 | BX105: 12.7 | BY105: 12.7 | BZ105: 12.7 | CA105: 12.6 | CB105: 11.9 | CC105: 10.1 | CD105: 10.0 | CE105: 11.5 | CF105: 11.6 | CG105: 12.2 | CH105: 12.2 | CI105: 12.1 | CJ105: 10.7 | CK105: 10.4 | CL105: 10.4 | CM105: 10.2 | CN105: 10.1 | CO105: 10.4 | CP105: 10.2 | CQ105: 10.1 | CR105: 9.2 | CS105: 8.4 | CT105: 20,300 | CU105: 20,299 | CV105: 20,300 | CW105: 20,299 | CX105: 20,299 | CY105: 20,299 | CZ105: 20,299 | DA105: 20,299 | DB105: 20,300 | DC105: 20,299 | DD105: 20,299 | DE105: 20,299 | DF105: 20,299 | DG105: 20,299 | DH105: 20,299 | DI105: 20,299 | DJ105: 20,299 | DK105: 20,299 | DL105: 20,299 | DM105: 20,299 | DN105: 20,300 | DO105: 20,299 | DP105: 20,300 | DQ105: 20,298
A106: 103 | B106: 1,161,513,473 | C106: 1,178,826,110 | D106: 1,292,827,419 | E106: 1,334,995,433 | F106: 1,440,255,084 | G106: 1,677,487,259 | H106: 1,768,536,140 | I106: 1,876,251,957 | J106: 1,771,842,525 | K106: 1,763,661,952 | L106: 1,749,927,823 | M106: 1,648,248,422 | N106: 1,566,547,312 | O106: 1,617,782,579 | P106: 1,613,979,377 | Q106: 1,716,666,659 | R106: 1,851,236,173 | S106: 1,983,129,288 | T106: 2,086,358,318 | U106: 1,818,564,456 | V106: 2,126,324,671 | W106: 2,360,221,292 | X106: 2,411,556,488 | Y106: 2,502,715,914 | Z106: 160,872,715 | AA106: 164,152,047 | AB106: 165,417,224 | AC106: 170,595,479 | AD106: 183,046,747 | AE106: 212,913,927 | AF106: 214,672,807 | AG106: 190,664,738 | AH106: 178,104,484 | AI106: 206,039,147 | AJ106: 205,067,167 | AK106: 202,776,605 | AL106: 192,393,506 | AM106: 197,245,562 | AN106: 174,096,929 | AO106: 181,470,765 | AP106: 195,941,405 | AQ106: 206,332,364 | AR106: 214,135,330 | AS106: 193,050,358 | AT106: 219,779,416 | AU106: 242,336,705 | AV106: 228,543,939 | AW106: 216,000,280 | AX106: 56,664 | AY106: 57,507 | AZ106: 63,066 | BA106: 65,123 | BB106: 70,262 | BC106: 81,836 | BD106: 86,279 | BE106: 91,534 | BF106: 86,446 | BG106: 86,043 | BH106: 85,372 | BI106: 80,412 | BJ106: 76,425 | BK106: 78,924 | BL106: 78,741 | BM106: 83,740 | BN106: 90,304 | BO106: 96,736 | BP106: 101,770 | BQ106: 88,710 | BR106: 103,721 | BS106: 115,128 | BT106: 117,642 | BU106: 122,097 | BV106: 13.9 | BW106: 13.9 | BX106: 12.8 | BY106: 12.8 | BZ106: 12.7 | CA106: 12.7 | CB106: 12.1 | CC106: 10.2 | CD106: 10.1 | CE106: 11.7 | CF106: 11.7 | CG106: 12.3 | CH106: 12.3 | CI106: 12.2 | CJ106: 10.8 | CK106: 10.6 | CL106: 10.6 | CM106: 10.4 | CN106: 10.3 | CO106: 10.6 | CP106: 10.3 | CQ106: 10.3 | CR106: 9.5 | CS106: 8.6 | CT106: 20,498 | CU106: 20,499 | CV106: 20,500 | CW106: 20,500 | CX106: 20,498 | CY106: 20,498 | CZ106: 20,498 | DA106: 20,498 | DB106: 20,497 | DC106: 20,497 | DD106: 20,498 | DE106: 20,498 | DF106: 20,498 | DG106: 20,498 | DH106: 20,497 | DI106: 20,500 | DJ106: 20,500 | DK106: 20,500 | DL106: 20,501 | DM106: 20,500 | DN106: 20,500 | DO106: 20,501 | DP106: 20,499 | DQ106: 20,498
A107: 104 | B107: 1,242,160,244 | C107: 1,162,521,584 | D107: 1,265,414,434 | E107: 1,297,374,072 | F107: 1,399,901,491 | G107: 1,615,308,039 | H107: 1,728,238,642 | I107: 1,830,316,772 | J107: 1,705,931,741 | K107: 1,671,165,923 | L107: 1,673,752,410 | M107: 1,602,475,378 | N107: 1,540,502,760 | O107: 1,542,208,922 | P107: 1,621,034,237 | Q107: 1,681,251,055 | R107: 1,772,707,785 | S107: 1,917,369,326 | T107: 1,922,226,234 | U107: 1,742,376,314 | V107: 1,995,022,256 | W107: 2,235,369,439 | X107: 2,354,988,572 | Y107: 2,385,075,124 | Z107: 173,504,922 | AA107: 162,660,154 | AB107: 163,272,235 | AC107: 166,856,449 | AD107: 179,308,705 | AE107: 206,245,284 | AF107: 212,716,754 | AG107: 188,469,468 | AH107: 173,960,896 | AI107: 197,014,440 | AJ107: 198,463,218 | AK107: 198,378,006 | AL107: 191,428,152 | AM107: 190,023,354 | AN107: 177,858,442 | AO107: 179,660,530 | AP107: 189,504,334 | AQ107: 201,415,910 | AR107: 198,927,543 | AS107: 186,529,667 | AT107: 208,503,760 | AU107: 231,160,254 | AV107: 228,614,793 | AW107: 212,631,626 | AX107: 60,016 | AY107: 56,161 | AZ107: 61,130 | BA107: 62,676 | BB107: 67,627 | BC107: 78,034 | BD107: 83,491 | BE107: 88,424 | BF107: 82,412 | BG107: 80,733 | BH107: 80,861 | BI107: 77,416 | BJ107: 74,421 | BK107: 74,502 | BL107: 78,311 | BM107: 81,220 | BN107: 85,644 | BO107: 92,628 | BP107: 92,864 | BQ107: 84,174 | BR107: 96,380 | BS107: 107,993 | BT107: 113,772 | BU107: 115,228 | BV107: 14.0 | BW107: 14.0 | BX107: 12.9 | BY107: 12.9 | BZ107: 12.8 | CA107: 12.8 | CB107: 12.3 | CC107: 10.3 | CD107: 10.2 | CE107: 11.8 | CF107: 11.9 | CG107: 12.4 | CH107: 12.4 | CI107: 12.3 | CJ107: 11.0 | CK107: 10.7 | CL107: 10.7 | CM107: 10.5 | CN107: 10.3 | CO107: 10.7 | CP107: 10.5 | CQ107: 10.3 | CR107: 9.7 | CS107: 8.9 | CT107: 20,697 | CU107: 20,700 | CV107: 20,700 | CW107: 20,700 | CX107: 20,700 | CY107: 20,700 | CZ107: 20,700 | DA107: 20,699 | DB107: 20,700 | DC107: 20,700 | DD107: 20,699 | DE107: 20,700 | DF107: 20,700 | DG107: 20,700 | DH107: 20,700 | DI107: 20,700 | DJ107: 20,699 | DK107: 20,700 | DL107: 20,699 | DM107: 20,700 | DN107: 20,700 | DO107: 20,699 | DP107: 20,699 | DQ107: 20,699 | DR107: 20,700
A108: 105 | B108: 1,150,563,380 | C108: 1,154,707,023 | D108: 1,256,328,521 | E108: 1,282,159,340 | F108: 1,401,372,011 | G108: 1,580,743,569 | H108: 1,753,268,986 | I108: 1,837,874,529 | J108: 1,691,346,361 | K108: 1,662,021,525 | L108: 1,654,862,864 | M108: 1,605,796,265 | N108: 1,509,656,426 | O108: 1,508,817,152 | P108: 1,557,899,423 | Q108: 1,643,027,085 | R108: 1,761,574,387 | S108: 1,913,006,026 | T108: 1,997,836,127 | U108: 1,737,371,077 | V108: 1,986,451,702 | W108: 2,238,040,114 | X108: 2,359,752,135 | Y108: 2,381,326,042 | Z108: 161,799,357 | AA108: 162,892,214 | AB108: 163,139,665 | AC108: 166,178,687 | AD108: 180,595,139 | AE108: 202,794,969 | AF108: 217,794,935 | AG108: 193,505,749 | AH108: 176,574,046 | AI108: 199,709,913 | AJ108: 199,396,544 | AK108: 200,607,831 | AL108: 188,536,642 | AM108: 186,741,430 | AN108: 172,118,063 | AO108: 177,920,655 | AP108: 190,422,490 | AQ108: 203,347,660 | AR108: 211,053,451 | AS108: 188,509,572 | AT108: 210,545,877 | AU108: 234,522,659 | AV108: 235,298,640 | AW108: 218,608,556 | AX108: 55,051 | AY108: 55,250 | AZ108: 60,114 | BA108: 61,349 | BB108: 67,053 | BC108: 75,635 | BD108: 83,889 | BE108: 87,937 | BF108: 80,926 | BG108: 79,527 | BH108: 79,184 | BI108: 76,832 | BJ108: 72,233 | BK108: 72,194 | BL108: 74,541 | BM108: 78,618 | BN108: 84,291 | BO108: 91,533 | BP108: 95,591 | BQ108: 83,131 | BR108: 95,049 | BS108: 107,088 | BT108: 112,910 | BU108: 113,938 | BV108: 14.1 | BW108: 14.1 | BX108: 13.0 | BY108: 13.0 | BZ108: 12.9 | CA108: 12.8 | CB108: 12.4 | CC108: 10.5 | CD108: 10.4 | CE108: 12.0 | CF108: 12.0 | CG108: 12.5 | CH108: 12.5 | CI108: 12.4 | CJ108: 11.0 | CK108: 10.8 | CL108: 10.8 | CM108: 10.6 | CN108: 10.6 | CO108: 10.9 | CP108: 10.6 | CQ108: 10.5 | CR108: 10.0 | CS108: 9.2 | CT108: 20,900 | CU108: 20,900 | CV108: 20,899 | CW108: 20,899 | CX108: 20,899 | CY108: 20,900 | CZ108: 20,900 | DA108: 20,900 | DB108: 20,900 | DC108: 20,899 | DD108: 20,899 | DE108: 20,900 | DF108: 20,900 | DG108: 20,899 | DH108: 20,900 | DI108: 20,899 | DJ108: 20,899 | DK108: 20,900 | DL108: 20,900 | DM108: 20,899 | DN108: 20,899 | DO108: 20,899 | DP108: 20,899 | DQ108: 20,900
A109: 106 | B109: 1,193,310,339 | C109: 1,311,998,709 | D109: 1,349,872,462 | E109: 1,391,233,776 | F109: 1,490,827,047 | G109: 1,682,393,401 | H109: 1,868,466,491 | I109: 1,932,432,964 | J109: 1,809,412,935 | K109: 1,785,699,662 | L109: 1,833,049,173 | M109: 1,739,090,591 | N109: 1,640,115,383 | O109: 1,648,241,142 | P109: 1,655,098,930 | Q109: 1,725,608,071 | R109: 1,858,119,070 | S109: 2,000,428,757 | T109: 2,101,911,076 | U109: 1,793,853,925 | V109: 2,096,666,621 | W109: 2,302,267,312 | X109: 2,437,133,601 | Y109: 2,510,502,239 | Z109: 170,112,218 | AA109: 187,643,201 | AB109: 177,105,003 | AC109: 182,253,072 | AD109: 194,444,583 | AE109: 218,140,307 | AF109: 234,983,126 | AG109: 208,428,676 | AH109: 194,103,825 | AI109: 219,072,077 | AJ109: 225,835,948 | AK109: 219,508,025 | AL109: 206,749,555 | AM109: 206,362,004 | AN109: 185,472,287 | AO109: 189,031,915 | AP109: 203,379,746 | AQ109: 215,066,915 | AR109: 224,496,968 | AS109: 197,102,591 | AT109: 225,294,525 | AU109: 244,301,410 | AV109: 249,742,701 | AW109: 237,798,498 | AX109: 56,573 | AY109: 62,190 | AZ109: 63,993 | BA109: 65,956 | BB109: 70,675 | BC109: 79,756 | BD109: 88,576 | BE109: 91,608 | BF109: 85,779 | BG109: 84,655 | BH109: 86,897 | BI109: 82,445 | BJ109: 77,755 | BK109: 78,138 | BL109: 78,462 | BM109: 81,805 | BN109: 88,088 | BO109: 94,827 | BP109: 99,638 | BQ109: 85,035 | BR109: 99,387 | BS109: 109,134 | BT109: 115,524 | BU109: 119,000 | BV109: 14.3 | BW109: 14.3 | BX109: 13.1 | BY109: 13.1 | BZ109: 13.0 | CA109: 13.0 | CB109: 12.6 | CC109: 10.8 | CD109: 10.7 | CE109: 12.3 | CF109: 12.3 | CG109: 12.6 | CH109: 12.6 | CI109: 12.5 | CJ109: 11.2 | CK109: 11.0 | CL109: 10.9 | CM109: 10.8 | CN109: 10.7 | CO109: 11.0 | CP109: 10.7 | CQ109: 10.6 | CR109: 10.2 | CS109: 9.5 | CT109: 21,093 | CU109: 21,097 | CV109: 21,094 | CW109: 21,093 | CX109: 21,094 | CY109: 21,094 | CZ109: 21,095 | DA109: 21,095 | DB109: 21,094 | DC109: 21,094 | DD109: 21,095 | DE109: 21,094 | DF109: 21,093 | DG109: 21,094 | DH109: 21,094 | DI109: 21,094 | DJ109: 21,094 | DK109: 21,096 | DL109: 21,095 | DM109: 21,095 | DN109: 21,096 | DO109: 21,096 | DP109: 21,096 | DQ109: 21,097
A110: 107 | B110: 1,083,683,875 | C110: 1,196,052,381 | D110: 1,224,161,859 | E110: 1,274,124,021 | F110: 1,363,493,270 | G110: 1,522,078,114 | H110: 1,801,944,505 | I110: 1,784,579,625 | J110: 1,683,216,923 | K110: 1,643,614,670 | L110: 1,656,323,452 | M110: 1,622,971,981 | N110: 1,493,573,083 | O110: 1,484,909,025 | P110: 1,524,738,499 | Q110: 1,596,908,950 | R110: 1,692,859,849 | S110: 1,873,486,224 | T110: 1,941,894,454 | U110: 1,663,223,096 | V110: 1,992,168,335 | W110: 2,206,968,741 | X110: 2,364,946,931 | Y110: 2,441,296,572 | Z110: 155,216,091 | AA110: 172,058,301 | AB110: 161,169,385 | AC110: 167,692,918 | AD110: 178,771,042 | AE110: 198,567,215 | AF110: 227,305,079 | AG110: 193,704,253 | AH110: 181,364,867 | AI110: 202,537,037 | AJ110: 204,660,185 | AK110: 205,162,112 | AL110: 188,522,888 | AM110: 186,091,859 | AN110: 171,574,363 | AO110: 175,530,207 | AP110: 185,873,944 | AQ110: 202,794,669 | AR110: 208,219,685 | AS110: 183,965,528 | AT110: 215,299,266 | AU110: 236,431,410 | AV110: 245,199,911 | AW110: 236,103,246 | AX110: 50,881 | AY110: 56,149 | AZ110: 57,476 | BA110: 59,818 | BB110: 64,016 | BC110: 71,459 | BD110: 84,594 | BE110: 83,786 | BF110: 79,026 | BG110: 77,167 | BH110: 77,762 | BI110: 76,199 | BJ110: 70,124 | BK110: 69,715 | BL110: 71,586 | BM110: 74,976 | BN110: 79,480 | BO110: 87,955 | BP110: 91,171 | BQ110: 78,086 | BR110: 93,531 | BS110: 103,615 | BT110: 111,035 | BU110: 114,619 | BV110: 14.3 | BW110: 14.4 | BX110: 13.2 | BY110: 13.2 | BZ110: 13.1 | CA110: 13.0 | CB110: 12.6 | CC110: 10.9 | CD110: 10.8 | CE110: 12.3 | CF110: 12.4 | CG110: 12.6 | CH110: 12.6 | CI110: 12.5 | CJ110: 11.3 | CK110: 11.0 | CL110: 11.0 | CM110: 10.8 | CN110: 10.7 | CO110: 11.1 | CP110: 10.8 | CQ110: 10.7 | CR110: 10.4 | CS110: 9.7 | CT110: 21,298 | CU110: 21,301 | CV110: 21,299 | CW110: 21,300 | CX110: 21,299 | CY110: 21,300 | CZ110: 21,301 | DA110: 21,299 | DB110: 21,300 | DC110: 21,299 | DD110: 21,300 | DE110: 21,299 | DF110: 21,299 | DG110: 21,300 | DH110: 21,299 | DI110: 21,299 | DJ110: 21,299 | DK110: 21,301 | DL110: 21,299 | DM110: 21,300 | DN110: 21,300 | DO110: 21,300 | DP110: 21,299 | DQ110: 21,299
A111: 108 | B111: 1,101,463,458 | C111: 1,312,544,926 | D111: 1,229,528,543 | E111: 1,280,241,363 | F111: 1,367,350,265 | G111: 1,492,924,960 | H111: 1,842,356,501 | I111: 1,828,420,113 | J111: 1,682,007,456 | K111: 1,646,744,853 | L111: 1,627,741,695 | M111: 1,637,977,327 | N111: 1,507,610,922 | O111: 1,506,300,369 | P111: 1,519,121,365 | Q111: 1,601,597,344 | R111: 1,744,100,121 | S111: 1,876,933,302 | T111: 1,948,545,800 | U111: 1,699,278,578 | V111: 1,973,641,866 | W111: 2,220,478,205 | X111: 2,379,449,379 | Y111: 2,417,273,217 | Z111: 159,205,934 | AA111: 190,915,663 | AB111: 163,656,599 | AC111: 169,938,062 | AD111: 180,703,167 | AE111: 196,192,087 | AF111: 234,558,170 | AG111: 200,761,832 | AH111: 182,845,863 | AI111: 204,333,682 | AJ111: 202,651,250 | AK111: 209,335,436 | AL111: 192,509,410 | AM111: 190,862,336 | AN111: 172,809,884 | AO111: 177,981,520 | AP111: 193,875,324 | AQ111: 205,561,394 | AR111: 211,296,201 | AS111: 190,093,587 | AT111: 215,652,122 | AU111: 240,375,923 | AV111: 250,303,045 | AW111: 239,528,535 | AX111: 51,225 | AY111: 61,054 | AZ111: 57,188 | BA111: 59,548 | BB111: 63,603 | BC111: 69,444 | BD111: 85,698 | BE111: 85,033 | BF111: 78,234 | BG111: 76,595 | BH111: 75,711 | BI111: 76,186 | BJ111: 70,127 | BK111: 70,065 | BL111: 70,658 | BM111: 74,495 | BN111: 81,123 | BO111: 87,300 | BP111: 90,630 | BQ111: 79,037 | BR111: 91,800 | BS111: 103,279 | BT111: 110,674 | BU111: 112,431 | BV111: 14.5 | BW111: 14.5 | BX111: 13.3 | BY111: 13.3 | BZ111: 13.2 | CA111: 13.1 | CB111: 12.7 | CC111: 11.0 | CD111: 10.9 | CE111: 12.4 | CF111: 12.4 | CG111: 12.8 | CH111: 12.8 | CI111: 12.7 | CJ111: 11.4 | CK111: 11.1 | CL111: 11.1 | CM111: 11.0 | CN111: 10.8 | CO111: 11.2 | CP111: 10.9 | CQ111: 10.8 | CR111: 10.5 | CS111: 9.9 | CT111: 21,502 | CU111: 21,498 | CV111: 21,500 | CW111: 21,499 | CX111: 21,498 | CY111: 21,498 | CZ111: 21,498 | DA111: 21,502 | DB111: 21,500 | DC111: 21,499 | DD111: 21,499 | DE111: 21,500 | DF111: 21,498 | DG111: 21,499 | DH111: 21,500 | DI111: 21,499 | DJ111: 21,499 | DK111: 21,500 | DL111: 21,500 | DM111: 21,500 | DN111: 21,499 | DO111: 21,500 | DP111: 21,500 | DQ111: 21,500
A112: 109 | B112: 1,152,472,806 | C112: 1,314,760,945 | D112: 1,294,356,772 | E112: 1,350,952,830 | F112: 1,428,578,362 | G112: 1,545,279,760 | H112: 1,830,341,305 | I112: 1,952,222,753 | J112: 1,732,772,601 | K112: 1,685,374,249 | L112: 1,668,054,250 | M112: 1,633,341,131 | N112: 1,501,517,513 | O112: 1,534,626,104 | P112: 1,564,799,981 | Q112: 1,602,955,436 | R112: 1,697,605,165 | S112: 1,850,565,757 | T112: 1,979,732,216 | U112: 1,732,513,157 | V112: 1,947,508,851 | W112: 2,208,295,924 | X112: 2,497,547,226 | Y112: 2,537,197,537 | Z112: 168,084,451 | AA112: 192,773,507 | AB112: 174,902,490 | AC112: 182,152,747 | AD112: 190,248,485 | AE112: 204,322,603 | AF112: 234,352,725 | AG112: 215,498,958 | AH112: 189,777,149 | AI112: 210,504,274 | AJ112: 208,988,603 | AK112: 209,373,963 | AL112: 192,061,630 | AM112: 194,729,831 | AN112: 179,277,023 | AO112: 179,693,758 | AP112: 190,668,875 | AQ112: 205,004,357 | AR112: 217,597,697 | AS112: 195,973,069 | AT112: 214,975,771 | AU112: 241,901,172 | AV112: 266,171,540 | AW112: 256,938,805 | AX112: 53,124 | AY112: 60,606 | AZ112: 59,660 | BA112: 62,267 | BB112: 65,851 | BC112: 71,230 | BD112: 84,368 | BE112: 89,978 | BF112: 79,867 | BG112: 77,683 | BH112: 76,884 | BI112: 75,285 | BJ112: 69,207 | BK112: 70,731 | BL112: 72,123 | BM112: 73,885 | BN112: 78,246 | BO112: 85,296 | BP112: 91,248 | BQ112: 79,848 | BR112: 89,760 | BS112: 101,778 | BT112: 115,112 | BU112: 116,942 | BV112: 14.6 | BW112: 14.7 | BX112: 13.5 | BY112: 13.5 | BZ112: 13.3 | CA112: 13.2 | CB112: 12.8 | CC112: =+AG112/I112*100 -> 11.0 | CD112: 11.0 | CE112: 12.5 | CF112: 12.5 | CG112: 12.8 | CH112: 12.8 | CI112: 12.7 | CJ112: 11.5 | CK112: 11.2 | CL112: 11.2 | CM112: 11.1 | CN112: 11.0 | CO112: 11.3 | CP112: 11.0 | CQ112: 11.0 | CR112: 10.7 | CS112: 10.1 | CT112: 21,694 | CU112: 21,694 | CV112: 21,696 | CW112: 21,696 | CX112: 21,694 | CY112: 21,694 | CZ112: 21,695 | DA112: 21,697 | DB112: 21,696 | DC112: 21,696 | DD112: 21,696 | DE112: 21,695 | DF112: 21,696 | DG112: 21,697 | DH112: 21,696 | DI112: 21,695 | DJ112: 21,696 | DK112: 21,696 | DL112: 21,696 | DM112: 21,698 | DN112: 21,697 | DO112: 21,697 | DP112: 21,697 | DQ112: 21,696
A113: 110 | B113: 1,130,616,241 | C113: 1,174,939,899 | D113: 1,247,919,593 | E113: 1,259,377,434 | F113: 1,323,229,199 | G113: 1,458,441,092 | H113: 1,703,532,507 | I113: 1,864,413,125 | J113: 1,681,530,722 | K113: 1,632,740,630 | L113: 1,612,678,553 | M113: 1,560,641,912 | N113: 1,457,217,242 | O113: 1,463,242,615 | P113: 1,506,697,621 | Q113: 1,562,883,641 | R113: 1,671,881,603 | S113: 1,834,416,940 | T113: 1,974,952,257 | U113: 1,717,195,869 | V113: 1,963,239,462 | W113: 2,231,506,718 | X113: 2,397,820,631 | Y113: 2,445,178,888 | Z113: 166,111,150 | AA113: 173,154,686 | AB113: 169,542,804 | AC113: 170,898,028 | AD113: 178,575,251 | AE113: 194,676,507 | AF113: 218,783,294 | AG113: 207,110,554 | AH113: 185,925,799 | AI113: 205,216,664 | AJ113: 203,138,838 | AK113: 201,726,751 | AL113: 187,745,387 | AM113: 187,162,062 | AN113: 174,528,060 | AO113: 177,011,938 | AP113: 189,488,588 | AQ113: 204,732,388 | AR113: 219,702,868 | AS113: 196,289,793 | AT113: 219,676,900 | AU113: 248,084,032 | AV113: 259,127,632 | AW113: 252,864,672 | AX113: 51,622 | AY113: 53,649 | AZ113: 56,980 | BA113: 57,506 | BB113: 60,420 | BC113: 66,596 | BD113: 77,789 | BE113: 85,136 | BF113: 76,781 | BG113: 74,553 | BH113: 73,635 | BI113: 71,259 | BJ113: 66,538 | BK113: 66,813 | BL113: 68,795 | BM113: 71,362 | BN113: 76,338 | BO113: 83,760 | BP113: 90,172 | BQ113: 78,407 | BR113: 89,639 | BS113: 101,889 | BT113: 109,484 | BU113: 111,646 | BV113: 14.7 | BW113: 14.7 | BX113: 13.6 | BY113: 13.6 | BZ113: 13.5 | CA113: 13.3 | CB113: 12.8 | CC113: 11.1 | CD113: 11.1 | CE113: 12.6 | CF113: 12.6 | CG113: 12.9 | CH113: 12.9 | CI113: 12.8 | CJ113: 11.6 | CK113: 11.3 | CL113: 11.3 | CM113: 11.2 | CN113: 11.1 | CO113: 11.4 | CP113: 11.2 | CQ113: 11.1 | CR113: 10.8 | CS113: 10.3 | CT113: 21,902 | CU113: 21,900 | CV113: 21,901 | CW113: 21,900 | CX113: 21,901 | CY113: 21,900 | CZ113: 21,899 | DA113: 21,899 | DB113: 21,900 | DC113: 21,900 | DD113: 21,901 | DE113: 21,901 | DF113: 21,901 | DG113: 21,901 | DH113: 21,901 | DI113: 21,901 | DJ113: 21,901 | DK113: 21,901 | DL113: 21,902 | DM113: 21,901 | DN113: 21,902 | DO113: 21,901 | DP113: 21,901 | DQ113: 21,901
A114: 111 | B114: 1,048,307,679 | C114: 1,113,423,784 | D114: 1,321,096,214 | E114: 1,239,546,873 | F114: 1,333,693,781 | G114: 1,427,472,497 | H114: 1,670,389,405 | I114: 1,793,381,728 | J114: 1,946,177,863 | K114: 1,624,952,755 | L114: 1,617,754,620 | M114: 1,503,601,513 | N114: 1,432,512,288 | O114: 1,461,156,329 | P114: 1,527,704,404 | Q114: 1,570,659,104 | R114: 1,635,880,536 | S114: 1,823,203,000 | T114: 1,878,171,479 | U114: 1,686,765,763 | V114: 1,946,854,192 | W114: 2,164,123,992 | X114: 2,394,602,737 | Y114: 2,548,201,235 | Z114: 154,646,488 | AA114: 164,599,564 | AB114: 180,470,656 | AC114: 169,204,023 | AD114: 181,542,991 | AE114: 193,000,073 | AF114: 215,661,710 | AG114: 200,355,892 | AH114: 216,783,462 | AI114: 205,001,921 | AJ114: 204,625,642 | AK114: 197,539,709 | AL114: 188,168,478 | AM114: 189,936,328 | AN114: 178,240,841 | AO114: 179,310,332 | AP114: 186,480,874 | AQ114: 205,846,120 | AR114: 211,380,415 | AS114: 194,583,938 | AT114: 220,639,531 | AU114: 243,029,735 | AV114: 261,636,762 | AW114: 271,265,947 | AX114: 47,435 | AY114: 50,383 | AZ114: 59,776 | BA114: 56,091 | BB114: 60,351 | BC114: 64,597 | BD114: 75,592 | BE114: 81,158 | BF114: 88,087 | BG114: 73,536 | BH114: 73,211 | BI114: 68,046 | BJ114: 64,829 | BK114: 66,125 | BL114: 69,135 | BM114: 71,079 | BN114: 74,031 | BO114: 82,513 | BP114: 84,996 | BQ114: 76,333 | BR114: 88,101 | BS114: 97,934 | BT114: 108,363 | BU114: 115,306 | BV114: 14.8 | BW114: 14.8 | BX114: 13.7 | BY114: 13.7 | BZ114: 13.6 | CA114: 13.5 | CB114: 12.9 | CC114: 11.2 | CD114: 11.1 | CE114: 12.6 | CF114: 12.6 | CG114: 13.1 | CH114: 13.1 | CI114: 13.0 | CJ114: 11.7 | CK114: 11.4 | CL114: 11.4 | CM114: 11.3 | CN114: 11.3 | CO114: 11.5 | CP114: 11.3 | CQ114: 11.2 | CR114: 10.9 | CS114: 10.6 | CT114: 22,100 | CU114: 22,099 | CV114: 22,101 | CW114: 22,099 | CX114: 22,099 | CY114: 22,098 | CZ114: 22,097 | DA114: 22,097 | DB114: 22,094 | DC114: 22,097 | DD114: 22,097 | DE114: 22,097 | DF114: 22,097 | DG114: 22,097 | DH114: 22,097 | DI114: 22,097 | DJ114: 22,097 | DK114: 22,096 | DL114: 22,097 | DM114: 22,097 | DN114: 22,098 | DO114: 22,098 | DP114: 22,098 | DQ114: 22,099
A115: 112 | B115: 1,107,939,191 | C115: 1,145,678,711 | D115: 1,419,464,469 | E115: 1,269,490,920 | F115: 1,339,265,044 | G115: 1,449,654,570 | H115: 1,592,791,342 | I115: 1,745,525,875 | J115: 1,755,619,085 | K115: 1,978,037,938 | L115: 1,596,783,175 | M115: 1,457,659,960 | N115: 1,419,351,904 | O115: 1,435,114,360 | P115: 1,544,178,430 | Q115: 1,601,434,216 | R115: 1,661,081,397 | S115: 1,800,361,885 | T115: 1,932,449,096 | U115: 1,696,399,288 | V115: 1,986,668,767 | W115: 2,228,119,382 | X115: 2,435,511,286 | Y115: 2,552,865,633 | Z115: 164,492,293 | AA115: 170,640,317 | AB115: 195,111,760 | AC115: 174,379,298 | AD115: 183,123,316 | AE115: 197,262,434 | AF115: 207,710,788 | AG115: 196,545,119 | AH115: 196,822,595 | AI115: 251,376,563 | AJ115: 203,144,973 | AK115: 194,368,836 | AL115: 189,461,168 | AM115: 190,451,982 | AN115: 182,363,232 | AO115: 185,213,057 | AP115: 192,028,907 | AQ115: 205,754,935 | AR115: 220,691,251 | AS115: 197,933,106 | AT115: 228,419,155 | AU115: 254,347,309 | AV115: 271,976,219 | AW115: 276,706,326 | AX115: 49,683 | AY115: 51,374 | AZ115: 63,652 | BA115: 56,928 | BB115: 60,060 | BC115: 65,011 | BD115: 71,431 | BE115: 78,278 | BF115: 78,734 | BG115: 88,764 | BH115: 71,608 | BI115: 65,369 | BJ115: 63,652 | BK115: 64,359 | BL115: 69,247 | BM115: 71,820 | BN115: 74,494 | BO115: 80,741 | BP115: 86,664 | BQ115: 76,078 | BR115: 89,096 | BS115: 99,926 | BT115: 109,222 | BU115: 114,483 | BV115: 14.8 | BW115: 14.9 | BX115: 13.7 | BY115: 13.7 | BZ115: 13.7 | CA115: 13.6 | CB115: 13.0 | CC115: 11.3 | CD115: 11.2 | CE115: 12.7 | CF115: 12.7 | CG115: 13.3 | CH115: 13.3 | CI115: 13.3 | CJ115: 11.8 | CK115: 11.6 | CL115: 11.6 | CM115: 11.4 | CN115: 11.4 | CO115: 11.7 | CP115: 11.5 | CQ115: 11.4 | CR115: 11.2 | CS115: 10.8 | CT115: 22,300 | CU115: 22,301 | CV115: 22,300 | CW115: 22,300 | CX115: 22,299 | CY115: 22,299 | CZ115: 22,298 | DA115: 22,299 | DB115: 22,298 | DC115: 22,284 | DD115: 22,299 | DE115: 22,299 | DF115: 22,299 | DG115: 22,299 | DH115: 22,300 | DI115: 22,298 | DJ115: 22,298 | DK115: 22,298 | DL115: 22,298 | DM115: 22,298 | DN115: 22,298 | DO115: 22,298 | DP115: 22,299 | DQ115: 22,299
A116: 113 | B116: 1,078,678,595 | C116: 1,115,251,644 | D116: 1,233,567,376 | E116: 1,274,814,207 | F116: 1,342,389,088 | G116: 1,447,102,371 | H116: 1,577,263,940 | I116: 1,770,087,218 | J116: 1,709,768,350 | K116: 1,660,643,902 | L116: 1,648,847,841 | M116: 1,493,064,114 | N116: 1,442,122,416 | O116: 1,442,133,419 | P116: 1,502,578,104 | Q116: 1,556,366,646 | R116: 1,642,896,029 | S116: 1,752,228,870 | T116: 1,933,490,007 | U116: 1,715,754,009 | V116: 1,928,178,088 | W116: 2,209,963,783 | X116: 2,354,624,256 | Y116: 2,459,710,153 | Z116: 161,297,314 | AA116: 167,351,174 | AB116: 170,407,996 | AC116: 175,932,095 | AD116: 184,740,689 | AE116: 198,242,852 | AF116: 209,479,931 | AG116: 201,386,543 | AH116: 193,428,818 | AI116: 212,910,237 | AJ116: 211,924,029 | AK116: 201,607,345 | AL116: 194,798,434 | AM116: 193,837,888 | AN116: 179,223,105 | AO116: 181,696,105 | AP116: 191,580,773 | AQ116: 201,930,826 | AR116: 222,464,861 | AS116: 202,230,885 | AT116: 223,015,339 | AU116: 253,847,626 | AV116: 264,486,379 | AW116: 270,984,100 | AX116: 47,940 | AY116: 49,568 | AZ116: 54,825 | BA116: 56,658 | BB116: 59,662 | BC116: 64,317 | BD116: 70,103 | BE116: 78,673 | BF116: 75,995 | BG116: 73,808 | BH116: 73,278 | BI116: 66,360 | BJ116: 64,096 | BK116: 64,096 | BL116: 66,785 | BM116: 69,176 | BN116: 73,019 | BO116: 77,879 | BP116: 85,923 | BQ116: 76,257 | BR116: 85,702 | BS116: 98,223 | BT116: 104,653 | BU116: 109,328 | BV116: 15.0 | BW116: 15.0 | BX116: 13.8 | BY116: 13.8 | BZ116: 13.8 | CA116: 13.7 | CB116: 13.3 | CC116: 11.4 | CD116: 11.3 | CE116: 12.8 | CF116: 12.9 | CG116: 13.5 | CH116: 13.5 | CI116: 13.4 | CJ116: 11.9 | CK116: 11.7 | CL116: 11.7 | CM116: 11.5 | CN116: 11.5 | CO116: 11.8 | CP116: 11.6 | CQ116: 11.5 | CR116: 11.2 | CS116: 11.0 | CT116: 22,501 | CU116: 22,499 | CV116: 22,500 | CW116: 22,500 | CX116: 22,500 | CY116: 22,500 | CZ116: 22,499 | DA116: 22,499 | DB116: 22,498 | DC116: 22,500 | DD116: 22,501 | DE116: 22,499 | DF116: 22,499 | DG116: 22,500 | DH116: 22,499 | DI116: 22,499 | DJ116: 22,500 | DK116: 22,499 | DL116: 22,503 | DM116: 22,500 | DN116: 22,499 | DO116: 22,499 | DP116: 22,499 | DQ116: 22,498
A117: 114 | B117: 1,034,407,976 | C117: 1,111,087,126 | D117: 1,234,445,868 | E117: 1,271,023,335 | F117: 1,308,342,925 | G117: 1,406,627,023 | H117: 1,540,943,535 | I117: 1,717,291,181 | J117: 1,563,102,198 | K117: 1,556,033,335 | L117: 1,711,286,358 | M117: 1,445,605,859 | N117: 1,407,825,185 | O117: 1,400,876,791 | P117: 1,417,335,439 | Q117: 1,475,281,742 | R117: 1,557,723,125 | S117: 1,665,651,705 | T117: 1,798,424,051 | U117: 1,613,410,899 | V117: 1,816,750,454 | W117: 2,070,097,664 | X117: 2,268,056,144 | Y117: 2,397,547,717 | Z117: 155,527,668 | AA117: 167,685,530 | AB117: 171,186,199 | AC117: 176,247,794 | AD117: 180,646,123 | AE117: 193,354,447 | AF117: 206,851,542 | AG117: 196,939,646 | AH117: 178,041,103 | AI117: 200,149,436 | AJ117: 220,459,242 | AK117: 196,155,025 | AL117: 191,142,740 | AM117: 188,870,153 | AN117: 169,718,034 | AO117: 172,748,069 | AP117: 182,458,001 | AQ117: 192,414,414 | AR117: 207,353,554 | AS117: 191,213,270 | AT117: 210,992,168 | AU117: 238,824,786 | AV117: 256,015,777 | AW117: 267,079,437 | AX117: 45,567 | AY117: 48,950 | AZ117: 54,383 | BA117: 55,988 | BB117: 57,636 | BC117: 61,966 | BD117: 67,883 | BE117: 75,655 | BF117: 68,861 | BG117: 68,548 | BH117: 75,357 | BI117: 63,685 | BJ117: 62,020 | BK117: 61,714 | BL117: 62,440 | BM117: 64,991 | BN117: 68,625 | BO117: 73,379 | BP117: 79,228 | BQ117: 71,077 | BR117: 80,034 | BS117: 91,196 | BT117: 99,919 | BU117: 105,619 | BV117: 15.0 | BW117: 15.1 | BX117: 13.9 | BY117: 13.9 | BZ117: 13.8 | CA117: 13.7 | CB117: 13.4 | CC117: 11.5 | CD117: 11.4 | CE117: 12.9 | CF117: 12.9 | CG117: 13.6 | CH117: 13.6 | CI117: 13.5 | CJ117: 12.0 | CK117: 11.7 | CL117: 11.7 | CM117: 11.6 | CN117: 11.5 | CO117: 11.9 | CP117: 11.6 | CQ117: 11.5 | CR117: 11.3 | CS117: 11.1 | CT117: 22,701 | CU117: 22,698 | CV117: 22,699 | CW117: 22,702 | CX117: 22,700 | CY117: 22,700 | CZ117: 22,700 | DA117: 22,699 | DB117: 22,699 | DC117: 22,700 | DD117: 22,709 | DE117: 22,699 | DF117: 22,700 | DG117: 22,699 | DH117: 22,699 | DI117: 22,700 | DJ117: 22,699 | DK117: 22,699 | DL117: 22,699 | DM117: 22,699 | DN117: 22,700 | DO117: 22,699 | DP117: 22,699 | DQ117: 22,700
A118: 115 | B118: 1,054,114,086 | C118: 1,093,038,794 | D118: 1,187,744,037 | E118: 1,322,919,124 | F118: 1,340,483,543 | G118: 1,422,172,685 | H118: 1,557,551,378 | I118: 1,725,156,738 | J118: 1,599,709,787 | K118: 1,607,259,196 | L118: 1,804,089,995 | M118: 1,469,609,290 | N118: 1,478,889,283 | O118: 1,467,421,141 | P118: 1,434,414,801 | Q118: 1,486,505,387 | R118: 1,563,466,881 | S118: 1,705,483,539 | T118: 1,807,245,923 | U118: 1,619,389,664 | V118: 1,866,906,203 | W118: 2,117,235,389 | X118: 2,267,732,953 | Y118: 2,447,731,587 | Z118: 159,563,208 | AA118: 165,708,134 | AB118: 165,990,946 | AC118: 184,879,574 | AD118: 186,287,027 | AE118: 196,794,073 | AF118: 210,967,004 | AG118: 202,275,556 | AH118: 186,786,309 | AI118: 211,027,281 | AJ118: 237,244,631 | AK118: 200,656,914 | AL118: 202,263,500 | AM118: 199,191,965 | AN118: 173,863,505 | AO118: 175,737,002 | AP118: 184,782,506 | AQ118: 199,356,212 | AR118: 210,709,190 | AS118: 193,294,951 | AT118: 218,885,430 | AU118: 246,841,200 | AV118: 259,208,507 | AW118: 276,962,611 | AX118: 46,034 | AY118: 47,733 | AZ118: 51,871 | BA118: 57,772 | BB118: 58,538 | BC118: 62,106 | BD118: 68,019 | BE118: 75,337 | BF118: 69,859 | BG118: 70,185 | BH118: 78,785 | BI118: 64,179 | BJ118: 64,582 | BK118: 64,082 | BL118: 62,641 | BM118: 64,916 | BN118: 68,278 | BO118: 74,479 | BP118: 78,924 | BQ118: 70,720 | BR118: 81,525 | BS118: 92,455 | BT118: 99,032 | BU118: 106,895 | BV118: 15.1 | BW118: 15.2 | BX118: 14.0 | BY118: 14.0 | BZ118: 13.9 | CA118: 13.8 | CB118: 13.5 | CC118: 11.7 | CD118: 11.7 | CE118: 13.1 | CF118: 13.2 | CG118: 13.7 | CH118: 13.7 | CI118: 13.6 | CJ118: 12.1 | CK118: 11.8 | CL118: 11.8 | CM118: 11.7 | CN118: 11.7 | CO118: 11.9 | CP118: 11.7 | CQ118: 11.7 | CR118: 11.4 | CS118: 11.3 | CT118: 22,899 | CU118: 22,899 | CV118: 22,898 | CW118: 22,899 | CX118: 22,899 | CY118: 22,899 | CZ118: 22,899 | DA118: 22,899 | DB118: 22,899 | DC118: 22,900 | DD118: 22,899 | DE118: 22,899 | DF118: 22,899 | DG118: 22,899 | DH118: 22,899 | DI118: 22,899 | DJ118: 22,899 | DK118: 22,899 | DL118: 22,899 | DM118: 22,899 | DN118: 22,900 | DO118: 22,900 | DP118: 22,899 | DQ118: 22,898
A119: 116 | B119: 1,036,072,087 | C119: 1,117,040,611 | D119: 1,185,305,991 | E119: 1,454,683,975 | F119: 1,334,500,129 | G119: 1,425,956,267 | H119: 1,574,628,368 | I119: 1,689,969,462 | J119: 1,584,947,212 | K119: 1,569,218,641 | L119: 1,672,310,862 | M119: 1,465,953,154 | N119: 1,473,575,837 | O119: 1,456,180,232 | P119: 1,422,529,796 | Q119: 1,497,425,790 | R119: 1,559,832,137 | S119: 1,693,143,075 | T119: 1,804,075,334 | U119: 1,619,806,043 | V119: 1,875,704,610 | W119: 2,126,580,967 | X119: 2,274,198,537 | Y119: 2,429,358,213 | Z119: 157,845,552 | AA119: 170,726,898 | AB119: 166,576,037 | AC119: 205,121,287 | AD119: 186,678,411 | AE119: 198,687,961 | AF119: 214,260,849 | AG119: 202,185,715 | AH119: 188,311,490 | AI119: 209,829,867 | AJ119: 224,319,212 | AK119: 201,088,094 | AL119: 202,997,936 | AM119: 199,096,002 | AN119: 173,571,676 | AO119: 178,380,957 | AP119: 185,700,627 | AQ119: 199,531,732 | AR119: 212,136,103 | AS119: 195,339,502 | AT119: 221,727,480 | AU119: 249,929,332 | AV119: 262,444,721 | AW119: 277,971,951 | AX119: 44,846 | AY119: 48,357 | AZ119: 51,312 | BA119: 62,966 | BB119: 57,772 | BC119: 61,732 | BD119: 68,169 | BE119: 73,164 | BF119: 68,617 | BG119: 67,934 | BH119: 72,402 | BI119: 63,466 | BJ119: 63,795 | BK119: 63,040 | BL119: 61,587 | BM119: 64,830 | BN119: 67,533 | BO119: 73,304 | BP119: 78,106 | BQ119: 70,128 | BR119: 81,213 | BS119: 92,072 | BT119: 98,460 | BU119: 105,175 | BV119: 15.2 | BW119: 15.3 | BX119: 14.1 | BY119: 14.1 | BZ119: 14.0 | CA119: 13.9 | CB119: 13.6 | CC119: 12.0 | CD119: 11.9 | CE119: 13.4 | CF119: 13.4 | CG119: 13.7 | CH119: 13.8 | CI119: 13.7 | CJ119: 12.2 | CK119: 11.9 | CL119: 11.9 | CM119: 11.8 | CN119: 11.8 | CO119: 12.1 | CP119: 11.8 | CQ119: 11.8 | CR119: 11.5 | CS119: 11.4 | CT119: 23,103 | CU119: 23,100 | CV119: 23,100 | CW119: 23,103 | CX119: 23,099 | CY119: 23,099 | CZ119: 23,099 | DA119: 23,098 | DB119: 23,098 | DC119: 23,099 | DD119: 23,098 | DE119: 23,098 | DF119: 23,099 | DG119: 23,099 | DH119: 23,098 | DI119: 23,098 | DJ119: 23,097 | DK119: 23,098 | DL119: =+T119/BP119 -> 23,098 | DM119: 23,098 | DN119: 23,096 | DO119: 23,097 | DP119: 23,098 | DQ119: 23,098
A120: 117 | B120: 1,129,317,157 | C120: 1,070,085,377 | D120: 1,151,233,557 | E120: 1,378,201,093 | F120: 1,297,359,905 | G120: 1,343,547,665 | H120: 1,472,061,288 | I120: 1,655,825,805 | J120: 1,564,519,085 | K120: 1,601,611,060 | L120: 1,541,446,321 | M120: 1,698,144,169 | N120: 1,354,111,282 | O120: 1,369,027,946 | P120: 1,395,919,199 | Q120: 1,422,535,021 | R120: 1,527,114,782 | S120: 1,637,612,076 | T120: 1,734,436,616 | U120: 1,557,420,022 | V120: 1,781,155,226 | W120: 2,054,706,626 | X120: 2,219,739,264 | Y120: 2,349,499,004 | Z120: 173,640,402 | AA120: 164,291,691 | AB120: 163,011,289 | AC120: 195,697,209 | AD120: 182,252,370 | AE120: 188,099,734 | AF120: 200,811,249 | AG120: 199,003,531 | AH120: 187,689,721 | AI120: 215,900,583 | AJ120: 207,535,854 | AK120: 233,431,883 | AL120: 186,544,514 | AM120: 187,574,447 | AN120: 171,156,306 | AO120: 170,689,208 | AP120: 183,225,610 | AQ120: 194,397,923 | AR120: 205,189,217 | AS120: 188,702,640 | AT120: 211,831,996 | AU120: 243,843,913 | AV120: 258,639,004 | AW120: 271,200,116 | AX120: 48,459 | AY120: 45,926 | AZ120: 49,408 | BA120: 59,167 | BB120: 55,684 | BC120: 57,665 | BD120: 63,180 | BE120: 71,068 | BF120: 67,147 | BG120: 68,740 | BH120: 66,160 | BI120: 72,848 | BJ120: 58,117 | BK120: 58,759 | BL120: 59,911 | BM120: 61,054 | BN120: 65,542 | BO120: 70,286 | BP120: 74,441 | BQ120: 66,843 | BR120: 76,445 | BS120: 88,189 | BT120: 95,268 | BU120: 100,842 | BV120: 15.4 | BW120: 15.4 | BX120: 14.2 | BY120: 14.2 | BZ120: 14.0 | CA120: 14.0 | CB120: 13.6 | CC120: 12.0 | CD120: 12.0 | CE120: 13.5 | CF120: 13.5 | CG120: 13.7 | CH120: 13.8 | CI120: 13.7 | CJ120: 12.3 | CK120: 12.0 | CL120: 12.0 | CM120: 11.9 | CN120: 11.8 | CO120: 12.1 | CP120: 11.9 | CQ120: 11.9 | CR120: 11.7 | CS120: 11.5 | CT120: 23,305 | CU120: 23,300 | CV120: 23,301 | CW120: 23,293 | CX120: 23,299 | CY120: 23,299 | CZ120: 23,299 | DA120: 23,299 | DB120: 23,300 | DC120: 23,300 | DD120: 23,299 | DE120: 23,311 | DF120: 23,300 | DG120: 23,299 | DH120: 23,300 | DI120: 23,300 | DJ120: =+R120/BN120 -> 23,300 | DK120: 23,299 | DL120: 23,299 | DM120: 23,300 | DN120: 23,300 | DO120: 23,299 | DP120: 23,300 | DQ120: 23,299 | DR120: 23,300
A121: 118 | B121: 1,045,672,127 | C121: 1,101,256,667 | D121: 1,192,713,816 | E121: 1,250,977,608 | F121: 1,311,605,234 | G121: 1,366,746,715 | H121: 1,493,791,872 | I121: 1,659,723,332 | J121: 1,592,465,171 | K121: 1,566,495,516 | L121: 1,521,314,490 | M121: 1,599,708,017 | N121: 1,365,195,874 | O121: 1,362,814,754 | P121: 1,419,078,079 | Q121: 1,435,883,807 | R121: 1,542,324,381 | S121: 1,625,870,537 | T121: 1,749,986,633 | U121: 1,562,298,410 | V121: 1,793,146,728 | W121: 2,033,927,285 | X121: 2,189,478,283 | Y121: 2,351,451,082 | Z121: 161,155,226 | AA121: 170,230,217 | AB121: 170,645,902 | AC121: 178,580,207 | AD121: 185,695,871 | AE121: 192,706,321 | AF121: 204,537,170 | AG121: 201,225,773 | AH121: 192,269,339 | AI121: 211,456,260 | AJ121: 205,614,174 | AK121: 220,994,254 | AL121: 188,916,330 | AM121: 187,414,047 | AN121: 175,550,437 | AO121: 173,751,220 | AP121: 187,026,349 | AQ121: 194,878,725 | AR121: 208,911,887 | AS121: 191,211,974 | AT121: 215,004,516 | AU121: 243,090,247 | AV121: 257,580,026 | AW121: 274,545,743 | AX121: 44,496 | AY121: 46,863 | AZ121: 50,755 | BA121: 53,234 | BB121: 55,816 | BC121: 58,163 | BD121: 63,570 | BE121: 70,629 | BF121: 67,769 | BG121: 66,661 | BH121: 64,739 | BI121: 68,078 | BJ121: 58,095 | BK121: 57,995 | BL121: 60,388 | BM121: 61,105 | BN121: 65,633 | BO121: 69,189 | BP121: 74,470 | BQ121: 66,481 | BR121: 76,306 | BS121: 86,555 | BT121: 93,171 | BU121: 100,064 | BV121: 15.4 | BW121: 15.5 | BX121: 14.3 | BY121: 14.3 | BZ121: 14.2 | CA121: 14.1 | CB121: 13.7 | CC121: 12.1 | CD121: 12.1 | CE121: 13.5 | CF121: 13.5 | CG121: 13.8 | CH121: 13.8 | CI121: 13.8 | CJ121: 12.4 | CK121: 12.1 | CL121: 12.1 | CM121: 12.0 | CN121: 11.9 | CO121: 12.2 | CP121: 12.0 | CQ121: 12.0 | CR121: 11.8 | CS121: 11.7 | CT121: 23,500 | CU121: 23,499 | CV121: 23,499 | CW121: 23,500 | CX121: 23,499 | CY121: 23,499 | CZ121: 23,498 | DA121: 23,499 | DB121: 23,498 | DC121: 23,499 | DD121: 23,499 | DE121: 23,498 | DF121: 23,499 | DG121: 23,499 | DH121: 23,499 | DI121: 23,499 | DJ121: 23,499 | DK121: 23,499 | DL121: 23,499 | DM121: 23,500 | DN121: 23,499 | DO121: 23,499 | DP121: 23,500 | DQ121: 23,499
A122: 119 | B122: 1,070,603,603 | C122: 1,052,099,295 | D122: 1,125,495,925 | E122: 1,254,892,838 | F122: 1,296,572,068 | G122: 1,350,850,580 | H122: 1,460,207,979 | I122: 1,598,771,398 | J122: 1,600,703,488 | K122: 1,538,589,622 | L122: 1,497,682,403 | M122: 1,446,891,174 | N122: 1,343,399,333 | O122: 1,329,594,740 | P122: 1,399,455,396 | Q122: 1,404,154,290 | R122: 1,515,581,105 | S122: 1,579,064,065 | T122: 1,705,542,359 | U122: 1,549,282,054 | V122: 1,771,016,006 | W122: 1,975,534,295 | X122: 2,145,801,486 | Y122: 2,289,625,103 | Z122: 165,747,168 | AA122: 163,485,827 | AB122: 162,521,270 | AC122: 181,275,427 | AD122: 185,015,954 | AE122: 191,722,576 | AF122: 201,125,568 | AG122: 194,694,013 | AH122: 193,892,664 | AI122: 208,527,847 | AJ122: 203,032,229 | AK122: 202,366,994 | AL122: 187,787,893 | AM122: 183,738,317 | AN122: 174,654,061 | AO122: 170,977,994 | AP122: 184,871,100 | AQ122: 190,242,633 | AR122: 205,018,341 | AS122: 190,622,618 | AT122: 213,944,163 | AU122: 237,435,784 | AV122: 254,864,874 | AW122: 269,610,358 | AX122: 45,174 | AY122: 44,390 | AZ122: 47,491 | BA122: 52,954 | BB122: 54,711 | BC122: 57,000 | BD122: 61,614 | BE122: 67,459 | BF122: 67,545 | BG122: 64,923 | BH122: 63,195 | BI122: 61,054 | BJ122: 56,686 | BK122: 56,103 | BL122: 59,051 | BM122: 59,248 | BN122: 63,948 | BO122: 66,628 | BP122: 71,966 | BQ122: 65,372 | BR122: 74,727 | BS122: 83,358 | BT122: 90,543 | BU122: 96,612 | BV122: 15.5 | BW122: 15.5 | BX122: =+AB122/D122*100 -> 14.4 | BY122: 14.4 | BZ122: 14.3 | CA122: 14.2 | CB122: 13.8 | CC122: 12.2 | CD122: 12.1 | CE122: 13.6 | CF122: 13.6 | CG122: 14.0 | CH122: 14.0 | CI122: 13.8 | CJ122: 12.5 | CK122: 12.2 | CL122: 12.2 | CM122: 12.0 | CN122: 12.0 | CO122: 12.3 | CP122: 12.1 | CQ122: 12.0 | CR122: 11.9 | CS122: 11.8 | CT122: 23,700 | CU122: 23,701 | CV122: 23,699 | CW122: 23,698 | CX122: 23,699 | CY122: 23,699 | CZ122: 23,699 | DA122: 23,700 | DB122: 23,698 | DC122: 23,699 | DD122: 23,699 | DE122: 23,699 | DF122: 23,699 | DG122: 23,699 | DH122: 23,699 | DI122: 23,700 | DJ122: 23,700 | DK122: 23,700 | DL122: 23,699 | DM122: 23,699 | DN122: 23,700 | DO122: 23,699 | DP122: 23,699 | DQ122: 23,699
A123: 120 | B123: 1,094,742,803 | C123: 1,044,302,485 | D123: 1,110,532,157 | E123: 1,195,091,480 | F123: 1,487,139,447 | G123: 1,361,203,413 | H123: 1,453,392,264 | I123: 1,596,302,508 | J123: 1,591,611,773 | K123: 1,527,760,725 | L123: 1,483,659,390 | M123: 1,383,765,120 | N123: 1,300,019,660 | O123: 1,298,252,773 | P123: 1,399,513,031 | Q123: 1,441,704,623 | R123: 1,503,214,606 | S123: 1,617,491,827 | T123: 1,728,352,417 | U123: 1,564,811,218 | V123: 1,760,599,943 | W123: 2,061,050,508 | X123: 2,184,690,041 | Y123: 2,334,713,890 | Z123: 170,661,738 | AA123: 163,105,321 | AB123: 161,608,445 | AC123: 173,537,349 | AD123: 216,325,697 | AE123: 195,020,960 | AF123: 201,394,988 | AG123: 195,255,879 | AH123: 194,043,593 | AI123: 207,439,601 | AJ123: 202,028,432 | AK123: 197,264,427 | AL123: 185,217,333 | AM123: 183,559,397 | AN123: 175,811,291 | AO123: 177,438,567 | AP123: 185,167,538 | AQ123: 197,090,909 | AR123: 209,978,066 | AS123: 195,001,672 | AT123: 215,116,040 | AU123: 251,467,430 | AV123: 262,711,579 | AW123: 278,524,934 | AX123: 45,801 | AY123: 43,695 | AZ123: 46,467 | BA123: 50,004 | BB123: 62,222 | BC123: 56,955 | BD123: 60,813 | BE123: 66,794 | BF123: 66,596 | BG123: 63,924 | BH123: 62,080 | BI123: 57,899 | BJ123: 54,395 | BK123: 54,323 | BL123: 58,559 | BM123: 60,323 | BN123: 62,895 | BO123: 67,675 | BP123: 72,314 | BQ123: 65,472 | BR123: 73,664 | BS123: 86,228 | BT123: 91,405 | BU123: 97,681 | BV123: =+Z123/B123*100 -> 15.6 | BW123: 15.6 | BX123: 14.6 | BY123: 14.5 | BZ123: 14.5 | CA123: 14.3 | CB123: 13.9 | CC123: 12.2 | CD123: 12.2 | CE123: 13.6 | CF123: 13.6 | CG123: 14.3 | CH123: 14.2 | CI123: 14.1 | CJ123: 12.6 | CK123: 12.3 | CL123: 12.3 | CM123: 12.2 | CN123: 12.1 | CO123: 12.5 | CP123: 12.2 | CQ123: 12.2 | CR123: 12.0 | CS123: 11.9 | CT123: 23,902 | CU123: 23,900 | CV123: 23,899 | CW123: 23,900 | CX123: 23,901 | CY123: 23,900 | CZ123: 23,899 | DA123: 23,899 | DB123: 23,900 | DC123: 23,900 | DD123: 23,899 | DE123: 23,900 | DF123: 23,900 | DG123: 23,899 | DH123: 23,899 | DI123: 23,900 | DJ123: 23,900 | DK123: 23,901 | DL123: 23,901 | DM123: 23,900 | DN123: 23,900 | DO123: 23,902 | DP123: 23,901 | DQ123: 23,901
A124: 121 | B124: 1,179,576,081 | C124: 1,086,689,287 | D124: 1,177,396,583 | E124: 1,299,135,428 | F124: 1,463,171,819 | G124: 1,465,302,324 | H124: 1,571,290,714 | I124: 1,726,073,450 | J124: 1,724,086,795 | K124: 1,653,883,757 | L124: 1,635,245,045 | M124: 1,533,536,602 | N124: 1,975,810,327 | O124: 1,883,025,491 | P124: 1,836,336,606 | Q124: 1,947,591,717 | R124: 1,648,451,199 | S124: 1,805,083,736 | T124: 1,886,264,233 | U124: 1,710,056,253 | V124: 1,905,683,038 | W124: 2,134,930,317 | X124: 2,390,756,891 | Y124: 2,553,123,584 | Z124: 185,483,606 | AA124: 171,085,163 | AB124: 172,886,494 | AC124: 189,824,780 | AD124: 213,623,009 | AE124: 212,792,517 | AF124: 219,805,273 | AG124: 213,688,340 | AH124: 212,512,252 | AI124: 225,908,578 | AJ124: 224,223,491 | AK124: 221,337,181 | AL124: 285,234,516 | AM124: 269,949,141 | AN124: 233,519,652 | AO124: 242,409,558 | AP124: 205,853,322 | AQ124: 223,331,338 | AR124: 232,543,726 | AS124: 215,442,140 | AT124: 236,320,037 | AU124: 263,038,189 | AV124: 292,237,755 | AW124: 310,797,826 | AX124: 48,962 | AY124: 45,098 | AZ124: 48,866 | BA124: 53,919 | BB124: 60,735 | BC124: 60,824 | BD124: 65,224 | BE124: 71,651 | BF124: 71,571 | BG124: 68,657 | BH124: 67,883 | BI124: 63,660 | BJ124: 81,957 | BK124: 78,099 | BL124: 76,174 | BM124: 80,788 | BN124: 68,435 | BO124: 74,934 | BP124: 78,304 | BQ124: 70,987 | BR124: 79,109 | BS124: 88,622 | BT124: 99,242 | BU124: 105,979 | BV124: 15.7 | BW124: 15.7 | BX124: 14.7 | BY124: 14.6 | BZ124: 14.6 | CA124: 14.5 | CB124: 14.0 | CC124: 12.4 | CD124: 12.3 | CE124: 13.7 | CF124: 13.7 | CG124: 14.4 | CH124: 14.4 | CI124: 14.3 | CJ124: 12.7 | CK124: 12.4 | CL124: 12.5 | CM124: 12.4 | CN124: 12.3 | CO124: 12.6 | CP124: 12.4 | CQ124: 12.3 | CR124: 12.2 | CS124: 12.2 | CT124: 24,092 | CU124: 24,096 | CV124: 24,094 | CW124: 24,094 | CX124: 24,091 | CY124: 24,091 | CZ124: 24,091 | DA124: 24,090 | DB124: 24,089 | DC124: 24,089 | DD124: 24,089 | DE124: 24,089 | DF124: 24,108 | DG124: 24,111 | DH124: 24,107 | DI124: 24,107 | DJ124: 24,088 | DK124: 24,089 | DL124: 24,089 | DM124: 24,090 | DN124: 24,089 | DO124: 24,090 | DP124: 24,090 | DQ124: 24,091
A125: 122 | B125: 1,038,671,511 | C125: 1,103,810,618 | D125: 1,113,620,001 | E125: 1,226,193,413 | F125: 1,348,598,795 | G125: 1,342,341,931 | H125: 1,409,455,519 | I125: 1,517,602,577 | J125: 1,525,055,647 | K125: 1,464,221,920 | L125: 1,446,087,726 | M125: 1,398,222,498 | N125: 1,362,622,352 | O125: 1,444,218,301 | P125: 1,538,521,817 | Q125: 1,619,308,753 | R125: 1,452,507,298 | S125: 1,569,710,622 | T125: 1,686,039,152 | U125: 1,523,854,963 | V125: 1,714,551,406 | W125: 1,886,324,517 | X125: 2,128,603,774 | Y125: 2,247,890,800 | Z125: 163,702,808 | AA125: 174,316,600 | AB125: 163,895,348 | AC125: 179,973,074 | AD125: 197,720,034 | AE125: 195,979,116 | AF125: 198,057,454 | AG125: 187,814,339 | AH125: 188,627,998 | AI125: 200,942,581 | AJ125: 198,785,283 | AK125: 203,168,071 | AL125: 197,423,735 | AM125: 208,019,598 | AN125: 196,063,026 | AO125: 202,297,298 | AP125: 182,083,065 | AQ125: 194,713,532 | AR125: 208,504,088 | AS125: 192,724,179 | AT125: 212,882,525 | AU125: 233,491,658 | AV125: 261,100,402 | AW125: 273,898,977 | AX125: 42,745 | AY125: 45,423 | AZ125: 45,827 | BA125: 50,455 | BB125: 55,494 | BC125: 55,239 | BD125: 58,003 | BE125: 62,454 | BF125: 62,761 | BG125: 60,257 | BH125: 59,511 | BI125: 57,540 | BJ125: 56,079 | BK125: 59,447 | BL125: 63,320 | BM125: 66,645 | BN125: 59,775 | BO125: 64,599 | BP125: 69,386 | BQ125: 62,712 | BR125: 70,559 | BS125: 77,629 | BT125: 87,597 | BU125: 92,507 | BV125: 15.8 | BW125: 15.8 | BX125: 14.7 | BY125: 14.7 | BZ125: 14.7 | CA125: 14.6 | CB125: 14.1 | CC125: 12.4 | CD125: 12.4 | CE125: 13.7 | CF125: 13.7 | CG125: 14.5 | CH125: 14.5 | CI125: 14.4 | CJ125: 12.7 | CK125: 12.5 | CL125: 12.5 | CM125: 12.4 | CN125: 12.4 | CO125: 12.6 | CP125: 12.4 | CQ125: 12.4 | CR125: 12.3 | CS125: 12.2 | CT125: 24,299 | CU125: 24,301 | CV125: 24,301 | CW125: 24,303 | CX125: 24,302 | CY125: 24,301 | CZ125: 24,300 | DA125: 24,300 | DB125: 24,299 | DC125: 24,300 | DD125: 24,300 | DE125: 24,300 | DF125: 24,298 | DG125: 24,294 | DH125: 24,298 | DI125: 24,298 | DJ125: 24,300 | DK125: 24,299 | DL125: 24,299 | DM125: 24,299 | DN125: 24,300 | DO125: 24,299 | DP125: 24,300 | DQ125: 24,300
A126: 123 | B126: 1,033,523,809 | C126: 1,187,153,635 | D126: 1,088,201,447 | E126: 1,242,745,972 | F126: 1,340,048,359 | G126: 1,380,233,319 | H126: 1,402,559,489 | I126: 1,527,015,399 | J126: 1,482,571,407 | K126: 1,442,117,193 | L126: 1,483,544,104 | M126: 1,451,013,923 | N126: 1,340,581,147 | O126: 1,326,894,163 | P126: 1,464,970,610 | Q126: 1,484,794,862 | R126: 1,584,175,847 | S126: 1,566,818,753 | T126: 1,676,628,326 | U126: 1,535,677,121 | V126: 1,699,449,707 | W126: 1,887,217,428 | X126: 2,101,227,507 | Y126: 2,258,619,469 | Z126: 163,690,803 | AA126: 189,421,290 | AB126: 160,342,853 | AC126: 183,641,833 | AD126: 197,329,971 | AE126: 202,586,783 | AF126: 199,576,306 | AG126: 190,505,346 | AH126: 184,486,318 | AI126: 199,073,379 | AJ126: 205,235,001 | AK126: 211,714,274 | AL126: 195,188,100 | AM126: 192,028,601 | AN126: 189,426,573 | AO126: 187,569,745 | AP126: 200,128,890 | AQ126: 196,176,829 | AR126: 209,331,501 | AS126: 196,006,704 | AT126: 213,605,718 | AU126: 235,952,686 | AV126: 260,102,523 | AW126: 278,030,225 | AX126: 42,187 | AY126: 48,462 | AZ126: 44,417 | BA126: 50,723 | BB126: 54,698 | BC126: 56,338 | BD126: 57,249 | BE126: 62,329 | BF126: 60,515 | BG126: 58,864 | BH126: 60,556 | BI126: 59,227 | BJ126: 54,721 | BK126: 54,163 | BL126: 59,792 | BM126: 60,606 | BN126: 64,650 | BO126: 63,952 | BP126: 68,433 | BQ126: 62,681 | BR126: 69,366 | BS126: 77,031 | BT126: 85,767 | BU126: 92,184 | BV126: 15.8 | BW126: 16.0 | BX126: 14.7 | BY126: 14.8 | BZ126: 14.7 | CA126: 14.7 | CB126: 14.2 | CC126: 12.5 | CD126: 12.4 | CE126: 13.8 | CF126: 13.8 | CG126: 14.6 | CH126: 14.6 | CI126: 14.5 | CJ126: 12.9 | CK126: 12.6 | CL126: 12.6 | CM126: 12.5 | CN126: 12.5 | CO126: 12.8 | CP126: 12.6 | CQ126: 12.5 | CR126: 12.4 | CS126: 12.3 | CT126: 24,499 | CU126: 24,497 | CV126: 24,500 | CW126: 24,501 | CX126: 24,499 | CY126: 24,499 | CZ126: 24,499 | DA126: 24,499 | DB126: 24,499 | DC126: 24,499 | DD126: 24,499 | DE126: 24,499 | DF126: 24,498 | DG126: 24,498 | DH126: 24,501 | DI126: 24,499 | DJ126: 24,504 | DK126: 24,500 | DL126: 24,500 | DM126: 24,500 | DN126: 24,500 | DO126: 24,499 | DP126: 24,499 | DQ126: 24,501
A127: 124 | B127: 1,002,742,593 | C127: 1,224,232,322 | D127: 1,070,621,219 | E127: 1,162,539,370 | F127: 1,300,290,285 | G127: 1,355,275,596 | H127: 1,410,108,451 | I127: 1,491,710,564 | J127: 1,442,962,696 | K127: 1,410,260,149 | L127: 1,449,051,875 | M127: 1,441,203,261 | N127: 1,324,045,357 | O127: 1,312,837,831 | P127: 1,359,524,763 | Q127: 1,415,853,913 | R127: 1,676,387,941 | S127: 1,529,185,366 | T127: 1,659,449,080 | U127: 1,502,685,852 | V127: 1,663,826,306 | W127: 1,859,212,320 | X127: 2,077,985,169 | Y127: 2,291,633,002 | Z127: 159,491,333 | AA127: 195,996,897 | AB127: 158,556,912 | AC127: 171,785,439 | AD127: 191,767,710 | AE127: 199,496,523 | AF127: 203,642,687 | AG127: 187,568,658 | AH127: 180,976,640 | AI127: 196,000,107 | AJ127: 201,993,488 | AK127: 211,175,149 | AL127: 193,513,451 | AM127: 190,983,395 | AN127: 177,380,881 | AO127: 180,962,336 | AP127: 213,408,492 | AQ127: 193,577,608 | AR127: 209,549,448 | AS127: 193,308,236 | AT127: 211,088,841 | AU127: 233,513,427 | AV127: 260,210,125 | AW127: 285,967,036 | AX127: 40,598 | AY127: 49,554 | AZ127: 43,346 | BA127: 47,068 | BB127: 52,644 | BC127: 54,870 | BD127: 57,091 | BE127: 60,394 | BF127: 58,421 | BG127: 57,097 | BH127: 58,667 | BI127: 58,349 | BJ127: 53,607 | BK127: 53,152 | BL127: 55,042 | BM127: 57,324 | BN127: 67,873 | BO127: 61,913 | BP127: 67,187 | BQ127: 60,838 | BR127: 67,365 | BS127: 75,273 | BT127: 84,133 | BU127: 92,786 | BV127: 15.9 | BW127: 16.0 | BX127: 14.8 | BY127: 14.8 | BZ127: 14.7 | CA127: 14.7 | CB127: 14.4 | CC127: 12.6 | CD127: 12.5 | CE127: 13.9 | CF127: 13.9 | CG127: 14.7 | CH127: 14.6 | CI127: 14.5 | CJ127: 13.0 | CK127: 12.8 | CL127: 12.7 | CM127: 12.7 | CN127: 12.6 | CO127: 12.9 | CP127: 12.7 | CQ127: 12.6 | CR127: 12.5 | CS127: 12.5 | CT127: 24,699 | CU127: 24,705 | CV127: 24,699 | CW127: 24,699 | CX127: 24,700 | CY127: 24,700 | CZ127: 24,699 | DA127: 24,700 | DB127: 24,699 | DC127: 24,699 | DD127: 24,700 | DE127: 24,700 | DF127: 24,699 | DG127: 24,700 | DH127: 24,700 | DI127: 24,699 | DJ127: 24,699 | DK127: 24,699 | DL127: 24,699 | DM127: 24,700 | DN127: 24,699 | DO127: 24,700 | DP127: 24,699 | DQ127: 24,698
A128: 125 | B128: 995,462,388 | C128: 1,096,274,214 | D128: 1,077,008,368 | E128: 1,171,136,319 | F128: 1,278,042,889 | G128: 1,477,401,579 | H128: 1,404,641,274 | I128: 1,495,692,657 | J128: 1,477,970,537 | K128: 1,446,047,995 | L128: 1,448,938,932 | M128: 1,456,962,249 | N128: 1,323,762,945 | O128: 1,332,142,550 | P128: 1,343,469,322 | Q128: 1,405,404,606 | R128: 1,598,504,738 | S128: 1,797,302,788 | T128: 1,666,733,027 | U128: 1,525,801,325 | V128: 1,693,243,788 | W128: 1,911,464,307 | X128: 2,149,969,869 | Y128: 2,293,367,682 | Z128: 159,357,300 | AA128: 175,996,843 | AB128: 160,270,220 | AC128: 174,085,231 | AD128: 189,196,337 | AE128: 219,268,830 | AF128: 204,051,796 | AG128: 191,081,572 | AH128: 188,194,853 | AI128: 203,740,185 | AJ128: 204,879,006 | AK128: 214,684,207 | AL128: 194,768,848 | AM128: 194,751,566 | AN128: 176,825,834 | AO128: 180,957,906 | AP128: 205,369,442 | AQ128: 228,741,667 | AR128: 212,169,191 | AS128: 197,761,408 | AT128: 216,853,194 | AU128: 242,868,653 | AV128: 271,632,291 | AW128: 289,104,058 | AX128: 39,976 | AY128: 44,027 | AZ128: 43,252 | BA128: 47,035 | BB128: 51,329 | BC128: 59,333 | BD128: 56,409 | BE128: 60,065 | BF128: 59,349 | BG128: 58,069 | BH128: 58,185 | BI128: 58,509 | BJ128: 53,158 | BK128: 53,495 | BL128: 53,949 | BM128: 56,436 | BN128: 64,194 | BO128: 72,178 | BP128: 66,931 | BQ128: 61,271 | BR128: 67,994 | BS128: 76,757 | BT128: 86,334 | BU128: 92,094 | BV128: 16.0 | BW128: 16.1 | BX128: 14.9 | BY128: 14.9 | BZ128: 14.8 | CA128: 14.8 | CB128: 14.5 | CC128: 12.8 | CD128: 12.7 | CE128: 14.1 | CF128: 14.1 | CG128: 14.7 | CH128: 14.7 | CI128: 14.6 | CJ128: 13.2 | CK128: 12.9 | CL128: 12.8 | CM128: 12.7 | CN128: 12.7 | CO128: 13.0 | CP128: 12.8 | CQ128: 12.7 | CR128: 12.6 | CS128: 12.6 | CT128: 24,902 | CU128: 24,900 | CV128: 24,901 | CW128: 24,899 | CX128: 24,899 | CY128: 24,900 | CZ128: 24,901 | DA128: 24,901 | DB128: 24,903 | DC128: 24,902 | DD128: 24,902 | DE128: 24,902 | DF128: 24,902 | DG128: 24,902 | DH128: 24,903 | DI128: 24,903 | DJ128: 24,901 | DK128: 24,901 | DL128: 24,902 | DM128: 24,903 | DN128: 24,903 | DO128: 24,903 | DP128: 24,903 | DQ128: 24,902
A129: 126 | B129: 997,020,446 | C129: 1,095,107,995 | D129: 1,103,926,778 | E129: 1,147,675,221 | F129: 1,257,086,867 | G129: 1,502,012,185 | H129: 1,409,980,846 | I129: 1,508,222,486 | J129: 1,455,689,074 | K129: 1,418,562,507 | L129: 1,442,150,346 | M129: 1,461,381,612 | N129: 1,328,482,132 | O129: 1,314,456,517 | P129: 1,337,237,016 | Q129: 1,409,171,194 | R129: 1,516,176,712 | S129: 1,765,532,224 | T129: 1,892,634,697 | U129: 1,513,513,572 | V129: 1,694,489,821 | W129: 1,895,012,872 | X129: 2,142,775,064 | Y129: 2,286,162,824 | Z129: 160,322,211 | AA129: 176,492,818 | AB129: 165,777,700 | AC129: 171,744,710 | AD129: 187,053,770 | AE129: 223,894,433 | AF129: 205,994,796 | AG129: 195,717,700 | AH129: 188,602,556 | AI129: 202,555,993 | AJ129: 206,435,694 | AK129: 216,423,021 | AL129: 196,302,732 | AM129: 193,154,447 | AN129: 177,718,673 | AO129: 183,276,506 | AP129: 196,610,095 | AQ129: 226,592,002 | AR129: 242,492,909 | AS129: 198,128,227 | AT129: 218,493,828 | AU129: 242,816,821 | AV129: 273,093,843 | AW129: 290,713,016 | AX129: 39,726 | AY129: 43,633 | AZ129: 43,983 | BA129: 45,729 | BB129: 50,087 | BC129: 59,846 | BD129: 56,180 | BE129: 60,097 | BF129: 58,003 | BG129: 56,521 | BH129: 57,463 | BI129: 58,230 | BJ129: 52,935 | BK129: 52,375 | BL129: 53,282 | BM129: 56,150 | BN129: 60,414 | BO129: 70,348 | BP129: 75,403 | BQ129: 60,306 | BR129: 67,518 | BS129: 75,506 | BT129: 85,377 | BU129: 91,090 | BV129: 16.1 | BW129: 16.1 | BX129: 15.0 | BY129: 15.0 | BZ129: 14.9 | CA129: 14.9 | CB129: 14.6 | CC129: 13.0 | CD129: 13.0 | CE129: 14.3 | CF129: 14.3 | CG129: 14.8 | CH129: 14.8 | CI129: 14.7 | CJ129: 13.3 | CK129: 13.0 | CL129: 13.0 | CM129: 12.8 | CN129: 12.8 | CO129: 13.1 | CP129: 12.9 | CQ129: 12.8 | CR129: 12.7 | CS129: 12.7 | CT129: 25,097 | CU129: 25,098 | CV129: 25,099 | CW129: 25,097 | CX129: 25,098 | CY129: 25,098 | CZ129: 25,098 | DA129: 25,096 | DB129: 25,097 | DC129: 25,098 | DD129: 25,097 | DE129: 25,097 | DF129: 25,096 | DG129: 25,097 | DH129: 25,097 | DI129: 25,097 | DJ129: 25,096 | DK129: 25,097 | DL129: 25,100 | DM129: 25,097 | DN129: 25,097 | DO129: 25,098 | DP129: 25,098 | DQ129: 25,098
A130: 127 | B130: 1,040,150,407 | C130: 1,146,098,334 | D130: 1,149,129,326 | E130: 1,186,464,788 | F130: 1,386,019,722 | G130: 1,591,822,505 | H130: 1,441,225,142 | I130: 1,521,763,804 | J130: 1,472,125,475 | K130: 1,475,363,396 | L130: 1,456,867,295 | M130: 1,434,071,710 | N130: 1,295,507,261 | O130: 1,318,918,900 | P130: 1,332,245,881 | Q130: 1,376,738,661 | R130: 1,442,869,530 | S130: 1,639,154,017 | T130: 1,900,892,380 | U130: 1,502,882,383 | V130: 1,789,029,183 | W130: 1,861,065,515 | X130: 2,029,132,561 | Y130: 2,245,726,867 | Z130: 168,160,798 | AA130: 185,895,248 | AB130: 173,612,943 | AC130: 179,193,251 | AD130: 208,565,300 | AE130: 238,800,213 | AF130: 211,244,953 | AG130: 199,148,522 | AH130: 192,242,506 | AI130: 212,962,708 | AJ130: 210,613,171 | AK130: 213,521,174 | AL130: 192,428,353 | AM130: 194,712,723 | AN130: 178,500,886 | AO130: 180,255,735 | AP130: 188,901,035 | AQ130: 211,859,093 | AR130: 245,024,328 | AS130: 197,961,144 | AT130: 231,985,093 | AU130: 239,950,842 | AV130: 260,156,229 | AW130: 287,570,856 | AX130: 41,119 | AY130: 45,309 | AZ130: 45,427 | BA130: 46,903 | BB130: 54,791 | BC130: 62,927 | BD130: 56,975 | BE130: 60,160 | BF130: 58,196 | BG130: 58,325 | BH130: 57,592 | BI130: 56,690 | BJ130: 51,212 | BK130: 52,138 | BL130: 52,665 | BM130: 54,424 | BN130: 57,039 | BO130: 64,800 | BP130: 75,148 | BQ130: 59,408 | BR130: 70,706 | BS130: 73,566 | BT130: 80,210 | BU130: 88,772 | BV130: 16.2 | BW130: 16.2 | BX130: 15.1 | BY130: 15.1 | BZ130: 15.0 | CA130: 15.0 | CB130: 14.7 | CC130: 13.1 | CD130: 13.1 | CE130: 14.4 | CF130: 14.5 | CG130: 14.9 | CH130: 14.9 | CI130: 14.8 | CJ130: 13.4 | CK130: 13.1 | CL130: 13.1 | CM130: 12.9 | CN130: 12.9 | CO130: 13.2 | CP130: 13.0 | CQ130: 12.9 | CR130: 12.8 | CS130: 12.8 | CT130: 25,296 | CU130: 25,295 | CV130: 25,296 | CW130: 25,296 | CX130: 25,296 | CY130: 25,296 | CZ130: 25,296 | DA130: 25,295 | DB130: 25,296 | DC130: 25,296 | DD130: 25,296 | DE130: 25,297 | DF130: 25,297 | DG130: 25,297 | DH130: 25,297 | DI130: 25,297 | DJ130: 25,296 | DK130: 25,296 | DL130: 25,295 | DM130: 25,298 | DN130: 25,302 | DO130: 25,298 | DP130: 25,298 | DQ130: 25,298
A131: 128 | B131: 1,011,584,641 | C131: 1,073,913,496 | D131: 1,178,799,363 | E131: 1,100,988,526 | F131: 1,244,408,310 | G131: 1,441,603,405 | H131: 1,405,568,208 | I131: 1,475,192,824 | J131: 1,414,021,407 | K131: 1,416,282,733 | L131: 1,422,023,944 | M131: 1,460,720,725 | N131: 1,254,614,899 | O131: 1,264,984,231 | P131: 1,274,182,087 | Q131: 1,393,041,845 | R131: 1,405,659,553 | S131: 1,537,460,587 | T131: 1,675,176,359 | U131: 1,523,174,065 | V131: 1,909,099,993 | W131: 1,834,379,861 | X131: 2,005,203,839 | Y131: 2,207,069,133 | Z131: 164,033,741 | AA131: 174,860,354 | AB131: 178,874,346 | AC131: 166,826,482 | AD131: 187,603,181 | AE131: 216,974,169 | AF131: 206,886,300 | AG131: 194,256,320 | AH131: 185,603,613 | AI131: 204,774,224 | AJ131: 206,272,763 | AK131: 218,970,185 | AL131: 186,894,937 | AM131: 187,287,567 | AN131: 172,092,254 | AO131: 184,456,611 | AP131: 185,832,910 | AQ131: 200,779,104 | AR131: 218,186,411 | AS131: 202,417,971 | AT131: 248,991,114 | AU131: 239,291,962 | AV131: 259,649,060 | AW131: 285,935,388 | AX131: 39,671 | AY131: 42,116 | AZ131: 46,229 | BA131: 43,177 | BB131: 48,803 | BC131: 56,535 | BD131: 55,121 | BE131: 57,851 | BF131: 55,452 | BG131: 55,541 | BH131: 55,767 | BI131: 57,282 | BJ131: 49,201 | BK131: 49,609 | BL131: 49,969 | BM131: 54,624 | BN131: 55,124 | BO131: 60,293 | BP131: 65,696 | BQ131: 59,736 | BR131: 74,867 | BS131: 71,938 | BT131: 78,637 | BU131: 86,553 | BV131: 16.2 | BW131: 16.3 | BX131: 15.2 | BY131: 15.2 | BZ131: 15.1 | CA131: 15.1 | CB131: 14.7 | CC131: 13.2 | CD131: 13.1 | CE131: 14.5 | CF131: 14.5 | CG131: 15.0 | CH131: 14.9 | CI131: 14.8 | CJ131: 13.5 | CK131: 13.2 | CL131: 13.2 | CM131: 13.1 | CN131: 13.0 | CO131: 13.3 | CP131: 13.0 | CQ131: 13.0 | CR131: 12.9 | CS131: 13.0 | CT131: 25,499 | CU131: 25,499 | CV131: 25,499 | CW131: 25,499 | CX131: 25,499 | CY131: 25,499 | CZ131: 25,500 | DA131: 25,500 | DB131: 25,500 | DC131: 25,500 | DD131: 25,499 | DE131: 25,501 | DF131: 25,500 | DG131: 25,499 | DH131: 25,499 | DI131: 25,502 | DJ131: 25,500 | DK131: 25,500 | DL131: 25,499 | DM131: 25,498 | DN131: 25,500 | DO131: 25,499 | DP131: 25,499 | DQ131: 25,500
A132: 129 | B132: 935,452,834 | C132: 1,010,332,272 | D132: 1,301,811,553 | E132: 1,085,904,202 | F132: 1,223,532,826 | G132: 1,414,422,924 | H132: 1,429,671,633 | I132: 1,449,472,333 | J132: 1,395,952,395 | K132: 1,398,229,729 | L132: 1,413,539,272 | M132: 1,438,583,658 | N132: 1,271,752,976 | O132: 1,278,960,300 | P132: 1,284,773,005 | Q132: 1,317,191,933 | R132: 1,360,005,459 | S132: 1,482,775,420 | T132: 1,588,397,748 | U132: 1,731,508,006 | V132: 1,844,261,540 | W132: 1,801,019,001 | X132: 1,985,536,402 | Y132: 2,153,528,805 | Z132: 152,235,101 | AA132: 165,314,879 | AB132: 199,684,187 | AC132: 165,720,226 | AD132: 185,305,517 | AE132: 214,138,536 | AF132: 211,694,310 | AG132: 192,243,713 | AH132: 184,147,017 | AI132: 203,543,653 | AJ132: 206,218,514 | AK132: 217,628,836 | AL132: 192,372,039 | AM132: 191,912,939 | AN132: 174,744,490 | AO132: 175,929,111 | AP132: 181,245,595 | AQ132: 195,341,618 | AR132: 208,695,403 | AS132: 230,849,346 | AT132: 243,342,906 | AU132: 237,492,397 | AV132: 259,715,259 | AW132: 281,203,382 | AX132: 36,399 | AY132: 39,312 | AZ132: 50,662 | BA132: 42,254 | BB132: 47,612 | BC132: 55,038 | BD132: 55,630 | BE132: 56,401 | BF132: 54,319 | BG132: 54,407 | BH132: 55,003 | BI132: 55,978 | BJ132: 49,485 | BK132: 49,766 | BL132: 49,992 | BM132: 51,253 | BN132: 52,919 | BO132: 57,696 | BP132: 61,806 | BQ132: 67,364 | BR132: 71,764 | BS132: 70,077 | BT132: 77,260 | BU132: 83,797 | BV132: 16.3 | BW132: 16.4 | BX132: 15.3 | BY132: 15.3 | BZ132: 15.1 | CA132: 15.1 | CB132: 14.8 | CC132: 13.3 | CD132: 13.2 | CE132: 14.6 | CF132: 14.6 | CG132: 15.1 | CH132: 15.1 | CI132: 15.0 | CJ132: 13.6 | CK132: 13.4 | CL132: 13.3 | CM132: =+AQ132/S132*100 -> 13.2 | CN132: 13.1 | CO132: 13.3 | CP132: 13.2 | CQ132: 13.2 | CR132: 13.1 | CS132: 13.1 | CT132: 25,700 | CU132: 25,700 | CV132: 25,696 | CW132: 25,699 | CX132: 25,698 | CY132: 25,699 | CZ132: 25,700 | DA132: 25,699 | DB132: 25,699 | DC132: 25,699 | DD132: 25,699 | DE132: 25,699 | DF132: 25,700 | DG132: 25,699 | DH132: 25,700 | DI132: 25,700 | DJ132: 25,700 | DK132: 25,700 | DL132: 25,700 | DM132: 25,704 | DN132: 25,699 | DO132: 25,701 | DP132: 25,699 | DQ132: 25,699
A133: 130 | B133: 1,019,737,519 | C133: 1,016,110,376 | D133: 1,213,417,425 | E133: 1,108,605,619 | F133: 1,171,443,194 | G133: 1,351,739,258 | H133: 1,485,793,062 | I133: 1,460,530,591 | J133: 1,394,986,994 | K133: 1,437,039,905 | L133: 1,425,222,824 | M133: 1,461,318,729 | N133: 1,280,271,594 | O133: 1,257,229,627 | P133: 1,288,991,963 | Q133: 1,322,378,327 | R133: 1,389,616,767 | S133: 1,484,703,053 | T133: 1,585,476,393 | U133: 1,770,997,474 | V133: 1,725,706,264 | W133: 1,810,701,994 | X133: 2,071,947,543 | Y133: 2,266,191,227 | Z133: 167,155,086 | AA133: 166,993,792 | AB133: 185,581,578 | AC133: 169,492,644 | AD133: 178,257,847 | AE133: 204,895,912 | AF133: 220,572,126 | AG133: 194,938,190 | AH133: 184,825,840 | AI133: 209,839,133 | AJ133: 208,383,758 | AK133: 223,454,297 | AL133: 196,497,474 | AM133: 190,677,912 | AN133: 176,688,560 | AO133: 177,734,611 | AP133: 187,162,657 | AQ133: 197,628,102 | AR133: 210,520,882 | AS133: 238,198,705 | AT133: 230,052,141 | AU133: 240,575,295 | AV133: 274,642,025 | AW133: 300,098,656 | AX133: 39,372 | AY133: 39,231 | AZ133: 46,853 | BA133: 42,803 | BB133: 45,228 | BC133: 52,193 | BD133: 57,373 | BE133: 56,390 | BF133: 53,859 | BG133: 55,483 | BH133: 55,028 | BI133: 56,419 | BJ133: 49,429 | BK133: 48,540 | BL133: 49,766 | BM133: 51,056 | BN133: 53,651 | BO133: 57,323 | BP133: 61,214 | BQ133: 68,384 | BR133: 66,631 | BS133: 69,911 | BT133: 79,998 | BU133: 87,503 | BV133: 16.4 | BW133: 16.4 | BX133: 15.3 | BY133: 15.3 | BZ133: 15.2 | CA133: 15.2 | CB133: 14.8 | CC133: 13.3 | CD133: 13.2 | CE133: 14.6 | CF133: 14.6 | CG133: 15.3 | CH133: 15.3 | CI133: 15.2 | CJ133: 13.7 | CK133: 13.4 | CL133: 13.5 | CM133: 13.3 | CN133: 13.3 | CO133: 13.4 | CP133: 13.3 | CQ133: 13.3 | CR133: 13.3 | CS133: 13.2 | CT133: 25,900 | CU133: 25,901 | CV133: 25,898 | CW133: 25,900 | CX133: 25,901 | CY133: 25,899 | CZ133: 25,897 | DA133: 25,901 | DB133: 25,901 | DC133: 25,901 | DD133: 25,900 | DE133: =+M133/BI133 -> 25,901 | DF133: 25,901 | DG133: 25,901 | DH133: 25,901 | DI133: 25,901 | DJ133: 25,901 | DK133: 25,901 | DL133: 25,901 | DM133: 25,898 | DN133: 25,899 | DO133: 25,900 | DP133: 25,900 | DQ133: 25,898 | DR133: 25,900
A134: 131 | B134: 1,015,968,545 | C134: 1,000,324,577 | D134: 1,121,565,767 | E134: 1,122,968,137 | F134: 1,185,178,567 | G134: 1,348,287,128 | H134: 1,403,048,734 | I134: 1,466,559,004 | J134: 1,428,435,898 | K134: 1,438,870,089 | L134: 1,418,199,356 | M134: 1,512,857,652 | N134: 1,291,028,737 | O134: 1,285,214,003 | P134: 1,286,707,684 | Q134: 1,310,960,559 | R134: 1,423,645,261 | S134: 1,461,688,251 | T134: 1,571,476,796 | U134: 1,574,108,729 | V134: 1,654,366,148 | W134: 1,779,909,868 | X134: 1,997,749,404 | Y134: 2,198,184,577 | Z134: 167,481,889 | AA134: 165,500,951 | AB134: 173,468,636 | AC134: 173,201,253 | AD134: 181,453,053 | AE134: 205,366,252 | AF134: 208,719,560 | AG134: 196,676,598 | AH134: 190,344,540 | AI134: 210,994,560 | AJ134: 207,856,654 | AK134: 233,901,066 | AL134: 199,649,343 | AM134: 197,664,398 | AN134: 177,909,215 | AO134: 177,701,563 | AP134: 192,899,189 | AQ134: 196,051,726 | AR134: 209,537,676 | AS134: 213,619,558 | AT134: 221,852,748 | AU134: 237,704,011 | AV134: 265,969,501 | AW134: 292,507,157 | AX134: 38,930 | AY134: 38,325 | AZ134: 42,973 | BA134: 43,026 | BB134: 45,411 | BC134: 51,662 | BD134: 53,761 | BE134: 56,194 | BF134: 54,737 | BG134: 55,134 | BH134: 54,342 | BI134: 57,969 | BJ134: 49,469 | BK134: 49,245 | BL134: 49,305 | BM134: 50,234 | BN134: 54,555 | BO134: 56,009 | BP134: 60,217 | BQ134: 60,322 | BR134: 63,396 | BS134: 68,204 | BT134: 76,549 | BU134: 84,227 | BV134: 16.5 | BW134: 16.5 | BX134: 15.5 | BY134: 15.4 | BZ134: 15.3 | CA134: 15.2 | CB134: 14.9 | CC134: 13.4 | CD134: 13.3 | CE134: 14.7 | CF134: 14.7 | CG134: 15.5 | CH134: 15.5 | CI134: 15.4 | CJ134: 13.8 | CK134: 13.6 | CL134: 13.5 | CM134: 13.4 | CN134: 13.3 | CO134: 13.6 | CP134: 13.4 | CQ134: 13.4 | CR134: 13.3 | CS134: 13.3 | CT134: =+B134/AX134 -> 26,097 | CU134: 26,101 | CV134: 26,099 | CW134: 26,100 | CX134: 26,099 | CY134: 26,098 | CZ134: 26,098 | DA134: 26,098 | DB134: 26,096 | DC134: 26,098 | DD134: 26,098 | DE134: 26,098 | DF134: 26,098 | DG134: 26,098 | DH134: 26,097 | DI134: 26,097 | DJ134: 26,096 | DK134: 26,097 | DL134: 26,097 | DM134: 26,095 | DN134: 26,096 | DO134: 26,097 | DP134: 26,098 | DQ134: 26,098
A135: 132 | B135: 940,055,825 | C135: 1,011,940,886 | D135: 1,075,815,206 | E135: 1,117,513,370 | F135: 1,127,240,287 | G135: 1,344,808,457 | H135: 1,425,248,966 | I135: 1,434,095,064 | J135: 1,350,181,268 | K135: 1,374,760,788 | L135: 1,399,756,830 | M135: 1,452,394,172 | N135: 1,294,896,590 | O135: 1,284,582,487 | P135: 1,257,947,283 | Q135: 1,306,537,861 | R135: 1,331,072,240 | S135: 1,415,543,458 | T135: 1,488,405,150 | U135: 1,420,174,553 | V135: 1,585,220,280 | W135: 1,755,086,902 | X135: 1,949,544,126 | Y135: 2,080,054,317 | Z135: 155,433,680 | AA135: 168,106,679 | AB135: 167,204,692 | AC135: 173,835,963 | AD135: 174,252,711 | AE135: 206,552,116 | AF135: 213,368,855 | AG135: 193,398,458 | AH135: 180,670,765 | AI135: 202,339,901 | AJ135: 206,310,512 | AK135: 225,781,297 | AL135: 201,148,715 | AM135: 198,368,650 | AN135: 175,290,580 | AO135: 178,208,820 | AP135: 181,541,412 | AQ135: 191,371,600 | AR135: 200,354,721 | AS135: 194,243,688 | AT135: 214,334,779 | AU135: 236,322,784 | AV135: 261,632,602 | AW135: 278,077,970 | AX135: 35,745 | AY135: 38,479 | AZ135: 40,906 | BA135: 42,491 | BB135: 42,862 | BC135: 51,134 | BD135: 54,191 | BE135: 54,529 | BF135: 51,338 | BG135: 52,273 | BH135: 53,223 | BI135: 55,223 | BJ135: 49,237 | BK135: 48,844 | BL135: 47,832 | BM135: 49,680 | BN135: 50,613 | BO135: 53,823 | BP135: 56,594 | BQ135: 54,000 | BR135: 60,275 | BS135: 66,733 | BT135: 74,128 | BU135: 79,092 | BV135: 16.5 | BW135: 16.6 | BX135: 15.5 | BY135: 15.6 | BZ135: 15.5 | CA135: 15.4 | CB135: 15.0 | CC135: 13.5 | CD135: 13.4 | CE135: 14.7 | CF135: 14.7 | CG135: 15.5 | CH135: 15.5 | CI135: 15.4 | CJ135: 13.9 | CK135: 13.6 | CL135: 13.6 | CM135: 13.5 | CN135: 13.5 | CO135: 13.7 | CP135: 13.5 | CQ135: 13.5 | CR135: 13.4 | CS135: 13.4 | CT135: 26,299 | CU135: 26,299 | CV135: 26,300 | CW135: 26,300 | CX135: 26,299 | CY135: 26,300 | CZ135: 26,300 | DA135: 26,300 | DB135: 26,300 | DC135: 26,300 | DD135: 26,300 | DE135: 26,301 | DF135: 26,299 | DG135: 26,300 | DH135: 26,299 | DI135: 26,299 | DJ135: 26,299 | DK135: 26,300 | DL135: 26,300 | DM135: 26,300 | DN135: 26,300 | DO135: 26,300 | DP135: 26,300 | DQ135: 26,299
A136: 133 | B136: 940,021,155 | C136: 989,247,110 | D136: 1,045,398,822 | E136: 1,247,472,980 | F136: 1,142,714,514 | G136: 1,304,797,794 | H136: 1,448,828,119 | I136: 1,440,323,271 | J136: 1,404,942,405 | K136: 1,388,903,800 | L136: 1,411,195,155 | M136: 1,515,753,624 | N136: 1,304,713,700 | O136: 1,300,967,169 | P136: 1,265,183,362 | Q136: 1,301,892,344 | R136: 1,345,982,166 | S136: 1,475,383,080 | T136: 1,512,994,839 | U136: 1,427,387,287 | V136: 1,568,220,819 | W136: 1,731,789,553 | X136: 1,942,688,272 | Y136: 2,082,274,578 | Z136: 155,978,741 | AA136: 164,533,777 | AB136: 163,360,448 | AC136: 195,265,188 | AD136: 177,802,326 | AE136: 201,959,151 | AF136: 218,170,667 | AG136: 195,015,715 | AH136: 189,115,452 | AI136: 205,009,147 | AJ136: 208,529,529 | AK136: 236,383,663 | AL136: 203,342,095 | AM136: 201,968,317 | AN136: 177,451,616 | AO136: 178,827,766 | AP136: 185,019,332 | AQ136: 201,324,385 | AR136: 205,837,739 | AS136: 196,815,234 | AT136: 213,289,920 | AU136: 235,357,455 | AV136: 262,582,428 | AW136: 280,805,704 | AX136: 35,474 | AY136: 37,330 | AZ136: 39,450 | BA136: 47,073 | BB136: 43,124 | BC136: 49,240 | BD136: 54,674 | BE136: 54,356 | BF136: 53,020 | BG136: 52,415 | BH136: 53,255 | BI136: 57,205 | BJ136: 49,238 | BK136: 49,096 | BL136: 47,745 | BM136: 49,132 | BN136: 50,796 | BO136: 55,679 | BP136: 57,099 | BQ136: 53,868 | BR136: 59,183 | BS136: 65,356 | BT136: 73,314 | BU136: 78,581 | BV136: 16.6 | BW136: 16.6 | BX136: 15.6 | BY136: 15.7 | BZ136: 15.6 | CA136: 15.5 | CB136: 15.1 | CC136: 13.5 | CD136: 13.5 | CE136: 14.8 | CF136: 14.8 | CG136: 15.6 | CH136: 15.6 | CI136: 15.5 | CJ136: 14.0 | CK136: 13.7 | CL136: 13.7 | CM136: 13.6 | CN136: 13.6 | CO136: 13.8 | CP136: 13.6 | CQ136: 13.6 | CR136: 13.5 | CS136: 13.5 | CT136: 26,499 | CU136: 26,500 | CV136: 26,499 | CW136: 26,501 | CX136: 26,498 | CY136: 26,499 | CZ136: 26,499 | DA136: 26,498 | DB136: 26,498 | DC136: 26,498 | DD136: 26,499 | DE136: 26,497 | DF136: 26,498 | DG136: 26,498 | DH136: 26,499 | DI136: 26,498 | DJ136: 26,498 | DK136: 26,498 | DL136: 26,498 | DM136: 26,498 | DN136: 26,498 | DO136: 26,498 | DP136: 26,498 | DQ136: 26,498
A137: 134 | B137: 920,037,007 | C137: 1,032,792,267 | D137: 1,024,688,376 | E137: 1,292,167,125 | F137: 1,147,279,597 | G137: 1,375,581,518 | H137: 1,397,668,583 | I137: 1,426,464,100 | J137: 1,358,088,634 | K137: 1,353,737,413 | L137: 1,411,519,212 | M137: 1,459,575,038 | N137: 1,343,353,807 | O137: 1,327,922,873 | P137: 1,256,003,708 | Q137: 1,283,504,567 | R137: 1,365,298,250 | S137: 1,413,203,377 | T137: 1,473,196,607 | U137: 1,395,759,529 | V137: 1,549,871,309 | W137: 1,878,840,595 | X137: 1,949,197,010 | Y137: 2,071,599,266 | Z137: 153,423,466 | AA137: 172,588,276 | AB137: 160,747,474 | AC137: 203,164,528 | AD137: 179,289,178 | AE137: 215,073,219 | AF137: 211,532,155 | AG137: 194,220,012 | AH137: 183,967,805 | AI137: 200,753,570 | AJ137: 209,801,895 | AK137: 228,130,524 | AL137: 210,601,839 | AM137: 207,079,321 | AN137: 177,359,998 | AO137: 177,729,043 | AP137: 189,458,322 | AQ137: 194,029,370 | AR137: 201,695,611 | AS137: 194,078,162 | AT137: 212,756,158 | AU137: 256,861,216 | AV137: 266,039,941 | AW137: 281,652,208 | AX137: 34,461 | AY137: 38,684 | AZ137: 38,378 | BA137: 48,393 | BB137: 42,970 | BC137: 51,522 | BD137: 52,351 | BE137: 53,427 | BF137: 50,867 | BG137: 50,703 | BH137: 52,867 | BI137: 54,669 | BJ137: 50,312 | BK137: 49,735 | BL137: 47,042 | BM137: 48,072 | BN137: 51,136 | BO137: 52,931 | BP137: 55,177 | BQ137: 52,277 | BR137: 58,048 | BS137: 70,358 | BT137: 73,004 | BU137: 77,586 | BV137: 16.7 | BW137: 16.7 | BX137: 15.7 | BY137: 15.7 | BZ137: 15.6 | CA137: 15.6 | CB137: 15.1 | CC137: 13.6 | CD137: 13.5 | CE137: 14.8 | CF137: 14.9 | CG137: 15.6 | CH137: 15.7 | CI137: 15.6 | CJ137: 14.1 | CK137: 13.8 | CL137: 13.9 | CM137: 13.7 | CN137: 13.7 | CO137: 13.9 | CP137: 13.7 | CQ137: 13.7 | CR137: 13.6 | CS137: 13.6 | CT137: 26,698 | CU137: 26,698 | CV137: 26,700 | CW137: 26,702 | CX137: 26,700 | CY137: 26,699 | CZ137: 26,698 | DA137: 26,699 | DB137: 26,699 | DC137: 26,699 | DD137: 26,699 | DE137: 26,698 | DF137: 26,700 | DG137: 26,700 | DH137: 26,700 | DI137: 26,700 | DJ137: 26,699 | DK137: 26,699 | DL137: 26,699 | DM137: 26,699 | DN137: 26,700 | DO137: 26,704 | DP137: 26,700 | DQ137: 26,701
A138: 135 | B138: 895,393,952 | C138: 944,091,182 | D138: 1,048,835,917 | E138: 1,257,073,628 | F138: 1,174,301,507 | G138: 1,297,295,095 | H138: 1,518,844,441 | I138: 1,408,439,071 | J138: 1,368,573,870 | K138: 1,369,760,045 | L138: 1,398,952,547 | M138: 1,387,474,448 | N138: 1,333,234,779 | O138: 1,297,724,949 | P138: 1,256,289,344 | Q138: 1,269,824,804 | R138: 1,360,526,809 | S138: 1,367,380,992 | T138: 1,510,480,089 | U138: 1,374,255,304 | V138: 1,534,617,750 | W138: 1,979,817,277 | X138: 1,916,887,119 | Y138: 2,115,884,723 | Z138: 149,820,394 | AA138: 158,263,306 | AB138: 165,222,574 | AC138: 198,964,496 | AD138: 184,308,318 | AE138: 203,111,600 | AF138: 230,514,244 | AG138: 193,184,086 | AH138: 186,723,086 | AI138: 205,000,807 | AJ138: 209,176,396 | AK138: 217,418,763 | AL138: 209,569,623 | AM138: 203,207,648 | AN138: 179,266,333 | AO138: 176,814,973 | AP138: 190,008,333 | AQ138: 188,715,178 | AR138: 208,329,279 | AS138: 192,482,223 | AT138: 212,018,312 | AU138: 271,998,761 | AV138: 263,123,696 | AW138: 289,733,238 | AX138: 33,288 | AY138: 35,097 | AZ138: 38,991 | BA138: 46,743 | BB138: 43,650 | BC138: 48,226 | BD138: 56,467 | BE138: 52,356 | BF138: 50,874 | BG138: 50,918 | BH138: 52,003 | BI138: 51,578 | BJ138: 49,561 | BK138: 48,240 | BL138: 46,700 | BM138: 47,204 | BN138: 50,575 | BO138: 50,831 | BP138: 56,151 | BQ138: 51,086 | BR138: 57,049 | BS138: 73,597 | BT138: 71,257 | BU138: 78,648 | BV138: 16.7 | BW138: 16.8 | BX138: 15.8 | BY138: 15.8 | BZ138: 15.7 | CA138: 15.7 | CB138: 15.2 | CC138: 13.7 | CD138: 13.6 | CE138: 15.0 | CF138: 15.0 | CG138: 15.7 | CH138: 15.7 | CI138: 15.7 | CJ138: 14.3 | CK138: 13.9 | CL138: 14.0 | CM138: 13.8 | CN138: 13.8 | CO138: 14.0 | CP138: 13.8 | CQ138: 13.7 | CR138: 13.7 | CS138: 13.7 | CT138: 26,898 | CU138: 26,899 | CV138: 26,899 | CW138: 26,893 | CX138: 26,903 | CY138: 26,900 | CZ138: 26,898 | DA138: 26,901 | DB138: 26,901 | DC138: 26,901 | DD138: 26,901 | DE138: 26,901 | DF138: 26,901 | DG138: 26,901 | DH138: 26,901 | DI138: 26,901 | DJ138: 26,901 | DK138: 26,901 | DL138: 26,900 | DM138: 26,901 | DN138: 26,900 | DO138: 26,901 | DP138: 26,901 | DQ138: 26,903
A139: 136 | B139: 974,970,767 | C139: 1,030,278,534 | D139: 1,091,630,397 | E139: 1,215,290,891 | F139: 1,188,530,137 | G139: 1,319,928,560 | H139: 1,488,341,804 | I139: 1,491,785,667 | J139: 1,380,708,678 | K139: 1,403,271,418 | L139: 1,436,926,604 | M139: 1,434,712,547 | N139: 1,410,814,418 | O139: 1,369,042,657 | P139: 1,310,754,522 | Q139: 1,316,217,218 | R139: 1,392,145,446 | S139: 1,413,331,368 | T139: 1,504,271,956 | U139: 1,389,578,413 | V139: 1,569,074,184 | W139: 1,964,344,036 | X139: 1,931,299,495 | Y139: 2,073,075,660 | Z139: 164,255,067 | AA139: 174,092,124 | AB139: 173,286,004 | AC139: 192,453,443 | AD139: 187,270,096 | AE139: 207,383,554 | AF139: 229,177,515 | AG139: 206,784,983 | AH139: 190,107,341 | AI139: 211,742,009 | AJ139: 216,379,199 | AK139: 225,568,622 | AL139: 222,593,545 | AM139: 214,687,114 | AN139: 188,215,397 | AO139: 185,281,882 | AP139: 196,024,035 | AQ139: 196,811,868 | AR139: 208,870,778 | AS139: 196,137,193 | AT139: 218,581,515 | AU139: 272,134,452 | AV139: 266,987,108 | AW139: 285,720,966 | AX139: 35,980 | AY139: 38,022 | AZ139: 40,286 | BA139: 44,852 | BB139: 43,863 | BC139: 48,713 | BD139: 54,929 | BE139: 55,056 | BF139: 50,957 | BG139: 51,790 | BH139: 53,031 | BI139: 52,949 | BJ139: 52,069 | BK139: 50,525 | BL139: 48,375 | BM139: 48,575 | BN139: 51,379 | BO139: 52,161 | BP139: 55,518 | BQ139: 51,285 | BR139: 57,909 | BS139: 72,497 | BT139: 71,277 | BU139: 76,509 | BV139: 16.8 | BW139: 16.9 | BX139: 15.9 | BY139: 15.8 | BZ139: 15.8 | CA139: 15.7 | CB139: 15.4 | CC139: 13.9 | CD139: 13.8 | CE139: 15.1 | CF139: 15.1 | CG139: 15.7 | CH139: 15.8 | CI139: 15.7 | CJ139: 14.4 | CK139: 14.1 | CL139: 14.1 | CM139: 13.9 | CN139: 13.9 | CO139: 14.1 | CP139: 13.9 | CQ139: 13.9 | CR139: 13.8 | CS139: 13.8 | CT139: 27,098 | CU139: 27,097 | CV139: 27,097 | CW139: 27,096 | CX139: 27,096 | CY139: 27,096 | CZ139: 27,096 | DA139: 27,096 | DB139: 27,096 | DC139: 27,095 | DD139: 27,096 | DE139: 27,096 | DF139: 27,095 | DG139: 27,096 | DH139: 27,096 | DI139: 27,097 | DJ139: 27,096 | DK139: 27,096 | DL139: 27,095 | DM139: 27,095 | DN139: 27,096 | DO139: 27,096 | DP139: 27,096 | DQ139: 27,096
A140: 137 | B140: 953,868,053 | C140: 973,492,238 | D140: 1,102,964,290 | E140: 1,135,709,119 | F140: 1,195,976,720 | G140: 1,261,428,855 | H140: 1,443,691,175 | I140: 1,411,112,057 | J140: 1,337,482,258 | K140: 1,343,739,982 | L140: 1,401,803,705 | M140: 1,370,934,692 | N140: 1,348,244,476 | O140: 1,362,214,904 | P140: 1,282,786,038 | Q140: 1,273,485,688 | R140: 1,335,991,780 | S140: 1,345,079,547 | T140: 1,406,925,813 | U140: 1,362,031,744 | V140: 1,488,314,373 | W140: 1,789,806,198 | X140: 1,848,498,855 | Y140: 1,984,402,056 | Z140: 160,905,249 | AA140: 164,617,006 | AB140: 174,985,140 | AC140: 180,632,170 | AD140: 189,234,419 | AE140: 198,687,806 | AF140: 224,465,585 | AG140: 196,445,589 | AH140: 185,490,844 | AI140: 203,213,297 | AJ140: 212,261,265 | AK140: 216,043,321 | AL140: 213,243,928 | AM140: 214,811,912 | AN140: 185,286,333 | AO140: 180,315,163 | AP140: 189,242,886 | AQ140: 188,209,649 | AR140: 196,165,624 | AS140: 193,499,246 | AT140: 208,147,928 | AU140: 249,816,889 | AV140: 257,195,476 | AW140: 275,188,391 | AX140: 34,941 | AY140: 35,659 | AZ140: 40,399 | BA140: 41,601 | BB140: 43,805 | BC140: 46,205 | BD140: 52,883 | BE140: 51,690 | BF140: 48,991 | BG140: 49,221 | BH140: 51,346 | BI140: 50,217 | BJ140: 49,387 | BK140: 49,900 | BL140: 46,990 | BM140: 46,649 | BN140: 48,938 | BO140: 49,271 | BP140: 51,536 | BQ140: 49,891 | BR140: 54,518 | BS140: 65,564 | BT140: 67,712 | BU140: 72,689 | BV140: 16.9 | BW140: 16.9 | BX140: 15.9 | BY140: 15.9 | BZ140: 15.8 | CA140: 15.8 | CB140: 15.5 | CC140: 13.9 | CD140: 13.9 | CE140: 15.1 | CF140: 15.1 | CG140: 15.8 | CH140: 15.8 | CI140: 15.8 | CJ140: 14.4 | CK140: 14.2 | CL140: 14.2 | CM140: 14.0 | CN140: 13.9 | CO140: 14.2 | CP140: 14.0 | CQ140: 14.0 | CR140: 13.9 | CS140: 13.9 | CT140: 27,299 | CU140: 27,300 | CV140: 27,302 | CW140: 27,300 | CX140: 27,302 | CY140: 27,301 | CZ140: 27,300 | DA140: 27,300 | DB140: 27,301 | DC140: 27,300 | DD140: 27,301 | DE140: 27,300 | DF140: 27,300 | DG140: 27,299 | DH140: 27,299 | DI140: 27,299 | DJ140: 27,300 | DK140: 27,300 | DL140: 27,300 | DM140: 27,300 | DN140: 27,300 | DO140: 27,299 | DP140: 27,299 | DQ140: 27,300
A141: 138 | B141: 902,701,899 | C141: 926,333,031 | D141: 1,070,588,053 | E141: 1,068,065,498 | F141: 1,336,650,495 | G141: 1,233,120,999 | H141: 1,422,810,828 | I141: 1,461,333,237 | J141: 1,325,678,446 | K141: 1,354,900,068 | L141: 1,444,103,634 | M141: 1,348,643,003 | N141: 1,324,414,533 | O141: 1,329,233,274 | P141: 1,260,530,585 | Q141: 1,284,865,778 | R141: 1,349,383,933 | S141: 1,377,084,177 | T141: 1,416,289,084 | U141: 1,363,715,154 | V141: 1,497,278,769 | W141: 1,711,089,419 | X141: 1,839,821,576 | Y141: 1,982,486,395 | Z141: 153,029,187 | AA141: 157,226,810 | AB141: 170,489,199 | AC141: 170,260,356 | AD141: 213,032,231 | AE141: 194,874,209 | AF141: 221,450,238 | AG141: 205,259,615 | AH141: 185,099,201 | AI141: 206,269,673 | AJ141: 220,375,963 | AK141: 213,688,592 | AL141: 210,534,226 | AM141: 210,069,686 | AN141: 183,347,430 | AO141: 182,963,269 | AP141: 192,583,837 | AQ141: 194,233,740 | AR141: 199,177,192 | AS141: 194,799,564 | AT141: 210,843,831 | AU141: 240,499,225 | AV141: 257,778,841 | AW141: 277,460,810 | AX141: 32,825 | AY141: 33,685 | AZ141: 38,931 | BA141: 38,839 | BB141: 48,594 | BC141: 44,837 | BD141: 51,739 | BE141: 53,139 | BF141: 48,208 | BG141: 49,270 | BH141: 52,514 | BI141: 49,039 | BJ141: 48,161 | BK141: 48,337 | BL141: 45,838 | BM141: 46,723 | BN141: 49,069 | BO141: 50,076 | BP141: 51,501 | BQ141: 49,591 | BR141: 54,449 | BS141: 62,222 | BT141: 66,904 | BU141: 72,091 | BV141: 17.0 | BW141: 17.0 | BX141: 15.9 | BY141: 15.9 | BZ141: 15.9 | CA141: 15.8 | CB141: 15.6 | CC141: 14.0 | CD141: 14.0 | CE141: 15.2 | CF141: 15.3 | CG141: 15.8 | CH141: 15.9 | CI141: 15.8 | CJ141: 14.5 | CK141: 14.2 | CL141: 14.3 | CM141: 14.1 | CN141: 14.1 | CO141: 14.3 | CP141: 14.1 | CQ141: 14.1 | CR141: 14.0 | CS141: 14.0 | CT141: 27,500 | CU141: 27,500 | CV141: 27,500 | CW141: 27,500 | CX141: 27,506 | CY141: 27,502 | CZ141: 27,500 | DA141: 27,500 | DB141: 27,499 | DC141: 27,499 | DD141: 27,499 | DE141: 27,501 | DF141: 27,500 | DG141: 27,499 | DH141: 27,500 | DI141: 27,500 | DJ141: 27,500 | DK141: 27,500 | DL141: 27,500 | DM141: 27,499 | DN141: 27,499 | DO141: 27,500 | DP141: 27,499 | DQ141: 27,500
A142: 139 | B142: 962,116,183 | C142: 976,875,342 | D142: 1,019,232,721 | E142: 1,074,318,148 | F142: 1,373,008,805 | G142: 1,247,346,756 | H142: 1,452,101,719 | I142: 1,466,314,294 | J142: 1,319,021,181 | K142: 1,332,880,973 | L142: 1,469,835,790 | M142: 1,395,745,961 | N142: 1,321,293,478 | O142: 1,333,525,120 | P142: 1,309,573,275 | Q142: 1,314,322,055 | R142: 1,368,995,941 | S142: 1,369,454,856 | T142: 1,429,515,775 | U142: 1,355,285,227 | V142: 1,527,957,961 | W142: 1,696,995,466 | X142: 1,863,846,354 | Y142: 2,026,598,580 | Z142: 164,074,270 | AA142: 166,890,493 | AB142: 163,209,697 | AC142: 172,067,478 | AD142: 220,176,376 | AE142: 198,146,829 | AF142: 227,837,584 | AG142: 208,565,007 | AH142: 186,250,289 | AI142: 204,980,398 | AJ142: 227,160,910 | AK142: 222,966,674 | AL142: 211,387,023 | AM142: 211,968,886 | AN142: 191,883,976 | AO142: 188,731,810 | AP142: 196,771,171 | AQ142: 194,576,147 | AR142: 202,962,250 | AS142: 195,426,654 | AT142: 217,627,083 | AU142: 240,768,177 | AV142: 263,891,888 | AW142: 286,790,348 | AX142: 34,734 | AY142: 35,266 | AZ142: 36,797 | BA142: 38,784 | BB142: 49,581 | BC142: 45,038 | BD142: 52,427 | BE142: 52,945 | BF142: 47,621 | BG142: 48,121 | BH142: 53,058 | BI142: 50,390 | BJ142: 47,700 | BK142: 48,139 | BL142: 47,276 | BM142: 47,454 | BN142: 49,426 | BO142: 49,443 | BP142: 51,613 | BQ142: 48,932 | BR142: 55,168 | BS142: 61,270 | BT142: 67,294 | BU142: 73,169 | BV142: 17.1 | BW142: 17.1 | BX142: 16.0 | BY142: 16.0 | BZ142: 16.0 | CA142: 15.9 | CB142: 15.7 | CC142: 14.2 | CD142: 14.1 | CE142: 15.4 | CF142: 15.5 | CG142: 16.0 | CH142: 16.0 | CI142: 15.9 | CJ142: 14.7 | CK142: 14.4 | CL142: 14.4 | CM142: 14.2 | CN142: 14.2 | CO142: 14.4 | CP142: 14.2 | CQ142: 14.2 | CR142: 14.2 | CS142: 14.2 | CT142: 27,700 | CU142: 27,700 | CV142: 27,699 | CW142: 27,700 | CX142: 27,692 | CY142: 27,695 | CZ142: 27,698 | DA142: 27,695 | DB142: 27,698 | DC142: 27,699 | DD142: 27,702 | DE142: 27,699 | DF142: 27,700 | DG142: 27,702 | DH142: 27,701 | DI142: 27,697 | DJ142: 27,698 | DK142: 27,698 | DL142: 27,697 | DM142: 27,697 | DN142: 27,696 | DO142: 27,697 | DP142: 27,697 | DQ142: 27,698
A143: 140 | B143: 963,114,271 | C143: 940,382,014 | D143: 1,031,578,107 | E143: 1,078,940,925 | F143: 1,226,206,498 | G143: 1,236,614,120 | H143: 1,374,273,770 | I143: 1,416,622,524 | J143: 1,311,021,840 | K143: 1,395,643,419 | L143: 1,427,087,778 | M143: 1,361,835,064 | N143: 1,318,057,853 | O143: 1,317,127,971 | P143: 1,280,240,113 | Q143: 1,317,012,964 | R143: 1,378,481,174 | S143: 1,358,921,627 | T143: 1,415,835,869 | U143: 1,320,896,290 | V143: 1,472,804,858 | W143: 1,672,610,893 | X143: 1,824,595,401 | Y143: 1,998,272,349 | Z143: 165,044,829 | AA143: 160,707,967 | AB143: 165,651,316 | AC143: 173,269,507 | AD143: 196,573,029 | AE143: 197,423,980 | AF143: 215,523,401 | AG143: 202,558,262 | AH143: 186,301,143 | AI143: 216,278,340 | AJ143: 221,632,463 | AK143: 219,189,761 | AL143: 212,114,167 | AM143: 210,828,537 | AN143: 188,706,325 | AO143: 190,107,145 | AP143: 199,135,347 | AQ143: 194,302,445 | AR143: 201,644,259 | AS143: 191,182,683 | AT143: 210,417,545 | AU143: 238,565,361 | AV143: 259,123,390 | AW143: 284,092,149 | AX143: 34,519 | AY143: 33,706 | AZ143: 36,975 | BA143: 38,671 | BB143: 43,945 | BC143: 44,320 | BD143: 49,256 | BE143: 50,774 | BF143: 46,988 | BG143: 50,023 | BH143: 51,150 | BI143: 48,809 | BJ143: 47,241 | BK143: 47,207 | BL143: 45,884 | BM143: 47,203 | BN143: 49,405 | BO143: 48,705 | BP143: 50,745 | BQ143: 47,342 | BR143: 52,786 | BS143: 59,947 | BT143: 65,393 | BU143: 71,617 | BV143: 17.1 | BW143: 17.1 | BX143: 16.1 | BY143: 16.1 | BZ143: 16.0 | CA143: 16.0 | CB143: 15.7 | CC143: 14.3 | CD143: 14.2 | CE143: 15.5 | CF143: 15.5 | CG143: 16.1 | CH143: 16.1 | CI143: 16.0 | CJ143: 14.7 | CK143: 14.4 | CL143: 14.4 | CM143: 14.3 | CN143: 14.2 | CO143: 14.5 | CP143: 14.3 | CQ143: 14.3 | CR143: 14.2 | CS143: 14.2 | CT143: 27,901 | CU143: 27,900 | CV143: 27,899 | CW143: 27,901 | CX143: 27,903 | CY143: 27,902 | CZ143: 27,901 | DA143: 27,901 | DB143: 27,901 | DC143: 27,900 | DD143: 27,900 | DE143: 27,901 | DF143: 27,901 | DG143: 27,901 | DH143: 27,902 | DI143: 27,901 | DJ143: 27,902 | DK143: 27,901 | DL143: 27,901 | DM143: 27,901 | DN143: 27,901 | DO143: 27,901 | DP143: 27,902 | DQ143: 27,902
A144: 141 | B144: 932,603,340 | C144: 965,784,715 | D144: 1,009,610,005 | E144: 1,096,792,040 | F144: 1,243,660,245 | G144: 1,256,406,007 | H144: 1,416,443,603 | I144: 1,552,442,620 | J144: 1,401,881,175 | K144: 1,491,800,469 | L144: 1,470,331,615 | M144: 1,415,561,306 | N144: 1,382,771,068 | O144: 1,341,945,438 | P144: 1,333,033,963 | Q144: 1,345,556,061 | R144: 1,413,270,040 | S144: 1,387,729,243 | T144: 1,437,071,533 | U144: 1,339,908,838 | V144: 1,490,328,730 | W144: 1,691,228,916 | X144: 1,820,007,967 | Y144: 1,978,008,314 | Z144: 160,007,273 | AA144: 165,880,233 | AB144: 162,668,607 | AC144: 177,222,893 | AD144: 200,605,422 | AE144: 201,394,658 | AF144: 223,146,005 | AG144: 223,980,569 | AH144: 201,057,530 | AI144: 232,818,561 | AJ144: 229,429,341 | AK144: 229,579,065 | AL144: 224,276,230 | AM144: 216,069,538 | AN144: 197,790,890 | AO144: 195,645,768 | AP144: 205,583,433 | AQ144: 199,942,888 | AR144: 206,337,179 | AS144: 195,149,970 | AT144: 214,938,458 | AU144: 242,583,307 | AV144: 259,880,111 | AW144: 282,955,184 | AX144: 33,189 | AY144: 34,372 | AZ144: 35,932 | BA144: 39,036 | BB144: 44,263 | BC144: 44,718 | BD144: 50,414 | BE144: 55,253 | BF144: 49,898 | BG144: 53,100 | BH144: 52,331 | BI144: 50,384 | BJ144: 49,217 | BK144: 47,762 | BL144: 47,446 | BM144: 47,893 | BN144: 50,302 | BO144: 49,394 | BP144: 51,150 | BQ144: 47,691 | BR144: 53,046 | BS144: 60,193 | BT144: 64,778 | BU144: 70,400 | BV144: 17.2 | BW144: 17.2 | BX144: 16.1 | BY144: 16.2 | BZ144: 16.1 | CA144: 16.0 | CB144: 15.8 | CC144: 14.4 | CD144: 14.3 | CE144: 15.6 | CF144: 15.6 | CG144: 16.2 | CH144: 16.2 | CI144: 16.1 | CJ144: 14.8 | CK144: 14.5 | CL144: 14.5 | CM144: 14.4 | CN144: 14.4 | CO144: 14.6 | CP144: 14.4 | CQ144: 14.3 | CR144: 14.3 | CS144: 14.3 | CT144: 28,100 | CU144: 28,098 | CV144: 28,098 | CW144: 28,097 | CX144: 28,097 | CY144: 28,096 | CZ144: 28,096 | DA144: 28,097 | DB144: 28,095 | DC144: 28,094 | DD144: 28,097 | DE144: 28,095 | DF144: 28,095 | DG144: 28,097 | DH144: 28,096 | DI144: 28,095 | DJ144: 28,096 | DK144: 28,095 | DL144: 28,095 | DM144: 28,096 | DN144: 28,095 | DO144: 28,097 | DP144: 28,096 | DQ144: 28,097
A145: 142 | B145: 911,624,187 | C145: 916,472,947 | D145: 984,528,453 | E145: 1,106,866,902 | F145: 1,155,720,646 | G145: 1,252,712,301 | H145: 1,330,832,231 | I145: 1,448,096,008 | J145: 1,327,099,159 | K145: 1,437,704,497 | L145: 1,461,576,143 | M145: 1,331,096,997 | N145: 1,316,422,855 | O145: 1,338,212,678 | P145: 1,291,695,490 | Q145: 1,284,185,729 | R145: 1,372,389,684 | S145: 1,348,498,499 | T145: 1,380,956,516 | U145: 1,281,179,801 | V145: 1,427,073,555 | W145: 1,630,543,455 | X145: 1,863,451,594 | Y145: 1,897,724,862 | Z145: 157,462,008 | AA145: 157,834,166 | AB145: 159,471,019 | AC145: 179,505,244 | AD145: 186,648,186 | AE145: 201,436,142 | AF145: 209,721,803 | AG145: 208,581,671 | AH145: 190,083,443 | AI145: 224,758,779 | AJ145: 228,658,000 | AK145: 217,128,950 | AL145: 215,194,620 | AM145: 217,189,967 | AN145: 192,595,036 | AO145: 187,783,124 | AP145: 201,014,991 | AQ145: 195,429,705 | AR145: 198,755,287 | AS145: 187,378,801 | AT145: 206,198,214 | AU145: 235,526,106 | AV145: 267,542,451 | AW145: 272,957,953 | AX145: 32,211 | AY145: 32,385 | AZ145: 34,789 | BA145: 39,115 | BB145: 40,839 | BC145: 44,266 | BD145: 47,026 | BE145: 51,174 | BF145: 46,893 | BG145: 50,803 | BH145: 51,653 | BI145: 47,038 | BJ145: 46,521 | BK145: 47,290 | BL145: 45,646 | BM145: 45,380 | BN145: 48,494 | BO145: 47,650 | BP145: 48,798 | BQ145: 45,272 | BR145: 50,428 | BS145: 57,623 | BT145: 65,844 | BU145: 67,061 | BV145: 17.3 | BW145: 17.2 | BX145: 16.2 | BY145: 16.2 | BZ145: 16.1 | CA145: 16.1 | CB145: 15.8 | CC145: 14.4 | CD145: 14.3 | CE145: 15.6 | CF145: 15.6 | CG145: 16.3 | CH145: 16.3 | CI145: 16.2 | CJ145: 14.9 | CK145: 14.6 | CL145: =+AP145/R145*100 -> 14.6 | CM145: 14.5 | CN145: 14.4 | CO145: 14.6 | CP145: 14.4 | CQ145: 14.4 | CR145: 14.4 | CS145: 14.4 | CT145: 28,302 | CU145: 28,299 | CV145: 28,300 | CW145: 28,298 | CX145: 28,299 | CY145: 28,300 | CZ145: 28,300 | DA145: 28,297 | DB145: 28,301 | DC145: 28,300 | DD145: 28,296 | DE145: 28,298 | DF145: 28,297 | DG145: 28,298 | DH145: 28,298 | DI145: 28,298 | DJ145: 28,300 | DK145: 28,300 | DL145: 28,299 | DM145: 28,300 | DN145: 28,299 | DO145: 28,297 | DP145: 28,301 | DQ145: 28,298
A146: 143 | B146: 886,861,034 | C146: 1,083,859,123 | D146: 959,985,431 | E146: 1,095,017,735 | F146: 1,150,776,042 | G146: 1,248,331,683 | H146: 1,346,120,269 | I146: 1,496,685,299 | J146: 1,344,530,305 | K146: 1,459,128,286 | L146: 1,416,621,484 | M146: 1,336,137,109 | N146: 1,293,374,042 | O146: 1,286,901,170 | P146: 1,272,104,225 | Q146: 1,284,107,783 | R146: 1,355,493,521 | S146: 1,366,143,099 | T146: 1,367,473,397 | U146: 1,276,423,205 | V146: 1,434,387,730 | W146: 1,599,491,236 | X146: 1,917,880,170 | Y146: 1,895,959,124 | Z146: 153,646,364 | AA146: 187,969,462 | AB146: 156,010,924 | AC146: 177,992,329 | AD146: 186,845,496 | AE146: 201,713,324 | AF146: 212,741,567 | AG146: 217,024,505 | AH146: 193,347,880 | AI146: 229,197,608 | AJ146: 222,010,304 | AK146: 220,002,301 | AL146: 213,423,072 | AM146: 211,197,865 | AN146: 191,248,506 | AO146: 189,254,403 | AP146: 199,665,842 | AQ146: 199,635,216 | AR146: 198,745,165 | AS146: 188,311,208 | AT146: 208,404,266 | AU146: 232,046,459 | AV146: 277,052,816 | AW146: 274,983,563 | AX146: 31,118 | AY146: 38,030 | AZ146: 33,685 | BA146: 38,420 | BB146: 40,378 | BC146: 43,801 | BD146: 47,233 | BE146: 52,513 | BF146: 47,175 | BG146: 51,201 | BH146: 49,702 | BI146: 46,880 | BJ146: 45,380 | BK146: 45,154 | BL146: 44,635 | BM146: 45,057 | BN146: 47,561 | BO146: 47,937 | BP146: 47,982 | BQ146: 44,787 | BR146: 50,331 | BS146: 56,122 | BT146: 67,290 | BU146: 66,525 | BV146: 17.3 | BW146: 17.3 | BX146: 16.3 | BY146: 16.3 | BZ146: 16.2 | CA146: 16.2 | CB146: 15.8 | CC146: 14.5 | CD146: 14.4 | CE146: 15.7 | CF146: 15.7 | CG146: 16.5 | CH146: 16.5 | CI146: 16.4 | CJ146: 15.0 | CK146: 14.7 | CL146: 14.7 | CM146: 14.6 | CN146: 14.5 | CO146: 14.8 | CP146: 14.5 | CQ146: 14.5 | CR146: 14.4 | CS146: 14.5 | CT146: 28,500 | CU146: 28,500 | CV146: 28,499 | CW146: 28,501 | CX146: 28,500 | CY146: 28,500 | CZ146: 28,500 | DA146: 28,501 | DB146: 28,501 | DC146: 28,498 | DD146: 28,502 | DE146: 28,501 | DF146: 28,501 | DG146: 28,500 | DH146: 28,500 | DI146: 28,500 | DJ146: 28,500 | DK146: 28,499 | DL146: 28,500 | DM146: 28,500 | DN146: 28,499 | DO146: 28,500 | DP146: 28,502 | DQ146: 28,500 | DR146: 28,500
A147: 144 | B147: 815,100,057 | C147: 946,058,063 | D147: 976,739,772 | E147: 1,059,708,272 | F147: 1,101,409,656 | G147: 1,296,556,815 | H147: 1,266,060,114 | I147: 1,469,668,011 | J147: 1,315,443,667 | K147: 1,330,403,098 | L147: 1,357,165,727 | M147: 1,305,009,044 | N147: 1,264,650,396 | O147: 1,295,736,969 | P147: 1,287,301,287 | Q147: 1,258,030,398 | R147: 1,331,443,541 | S147: 1,363,448,581 | T147: 1,357,302,433 | U147: 1,269,879,556 | V147: 1,389,647,122 | W147: 1,539,831,164 | X147: 2,016,952,990 | Y147: 1,859,175,693 | Z147: 141,471,117 | AA147: 164,069,710 | AB147: 158,899,992 | AC147: 172,471,072 | AD147: 179,009,604 | AE147: 210,425,514 | AF147: 200,726,828 | AG147: 214,145,443 | AH147: 190,000,844 | AI147: 208,959,337 | AJ147: 212,840,104 | AK147: 215,352,464 | AL147: 209,243,027 | AM147: 213,592,089 | AN147: 194,198,757 | AO147: 185,884,583 | AP147: 197,174,592 | AQ147: 200,218,541 | AR147: 198,091,601 | AS147: 188,503,823 | AT147: 203,487,748 | AU147: 224,543,654 | AV147: 292,678,367 | AW147: 270,143,713 | AX147: 28,401 | AY147: 32,965 | AZ147: 34,033 | BA147: 36,926 | BB147: 38,375 | BC147: 45,176 | BD147: 44,115 | BE147: 51,210 | BF147: 45,836 | BG147: 46,355 | BH147: 47,288 | BI147: 45,472 | BJ147: 44,064 | BK147: 45,147 | BL147: 44,854 | BM147: 43,834 | BN147: 46,393 | BO147: 47,506 | BP147: 47,294 | BQ147: 44,248 | BR147: 48,421 | BS147: 53,653 | BT147: 70,281 | BU147: 64,782 | BV147: 17.4 | BW147: 17.3 | BX147: 16.3 | BY147: 16.3 | BZ147: 16.3 | CA147: 16.2 | CB147: 15.9 | CC147: 14.6 | CD147: 14.4 | CE147: 15.7 | CF147: 15.7 | CG147: 16.5 | CH147: 16.5 | CI147: 16.5 | CJ147: 15.1 | CK147: 14.8 | CL147: 14.8 | CM147: 14.7 | CN147: 14.6 | CO147: 14.8 | CP147: 14.6 | CQ147: 14.6 | CR147: 14.5 | CS147: 14.5 | CT147: 28,700 | CU147: 28,699 | CV147: 28,700 | CW147: 28,698 | CX147: 28,701 | CY147: 28,700 | CZ147: 28,699 | DA147: 28,699 | DB147: 28,699 | DC147: 28,700 | DD147: 28,700 | DE147: 28,699 | DF147: 28,700 | DG147: 28,700 | DH147: 28,700 | DI147: 28,700 | DJ147: 28,699 | DK147: 28,701 | DL147: 28,699 | DM147: 28,699 | DN147: 28,699 | DO147: 28,700 | DP147: 28,698 | DQ147: 28,699
A148: 145 | B148: 873,226,298 | C148: 1,068,086,487 | D148: 1,020,069,440 | E148: 1,048,629,232 | F148: 1,146,698,331 | G148: 1,426,586,542 | H148: 1,344,418,034 | I148: 1,431,104,061 | J148: 1,378,682,194 | K148: 1,435,207,521 | L148: 1,393,460,897 | M148: 1,323,119,405 | N148: 1,297,412,586 | O148: 1,327,457,576 | P148: 1,285,356,425 | Q148: 1,307,201,039 | R148: 1,377,339,665 | S148: 1,400,389,840 | T148: 1,377,817,922 | U148: 1,308,766,039 | V148: 1,415,841,994 | W148: 1,554,318,727 | X148: 1,927,406,986 | Y148: 1,861,740,518 | Z148: 152,270,492 | AA148: 186,818,677 | AB148: 166,760,500 | AC148: 171,656,733 | AD148: 187,389,233 | AE148: 233,061,936 | AF148: 214,591,509 | AG148: 209,179,078 | AH148: 200,207,904 | AI148: 226,920,977 | AJ148: 219,286,178 | AK148: 219,122,239 | AL148: 215,380,750 | AM148: 219,455,734 | AN148: 194,990,553 | AO148: 194,524,496 | AP148: 205,620,629 | AQ148: 207,212,462 | AR148: 202,625,466 | AS148: 195,636,926 | AT148: 208,738,753 | AU148: 228,865,627 | AV148: 281,934,544 | AW148: 273,242,513 | AX148: 30,218 | AY148: 36,960 | AZ148: 35,303 | BA148: 36,287 | BB148: 39,678 | BC148: 49,363 | BD148: 46,522 | BE148: 49,522 | BF148: 47,707 | BG148: 49,662 | BH148: 48,219 | BI148: 45,785 | BJ148: 44,895 | BK148: 45,935 | BL148: 44,478 | BM148: 45,233 | BN148: 47,663 | BO148: 48,460 | BP148: 47,676 | BQ148: 45,287 | BR148: 48,993 | BS148: 53,785 | BT148: 66,697 | BU148: 64,422 | BV148: 17.4 | BW148: 17.5 | BX148: 16.3 | BY148: 16.4 | BZ148: 16.3 | CA148: 16.3 | CB148: 16.0 | CC148: 14.6 | CD148: 14.5 | CE148: 15.8 | CF148: 15.7 | CG148: 16.6 | CH148: 16.6 | CI148: 16.5 | CJ148: 15.2 | CK148: 14.9 | CL148: 14.9 | CM148: 14.8 | CN148: 14.7 | CO148: 14.9 | CP148: 14.7 | CQ148: 14.7 | CR148: 14.6 | CS148: 14.7 | CT148: 28,898 | CU148: 28,898 | CV148: 28,895 | CW148: 28,898 | CX148: 28,900 | CY148: 28,900 | CZ148: 28,899 | DA148: 28,898 | DB148: 28,899 | DC148: 28,900 | DD148: 28,899 | DE148: 28,899 | DF148: 28,899 | DG148: 28,899 | DH148: 28,899 | DI148: 28,899 | DJ148: 28,897 | DK148: 28,898 | DL148: 28,900 | DM148: 28,899 | DN148: 28,899 | DO148: 28,899 | DP148: 28,898 | DQ148: 28,899
A149: 146 | B149: 791,850,375 | C149: 926,366,638 | D149: 1,000,960,902 | E149: 1,039,443,059 | F149: 1,113,696,567 | G149: 1,319,566,063 | H149: 1,280,290,510 | I149: 1,467,886,549 | J149: 1,379,065,275 | K149: 1,356,914,342 | L149: 1,361,684,528 | M149: 1,338,770,898 | N149: 1,260,992,239 | O149: 1,337,046,398 | P149: 1,318,069,152 | Q149: 1,298,582,854 | R149: 1,349,473,347 | S149: 1,340,505,871 | T149: 1,386,053,095 | U149: 1,294,056,860 | V149: 1,418,345,866 | W149: 1,530,288,252 | X149: 1,827,764,819 | Y149: 1,853,410,089 | Z149: 138,553,722 | AA149: 162,194,069 | AB149: 165,090,245 | AC149: 171,277,830 | AD149: 182,200,108 | AE149: 215,435,790 | AF149: 205,190,208 | AG149: 215,193,542 | AH149: 201,602,349 | AI149: 214,581,701 | AJ149: 214,920,652 | AK149: 222,384,432 | AL149: 210,042,328 | AM149: 222,569,067 | AN149: 201,361,456 | AO149: 194,392,243 | AP149: 202,039,593 | AQ149: 199,252,885 | AR149: 205,191,787 | AS149: 193,850,028 | AT149: 210,637,386 | AU149: 226,103,024 | AV149: 268,915,212 | AW149: 273,383,319 | AX149: 27,212 | AY149: 31,833 | AZ149: 34,397 | BA149: 35,722 | BB149: 38,274 | BC149: 45,348 | BD149: 43,998 | BE149: 50,445 | BF149: 47,392 | BG149: 46,633 | BH149: 46,797 | BI149: 46,007 | BJ149: 43,337 | BK149: 45,951 | BL149: 45,296 | BM149: 44,628 | BN149: 46,377 | BO149: 46,069 | BP149: 47,634 | BQ149: 44,473 | BR149: 48,745 | BS149: 52,592 | BT149: 62,815 | BU149: 63,696 | BV149: 17.5 | BW149: 17.5 | BX149: 16.5 | BY149: 16.5 | BZ149: 16.4 | CA149: 16.3 | CB149: 16.0 | CC149: 14.7 | CD149: 14.6 | CE149: 15.8 | CF149: 15.8 | CG149: 16.6 | CH149: 16.7 | CI149: 16.6 | CJ149: 15.3 | CK149: 15.0 | CL149: 15.0 | CM149: 14.9 | CN149: 14.8 | CO149: 15.0 | CP149: 14.9 | CQ149: 14.8 | CR149: 14.7 | CS149: 14.8 | CT149: 29,099 | CU149: 29,101 | CV149: 29,100 | CW149: 29,098 | CX149: 29,098 | CY149: 29,099 | CZ149: 29,099 | DA149: 29,099 | DB149: 29,099 | DC149: 29,098 | DD149: 29,098 | DE149: 29,099 | DF149: 29,097 | DG149: 29,097 | DH149: 29,099 | DI149: 29,098 | DJ149: 29,098 | DK149: 29,098 | DL149: 29,098 | DM149: 29,098 | DN149: 29,097 | DO149: 29,097 | DP149: 29,098 | DQ149: 29,098
A150: 147 | B150: 814,981,728 | C150: 897,070,576 | D150: 1,050,309,332 | E150: 982,819,276 | F150: 1,119,936,314 | G150: 1,256,441,805 | H150: 1,255,828,117 | I150: 1,407,829,867 | J150: 1,385,591,078 | K150: 1,368,235,435 | L150: 1,337,754,141 | M150: 1,295,355,795 | N150: 1,262,938,958 | O150: 1,257,303,901 | P150: 1,278,884,511 | Q150: 1,301,512,400 | R150: 1,340,733,869 | S150: 1,368,788,070 | T150: 1,363,059,022 | U150: 1,297,657,267 | V150: 1,410,391,117 | W150: 1,509,351,009 | X150: 1,727,630,548 | Y150: 1,821,194,724 | Z150: 143,245,376 | AA150: 157,401,662 | AB150: 174,748,909 | AC150: 162,526,832 | AD150: 184,620,117 | AE150: 206,556,981 | AF150: 202,601,720 | AG150: 207,597,343 | AH150: 203,492,371 | AI150: 217,468,046 | AJ150: 212,471,938 | AK150: 215,883,040 | AL150: 210,866,381 | AM150: 209,309,612 | AN150: 196,519,913 | AO150: 196,496,960 | AP150: 202,584,982 | AQ150: 205,582,536 | AR150: 203,783,328 | AS150: 196,489,027 | AT150: 211,055,762 | AU150: 224,895,784 | AV150: 256,806,493 | AW150: 271,658,803 | AX150: 27,814 | AY150: 30,615 | AZ150: 35,847 | BA150: 33,544 | BB150: 38,225 | BC150: 42,884 | BD150: 42,862 | BE150: 48,051 | BF150: 47,298 | BG150: 46,699 | BH150: 45,657 | BI150: 44,212 | BJ150: 43,103 | BK150: 42,912 | BL150: 43,648 | BM150: 44,422 | BN150: 45,759 | BO150: 46,716 | BP150: 46,521 | BQ150: 44,289 | BR150: 48,137 | BS150: 51,514 | BT150: 58,966 | BU150: 62,158 | BV150: 17.6 | BW150: 17.5 | BX150: 16.6 | BY150: 16.5 | BZ150: 16.5 | CA150: 16.4 | CB150: 16.1 | CC150: 14.7 | CD150: 14.7 | CE150: 15.9 | CF150: 15.9 | CG150: 16.7 | CH150: 16.7 | CI150: 16.6 | CJ150: 15.4 | CK150: 15.1 | CL150: 15.1 | CM150: 15.0 | CN150: 15.0 | CO150: 15.1 | CP150: 15.0 | CQ150: 14.9 | CR150: 14.9 | CS150: 14.9 | CT150: 29,301 | CU150: 29,302 | CV150: 29,300 | CW150: 29,299 | CX150: 29,299 | CY150: 29,299 | CZ150: 29,299 | DA150: 29,299 | DB150: 29,295 | DC150: 29,299 | DD150: 29,300 | DE150: 29,299 | DF150: 29,300 | DG150: 29,300 | DH150: 29,300 | DI150: 29,299 | DJ150: 29,300 | DK150: 29,300 | DL150: 29,300 | DM150: 29,300 | DN150: 29,300 | DO150: 29,300 | DP150: 29,299 | DQ150: 29,299
